Workbook

Sheet Instructions
C2: AERMET Sound Speed Profile Calculator | I2: Back
C3: NCHRP 25-52 | G3: ver 12/7/2017
E6: Instructions

Sheet User Interface
C3: AERMET Sound Speed Profile Calculator
C4: NCHRP 25-52 | G4: ver 12/7/2017
D9: Enter Source to Receiver Direction
D10: from True North
E11: 283 | G11: degrees
D13: Enter Height Above Ground
D14: for Gradient Calculation
E15: 10 | G15: m

Sheet c profile calculations
L1: From AERMET | P1: Wind Profile Calculations | U1: z0 meter Temperature Calculations | Z1: ="z" & z_h & " Temperature Calculations" -> z10 Temperature Calculations | AE1: s^-1 | AF1: s^-1
A2: Fn | B2: Variable | C2: Description | D2: Value or Function | L2: m s-1 | M2: m | N2: m | O2: m | R2: m s-1 | S2: m/s | T2: s^-1 | X2: C | AC2: C | AE2: Tempeature | AF2: Effective
A3: 1 | B3: u(z) | C3: wind speed in source receiver direction (m s-1) | D3: =u*/k[ln{z+zm/zm}+ΨM(z/L)] | L3: u* | M3: zM | N3: zH | O3: L | P3: χM | Q3: ΨM | R3: u(z) | S3: vector ws | T3: u(z) gradient | U3: χH | V3: ΨH | W3: T*_1 | X3: T(2) | Y3: c(2) | Z3: χH | AA3: ΨH | AB3: T*_1 | AC3: T(10) | AD3: c(10) | AE3: Gradient | AF3: Sound speed
A4: 2 | B4: T(z) | C4: temperature in source receiver direction (Celsius) | D4: =T0+T*/k[ln{z+zH/zH}+ΨH(z/L)+Гz | G4: YEAR | H4: MONTH | I4: DAY | J4: DAY_YR | K4: HOUR | L4: u* | M4: z_0 | N4: z_0 | O4: L | P4: 1b | Q4: 1a | R4: 1 | U4: 2b | V4: 2a | W4: T* | X4: 2 | Y4: 3 | Z4: 2b | AA4: 2a | AB4: T* | AC4: 2 | AD4: 3 | AF4: Profile | AK4: Strong upward | AL4: Upward | AM4: Neutral | AN4: Downward | AO4: Strong downward
B5: z | C5: reference height of sound speed profile (m) | D5: ='User Interface'!E15 -> 10 | G5: 16 | H5: 1 | I5: 1 | J5: 1 | K5: 1 | L5: ='Formatted AERMET Data'!G4 -> 0.1 | M5: ='Formatted AERMET Data'!M4 -> 0.061 | N5: =M5 -> 0.061 | O5: ='Formatted AERMET Data'!L4 -> 8.6 | P5: =IF($O5>0,"",IF(AND($O5<0,$O5<>-99999),(1-((16*$D$5)/$O5))^0.25,"")) ->  | Q5: =IF($O5>0,5*($D$5/$O5),IF(AND($O5<0,$O5<>-99999),(-2*LN((1+P5)/2)-LN((1+P5^2)))/(2+2*ATAN(P5)-PI()/2),"")) -> 5.813953488 | R5: =IF(L5<>-9,(L5/$D$11)*(LN(($D$5+$M5)/$M5)+Q5*($D$5/$O5)),"") -> 2.894136344 | S5: =R5*(-1*COS(RADIANS($D$23-'Formatted AERMET Data'!Q4))) -> 2.858504723 | T5: =(S5)/($D$5-M5) -> 0.287604862 | U5: =IFERROR((1-16 *z_h/Obu_len) ^ 0.25, "") ->  | V5: =IF($O5<0,2*LN((1+$U5^2)/2),-5*z_0_T/$O5) -> -0.5813953488 | W5: =($L5^2)/(O5*$D$11*9.8)*theta_0 -> 0.0833458738 | X5: =IFERROR(theta_0 + W5/ K_const * ( LN(z_0_T/ z_0_T) - V5), "") -> 288.1181876 | Y5: =IFERROR((X5)^0.5 * 20.05, "") -> 340.3295927 | Z5: =IFERROR((1-16 * z_h/Obu_len) ^ 0.25, "") ->  | AA5: =IF($O5<0,2*LN((1+$Z5^2)/2),-5*z_h/$O5) -> -5.813953488 | AB5: =($L5^2)/($O5*$D$11*9.8)*theta_0 -> 0.0833458738 | AC5: =IFERROR(theta_0 + theta_star_z/ K_const * ( LN( z_h / $N5 + 1) - psi_h) - 0.01 * z_h, "") -> 290.1197449 | AD5: =IFERROR((AC5)^0.5 * 20.05, "") -> 341.5096818 | AE5: =IFERROR((AD5-Y5)/($D$5-$D$6), "") -> 0.1311210009 | AF5: =AE5+T5 -> 0.4187258629 | AH5: Hour of the day | AJ5: -999 | AK5: -0.13 | AL5: -0.04 | AM5: 0.06 | AN5: 0.15 | AO5: 999
B6: z0 | C6: reference height for temperature | D6: 1 | G6: 16 | H6: 1 | I6: 1 | J6: 1 | K6: 2 | L6: ='Formatted AERMET Data'!G5 -> 0.1 | M6: ='Formatted AERMET Data'!M5 -> 0.061 | N6: 0.061 | O6: ='Formatted AERMET Data'!L5 -> 4.5 | Q6: 11.11111111 | R6: 7.267538049 | S6: =R6*(-1*COS(RADIANS($D$23-'Formatted AERMET Data'!Q5))) -> 7.196810869 | T6: 0.7240980852 | V6: -1.111111111 | W6: 0.1592832255 | X6: 288.4316619 | Y6: =IFERROR((X6)^0.5 * 20.05, "") -> 340.5146827 | AA6: -11.11111111 | AB6: 0.1592832255 | AC6: 294.2001019 | AD6: =IFERROR((AC6)^0.5 * 20.05, "") -> 343.902859 | AE6: 0.3764640352 | AF6: 1.10056212 | AH6: 0 | AK6: =COUNTIFS($AE$5:$AE$8788, ">" & AJ$5, $AE$5:$AE$8788, "<=" & AK$5, $K$5:$K$8788, $AH6) -> 0 | AL6: 0 | AM6: 0 | AN6: 0 | AO6: 0
B7: u* | C7: Surface friction velocity (m s-1) | D7: in table | G7: 16 | H7: 1 | I7: 1 | J7: 1 | K7: 3 | L7: ='Formatted AERMET Data'!G6 -> 0.1 | M7: ='Formatted AERMET Data'!M6 -> 0.061 | N7: 0.061 | O7: ='Formatted AERMET Data'!L6 -> 9.2 | Q7: 5.434782609 | R7: 2.686078141 | S7: =R7*(-1*COS(RADIANS($D$23-'Formatted AERMET Data'!Q6))) -> 2.684441855 | T7: 0.2700917451 | V7: -0.5434782609 | W7: 0.07791027334 | X7: 288.1032745 | Y7: 340.3207849 | AA7: -5.434782609 | AB7: 0.07791027334 | AC7: 289.9029269 | AD7: 341.3820461 | AE7: 0.1179179131 | AF7: 0.3880096583 | AH7: 1 | AI7: 00:00:00 | AK7: 0 | AL7: 3 | AM7: 86 | AN7: 273 | AO7: 4
B8: zM | C8: Momentum roughness length (m) | D8: in table | G8: 16 | H8: 1 | I8: 1 | J8: 1 | K8: 4 | L8: ='Formatted AERMET Data'!G7 -> 0.1 | M8: ='Formatted AERMET Data'!M7 -> 0.07 | N8: 0.07 | O8: ='Formatted AERMET Data'!L7 -> 32.3 | Q8: 1.547987616 | R8: 1.328798506 | S8: =R8*(-1*COS(RADIANS($D$23-'Formatted AERMET Data'!Q7))) -> 1.240540276 | T8: 0.1249285273 | V8: -0.1547987616 | W8: 0.02219116145 | X8: 288.0083784 | Y8: 340.2647325 | AA8: -1.547987616 | AB8: 0.02219116145 | AC8: 288.2527208 | AD8: 340.4090398 | AE8: 0.01603415416 | AF8: 0.1409626815 | AH8: 2 | AI8: 01:00:00 | AK8: 0 | AL8: 3 | AM8: 89 | AN8: 271 | AO8: 3
B9: zH | C9: Heat roughness length (m) | D9: in table | G9: 16 | H9: 1 | I9: 1 | J9: 1 | K9: 5 | L9: ='Formatted AERMET Data'!G8 -> 0.1 | M9: ='Formatted AERMET Data'!M8 -> 0.061 | N9: 0.061 | O9: ='Formatted AERMET Data'!L8 -> 17.5 | Q9: 2.857142857 | R9: 1.643463668 | S9: =R9*(-1*COS(RADIANS($D$23-'Formatted AERMET Data'!Q8))) -> 1.634460602 | T9: 0.1644492003 | V9: -0.2857142857 | W9: 0.0409585437 | X9: 288.0285425 | Y9: 340.2766436 | AA9: -2.857142857 | AB9: 0.0409585437 | AC9: 288.695464 | AD9: 340.670366 | AE9: 0.04374693082 | AF9: 0.2081961312 | AH9: 3 | AI9: 02:00:00 | AK9: 0 | AL9: 3 | AM9: 74 | AN9: 285 | AO9: 4
B10: T* | C10: Scaling temperature (K) | D10: in table | G10: 16 | H10: 1 | I10: 1 | J10: 1 | K10: 6 | L10: ='Formatted AERMET Data'!G9 -> 0.1 | M10: ='Formatted AERMET Data'!M9 -> 0.081 | N10: 0.081 | O10: ='Formatted AERMET Data'!L9 -> 6.8 | Q10: 7.352941176 | R10: 3.813928629 | S10: =R10*(-1*COS(RADIANS($D$23-'Formatted AERMET Data'!Q9))) -> 3.234394912 | T10: 0.3260807453 | V10: -0.7352941176 | W10: 0.1054080169 | X10: 288.1890388 | Y10: 340.3714354 | AA10: -7.352941176 | AB10: 0.1054080169 | AC10: 291.0305923 | AD10: 342.0453562 | AE10: 0.1859911959 | AF10: 0.5120719411 | AH10: 4 | AI10: 03:00:00 | AK10: 0 | AL10: 5 | AM10: 83 | AN10: 274 | AO10: 4
B11: k | C11: Von Karmann constant | D11: 0.41 | G11: 16 | H11: 1 | I11: 1 | J11: 1 | K11: 7 | L11: ='Formatted AERMET Data'!G10 -> 0.1 | M11: ='Formatted AERMET Data'!M10 -> 0.061 | N11: 0.061 | O11: ='Formatted AERMET Data'!L10 -> 7.9 | Q11: 6.329113924 | R11: 3.199288925 | S11: =R11*(-1*COS(RADIANS($D$23-'Formatted AERMET Data'!Q10))) -> 3.168153665 | T11: 0.3187598013 | V11: -0.6329113924 | W11: 0.09073095123 | X11: 288.1400601 | Y11: 340.3425106 | AA11: -6.329113924 | AB11: 0.09073095123 | AC11: 290.4304335 | AD11: 341.6924939 | AE11: 0.1499981398 | AF11: 0.468757941 | AH11: 5 | AI11: 04:00:00 | AK11: 0 | AL11: 2 | AM11: 85 | AN11: 276 | AO11: 3
B12: T0 | C12: Temperature at zero height (K) | D12: 288 | G12: 16 | H12: 1 | I12: 1 | J12: 1 | K12: 8 | L12: ='Formatted AERMET Data'!G11 -> 0.1 | M12: ='Formatted AERMET Data'!M11 -> 0.061 | N12: 0.061 | O12: ='Formatted AERMET Data'!L11 -> 8.7 | Q12: 5.747126437 | R12: 2.856448886 | S12: =R12*(-1*COS(RADIANS($D$23-'Formatted AERMET Data'!Q11))) -> 2.852534222 | T12: 0.2870041475 | V12: -0.5747126437 | W12: 0.08238787525 | X12: 288.1154862 | Y12: 340.3279973 | AA12: -5.747126437 | AB12: 0.08238787525 | AC12: 290.0808019 | AD12: 341.4867605 | AE12: 0.1287514617 | AF12: 0.4157556092 | AH12: 6 | AI12: 05:00:00 | AK12: 0 | AL12: 4 | AM12: 94 | AN12: 263 | AO12: 5
B13: Г | C13: Adiabatic correction factor (Celsius m-1) | D13: -0.01 | G13: 16 | H13: 1 | I13: 1 | J13: 1 | K13: 9 | L13: ='Formatted AERMET Data'!G12 -> 0.1 | M13: ='Formatted AERMET Data'!M12 -> 0.061 | N13: 0.061 | O13: ='Formatted AERMET Data'!L12 -> -138.5 | P13: 1.211640107 | Q13: -0.5042031658 | R13: 1.254134766 | S13: =R13*(-1*COS(RADIANS($D$23-'Formatted AERMET Data'!Q12))) -> 1.249362404 | T13: 0.1257030289 | U13: 1.211640107 | V13: 0.4205799927 | W13: -0.005175267254 | X13: 288.0053088 | Y13: 340.2629192 | Z13: 1.211640107 | AA13: 0.4205799927 | AB13: -0.005175267254 | AC13: 287.8408635 | AD13: 340.1657636 | AE13: -0.01079506128 | AF13: 0.1149079676 | AH13: 7 | AI13: 06:00:00 | AK13: 2 | AL13: 74 | AM13: 136 | AN13: 152 | AO13: 2
B14: L | C14: Obukov length (m) | D14: in table | G14: 16 | H14: 1 | I14: 1 | J14: 1 | K14: 10 | L14: ='Formatted AERMET Data'!G13 -> 0.1 | M14: ='Formatted AERMET Data'!M13 -> 0.061 | N14: 0.061 | O14: ='Formatted AERMET Data'!L13 -> -13.5 | P14: 1.89339588 | Q14: -0.8700940232 | R14: 1.402454163 | S14: =R14*(-1*COS(RADIANS($D$23-'Formatted AERMET Data'!Q13))) -> 1.392000483 | T14: 0.14005438 | U14: 1.89339588 | V14: 1.659263149 | W14: -0.0530944085 | X14: 288.2148722 | Y14: 340.3866906 | Z14: 1.89339588 | AA14: 1.659263149 | AB14: -0.0530944085 | AC14: 287.4537111 | AD14: 339.9369213 | AE14: -0.04997436493 | AF14: 0.09008001505 | AH14: 8 | AI14: 07:00:00 | AK14: 123 | AL14: 78 | AM14: 92 | AN14: 69 | AO14: 4
B15: Tav | C15: Average temperature (Celsius) | D15: 10 | G15: 16 | H15: 1 | I15: 1 | J15: 1 | K15: 11 | L15: ='Formatted AERMET Data'!G14 -> 0.1 | M15: ='Formatted AERMET Data'!M14 -> 0.061 | N15: 0.061 | O15: ='Formatted AERMET Data'!L14 -> -42.3 | P15: 1.478815108 | Q15: -0.6669031872 | R15: 1.283709343 | S15: =R15*(-1*COS(RADIANS($D$23-'Formatted AERMET Data'!Q14))) -> 1.264206914 | T15: 0.1271965906 | U15: 1.478815108 | V15: 0.9317992663 | W15: -0.01694502399 | X15: 288.0385106 | Y15: 340.2825317 | Z15: 1.478815108 | AA15: 0.9317992663 | AB15: -0.01694502399 | AC15: 287.7275018 | AD15: 340.0987725 | AE15: -0.02041769141 | AF15: 0.1067788991 | AH15: 9 | AI15: 08:00:00 | AK15: 236 | AL15: 72 | AM15: 57 | AN15: 0 | AO15: 1
B16: g | C16: Gravitational constant | E16: if L>0: 5(z/L) | G16: 16 | H16: 1 | I16: 1 | J16: 1 | K16: 12 | L16: ='Formatted AERMET Data'!G15 -> 0.1 | M16: ='Formatted AERMET Data'!M15 -> 0.061 | N16: 0.061 | O16: ='Formatted AERMET Data'!L15 -> -12.8 | P16: 1.916829313 | Q16: -0.8802932126 | R16: 1.412994403 | S16: =R16*(-1*COS(RADIANS($D$23-'Formatted AERMET Data'!Q15))) -> 1.407617532 | T16: 0.1416256698 | U16: 1.916829313 | V16: 1.6978365 | W16: -0.05599800896 | X16: 288.2318914 | Y16: 340.3967405 | Z16: 1.916829313 | AA16: 1.6978365 | AB16: -0.05599800896 | AC16: 287.434573 | AD16: 339.925605 | AE16: -0.05234838229 | AF16: 0.08927728753 | AH16: 10 | AI16: 09:00:00 | AK16: =COUNTIFS($AE$5:$AE$8788, ">" & AJ$5, $AE$5:$AE$8788, "<=" & AK$5, $K$5:$K$8788, $AH16) -> 322 | AL16: 37 | AM16: 7 | AN16: 0 | AO16: 0
A17: 1a | B17: ΨM | C17: Diabatic momentum profile correction (mixing) function | D17: if L<0: -2ln((1+χM)/2)-ln((1+χM2)/2+2arctan(χM)-π/2 | E17: if L>0 or for z<=0.5L: 5(z/L) | G17: 16 | H17: 1 | I17: 1 | J17: 1 | K17: 13 | L17: ='Formatted AERMET Data'!G16 -> 0.1 | M17: ='Formatted AERMET Data'!M16 -> 0.061 | N17: 0.061 | O17: ='Formatted AERMET Data'!L16 -> -8.3 | P17: 2.122029934 | Q17: -0.96503199 | R17: 1.528838323 | S17: =R17*(-1*COS(RADIANS($D$23-'Formatted AERMET Data'!Q16))) -> 1.505611833 | T17: 0.1514852433 | U17: 2.122029934 | V17: 2.024296448 | W17: -0.08635837526 | X17: 288.4263779 | Y17: 340.5115637 | Z17: 2.122029934 | AA17: 2.024296448 | AB17: -0.08635837526 | AC17: 287.2509954 | AD17: 339.8170365 | AE17: -0.07716968707 | AF17: 0.07431555624 | AH17: 11 | AI17: 10:00:00 | AK17: 341 | AL17: 20 | AM17: 5 | AN17: 0 | AO17: 0
A18: 2a | B18: ΨH | C18: Diabatic heat profile correction (mixing) function | D18: if L<0: -2ln((1+χH)/2) | G18: 16 | H18: 1 | I18: 1 | J18: 1 | K18: 14 | L18: ='Formatted AERMET Data'!G17 -> 0.1 | M18: ='Formatted AERMET Data'!M17 -> 0.07 | N18: 0.07 | O18: ='Formatted AERMET Data'!L17 -> -4.5 | P18: 2.458885733 | Q18: -1.089268049 | R18: 1.802296685 | S18: =R18*(-1*COS(RADIANS($D$23-'Formatted AERMET Data'!Q17))) -> 1.740884914 | T18: 0.1753157014 | U18: 2.458885733 | V18: 2.51865959 | W18: -0.1592832255 | X18: 288.9784883 | Y18: 340.8373142 | Z18: 2.458885733 | AA18: 2.51865959 | AB18: -0.1592832255 | AC18: 286.948123 | AD18: 339.6378407 | AE18: -0.1332748386 | AF18: 0.04204086274 | AH18: 12 | AI18: 11:00:00 | AK18: 344 | AL18: 17 | AM18: 5 | AN18: 0 | AO18: 0
A19: 1b | B19: χM | C19: Inverse diabatic influence or function for momentum | D19: =[1-16z/L]0.25 | G19: 16 | H19: 1 | I19: 1 | J19: 1 | K19: 15 | L19: ='Formatted AERMET Data'!G18 -> 0.1 | M19: ='Formatted AERMET Data'!M18 -> 0.081 | N19: 0.081 | O19: ='Formatted AERMET Data'!L18 -> -4.1 | P19: 2.515250136 | Q19: -1.10854924 | R19: 1.836033469 | S19: =R19*(-1*COS(RADIANS($D$23-'Formatted AERMET Data'!Q18))) -> 1.466321526 | T19: 0.1478295721 | U19: 2.515250136 | V19: 2.596696889 | W19: -0.1748230524 | X19: 289.1072256 | Y19: 340.9132257 | Z19: 2.515250136 | AA19: 2.596696889 | AB19: -0.1748230524 | AC19: 286.9503008 | AD19: 339.6391295 | AE19: -0.1415662427 | AF19: 0.006263329428 | AH19: 13 | AI19: 12:00:00 | AK19: 350 | AL19: 10 | AM19: 6 | AN19: 0 | AO19: 0
A20: 2b | B20: χH | C20: Inverse diabatic influence or function for momentum | D20: =[1-16z/L]0.5 | G20: 16 | H20: 1 | I20: 1 | J20: 1 | K20: 16 | L20: ='Formatted AERMET Data'!G19 -> 0.1 | M20: ='Formatted AERMET Data'!M19 -> 0.07 | N20: 0.07 | O20: ='Formatted AERMET Data'!L19 -> -7.1 | P20: 2.202569014 | Q20: -0.9962689992 | R20: 1.55415037 | S20: =R20*(-1*COS(RADIANS($D$23-'Formatted AERMET Data'!Q19))) -> -0.05423906571 | T20: -0.005462141562 | U20: 2.202569014 | V20: 2.147036864 | W20: -0.100954157 | X20: 288.5286641 | Y20: 340.571937 | Z20: 2.202569014 | AA20: 2.147036864 | AB20: -0.100954157 | AC20: 287.2051931 | AD20: 339.7899434 | AE20: -0.08688818005 | AF20: -0.09235032161 | AH20: 14 | AI20: 13:00:00 | AK20: 346 | AL20: 16 | AM20: 4 | AN20: 0 | AO20: 0
A21: 3 | B21: c(z) | C21: sound speed profile (m s-1) | D21: =c(0)√(T(z)+273.15/273.15)+u(z) | G21: 16 | H21: 1 | I21: 1 | J21: 1 | K21: 17 | L21: ='Formatted AERMET Data'!G20 -> 0.1 | M21: ='Formatted AERMET Data'!M20 -> 0.065 | N21: 0.065 | O21: ='Formatted AERMET Data'!L20 -> -51 | P21: 1.426192242 | Q21: -0.6373012064 | R21: 1.260339778 | S21: =R21*(-1*COS(RADIANS($D$23-'Formatted AERMET Data'!Q20))) -> -0.7047730597 | T21: -0.07093840561 | U21: 1.426192242 | V21: 0.8334854271 | W21: -0.01405440225 | X21: 288.0285711 | Y21: 340.2766604 | Z21: 1.426192242 | AA21: 0.8334854271 | AB21: -0.01405440225 | AC21: 287.7557214 | AD21: 340.1154501 | AE21: -0.0179122616 | AF21: -0.08885066721 | AH21: 15 | AI21: 14:00:00 | AK21: 341 | AL21: 21 | AM21: 4 | AN21: 0 | AO21: 0
C22: c profile | D22: (c(10)-c(2))/(10-2) | G22: 16 | H22: 1 | I22: 1 | J22: 1 | K22: 18 | L22: ='Formatted AERMET Data'!G21 -> 0.1 | M22: ='Formatted AERMET Data'!M21 -> 0.049 | N22: 0.049 | O22: ='Formatted AERMET Data'!L21 -> 8.7 | Q22: 5.747126437 | R22: 2.909585503 | S22: =R22*(-1*COS(RADIANS($D$23-'Formatted AERMET Data'!Q21))) -> -2.823158379 | T22: -0.2837059973 | V22: -0.5747126437 | W22: 0.08238787525 | X22: 288.1154862 | Y22: 340.3279973 | AA22: -5.747126437 | AB22: 0.08238787525 | AC22: 290.12458 | AD22: 341.5125276 | AE22: 0.1316144739 | AF22: -0.1520915234 | AH22: 16 | AI22: 15:00:00 | AK22: 326 | AL22: 34 | AM22: 6 | AN22: 0 | AO22: 0
C23: Source to receiver wind direction (i.e. downwind direction) | D23: ='User Interface'!$E$11 -> 283 | E23: degrees | G23: 16 | H23: 1 | I23: 1 | J23: 1 | K23: 19 | L23: ='Formatted AERMET Data'!G22 -> 0.1 | M23: ='Formatted AERMET Data'!M22 -> 0.07 | N23: 0.07 | O23: ='Formatted AERMET Data'!L22 -> 33.4 | Q23: 1.497005988 | R23: 1.321225885 | S23: =R23*(-1*COS(RADIANS($D$23-'Formatted AERMET Data'!Q22))) -> -1.313988072 | T23: -0.1323250827 | V23: -0.1497005988 | W23: 0.02146031481 | X23: 288.0078357 | Y23: 340.2644118 | AA23: -1.497005988 | AB23: 0.02146031481 | AC23: 288.2384358 | AD23: 340.4006049 | AE23: 0.01513255882 | AF23: -0.1171925239 | AH23: 17 | AI23: 16:00:00 | AK23: 229 | AL23: 77 | AM23: 60 | AN23: 0 | AO23: 0
G24: 16 | H24: 1 | I24: 1 | J24: 1 | K24: 20 | L24: ='Formatted AERMET Data'!G23 -> 0.1 | M24: ='Formatted AERMET Data'!M23 -> 0.059 | N24: 0.059 | O24: ='Formatted AERMET Data'!L23 -> 33.6 | Q24: 1.488095238 | R24: 1.3613588 | S24: =R24*(-1*COS(RADIANS($D$23-'Formatted AERMET Data'!Q23))) -> -1.202008475 | T24: -0.1209142415 | V24: -0.1488095238 | W24: 0.02133257484 | X24: 288.0077427 | Y24: 340.2643569 | AA24: -1.488095238 | AB24: 0.02133257484 | AC24: 288.2447958 | AD24: 340.4043603 | AE24: 0.01555593988 | AF24: -0.1053583017 | AH24: 18 | AI24: 17:00:00 | AK24: 97 | AL24: 101 | AM24: 99 | AN24: 66 | AO24: 3
G25: 16 | H25: 1 | I25: 1 | J25: 1 | K25: 21 | L25: ='Formatted AERMET Data'!G24 -> 0.1 | M25: ='Formatted AERMET Data'!M24 -> 0.065 | N25: 0.065 | O25: ='Formatted AERMET Data'!L24 -> 9.7 | Q25: 5.154639175 | R25: 2.52597392 | S25: =R25*(-1*COS(RADIANS($D$23-'Formatted AERMET Data'!Q24))) -> -1.26298696 | T25: -0.1271250086 | V25: -0.5154639175 | W25: 0.07389427986 | X25: 288.092902 | Y25: 340.3146586 | AA25: -5.154639175 | AB25: 0.07389427986 | AC25: 289.7378176 | AD25: 341.2848181 | AE25: 0.1077954969 | AF25: -0.01932951164 | AH25: 19 | AI25: 18:00:00 | AK25: 0 | AL25: 80 | AM25: 138 | AN25: 144 | AO25: 4
G26: 16 | H26: 1 | I26: 1 | J26: 1 | K26: 22 | L26: ='Formatted AERMET Data'!G25 -> 0.1 | M26: ='Formatted AERMET Data'!M25 -> 0.07 | N26: 0.07 | O26: ='Formatted AERMET Data'!L25 -> 15.8 | Q26: 3.164556962 | R26: 1.700415828 | S26: =R26*(-1*COS(RADIANS($D$23-'Formatted AERMET Data'!Q25))) -> -0.2366521438 | T26: -0.02383203865 | V26: -0.3164556962 | W26: 0.04536547561 | X26: 288.035015 | Y26: 340.2804669 | AA26: -3.164556962 | AB26: 0.04536547561 | AC26: 288.7999379 | AD26: 340.7320018 | AE26: 0.05017054723 | AF26: 0.02633850858 | AH26: 20 | AI26: 19:00:00 | AK26: =COUNTIFS($AE$5:$AE$8788, ">" & AJ$5, $AE$5:$AE$8788, "<=" & AK$5, $K$5:$K$8788, $AH26) -> 0 | AL26: 5 | AM26: 132 | AN26: 226 | AO26: 3
G27: 16 | H27: 1 | I27: 1 | J27: 1 | K27: 23 | L27: ='Formatted AERMET Data'!G26 -> 0.1 | M27: ='Formatted AERMET Data'!M26 -> 0.081 | N27: 0.081 | O27: ='Formatted AERMET Data'!L26 -> 5.2 | Q27: 9.615384615 | R27: 5.686605573 | S27: =R27*(-1*COS(RADIANS($D$23-'Formatted AERMET Data'!Q26))) -> 4.71440968 | T27: 0.4752908237 | V27: -0.9615384615 | W27: 0.1378412528 | X27: 288.3232675 | Y27: 340.450693 | AA27: -9.615384615 | AB27: 0.1378412528 | AC27: 292.7544809 | AD27: 343.056895 | AE27: 0.2895780031 | AF27: 0.7648688268 | AH27: 21 | AI27: 20:00:00 | AK27: 0 | AL27: 3 | AM27: 111 | AN27: 249 | AO27: 3
G28: 16 | H28: 1 | I28: 1 | J28: 1 | K28: 24 | L28: ='Formatted AERMET Data'!G27 -> 0.1 | M28: ='Formatted AERMET Data'!M27 -> 0.069 | N28: 0.069 | O28: ='Formatted AERMET Data'!L27 -> 8.7 | Q28: 5.747126437 | R28: 2.826586007 | S28: =R28*(-1*COS(RADIANS($D$23-'Formatted AERMET Data'!Q27))) -> 1.816894463 | T28: 0.1829518138 | V28: -0.5747126437 | W28: 0.08238787525 | X28: 288.1154862 | Y28: 340.3279973 | AA28: -5.747126437 | AB28: 0.08238787525 | AC28: 290.0561985 | AD28: 341.4722784 | AE28: 0.1271423486 | AF28: 0.3100941624 | AH28: 22 | AI28: 21:00:00 | AK28: 0 | AL28: 7 | AM28: 103 | AN28: 253 | AO28: 3
G29: 16 | H29: 1 | I29: 2 | J29: 2 | K29: 1 | L29: ='Formatted AERMET Data'!G28 -> 0.1 | M29: ='Formatted AERMET Data'!M28 -> 0.049 | N29: 0.049 | O29: ='Formatted AERMET Data'!L28 -> 6.3 | Q29: 7.936507937 | R29: 4.370985306 | S29: =R29*(-1*COS(RADIANS($D$23-'Formatted AERMET Data'!Q28))) -> -4.080666326 | T29: -0.410076005 | V29: -0.7936507937 | W29: 0.1137737325 | X29: 288.2202356 | Y29: 340.3898578 | AA29: -7.936507937 | AB29: 0.1137737325 | AC29: 291.5795857 | AD29: 342.3678174 | AE29: 0.2197732934 | AF29: -0.1903027116 | AH29: 23 | AI29: 22:00:00 | AK29: 0 | AL29: 5 | AM29: 89 | AN29: 267 | AO29: 5
G30: 16 | H30: 1 | I30: 2 | J30: 2 | K30: 2 | L30: ='Formatted AERMET Data'!G29 -> 0.1 | M30: ='Formatted AERMET Data'!M29 -> 0.072 | N30: 0.072 | O30: ='Formatted AERMET Data'!L29 -> 8.6 | Q30: 5.813953488 | R30: 2.853965729 | S30: =R30*(-1*COS(RADIANS($D$23-'Formatted AERMET Data'!Q29))) -> -2.01805852 | T30: -0.2032693917 | V30: -0.5813953488 | W30: 0.0833458738 | X30: 288.1181876 | Y30: 340.3295927 | AA30: -5.813953488 | AB30: 0.0833458738 | AC30: 290.0862643 | AD30: 341.4899756 | AE30: 0.1289314334 | AF30: -0.07433795824 | AH30: 24 | AI30: 23:00:00 | AK30: 0 | AL30: 2 | AM30: 98 | AN30: 263 | AO30: 3
G31: 16 | H31: 1 | I31: 2 | J31: 2 | K31: 3 | L31: ='Formatted AERMET Data'!G30 -> 0.1 | M31: ='Formatted AERMET Data'!M30 -> 0.072 | N31: 0.072 | O31: ='Formatted AERMET Data'!L30 -> 7 | Q31: 7.142857143 | R31: 3.693885388 | S31: =R31*(-1*COS(RADIANS($D$23-'Formatted AERMET Data'!Q30))) -> -2.565988404 | T31: -0.2584597506 | V31: -0.7142857143 | W31: 0.1023963592 | X31: 288.1783909 | Y31: 340.3651474 | AA31: -7.142857143 | AB31: 0.1023963592 | AC31: 290.9178719 | AD31: 341.9791102 | AE31: 0.1793291927 | AF31: -0.07913055789
G32: 16 | H32: 1 | I32: 2 | J32: 2 | K32: 4 | L32: ='Formatted AERMET Data'!G31 -> 0.1 | M32: ='Formatted AERMET Data'!M31 -> 0.049 | N32: 0.049 | O32: ='Formatted AERMET Data'!L31 -> 6.3 | Q32: 7.936507937 | R32: 4.370985306 | S32: =R32*(-1*COS(RADIANS($D$23-'Formatted AERMET Data'!Q31))) -> -3.348369004 | T32: -0.3364856803 | V32: -0.7936507937 | W32: 0.1137737325 | X32: 288.2202356 | Y32: 340.3898578 | AA32: -7.936507937 | AB32: 0.1137737325 | AC32: 291.5795857 | AD32: 342.3678174 | AE32: 0.2197732934 | AF32: -0.1167123869
G33: 16 | H33: 1 | I33: 2 | J33: 2 | K33: 5 | L33: ='Formatted AERMET Data'!G32 -> 0.1 | M33: ='Formatted AERMET Data'!M32 -> 0.049 | N33: 0.049 | O33: ='Formatted AERMET Data'!L32 -> 6.1 | Q33: 8.196721311 | R33: 4.575769795 | S33: =R33*(-1*COS(RADIANS($D$23-'Formatted AERMET Data'!Q32))) -> -3.556041017 | T33: -0.3573551419 | V33: -0.8196721311 | W33: 0.1175040188 | X33: 288.2349141 | Y33: 340.3985253 | AA33: -8.196721311 | AB33: 0.1175040188 | AC33: 291.7748038 | AD33: 342.4824091 | AE33: 0.2315426424 | AF33: -0.1258124994 | AK33: Strong upward | AL33: Upward | AM33: Neutral | AN33: Downward | AO33: Strong downward
G34: 16 | H34: 1 | I34: 2 | J34: 2 | K34: 6 | L34: ='Formatted AERMET Data'!G33 -> 0.1 | M34: ='Formatted AERMET Data'!M33 -> 0.072 | N34: 0.072 | O34: ='Formatted AERMET Data'!L33 -> 7.4 | Q34: 6.756756757 | R34: 3.432097764 | S34: =R34*(-1*COS(RADIANS($D$23-'Formatted AERMET Data'!Q33))) -> -1.869254414 | T34: -0.1882810651 | V34: -0.6756756757 | W34: 0.0968614209 | X34: 288.1596266 | Y34: 340.3540661 | AA34: -6.756756757 | AB34: 0.0968614209 | AC34: 290.6635284 | AD34: 341.8295849 | AE34: 0.1639465332 | AF34: -0.02433453188 | AH34: Hour of the day | AJ34: -999 | AK34: -0.13 | AL34: -0.04 | AM34: 0.06 | AN34: 0.15 | AO34: 999
G35: 16 | H35: 1 | I35: 2 | J35: 2 | K35: 7 | L35: ='Formatted AERMET Data'!G34 -> 0.1 | M35: ='Formatted AERMET Data'!M34 -> 0.072 | N35: 0.072 | O35: ='Formatted AERMET Data'!L34 -> 7.6 | Q35: 6.578947368 | R35: 3.316428818 | S35: =R35*(-1*COS(RADIANS($D$23-'Formatted AERMET Data'!Q34))) -> -1.806256591 | T35: -0.1819355954 | V35: -0.6578947368 | W35: 0.09431243614 | X35: 288.1513357 | Y35: 340.3491697 | AA35: -6.578947368 | AB35: 0.09431243614 | AC35: 290.5499025 | AD35: 341.7627644 | AE35: 0.1570660779 | AF35: -0.02486951752 | AH35: 0 | AK35: =COUNTIFS($T$5:$T$8788, ">" & AJ$5, $T$5:$T$8788, "<=" & AK$5, $K$5:$K$8788, $AH35) -> 0 | AL35: =COUNTIFS($T$5:$T$8788, ">" & AK$5, $AE$5:$AE$8788, "<=" & AL$5, $K$5:$K$8788, $AH35) -> 0 | AM35: 0 | AN35: 0 | AO35: 0
G36: 16 | H36: 1 | I36: 2 | J36: 2 | K36: 8 | L36: ='Formatted AERMET Data'!G35 -> 0.1 | M36: ='Formatted AERMET Data'!M35 -> 0.072 | N36: 0.072 | O36: ='Formatted AERMET Data'!L35 -> 5.4 | Q36: 9.259259259 | R36: 5.387225576 | S36: =R36*(-1*COS(RADIANS($D$23-'Formatted AERMET Data'!Q35))) -> -2.934093339 | T36: -0.2955372018 | V36: -0.9259259259 | W36: 0.1327360212 | X36: 288.2997652 | Y36: 340.436817 | AA36: -9.259259259 | AB36: 0.1327360212 | AC36: 292.4972337 | AD36: 342.9061376 | AE36: 0.2743689535 | AF36: -0.02116824828 | AH36: 1 | AI36: 00:00:00 | AK36: 0 | AL36: 0 | AM36: 55 | AN36: 202 | AO36: 193
G37: 16 | H37: 1 | I37: 2 | J37: 2 | K37: 9 | L37: ='Formatted AERMET Data'!G36 -> 0.1 | M37: ='Formatted AERMET Data'!M36 -> 0.049 | N37: 0.049 | O37: ='Formatted AERMET Data'!L36 -> 16.7 | Q37: 2.994011976 | R37: 1.735665768 | S37: =R37*(-1*COS(RADIANS($D$23-'Formatted AERMET Data'!Q36))) -> -1.503130648 | T37: -0.1510532256 | V37: -0.2994011976 | W37: 0.04292062962 | X37: 288.0313427 | Y37: 340.2782976 | AA37: -2.994011976 | AB37: 0.04292062962 | AC37: 288.7707047 | AD37: 340.7147564 | AE37: 0.04849541573 | AF37: -0.1025578099 | AH37: 2 | AI37: 01:00:00 | AK37: 0 | AL37: 0 | AM37: 60 | AN37: 220 | AO37: 211
G38: 16 | H38: 1 | I38: 2 | J38: 2 | K38: 10 | L38: ='Formatted AERMET Data'!G37 -> 0.1 | M38: ='Formatted AERMET Data'!M37 -> 0.07 | N38: 0.07 | O38: ='Formatted AERMET Data'!L37 -> -8.9 | P38: 2.08718003 | Q38: -0.9511818021 | R38: 1.472576669 | S38: =R38*(-1*COS(RADIANS($D$23-'Formatted AERMET Data'!Q37))) -> -1.46697307 | T38: -0.147731427 | U38: 2.08718003 | V38: 1.970260161 | W38: -0.08053646232 | X38: 288.387019 | Y38: 340.4883296 | Z38: 2.08718003 | AA38: 1.970260161 | AB38: -0.08053646232 | AC38: 287.3109916 | AD38: 339.8525223 | AE38: -0.0706452613 | AF38: -0.2183766883 | AH38: 3 | AI38: 02:00:00 | AK38: 0 | AL38: 0 | AM38: 57 | AN38: 250 | AO38: 236
G39: 16 | H39: 1 | I39: 2 | J39: 2 | K39: 11 | L39: ='Formatted AERMET Data'!G38 -> 0.1 | M39: ='Formatted AERMET Data'!M38 -> 0.059 | N39: 0.059 | O39: ='Formatted AERMET Data'!L38 -> -4.1 | P39: 2.515250136 | Q39: -1.10854924 | R39: 1.912796152 | S39: =R39*(-1*COS(RADIANS($D$23-'Formatted AERMET Data'!Q38))) -> -1.785749048 | T39: -0.1796347498 | U39: 2.515250136 | V39: 2.596696889 | W39: -0.1748230524 | X39: 289.1072256 | Y39: 340.9132257 | Z39: 2.515250136 | AA39: 2.596696889 | AB39: -0.1748230524 | AC39: 286.8161019 | AD39: 339.5597002 | AE39: -0.1503917192 | AF39: -0.330026469 | AH39: 4 | AI39: 03:00:00 | AK39: 0 | AL39: 0 | AM39: 62 | AN39: 262 | AO39: 253
G40: 16 | H40: 1 | I40: 2 | J40: 2 | K40: 12 | L40: ='Formatted AERMET Data'!G39 -> 0.1 | M40: ='Formatted AERMET Data'!M39 -> 0.069 | N40: 0.069 | O40: ='Formatted AERMET Data'!L39 -> -31.9 | P40: 1.56610571 | Q40: -0.7138251159 | R40: 1.269970683 | S40: =R40*(-1*COS(RADIANS($D$23-'Formatted AERMET Data'!Q39))) -> 0.6729819299 | T40: 0.06776577685 | U40: 1.56610571 | V40: 1.09201123 | W40: -0.02246942052 | X40: 288.059846 | Y40: 340.295134 | Z40: 1.56610571 | AA40: 1.09201123 | AB40: -0.02246942052 | AC40: 287.6867543 | AD40: 340.0746895 | AE40: -0.02449383521 | AF40: 0.04327194164 | AH40: 5 | AI40: 04:00:00 | AK40: 0 | AL40: 0 | AM40: 71 | AN40: 288 | AO40: 274
G41: 16 | H41: 1 | I41: 2 | J41: 2 | K41: 13 | L41: ='Formatted AERMET Data'!G40 -> 0.1 | M41: ='Formatted AERMET Data'!M40 -> 0.069 | N41: 0.069 | O41: ='Formatted AERMET Data'!L40 -> -58.6 | P41: 1.389754649 | Q41: -0.6161700837 | R41: 1.241038695 | S41: =R41*(-1*COS(RADIANS($D$23-'Formatted AERMET Data'!Q40))) -> 0.6939800312 | T41: 0.06988017634 | U41: 1.389754649 | V41: 0.7646781576 | W41: -0.01223164701 | X41: 288.0228129 | Y41: 340.2732591 | Z41: 1.389754649 | AA41: 0.7646781576 | AB41: -0.01223164701 | AC41: 287.7741503 | AD41: 340.126341 | AE41: -0.01632422507 | AF41: 0.05355595127 | AH41: 6 | AI41: 05:00:00 | AK41: 0 | AL41: 0 | AM41: 72 | AN41: 285 | AO41: 281
G42: 16 | H42: 1 | I42: 2 | J42: 2 | K42: 14 | L42: ='Formatted AERMET Data'!G41 -> 0.1 | M42: ='Formatted AERMET Data'!M41 -> 0.069 | N42: 0.069 | O42: ='Formatted AERMET Data'!L41 -> -61 | P42: 1.379639467 | Q42: -0.6102071082 | R42: 1.23979125 | S42: =R42*(-1*COS(RADIANS($D$23-'Formatted AERMET Data'!Q41))) -> 0.6932824686 | T42: 0.06980993541 | U42: 1.379639467 | V42: 0.745474052 | W42: -0.01175040188 | X42: 288.0213649 | Y42: 340.2724037 | Z42: 1.379639467 | AA42: 0.745474052 | AB42: -0.01175040188 | AC42: 287.7785514 | AD42: 340.1289419 | AE42: -0.01594020721 | AF42: 0.0538697282 | AH42: 7 | AI42: 06:00:00 | AK42: 2 | AL42: 65 | AM42: 183 | AN42: 300 | AO42: 294
G43: 16 | H43: 1 | I43: 2 | J43: 2 | K43: 15 | L43: ='Formatted AERMET Data'!G42 -> 0.1 | M43: ='Formatted AERMET Data'!M42 -> 0.07 | N43: 0.07 | O43: ='Formatted AERMET Data'!L42 -> -34.3 | P43: 1.542746856 | Q43: -0.7015206037 | R43: 1.261791634 | S43: =R43*(-1*COS(RADIANS($D$23-'Formatted AERMET Data'!Q42))) -> 0.9228159825 | T43: 0.09293212311 | U43: 1.542746856 | V43: 1.049497213 | W43: -0.02089721617 | X43: 288.0534916 | Y43: 340.2913807 | Z43: 1.542746856 | AA43: 1.049497213 | AB43: -0.02089721617 | AC43: 287.7002367 | AD43: 340.0826582 | AE43: -0.023191388 | AF43: 0.06974073511 | AH43: 8 | AI43: 07:00:00 | AK43: 123 | AL43: 175 | AM43: 253 | AN43: 299 | AO43: 285
G44: 16 | H44: 1 | I44: 2 | J44: 2 | K44: 16 | L44: ='Formatted AERMET Data'!G43 -> 0.1 | M44: ='Formatted AERMET Data'!M43 -> 0.069 | N44: 0.069 | O44: ='Formatted AERMET Data'!L43 -> -52.8 | P44: 1.416884421 | Q44: -0.631954294 | R44: 1.244584996 | S44: =R44*(-1*COS(RADIANS($D$23-'Formatted AERMET Data'!Q43))) -> 0.8645613854 | T44: 0.08705683067 | U44: 1.416884421 | V44: 0.8159648498 | W44: -0.0135752749 | X44: 288.0270169 | Y44: 340.2757424 | Z44: 1.416884421 | AA44: 0.8159648498 | AB44: -0.0135752749 | AC44: 287.762024 | AD44: 340.1191748 | AE44: -0.01739640171 | AF44: 0.06966042896 | AH44: 9 | AI44: 08:00:00 | AK44: 236 | AL44: 267 | AM44: 302 | AN44: 298 | AO44: 278
G45: 16 | H45: 1 | I45: 2 | J45: 2 | K45: 17 | L45: ='Formatted AERMET Data'!G44 -> 0.1 | M45: ='Formatted AERMET Data'!M44 -> 0.07 | N45: 0.07 | O45: ='Formatted AERMET Data'!L44 -> 1841.7 | Q45: 0.02714882989 | R45: 1.211943453 | S45: =R45*(-1*COS(RADIANS($D$23-'Formatted AERMET Data'!Q44))) -> 0.08454090163 | T45: 0.008513685964 | U45: 0.9775352094 | V45: -0.002714882989 | W45: 0.0003891917873 | X45: 288.0000026 | Y45: 340.2597846 | Z45: 0.9775352094 | AA45: -0.02714882989 | AB45: 0.0003891917873 | AC45: 287.9047424 | AD45: 340.2035071 | AE45: -0.006253063759 | AF45: 0.002260622205 | AH45: 10 | AI45: 09:00:00 | AK45: =COUNTIFS($T$5:$T$8788, ">" & AJ$5, $AE$5:$AE$8788, "<=" & AK$5, $K$5:$K$8788, $AH45) -> 322 | AL45: 294 | AM45: 292 | AN45: 286 | AO45: 277
G46: 16 | H46: 1 | I46: 2 | J46: 2 | K46: 18 | L46: ='Formatted AERMET Data'!G45 -> 0.1 | M46: ='Formatted AERMET Data'!M45 -> 0.07 | N46: 0.07 | O46: ='Formatted AERMET Data'!L45 -> 24.4 | Q46: 2.049180328 | R46: 1.416743597 | S46: =R46*(-1*COS(RADIANS($D$23-'Formatted AERMET Data'!Q45))) -> 0.1726576119 | T46: 0.01738747351 | V46: -0.2049180328 | W46: 0.0293760047 | X46: 288.0146821 | Y46: 340.2684562 | AA46: -2.049180328 | AB46: 0.0293760047 | AC46: 288.4028313 | AD46: 340.497664 | AE46: 0.0254675385 | AF46: 0.04285501201 | AH46: 11 | AI46: 10:00:00 | AK46: 341 | AL46: 272 | AM46: 267 | AN46: 261 | AO46: 244
G47: 16 | H47: 1 | I47: 2 | J47: 2 | K47: 19 | L47: ='Formatted AERMET Data'!G46 -> 0.1 | M47: ='Formatted AERMET Data'!M46 -> 0.069 | N47: 0.069 | O47: ='Formatted AERMET Data'!L46 -> 5.9 | Q47: 8.474576271 | R47: 4.718731406 | S47: =R47*(-1*COS(RADIANS($D$23-'Formatted AERMET Data'!Q46))) -> 3.095766345 | T47: 0.3117275546 | V47: -0.8474576271 | W47: 0.1214872059 | X47: 288.2511104 | Y47: 340.4080889 | AA47: -8.474576271 | AB47: 0.1214872059 | AC47: 291.8876505 | AD47: 342.5486319 | AE47: 0.2378381121 | AF47: 0.5495656667 | AH47: 12 | AI47: 11:00:00 | AK47: 344 | AL47: 233 | AM47: 229 | AN47: 214 | AO47: 194
G48: 16 | H48: 1 | I48: 2 | J48: 2 | K48: 20 | L48: ='Formatted AERMET Data'!G47 -> 0.1 | M48: ='Formatted AERMET Data'!M47 -> 0.07 | N48: 0.07 | O48: ='Formatted AERMET Data'!L47 -> 5.4 | Q48: 9.259259259 | R48: 5.394048085 | S48: =R48*(-1*COS(RADIANS($D$23-'Formatted AERMET Data'!Q47))) -> -5.393226546 | T48: -0.5431245262 | V48: -0.9259259259 | W48: 0.1327360212 | X48: 288.2997652 | Y48: 340.436817 | AA48: -9.259259259 | AB48: 0.1327360212 | AC48: 292.5062896 | AD48: 342.9114458 | AE48: 0.2749587613 | AF48: -0.2681657649 | AH48: 13 | AI48: 12:00:00 | AK48: 350 | AL48: 186 | AM48: 172 | AN48: 162 | AO48: 140
G49: 16 | H49: 1 | I49: 2 | J49: 2 | K49: 21 | L49: ='Formatted AERMET Data'!G48 -> 0.1 | M49: ='Formatted AERMET Data'!M48 -> 0.07 | N49: 0.07 | O49: ='Formatted AERMET Data'!L48 -> 8.4 | Q49: 5.952380952 | R49: 2.940241108 | S49: =R49*(-1*COS(RADIANS($D$23-'Formatted AERMET Data'!Q48))) -> -2.938449993 | T49: -0.2959164142 | V49: -0.5952380952 | W49: 0.08533029937 | X49: 288.1238825 | Y49: 340.3329562 | AA49: -5.952380952 | AB49: 0.08533029937 | AC49: 290.1729498 | AD49: 341.540995 | AE49: 0.1342265269 | AF49: -0.1616898873 | AH49: 14 | AI49: 13:00:00 | AK49: 346 | AL49: 157 | AM49: 147 | AN49: 129 | AO49: 101
G50: 16 | H50: 1 | I50: 2 | J50: 2 | K50: 22 | L50: ='Formatted AERMET Data'!G49 -> 0.1 | M50: ='Formatted AERMET Data'!M49 -> 0.078 | N50: 0.078 | O50: ='Formatted AERMET Data'!L49 -> 4.8 | Q50: 10.41666667 | R50: 6.47872931 | S50: =R50*(-1*COS(RADIANS($D$23-'Formatted AERMET Data'!Q49))) -> -0.3390704937 | T50: -0.03417360348 | V50: -1.041666667 | W50: 0.1493280239 | X50: 288.3793903 | Y50: 340.4838261 | AA50: -10.41666667 | AB50: 0.1493280239 | AC50: 293.4644968 | AD50: 343.4726501 | AE50: 0.3320915556 | AF50: 0.2979179521 | AH50: 15 | AI50: 14:00:00 | AK50: 341 | AL50: 122 | AM50: 108 | AN50: 91 | AO50: 72
G51: 16 | H51: 1 | I51: 2 | J51: 2 | K51: 23 | L51: ='Formatted AERMET Data'!G50 -> 0.1 | M51: ='Formatted AERMET Data'!M50 -> 0.069 | N51: 0.069 | O51: ='Formatted AERMET Data'!L50 -> 8.9 | Q51: 5.617977528 | R51: 2.754986457 | S51: =R51*(-1*COS(RADIANS($D$23-'Formatted AERMET Data'!Q50))) -> 1.770871159 | T51: 0.1783175067 | V51: -0.5617977528 | W51: 0.08053646232 | X51: 288.1103542 | Y51: 340.3249662 | AA51: -5.617977528 | AB51: 0.08053646232 | AC51: 289.9823759 | AD51: 341.4288214 | AE51: 0.1226505679 | AF51: 0.3009680746 | AH51: 16 | AI51: 15:00:00 | AK51: 326 | AL51: 91 | AM51: 84 | AN51: 70 | AO51: 51
G52: 16 | H52: 1 | I52: 2 | J52: 2 | K52: 24 | L52: ='Formatted AERMET Data'!G51 -> 0.1 | M52: ='Formatted AERMET Data'!M51 -> 0.069 | N52: 0.069 | O52: ='Formatted AERMET Data'!L51 -> 75.6 | Q52: 0.6613756614 | R52: 1.236730177 | S52: =R52*(-1*COS(RADIANS($D$23-'Formatted AERMET Data'!Q51))) -> 0.7782995184 | T52: 0.07837070974 | V52: -0.06613756614 | W52: 0.009481144374 | X52: 288.0015294 | Y52: 340.2606866 | AA52: -0.6613756614 | AB52: 0.009481144374 | AC52: 288.0305273 | AD52: 340.277816 | AE52: 0.001903266442 | AF52: 0.08027397618 | AH52: 17 | AI52: 16:00:00 | AK52: 229 | AL52: 69 | AM52: 74 | AN52: 64 | AO52: 47
G53: 16 | H53: 1 | I53: 3 | J53: 3 | K53: 1 | L53: ='Formatted AERMET Data'!G52 -> 0.1 | M53: ='Formatted AERMET Data'!M52 -> 0.069 | N53: 0.069 | O53: ='Formatted AERMET Data'!L52 -> 35.3 | Q53: 1.416430595 | R53: 1.313259829 | S53: =R53*(-1*COS(RADIANS($D$23-'Formatted AERMET Data'!Q52))) -> 0.8787423454 | T53: 0.08848477952 | V53: -0.1416430595 | W53: 0.02030522704 | X53: 288.0070149 | Y53: 340.263927 | AA53: -1.416430595 | AB53: 0.02030522704 | AC53: 288.2169369 | AD53: 340.3879099 | AE53: 0.01377587675 | AF53: 0.1022606563 | AH53: 18 | AI53: 17:00:00 | AK53: 97 | AL53: 37 | AM53: 45 | AN53: 45 | AO53: 32
G54: 16 | H54: 1 | I54: 3 | J54: 3 | K54: 2 | L54: ='Formatted AERMET Data'!G53 -> 0.1 | M54: ='Formatted AERMET Data'!M53 -> 0.069 | N54: 0.069 | O54: ='Formatted AERMET Data'!L53 -> 17.4 | Q54: 2.873563218 | R54: 1.618191045 | S54: =R54*(-1*COS(RADIANS($D$23-'Formatted AERMET Data'!Q53))) -> 1.040153154 | T54: 0.1047380076 | V54: -0.2873563218 | W54: 0.04119393763 | X54: 288.0288716 | Y54: 340.2768379 | AA54: -2.873563218 | AB54: 0.04119393763 | AC54: 288.6893837 | AD54: 340.6667785 | AE54: 0.04332672795 | AF54: 0.1480647356 | AH54: 19 | AI54: 18:00:00 | AK54: 0 | AL54: 15 | AM54: 36 | AN54: 47 | AO54: 37
G55: 16 | H55: 1 | I55: 3 | J55: 3 | K55: 3 | L55: ='Formatted AERMET Data'!G54 -> 0.1 | M55: ='Formatted AERMET Data'!M54 -> 0.065 | N55: 0.065 | O55: ='Formatted AERMET Data'!L54 -> 9.6 | Q55: 5.208333333 | R55: 2.5531169 | S55: =R55*(-1*COS(RADIANS($D$23-'Formatted AERMET Data'!Q54))) -> -0.6607952781 | T55: -0.06651185487 | V55: -0.5208333333 | W55: 0.07466401195 | X55: 288.0948476 | Y55: 340.3158077 | AA55: -5.208333333 | AB55: 0.07466401195 | AC55: 289.7667397 | AD55: 341.3018514 | AE55: 0.1095604125 | AF55: 0.04304855763 | AH55: 20 | AI55: 19:00:00 | AK55: =COUNTIFS($T$5:$T$8788, ">" & AJ$5, $AE$5:$AE$8788, "<=" & AK$5, $K$5:$K$8788, $AH55) -> 0 | AL55: 0 | AM55: 35 | AN55: 58 | AO55: 46
G56: 16 | H56: 1 | I56: 3 | J56: 3 | K56: 4 | L56: ='Formatted AERMET Data'!G55 -> 0.1 | M56: ='Formatted AERMET Data'!M55 -> 0.069 | N56: 0.069 | O56: ='Formatted AERMET Data'!L55 -> 8.3 | Q56: 6.024096386 | R56: 2.985623811 | S56: =R56*(-1*COS(RADIANS($D$23-'Formatted AERMET Data'!Q55))) -> 1.069951883 | T56: 0.1077385845 | V56: -0.6024096386 | W56: 0.08635837526 | X56: 288.1268857 | Y56: 340.3347299 | AA56: -6.024096386 | AB56: 0.08635837526 | AC56: 290.2184499 | AD56: 341.5677713 | AE56: 0.1370046092 | AF56: 0.2447431938 | AH56: 21 | AI56: 20:00:00 | AK56: 0 | AL56: 0 | AM56: 37 | AN56: 76 | AO56: 63
G57: 16 | H57: 1 | I57: 3 | J57: 3 | K57: 5 | L57: ='Formatted AERMET Data'!G56 -> 0.1 | M57: ='Formatted AERMET Data'!M56 -> 0.07 | N57: 0.07 | O57: ='Formatted AERMET Data'!L56 -> 4.4 | Q57: 11.36363636 | R57: 7.511040738 | S57: =R57*(-1*COS(RADIANS($D$23-'Formatted AERMET Data'!Q56))) -> 0.2621315415 | T57: 0.02639793972 | V57: -1.136363636 | W57: 0.1629032988 | X57: 288.4515058 | Y57: 340.5263961 | AA57: -11.36363636 | AB57: 0.1629032988 | AC57: 294.3892955 | AD57: 344.0134194 | AE57: 0.3874470326 | AF57: 0.4138449724 | AH57: 22 | AI57: 21:00:00 | AK57: 0 | AL57: 0 | AM57: 43 | AN57: 116 | AO57: 106
G58: 16 | H58: 1 | I58: 3 | J58: 3 | K58: 6 | L58: ='Formatted AERMET Data'!G57 -> 0.1 | M58: ='Formatted AERMET Data'!M57 -> 0.078 | N58: 0.078 | O58: ='Formatted AERMET Data'!L57 -> 5.8 | Q58: 8.620689655 | R58: 4.810892514 | S58: =R58*(-1*COS(RADIANS($D$23-'Formatted AERMET Data'!Q57))) -> 0.2517826601 | T58: 0.02537620037 | V58: -0.8620689655 | W58: 0.1235818129 | X58: 288.259844 | Y58: 340.4132458 | AA58: -8.620689655 | AB58: 0.1235818129 | AC58: 291.9637591 | AD58: 342.5932881 | AE58: 0.2422269218 | AF58: 0.2676031222 | AH58: 23 | AI58: 22:00:00 | AK58: 0 | AL58: 0 | AM58: 43 | AN58: 145 | AO58: 132
G59: 16 | H59: 1 | I59: 3 | J59: 3 | K59: 7 | L59: ='Formatted AERMET Data'!G58 -> 0.1 | M59: ='Formatted AERMET Data'!M58 -> 0.07 | N59: 0.07 | O59: ='Formatted AERMET Data'!L58 -> 9.5 | Q59: 5.263157895 | R59: 2.563167548 | S59: =R59*(-1*COS(RADIANS($D$23-'Formatted AERMET Data'!Q58))) -> 2.197063409 | T59: 0.2212551268 | V59: -0.5263157895 | W59: 0.07544994891 | X59: 288.0968549 | Y59: 340.3169933 | AA59: -5.263157895 | AB59: 0.07544994891 | AC59: 289.7829324 | AD59: 341.3113875 | AE59: 0.1104882531 | AF59: 0.3317433799 | AH59: 24 | AI59: 23:00:00 | AK59: 0 | AL59: 0 | AM59: 54 | AN59: 179 | AO59: 168
G60: 16 | H60: 1 | I60: 3 | J60: 3 | K60: 8 | L60: ='Formatted AERMET Data'!G59 -> 0.1 | M60: ='Formatted AERMET Data'!M59 -> 0.065 | N60: 0.065 | O60: ='Formatted AERMET Data'!L59 -> 4.1 | Q60: 12.19512195 | R60: 8.484544378 | S60: =R60*(-1*COS(RADIANS($D$23-'Formatted AERMET Data'!Q59))) -> -5.106126271 | T60: -0.5139533237 | V60: -1.219512195 | W60: 0.1748230524 | X60: 288.5199972 | Y60: 340.5668219 | AA60: -12.19512195 | AB60: 0.1748230524 | AC60: 295.2500532 | AD60: 344.5159786 | AE60: 0.4387951905 | AF60: -0.0751581332
G61: 16 | H61: 1 | I61: 3 | J61: 3 | K61: 9 | L61: ='Formatted AERMET Data'!G60 -> 0.1 | M61: ='Formatted AERMET Data'!M60 -> 0.072 | N61: 0.072 | O61: ='Formatted AERMET Data'!L60 -> 6 | Q61: 8.333333333 | R61: 4.592618865 | S61: =R61*(-1*COS(RADIANS($D$23-'Formatted AERMET Data'!Q60))) -> -2.699473638 | T61: -0.2719050804 | V61: -0.8333333333 | W61: 0.1194624191 | X61: 288.2428098 | Y61: 340.4031876 | AA61: -8.333333333 | AB61: 0.1194624191 | AC61: 291.7677216 | AD61: 342.4782526 | AE61: 0.2305627768 | AF61: -0.04134230354
G62: 16 | H62: 1 | I62: 3 | J62: 3 | K62: 10 | L62: ='Formatted AERMET Data'!G61 -> 0.1 | M62: ='Formatted AERMET Data'!M61 -> 0.049 | N62: 0.049 | O62: ='Formatted AERMET Data'!L61 -> -3.1 | P62: 2.693227664 | Q62: -1.167005651 | R62: 2.216571333 | S62: =R62*(-1*COS(RADIANS($D$23-'Formatted AERMET Data'!Q61))) -> -2.00889586 | T62: -0.201878792 | U62: 2.693227664 | V62: 2.834974347 | W62: -0.2312175854 | X62: 289.5987705 | Y62: 341.2029158 | Z62: 2.693227664 | AA62: 2.834974347 | AB62: -0.2312175854 | AC62: 286.4966594 | AD62: 339.3705546 | AE62: -0.2035956912 | AF62: -0.4054744832 | AK62: Strong upward | AL62: Upward | AM62: Neutral | AN62: Downward | AO62: Strong downward
G63: 16 | H63: 1 | I63: 3 | J63: 3 | K63: 11 | L63: ='Formatted AERMET Data'!G62 -> 0.1 | M63: ='Formatted AERMET Data'!M62 -> 0.07 | N63: 0.07 | O63: ='Formatted AERMET Data'!L62 -> -97.4 | P63: 1.275006493 | Q63: -0.5458354721 | R63: 1.225575938 | S63: =R63*(-1*COS(RADIANS($D$23-'Formatted AERMET Data'!Q62))) -> 0.9657670186 | T63: 0.0972575044 | U63: 1.275006493 | V63: 0.5443561767 | W63: -0.00735908126 | X63: 288.0097706 | Y63: 340.2655549 | Z63: 1.275006493 | AA63: 0.5443561767 | AB63: -0.00735908126 | AC63: 287.8205854 | AD63: 340.1537812 | AE63: -0.01241929343 | AF63: 0.08483821096 | AH63: Hour of the day | AJ63: -999 | AK63: -0.13 | AL63: -0.04 | AM63: 0.06 | AN63: 0.15 | AO63: 999
G64: 16 | H64: 1 | I64: 3 | J64: 3 | K64: 12 | L64: ='Formatted AERMET Data'!G63 -> 0.1 | M64: ='Formatted AERMET Data'!M63 -> 0.07 | N64: 0.07 | O64: ='Formatted AERMET Data'!L63 -> -86.6 | P64: 1.299028846 | Q64: -0.5610711383 | R64: 1.227709648 | S64: =R64*(-1*COS(RADIANS($D$23-'Formatted AERMET Data'!Q63))) -> 0.940480154 | T64: 0.09471099234 | U64: 1.299028846 | V64: 0.5909105227 | W64: -0.008276841971 | X64: 288.011929 | Y64: 340.2668298 | Z64: 1.299028846 | AA64: 0.5909105227 | AB64: -0.008276841971 | AC64: 287.8116213 | AD64: 340.1484842 | AE64: -0.01314951518 | AF64: 0.08156147716 | AH64: 0 | AK64: =COUNTIFS($AF$5:$AF$8788, ">" & AJ$5, $AF$5:$AF$8788, "<=" & AK$5, $K$5:$K$8788, $AH64) -> 0 | AL64: 0 | AM64: 0 | AN64: 0 | AO64: 0
G65: 16 | H65: 1 | I65: 3 | J65: 3 | K65: 13 | L65: ='Formatted AERMET Data'!G64 -> 0.1 | M65: ='Formatted AERMET Data'!M64 -> 0.069 | N65: 0.069 | O65: ='Formatted AERMET Data'!L64 -> -83.4 | P65: 1.307039254 | Q65: -0.5660884693 | R65: 1.231947924 | S65: =R65*(-1*COS(RADIANS($D$23-'Formatted AERMET Data'!Q64))) -> 0.791880861 | T65: 0.07973828024 | U65: 1.307039254 | V65: 0.6063860155 | W65: -0.008594418641 | X65: 288.0127111 | Y65: 340.2672918 | Z65: 1.307039254 | AA65: 0.6063860155 | AB65: -0.008594418641 | AC65: 287.8082551 | AD65: 340.146495 | AE65: -0.01342186511 | AF65: 0.06631641513 | AH65: 1 | AI65: 00:00:00 | AK65: 80 | AL65: 40 | AM65: 26 | AN65: 16 | AO65: 201
G66: 16 | H66: 1 | I66: 3 | J66: 3 | K66: 14 | L66: ='Formatted AERMET Data'!G65 -> 0.1 | M66: ='Formatted AERMET Data'!M65 -> 0.069 | N66: 0.069 | O66: ='Formatted AERMET Data'!L65 -> -77.2 | P66: 1.32395842 | Q66: -0.576585049 | R66: 1.233609111 | S66: =R66*(-1*COS(RADIANS($D$23-'Formatted AERMET Data'!Q65))) -> 0.8569368946 | T66: 0.08628908414 | U66: 1.32395842 | V66: 0.6389906672 | W66: -0.009284643973 | X66: 288.0144702 | Y66: 340.268331 | Z66: 1.32395842 | AA66: 0.6389906672 | AB66: -0.009284643973 | AC66: 287.8016254 | AD66: 340.1425773 | AE66: -0.01397263131 | AF66: 0.07231645284 | AH66: 2 | AI66: 01:00:00 | AK66: 75 | AL66: 39 | AM66: 17 | AN66: 11 | AO66: 221
G67: 16 | H67: 1 | I67: 3 | J67: 3 | K67: 15 | L67: ='Formatted AERMET Data'!G66 -> 0.1 | M67: ='Formatted AERMET Data'!M66 -> 0.07 | N67: 0.07 | O67: ='Formatted AERMET Data'!L66 -> -150.1 | P67: 1.198892569 | Q67: -0.4955587508 | R67: 1.219959996 | S67: =R67*(-1*COS(RADIANS($D$23-'Formatted AERMET Data'!Q66))) -> 1.034584752 | T67: 0.1041877897 | U67: 1.198892569 | V67: 0.3955229845 | W67: -0.004775313222 | X67: 288.0046067 | Y67: 340.2625044 | Z67: 1.198892569 | AA67: 0.3955229845 | AB67: -0.004775313222 | AC67: 287.8467343 | AD67: 340.1692326 | AE67: -0.01036353303 | AF67: 0.09382425669 | AH67: 3 | AI67: 02:00:00 | AK67: 53 | AL67: 32 | AM67: 19 | AN67: 9 | AO67: 250
G68: 16 | H68: 1 | I68: 3 | J68: 3 | K68: 16 | L68: ='Formatted AERMET Data'!G67 -> 0.1 | M68: ='Formatted AERMET Data'!M67 -> 0.07 | N68: 0.07 | O68: ='Formatted AERMET Data'!L67 -> -193.7 | P68: 1.162455562 | Q68: -0.4703155882 | R68: 1.217829601 | S68: =R68*(-1*COS(RADIANS($D$23-'Formatted AERMET Data'!Q67))) -> 1.032778074 | T68: 0.1040058484 | U68: 1.162455562 | V68: 0.3236448674 | W68: -0.003700436317 | X68: 288.002921 | Y68: 340.2615086 | Z68: 1.162455562 | AA68: 0.3236448674 | AB68: -0.003700436317 | AC68: 287.8580752 | AD68: 340.1759337 | AE68: -0.009508327749 | AF68: 0.09449752062 | AH68: 4 | AI68: 03:00:00 | AK68: 50 | AL68: 26 | AM68: 11 | AN68: 12 | AO68: 262
G69: 16 | H69: 1 | I69: 3 | J69: 3 | K69: 17 | L69: ='Formatted AERMET Data'!G68 -> 0.1 | M69: ='Formatted AERMET Data'!M68 -> 0.07 | N69: =M69 -> 0.07 | O69: ='Formatted AERMET Data'!L68 -> 8888 | P69: =IF($O69>0,"",IF(AND($O69<0,$O69<>-99999),(1-((16*$D$5)/$O69))^0.25,"")) ->  | Q69: =IF($O69>0,5*($D$5/$O69),IF(AND($O69<0,$O69<>-99999),(-2*LN((1+P69)/2)-LN((1+P69^2)))/(2+2*ATAN(P69)-PI()/2),"")) -> 0.005625562556 | R69: =IF(L69<>-9,(L69/$D$11)*(LN(($D$5+$M69)/$M69)+Q69*($D$5/$O69)),"") -> 1.211909042 | S69: =R69*(-1*COS(RADIANS($D$23-'Formatted AERMET Data'!Q68))) -> 0.9927377694 | T69: =(S69)/($D$5-M69) -> 0.09997359209 | U69: =IFERROR((1-16 *z_h/Obu_len) ^ 0.25, "") -> 0.9954688458 | V69: =IF($O69<0,2*LN((1+$U69^2)/2),-5*z_0_T/$O69) -> -0.0005625562556 | W69: =($L69^2)/(O69*$D$11*9.8)*theta_0 -> 8.064519742e-05 | X69: =IFERROR(theta_0 + W69/ K_const * ( LN(z_0_T/ z_0_T) - V69), "") -> 288.0000001 | Y69: 340.2597832 | Z69: =IFERROR((1-16 * z_h/Obu_len) ^ 0.25, "") -> 0.9954688458 | AA69: =IF($O69<0,2*LN((1+$Z69^2)/2),-5*z_h/$O69) -> -0.005625562556 | AB69: =($L69^2)/($O69*$D$11*9.8)*theta_0 -> 8.064519742e-05 | AC69: =IFERROR(theta_0 + theta_star_z/ K_const * ( LN( z_h / $N69 + 1) - psi_h) - 0.01 * z_h, "") -> 287.9009785 | AD69: 340.2012832 | AE69: =IFERROR((AD69-Y69)/($D$5-$D$6), "") -> -0.006499997071 | AF69: =AE69+T69 -> 0.09347359502 | AH69: 5 | AI69: 04:00:00 | AK69: 29 | AL69: 21 | AM69: 16 | AN69: 10 | AO69: 288
G70: 16 | H70: 1 | I70: 3 | J70: 3 | K70: 18 | L70: ='Formatted AERMET Data'!G69 -> 0.1 | M70: ='Formatted AERMET Data'!M69 -> 0.07 | N70: 0.07 | O70: ='Formatted AERMET Data'!L69 -> 103.5 | Q70: 0.4830917874 | R70: 1.223291775 | S70: =R70*(-1*COS(RADIANS($D$23-'Formatted AERMET Data'!Q69))) -> 1.037410261 | T70: 0.1044723324 | V70: -0.04830917874 | W70: 0.00692535763 | X70: 288.000816 | Y70: =IFERROR((X70)^0.5 * 20.05, "") -> 340.2602651 | AA70: -0.4830917874 | AB70: 0.00692535763 | AC70: 287.9920889 | AD70: =IFERROR((AC70)^0.5 * 20.05, "") -> 340.2551098 | AE70: -0.000572820636 | AF70: 0.1038995118 | AH70: 6 | AI70: 05:00:00 | AK70: 35 | AL70: 18 | AM70: 14 | AN70: 7 | AO70: 288
G71: 16 | H71: 1 | I71: 3 | J71: 3 | K71: 19 | L71: ='Formatted AERMET Data'!G70 -> 0.1 | M71: ='Formatted AERMET Data'!M70 -> 0.069 | N71: 0.069 | O71: ='Formatted AERMET Data'!L70 -> 93.9 | Q71: 0.5324813632 | R71: 1.229223769 | S71: =R71*(-1*COS(RADIANS($D$23-'Formatted AERMET Data'!Q70))) -> 0.756785719 | T71: 0.07620438213 | V71: -0.05324813632 | W71: 0.007633381413 | X71: 288.0009914 | Y71: 340.2603687 | AA71: -0.5324813632 | AB71: 0.007633381413 | AC71: 288.0026893 | AD71: 340.2613718 | AE71: 0.0001114457638 | AF71: 0.0763158279 | AH71: 7 | AI71: 06:00:00 | AK71: 33 | AL71: 15 | AM71: 8 | AN71: 14 | AO71: 293
G72: 16 | H72: 1 | I72: 3 | J72: 3 | K72: 20 | L72: ='Formatted AERMET Data'!G71 -> 0.1 | M72: ='Formatted AERMET Data'!M71 -> 0.069 | N72: 0.069 | O72: ='Formatted AERMET Data'!L71 -> 121.8 | Q72: 0.4105090312 | R72: 1.223613099 | S72: =R72*(-1*COS(RADIANS($D$23-'Formatted AERMET Data'!Q71))) -> 0.5171212408 | T72: 0.05207141685 | V72: -0.04105090312 | W72: 0.005884848232 | X72: 288.0005892 | Y72: 340.2601312 | AA72: -0.4105090312 | AB72: 0.005884848232 | AC72: 287.9774162 | AD72: 340.2464419 | AE72: -0.001521027269 | AF72: 0.05055038958 | AH72: 8 | AI72: 07:00:00 | AK72: 46 | AL72: 14 | AM72: 17 | AN72: 34 | AO72: 250
G73: 16 | H73: 1 | I73: 3 | J73: 3 | K73: 21 | L73: ='Formatted AERMET Data'!G72 -> 0.1 | M73: ='Formatted AERMET Data'!M72 -> 0.069 | N73: 0.069 | O73: ='Formatted AERMET Data'!L72 -> 177.3 | Q73: 0.2820078962 | R73: 1.219272161 | S73: =R73*(-1*COS(RADIANS($D$23-'Formatted AERMET Data'!Q72))) -> 0.6818083401 | T73: 0.06865455041 | U73: 0.5589002989 | V73: -0.02820078962 | W73: 0.004042721459 | X73: 288.0002781 | Y73: 340.2599474 | Z73: 0.5589002989 | AA73: -0.2820078962 | AB73: 0.004042721459 | AC73: 287.9519156 | AD73: 340.2313771 | AE73: -0.003174474872 | AF73: 0.06548007553 | AH73: 9 | AI73: 08:00:00 | AK73: 74 | AL73: 27 | AM73: 39 | AN73: 67 | AO73: 158
G74: 16 | H74: 1 | I74: 3 | J74: 3 | K74: 22 | L74: ='Formatted AERMET Data'!G73 -> 0.1 | M74: ='Formatted AERMET Data'!M73 -> 0.069 | N74: 0.069 | O74: ='Formatted AERMET Data'!L73 -> 166.2 | Q74: 0.3008423586 | R74: 1.219807658 | S74: =R74*(-1*COS(RADIANS($D$23-'Formatted AERMET Data'!Q73))) -> 0.8774561969 | T74: 0.08835527106 | U74: 0.4394810642 | V74: -0.03008423586 | W74: 0.004312722712 | X74: 288.0003165 | Y74: 340.25997 | Z74: 0.4394810642 | AA74: -0.3008423586 | AB74: 0.004312722712 | AC74: 287.955581 | AD74: 340.2335425 | AE74: -0.002936390366 | AF74: 0.08541888069 | AH74: 10 | AI74: 09:00:00 | AK74: =COUNTIFS($AF$5:$AF$8788, ">" & AJ$5, $AF$5:$AF$8788, "<=" & AK$5, $K$5:$K$8788, $AH74) -> 131 | AL74: 33 | AM74: 54 | AN74: 56 | AO74: 88
G75: 16 | H75: 1 | I75: 3 | J75: 3 | K75: 23 | L75: ='Formatted AERMET Data'!G74 -> 0.1 | M75: ='Formatted AERMET Data'!M74 -> 0.069 | N75: 0.069 | O75: ='Formatted AERMET Data'!L74 -> 67.7 | Q75: 0.7385524372 | R75: 1.242000515 | S75: =R75*(-1*COS(RADIANS($D$23-'Formatted AERMET Data'!Q74))) -> 0.7816162498 | T75: 0.07870468733 | V75: -0.07385524372 | W75: 0.0105875113 | X75: 288.0019072 | Y75: 340.2609097 | AA75: -0.7385524372 | AB75: 0.0105875113 | AC75: 288.0477516 | AD75: 340.2879902 | AE75: 0.003008940983 | AF75: 0.08171362831 | AH75: 11 | AI75: 10:00:00 | AK75: 198 | AL75: 44 | AM75: 40 | AN75: 31 | AO75: 48
G76: 16 | H76: 1 | I76: 3 | J76: 3 | K76: 24 | L76: ='Formatted AERMET Data'!G75 -> 0.1 | M76: ='Formatted AERMET Data'!M75 -> 0.069 | N76: 0.069 | O76: ='Formatted AERMET Data'!L75 -> 57 | Q76: 0.8771929825 | R76: 1.252927726 | S76: =R76*(-1*COS(RADIANS($D$23-'Formatted AERMET Data'!Q75))) -> 0.7364524396 | T76: 0.07415692675 | V76: -0.08771929825 | W76: 0.01257499149 | X76: 288.0026904 | Y76: 340.2613724 | AA76: -0.8771929825 | AB76: 0.01257499149 | AC76: 288.0797397 | AD76: 340.3068844 | AE76: 0.005056883819 | AF76: 0.07921381057 | AH76: 12 | AI76: 11:00:00 | AK76: 251 | AL76: 31 | AM76: 25 | AN76: 26 | AO76: 28
G77: 16 | H77: 1 | I77: 4 | J77: 4 | K77: 1 | L77: ='Formatted AERMET Data'!G76 -> 0.1 | M77: ='Formatted AERMET Data'!M76 -> 0.069 | N77: 0.069 | O77: ='Formatted AERMET Data'!L76 -> 23 | Q77: 2.173913043 | R77: 1.445924331 | S77: =R77*(-1*COS(RADIANS($D$23-'Formatted AERMET Data'!Q76))) -> 0.9861180222 | T77: 0.09929695119 | V77: -0.2173913043 | W77: 0.03116410933 | X77: 288.0165239 | Y77: 340.2695441 | AA77: -2.173913043 | AB77: 0.03116410933 | AC77: 288.4440055 | AD77: 340.5219689 | AE77: 0.02804720035 | AF77: 0.1273441515 | AH77: 13 | AI77: 12:00:00 | AK77: 286 | AL77: 24 | AM77: 17 | AN77: 17 | AO77: 20
G78: 16 | H78: 1 | I78: 4 | J78: 4 | K78: 2 | L78: ='Formatted AERMET Data'!G77 -> 0.1 | M78: ='Formatted AERMET Data'!M77 -> 0.069 | N78: 0.069 | O78: ='Formatted AERMET Data'!L77 -> 7.8 | Q78: 6.41025641 | R78: 3.219850639 | S78: =R78*(-1*COS(RADIANS($D$23-'Formatted AERMET Data'!Q77))) -> 2.195932856 | T78: 0.2211190067 | V78: -0.641025641 | W78: 0.09189416855 | X78: 288.1436744 | Y78: 340.3446451 | AA78: -6.41025641 | AB78: 0.09189416855 | AC78: 290.4536194 | AD78: 341.7061327 | AE78: 0.151276395 | AF78: 0.3723954017 | AH78: 14 | AI78: 13:00:00 | AK78: 303 | AL78: 14 | AM78: 21 | AN78: 10 | AO78: 16
G79: 16 | H79: 1 | I79: 4 | J79: 4 | K79: 3 | L79: ='Formatted AERMET Data'!G78 -> 0.1 | M79: ='Formatted AERMET Data'!M78 -> 0.072 | N79: 0.072 | O79: ='Formatted AERMET Data'!L78 -> 6.9 | Q79: 7.246376812 | R79: 3.766547277 | S79: =R79*(-1*COS(RADIANS($D$23-'Formatted AERMET Data'!Q78))) -> -2.471077349 | T79: -0.2488998136 | V79: -0.7246376812 | W79: 0.1038803644 | X79: 288.1835991 | Y79: 340.3682231 | AA79: -7.246376812 | AB79: 0.1038803644 | AC79: 290.9878376 | AD79: 342.0202306 | AE79: 0.1835563946 | AF79: -0.06534341894 | AH79: 15 | AI79: 14:00:00 | AK79: 310 | AL79: 19 | AM79: 9 | AN79: 13 | AO79: 13
G80: 16 | H80: 1 | I80: 4 | J80: 4 | K80: 4 | L80: ='Formatted AERMET Data'!G79 -> 0.1 | M80: ='Formatted AERMET Data'!M79 -> 0.07 | N80: 0.07 | O80: ='Formatted AERMET Data'!L79 -> 8.6 | Q80: 5.813953488 | R80: 2.860788238 | S80: =R80*(-1*COS(RADIANS($D$23-'Formatted AERMET Data'!Q79))) -> 2.670775904 | T80: 0.2689603125 | V80: -0.5813953488 | W80: 0.0833458738 | X80: 288.1181876 | Y80: 340.3295927 | AA80: -5.813953488 | AB80: 0.0833458738 | AC80: 290.0919506 | AD80: 341.4933226 | AE80: 0.1293033148 | AF80: 0.3982636273 | AH80: 16 | AI80: 15:00:00 | AK80: 312 | AL80: 14 | AM80: 15 | AN80: 10 | AO80: 14
G81: 16 | H81: 1 | I81: 4 | J81: 4 | K81: 5 | L81: ='Formatted AERMET Data'!G80 -> 0.1 | M81: ='Formatted AERMET Data'!M80 -> 0.081 | N81: 0.081 | O81: ='Formatted AERMET Data'!L80 -> 9.6 | Q81: 5.208333333 | R81: 2.499830686 | S81: =R81*(-1*COS(RADIANS($D$23-'Formatted AERMET Data'!Q80))) -> 2.265616017 | T81: 0.2284117367 | V81: -0.5208333333 | W81: 0.07466401195 | X81: 288.0948476 | Y81: 340.3158077 | AA81: -5.208333333 | AB81: 0.07466401195 | AC81: 289.7269541 | AD81: 341.2784198 | AE81: 0.1069569058 | AF81: 0.3353686425 | AH81: 17 | AI81: 16:00:00 | AK81: 287 | AL81: 27 | AM81: 14 | AN81: 16 | AO81: 21
G82: 16 | H82: 1 | I82: 4 | J82: 4 | K82: 6 | L82: ='Formatted AERMET Data'!G81 -> 0.1 | M82: ='Formatted AERMET Data'!M81 -> 0.072 | N82: 0.072 | O82: ='Formatted AERMET Data'!L81 -> 5.4 | Q82: 9.259259259 | R82: 5.387225576 | S82: =R82*(-1*COS(RADIANS($D$23-'Formatted AERMET Data'!Q81))) -> -3.809343737 | T82: -0.383696992 | V82: -0.9259259259 | W82: 0.1327360212 | X82: 288.2997652 | Y82: 340.436817 | AA82: -9.259259259 | AB82: 0.1327360212 | AC82: 292.4972337 | AD82: 342.9061376 | AE82: 0.2743689535 | AF82: -0.1093280385 | AH82: 18 | AI82: 17:00:00 | AK82: 275 | AL82: 29 | AM82: 18 | AN82: 14 | AO82: 26
G83: 16 | H83: 1 | I83: 4 | J83: 4 | K83: 7 | L83: ='Formatted AERMET Data'!G82 -> 0.1 | M83: ='Formatted AERMET Data'!M82 -> 0.07 | N83: 0.07 | O83: ='Formatted AERMET Data'!L82 -> 9.3 | Q83: 5.376344086 | R83: 2.621911193 | S83: =R83*(-1*COS(RADIANS($D$23-'Formatted AERMET Data'!Q82))) -> -0.04575865978 | T83: -0.004608122838 | V83: -0.5376344086 | W83: 0.07707252846 | X83: 288.1010655 | Y83: 340.3194802 | AA83: -5.376344086 | AB83: 0.07707252846 | AC83: 289.8447025 | AD83: 341.3477626 | AE83: 0.1142536004 | AF83: 0.1096454775 | AH83: 19 | AI83: 18:00:00 | AK83: 238 | AL83: 54 | AM83: 18 | AN83: 13 | AO83: 41
G84: 16 | H84: 1 | I84: 4 | J84: 4 | K84: 8 | L84: ='Formatted AERMET Data'!G83 -> 0.1 | M84: ='Formatted AERMET Data'!M83 -> 0.07 | N84: 0.07 | O84: ='Formatted AERMET Data'!L83 -> 116.8 | Q84: 0.4280821918 | R84: 1.220846736 | S84: =R84*(-1*COS(RADIANS($D$23-'Formatted AERMET Data'!Q83))) -> 1.067776614 | T84: 0.1075303741 | V84: -0.04280821918 | W84: 0.006136768105 | X84: 288.0006407 | Y84: 340.2601616 | AA84: -0.4280821918 | AB84: 0.006136768105 | AC84: 287.9807794 | AD84: 340.2484287 | AE84: -0.001303652577 | AF84: 0.1062267215 | AH84: 20 | AI84: 19:00:00 | AK84: =COUNTIFS($AF$5:$AF$8788, ">" & AJ$5, $AF$5:$AF$8788, "<=" & AK$5, $K$5:$K$8788, $AH84) -> 206 | AL84: 64 | AM84: 25 | AN84: 13 | AO84: 53
G85: 16 | H85: 1 | I85: 4 | J85: 4 | K85: 9 | L85: ='Formatted AERMET Data'!G84 -> 0.1 | M85: ='Formatted AERMET Data'!M84 -> 0.07 | N85: 0.07 | O85: ='Formatted AERMET Data'!L84 -> -8888 | P85: 1.004470384 | Q85: -0.3502603209 | R85: 1.212003616 | S85: =R85*(-1*COS(RADIANS($D$23-'Formatted AERMET Data'!Q84))) -> 0.9928152398 | T85: 0.09998139374 | U85: 1.004470384 | V85: 0.008940738533 | W85: -8.064519742e-05 | X85: 288.0000018 | Y85: 340.2597841 | Z85: 1.004470384 | AA85: 0.008940738533 | AB85: -8.064519742e-05 | AC85: 287.8990244 | AD85: 340.2001287 | AE85: -0.006628383808 | AF85: 0.09335300993 | AH85: 21 | AI85: 20:00:00 | AK85: 166 | AL85: 76 | AM85: 31 | AN85: 18 | AO85: 72
G86: 16 | H86: 1 | I86: 4 | J86: 4 | K86: 10 | L86: ='Formatted AERMET Data'!G85 -> 0.1 | M86: ='Formatted AERMET Data'!M85 -> 0.07 | N86: 0.07 | O86: ='Formatted AERMET Data'!L85 -> -250.4 | P86: 1.131470556 | Q86: -0.4481923299 | R86: 1.216273122 | S86: =R86*(-1*COS(RADIANS($D$23-'Formatted AERMET Data'!Q85))) -> 1.031458105 | T86: 0.103872921 | U86: 1.131470556 | V86: 0.2622544265 | W86: -0.00286251803 | X86: 288.001831 | Y86: 340.2608647 | Z86: 1.131470556 | AA86: 0.2622544265 | AB86: -0.00286251803 | AC86: 287.8671399 | AD86: 340.1812898 | AE86: -0.008841660573 | AF86: 0.09503126039 | AH86: 22 | AI86: 21:00:00 | AK86: 149 | AL86: 61 | AM86: 26 | AN86: 6 | AO86: 117
G87: 16 | H87: 1 | I87: 4 | J87: 4 | K87: 11 | L87: ='Formatted AERMET Data'!G86 -> 0.1 | M87: ='Formatted AERMET Data'!M86 -> 0.07 | N87: 0.07 | O87: ='Formatted AERMET Data'!L86 -> -198.9 | P87: 1.15900329 | Q87: -0.467881379 | R87: 1.217644925 | S87: =R87*(-1*COS(RADIANS($D$23-'Formatted AERMET Data'!Q86))) -> 1.03262146 | T87: 0.1039900766 | U87: 1.15900329 | V87: 0.3168163161 | W87: -0.003603692884 | X87: 288.0027847 | Y87: 340.2614281 | Z87: 1.15900329 | AA87: 0.3168163161 | AB87: -0.003603692884 | AC87: 287.8591112 | AD87: 340.1765459 | AE87: -0.009431356136 | AF87: 0.09455872043 | AH87: 23 | AI87: 22:00:00 | AK87: 130 | AL87: 55 | AM87: 18 | AN87: 9 | AO87: 149
G88: 16 | H88: 1 | I88: 4 | J88: 4 | K88: 12 | L88: ='Formatted AERMET Data'!G87 -> 0.1 | M88: ='Formatted AERMET Data'!M87 -> 0.07 | N88: 0.07 | O88: ='Formatted AERMET Data'!L87 -> -77.8 | P88: 1.322233217 | Q88: -0.5755209181 | R88: 1.229950038 | S88: =R88*(-1*COS(RADIANS($D$23-'Formatted AERMET Data'!Q87))) -> 0.9822817757 | T88: 0.09892062193 | U88: 1.322233217 | V88: 0.6356712116 | W88: -0.009213040034 | X88: 288.0142841 | Y88: 340.268221 | Z88: 1.322233217 | AA88: 0.6356712116 | AB88: -0.009213040034 | AC88: 287.8026305 | AD88: 340.1431713 | AE88: -0.01389441191 | AF88: 0.08502621001 | AH88: 24 | AI88: 23:00:00 | AK88: 104 | AL88: 45 | AM88: 28 | AN88: 10 | AO88: 177
G89: 16 | H89: 1 | I89: 4 | J89: 4 | K89: 13 | L89: ='Formatted AERMET Data'!G88 -> 0.1 | M89: ='Formatted AERMET Data'!M88 -> 0.061 | N89: 0.061 | O89: ='Formatted AERMET Data'!L88 -> -25 | P89: 1.649331411 | Q89: -0.7562849381 | R89: 1.319039501 | S89: =R89*(-1*COS(RADIANS($D$23-'Formatted AERMET Data'!Q88))) -> 1.318838605 | T89: 0.1326932895 | U89: 1.649331411 | V89: 1.241311088 | W89: -0.02867098059 | X89: 288.0868039 | Y89: 340.3110568 | Z89: 1.649331411 | AA89: 1.241311088 | AB89: -0.02867098059 | AC89: 287.6297769 | AD89: 340.0410113 | AE89: -0.03000505215 | AF89: 0.1026882374
G90: 16 | H90: 1 | I90: 4 | J90: 4 | K90: 14 | L90: ='Formatted AERMET Data'!G89 -> 0.1 | M90: ='Formatted AERMET Data'!M89 -> 0.07 | N90: 0.07 | O90: ='Formatted AERMET Data'!L89 -> -19.3 | P90: 1.745845248 | Q90: -0.8030573312 | R90: 1.313393323 | S90: =R90*(-1*COS(RADIANS($D$23-'Formatted AERMET Data'!Q89))) -> 1.241837784 | T90: 0.1250591928 | U90: 1.745845248 | V90: 1.410139462 | W90: -0.03713857589 | X90: 288.1277331 | Y90: 340.3352304 | Z90: 1.745845248 | AA90: 1.410139462 | AB90: -0.03713857589 | AC90: 287.5776479 | AD90: 340.010196 | AE90: -0.03611492558 | AF90: 0.08894426718
G91: 16 | H91: 1 | I91: 4 | J91: 4 | K91: 15 | L91: ='Formatted AERMET Data'!G90 -> 0.1 | M91: ='Formatted AERMET Data'!M90 -> 0.069 | N91: 0.069 | O91: ='Formatted AERMET Data'!L90 -> -21.6 | P91: 1.702807378 | Q91: -0.7825085873 | R91: 1.30375187 | S91: =R91*(-1*COS(RADIANS($D$23-'Formatted AERMET Data'!Q90))) -> 0.889156637 | T91: 0.08953344447 | U91: 1.702807378 | V91: 1.335429484 | W91: -0.03318400531 | X91: 288.1080851 | Y91: 340.3236261 | Z91: 1.702807378 | AA91: 1.335429484 | AB91: -0.03318400531 | AC91: 287.6047691 | AD91: 340.0262287 | AE91: -0.03304415668 | AF91: 0.05648928779
G92: 16 | H92: 1 | I92: 4 | J92: 4 | K92: 16 | L92: ='Formatted AERMET Data'!G91 -> 0.1 | M92: ='Formatted AERMET Data'!M91 -> 0.081 | N92: 0.081 | O92: ='Formatted AERMET Data'!L91 -> -8.7 | P92: 2.098451603 | Q92: -0.9556841861 | R92: 1.444499063 | S92: =R92*(-1*COS(RADIANS($D$23-'Formatted AERMET Data'!Q91))) -> 1.35738511 | T92: 0.1368469715 | U92: 2.098451603 | V92: 1.987799101 | W92: -0.08238787525 | X92: 288.3994404 | Y92: 340.4956623 | Z92: 2.098451603 | AA92: 1.987799101 | AB92: -0.08238787525 | AC92: 287.330085 | AD92: 339.8638146 | AE92: -0.07020529318 | AF92: 0.06664167832
G93: 16 | H93: 1 | I93: 4 | J93: 4 | K93: 17 | L93: ='Formatted AERMET Data'!G92 -> 0.1 | M93: ='Formatted AERMET Data'!M92 -> 0.072 | N93: 0.072 | O93: ='Formatted AERMET Data'!L92 -> -1467.1 | P93: 1.026215647 | Q93: -0.367942343 | R93: 1.205696686 | S93: =R93*(-1*COS(RADIANS($D$23-'Formatted AERMET Data'!Q92))) -> -0.7587695101 | T93: -0.07642722704 | U93: 1.026215647 | V93: 0.05242540432 | W93: -0.0004885655475 | X93: 288.0000625 | Y93: 340.25982 | Z93: 1.026215647 | AA93: 0.05242540432 | AB93: -0.0004885655475 | AC93: 287.8941748 | AD93: 340.1972634 | AE93: -0.006950735036 | AF93: -0.08337796208
G94: 16 | H94: 1 | I94: 4 | J94: 4 | K94: 18 | L94: ='Formatted AERMET Data'!G93 -> 0.1 | M94: ='Formatted AERMET Data'!M93 -> 0.091 | N94: 0.091 | O94: ='Formatted AERMET Data'!L93 -> 5.1 | Q94: 9.803921569 | R94: 5.837052521 | S94: =R94*(-1*COS(RADIANS($D$23-'Formatted AERMET Data'!Q93))) -> 3.593648366 | T94: 0.362665089 | V94: -0.9803921569 | W94: 0.1405440225 | X94: 288.3360689 | Y94: 340.4582508 | AA94: -9.803921569 | AB94: 0.1405440225 | AC94: 292.8747309 | AD94: 343.1273437 | AE94: 0.2965658811 | AF94: 0.6592309701
G95: 16 | H95: 1 | I95: 4 | J95: 4 | K95: 19 | L95: ='Formatted AERMET Data'!G94 -> 0.1 | M95: ='Formatted AERMET Data'!M94 -> 0.072 | N95: 0.072 | O95: ='Formatted AERMET Data'!L94 -> 4.1 | Q95: 12.19512195 | R95: 8.459767887 | S95: =R95*(-1*COS(RADIANS($D$23-'Formatted AERMET Data'!Q94))) -> -3.575252399 | T95: -0.3601180902 | V95: -1.219512195 | W95: 0.1748230524 | X95: 288.5199972 | Y95: 340.5668219 | AA95: -12.19512195 | AB95: 0.1748230524 | AC95: 295.2067382 | AD95: 344.4907064 | AE95: 0.4359871634 | AF95: 0.07586907322
G96: 16 | H96: 1 | I96: 4 | J96: 4 | K96: 20 | L96: ='Formatted AERMET Data'!G95 -> 0.1 | M96: ='Formatted AERMET Data'!M95 -> 0.072 | N96: 0.072 | O96: ='Formatted AERMET Data'!L95 -> 3.7 | Q96: 13.51351351 | R96: 10.11313609 | S96: =R96*(-1*COS(RADIANS($D$23-'Formatted AERMET Data'!Q95))) -> -5.208650141 | T96: -0.5246424397 | V96: -1.351351351 | W96: 0.1937228418 | X96: 288.6385064 | Y96: 340.6367584 | AA96: -13.51351351 | AB96: 0.1937228418 | AC96: 296.6195889 | AD96: 345.3140835 | AE96: 0.5197027926 | AF96: -0.004939647049
G97: 16 | H97: 1 | I97: 4 | J97: 4 | K97: 21 | L97: ='Formatted AERMET Data'!G96 -> 0.1 | M97: ='Formatted AERMET Data'!M96 -> 0.049 | N97: 0.049 | O97: ='Formatted AERMET Data'!L96 -> 5.8 | Q97: 8.620689655 | R97: 4.923577106 | S97: =R97*(-1*COS(RADIANS($D$23-'Formatted AERMET Data'!Q96))) -> -4.4979115 | T97: -0.4520059793 | V97: -0.8620689655 | W97: 0.1235818129 | X97: 288.259844 | Y97: 340.4132458 | AA97: -8.620689655 | AB97: 0.1235818129 | AC97: 292.1030168 | AD97: 342.6749816 | AE97: 0.2513039716 | AF97: -0.2007020077
G98: 16 | H98: 1 | I98: 4 | J98: 4 | K98: 22 | L98: ='Formatted AERMET Data'!G97 -> 0.1 | M98: ='Formatted AERMET Data'!M97 -> 0.072 | N98: 0.072 | O98: ='Formatted AERMET Data'!L97 -> 4.8 | Q98: 10.41666667 | R98: 6.49810667 | S98: =R98*(-1*COS(RADIANS($D$23-'Formatted AERMET Data'!Q97))) -> -3.150344627 | T98: -0.3173191606 | V98: -1.041666667 | W98: 0.1493280239 | X98: 288.3793903 | Y98: 340.4838261 | AA98: -10.41666667 | AB98: 0.1493280239 | AC98: 293.4934326 | AD98: 343.489583 | AE98: 0.333972991 | AF98: 0.01665383032
G99: 16 | H99: 1 | I99: 4 | J99: 4 | K99: 23 | L99: ='Formatted AERMET Data'!G98 -> 0.1 | M99: ='Formatted AERMET Data'!M98 -> 0.061 | N99: 0.061 | O99: ='Formatted AERMET Data'!L98 -> 7 | Q99: 7.142857143 | R99: 3.734056003 | S99: =R99*(-1*COS(RADIANS($D$23-'Formatted AERMET Data'!Q98))) -> 3.713600453 | T99: 0.3736392447 | V99: -0.7142857143 | W99: 0.1023963592 | X99: 288.1783909 | Y99: 340.3651474 | AA99: -7.142857143 | AB99: 0.1023963592 | AC99: 290.9590051 | AD99: 342.0032857 | AE99: 0.1820153678 | AF99: 0.5556546125
G100: 16 | H100: 1 | I100: 4 | J100: 4 | K100: 24 | L100: ='Formatted AERMET Data'!G99 -> 0.1 | M100: ='Formatted AERMET Data'!M99 -> 0.061 | N100: 0.061 | O100: ='Formatted AERMET Data'!L99 -> 6.1 | Q100: 8.196721311 | R100: 4.522633178 | S100: =R100*(-1*COS(RADIANS($D$23-'Formatted AERMET Data'!Q99))) -> 4.439539668 | T100: 0.4466787069 | V100: -0.8196721311 | W100: 0.1175040188 | X100: 288.2349141 | Y100: 340.3985253 | AA100: -8.196721311 | AB100: 0.1175040188 | AC100: 291.7123661 | AD100: 342.4457628 | AE100: 0.2274708293 | AF100: 0.6741495363
G101: 16 | H101: 1 | I101: 5 | J101: 5 | K101: 1 | L101: ='Formatted AERMET Data'!G100 -> 0.1 | M101: ='Formatted AERMET Data'!M100 -> 0.081 | N101: 0.081 | O101: ='Formatted AERMET Data'!L100 -> 4.5 | Q101: 11.11111111 | R101: 7.198857711 | S101: =R101*(-1*COS(RADIANS($D$23-'Formatted AERMET Data'!Q100))) -> 6.414229187 | T101: 0.6466608717 | V101: -1.111111111 | W101: 0.1592832255 | X101: 288.4316619 | Y101: 340.5146827 | AA101: -11.11111111 | AB101: 0.1592832255 | AC101: 294.0907056 | AD101: 343.8389141 | AE101: 0.3693590478 | AF101: 1.01601992
G102: 16 | H102: 1 | I102: 5 | J102: 5 | K102: 2 | L102: ='Formatted AERMET Data'!G101 -> 0.1 | M102: ='Formatted AERMET Data'!M101 -> 0.081 | N102: 0.081 | O102: ='Formatted AERMET Data'!L101 -> 6.1 | Q102: 8.196721311 | R102: 4.453952839 | S102: =R102*(-1*COS(RADIANS($D$23-'Formatted AERMET Data'!Q101))) -> 3.817782732 | T102: 0.3848959303 | V102: -0.8196721311 | W102: 0.1175040188 | X102: 288.2349141 | Y102: 340.3985253 | AA102: -8.196721311 | AB102: 0.1175040188 | AC102: 291.6316639 | AD102: 342.3983907 | AE102: 0.2222072685 | AF102: 0.6071031988
G103: 16 | H103: 1 | I103: 5 | J103: 5 | K103: 3 | L103: ='Formatted AERMET Data'!G102 -> 0.1 | M103: ='Formatted AERMET Data'!M102 -> 0.091 | N103: 0.091 | O103: ='Formatted AERMET Data'!L102 -> 3.5 | Q103: 14.28571429 | R103: 11.10362591 | S103: =R103*(-1*COS(RADIANS($D$23-'Formatted AERMET Data'!Q102))) -> 5.884025274 | T103: 0.5938061635 | V103: -1.428571429 | W103: 0.2047927185 | X103: 288.7135635 | Y103: 340.6810448 | AA103: -14.28571429 | AB103: 0.2047927185 | AC103: 297.3875242 | AD103: 345.7607962 | AE103: 0.5644168192 | AF103: 1.158222983
G104: 16 | H104: 1 | I104: 5 | J104: 5 | K104: 4 | L104: ='Formatted AERMET Data'!G103 -> 0.1 | M104: ='Formatted AERMET Data'!M103 -> 0.081 | N104: 0.081 | O104: ='Formatted AERMET Data'!L103 -> 2 | Q104: 25 | R104: 31.66438014 | S104: =R104*(-1*COS(RADIANS($D$23-'Formatted AERMET Data'!Q103))) -> 27.69429089 | T104: 2.79204465 | V104: -2.5 | W104: 0.3583872573 | X104: 290.1852882 | Y104: 341.5482562 | AA104: -25 | AB104: 0.3583872573 | AC104: 313.9695774 | AD104: 355.2696934 | AE104: 1.524604132 | AF104: 4.316648782
G105: 16 | H105: 1 | I105: 5 | J105: 5 | K105: 5 | L105: ='Formatted AERMET Data'!G104 -> 0.1 | M105: ='Formatted AERMET Data'!M104 -> 0.091 | N105: 0.091 | O105: ='Formatted AERMET Data'!L104 -> 3.4 | Q105: 14.70588235 | R105: 11.69783777 | S105: =R105*(-1*COS(RADIANS($D$23-'Formatted AERMET Data'!Q104))) -> 5.310707216 | T105: 0.535947847 | V105: -1.470588235 | W105: 0.2108160337 | X105: 288.7561551 | Y105: 340.7061729 | AA105: -14.70588235 | AB105: 0.2108160337 | AC105: 297.8826133 | AD105: 346.0484869 | AE105: 0.5935904436 | AF105: 1.129538291
G106: 16 | H106: 1 | I106: 5 | J106: 5 | K106: 6 | L106: ='Formatted AERMET Data'!G105 -> 0.1 | M106: ='Formatted AERMET Data'!M105 -> 0.07 | N106: 0.07 | O106: ='Formatted AERMET Data'!L105 -> 3.5 | Q106: 14.28571429 | R106: 11.16710909 | S106: =R106*(-1*COS(RADIANS($D$23-'Formatted AERMET Data'!Q105))) -> 10.20166179 | T106: 1.027357682 | V106: -1.428571429 | W106: 0.2047927185 | X106: 288.7135635 | Y106: 340.6810448 | AA106: -14.28571429 | AB106: 0.2047927185 | AC106: 297.5175331 | AD106: 345.8363661 | AE106: 0.5728134724 | AF106: 1.600171155
G107: 16 | H107: 1 | I107: 5 | J107: 5 | K107: 7 | L107: ='Formatted AERMET Data'!G106 -> 0.1 | M107: ='Formatted AERMET Data'!M106 -> 0.069 | N107: 0.069 | O107: ='Formatted AERMET Data'!L106 -> 2.6 | Q107: 19.23076923 | R107: 19.25551395 | S107: =R107*(-1*COS(RADIANS($D$23-'Formatted AERMET Data'!Q106))) -> 8.137731836 | T107: 0.8194272315 | V107: -1.923076923 | W107: 0.2756825056 | X107: 289.2930699 | Y107: 341.0227813 | AA107: -19.23076923 | AB107: 0.2756825056 | AC107: 304.1813243 | AD107: 349.6879363 | AE107: 0.9627950062 | AF107: 1.782222238
G108: 16 | H108: 1 | I108: 5 | J108: 5 | K108: 8 | L108: ='Formatted AERMET Data'!G107 -> 0.1 | M108: ='Formatted AERMET Data'!M107 -> 0.081 | N108: 0.081 | O108: ='Formatted AERMET Data'!L107 -> 5 | Q108: 10 | R108: 6.054624046 | S108: =R108*(-1*COS(RADIANS($D$23-'Formatted AERMET Data'!Q107))) -> 4.835437763 | T108: 0.4874924653 | V108: -1 | W108: 0.1433549029 | X108: 288.3496461 | Y108: 340.4662665 | AA108: -10 | AB108: 0.1433549029 | AC108: 293.0831394 | AD108: 343.249406 | AE108: 0.3092377278 | AF108: 0.7967301931
G109: 16 | H109: 1 | I109: 5 | J109: 5 | K109: 9 | L109: ='Formatted AERMET Data'!G108 -> 0.1 | M109: ='Formatted AERMET Data'!M108 -> 0.061 | N109: 0.061 | O109: ='Formatted AERMET Data'!L108 -> 1793.3 | Q109: 0.02788155914 | R109: 1.245293525 | S109: =R109*(-1*COS(RADIANS($D$23-'Formatted AERMET Data'!Q108))) -> 1.245103861 | T109: 0.1252745609 | U109: 0.9769070717 | V109: -0.002788155914 | W109: 0.0003996958204 | X109: 288.0000027 | Y109: 340.2597847 | Z109: 0.9769070717 | AA109: -0.02788155914 | AB109: 0.0003996958204 | AC109: 287.9050044 | AD109: 340.2036619 | AE109: -0.006235873401 | AF109: 0.1190386875
G110: 16 | H110: 1 | I110: 5 | J110: 5 | K110: 10 | L110: ='Formatted AERMET Data'!G109 -> 0.1 | M110: ='Formatted AERMET Data'!M109 -> 0.061 | N110: 0.061 | O110: ='Formatted AERMET Data'!L109 -> -35.1 | P110: 1.535456574 | Q110: -0.6976437341 | R110: 1.293733385 | S110: =R110*(-1*COS(RADIANS($D$23-'Formatted AERMET Data'!Q109))) -> 1.286646178 | T110: 0.1294542889 | U110: 1.535456574 | V110: 1.036174523 | W110: -0.02042092634 | X110: 288.0516089 | Y110: 340.2902686 | Z110: 1.535456574 | AA110: 1.036174523 | AB110: -0.02042092634 | AC110: 287.6973162 | AD110: 340.080932 | AE110: -0.0232596172 | AF110: 0.1061946717
G111: 16 | H111: 1 | I111: 5 | J111: 5 | K111: 11 | L111: ='Formatted AERMET Data'!G110 -> 0.1 | M111: ='Formatted AERMET Data'!M110 -> 0.061 | N111: 0.061 | O111: ='Formatted AERMET Data'!L110 -> -62.4 | P111: 1.37400258 | Q111: -0.6068653236 | R111: 1.268976106 | S111: =R111*(-1*COS(RADIANS($D$23-'Formatted AERMET Data'!Q110))) -> 1.245661441 | T111: 0.1253306612 | U111: 1.37400258 | V111: 0.7347531172 | W111: -0.01148677107 | X111: 288.0205852 | Y111: 340.2719432 | Z111: 1.37400258 | AA111: 0.7347531172 | AB111: -0.01148677107 | AC111: 287.7775456 | AD111: 340.1283475 | AE111: -0.01595507698 | AF111: 0.1093755842
G112: 16 | H112: 1 | I112: 5 | J112: 5 | K112: 12 | L112: ='Formatted AERMET Data'!G111 -> 0.1 | M112: ='Formatted AERMET Data'!M111 -> 0.061 | N112: 0.061 | O112: ='Formatted AERMET Data'!L111 -> -42.3 | P112: 1.478815108 | Q112: -0.6669031872 | R112: 1.283709343 | S112: =R112*(-1*COS(RADIANS($D$23-'Formatted AERMET Data'!Q111))) -> 1.250807956 | T112: 0.1258484712 | U112: 1.478815108 | V112: 0.9317992663 | W112: -0.01694502399 | X112: 288.0385106 | Y112: 340.2825317 | Z112: 1.478815108 | AA112: 0.9317992663 | AB112: -0.01694502399 | AC112: 287.7275018 | AD112: 340.0987725 | AE112: -0.02041769141 | AF112: 0.1054307798
G113: 16 | H113: 1 | I113: 5 | J113: 5 | K113: 13 | L113: ='Formatted AERMET Data'!G112 -> 0.1 | M113: ='Formatted AERMET Data'!M112 -> 0.061 | N113: 0.061 | O113: ='Formatted AERMET Data'!L112 -> -18.2 | P113: 1.768923607 | Q113: -0.8138818874 | R113: 1.354325812 | S113: =R113*(-1*COS(RADIANS($D$23-'Formatted AERMET Data'!Q112))) -> 1.33375056 | T113: 0.1341936371 | U113: 1.768923607 | V113: 1.449820079 | W113: -0.03938321509 | X113: 288.1392648 | Y113: 340.3420409 | Z113: 1.768923607 | AA113: 1.449820079 | AB113: -0.03938321509 | AC113: 287.5488431 | AD113: 339.9931673 | AE113: -0.03876373389 | AF113: 0.09542990325
G114: 16 | H114: 1 | I114: 5 | J114: 5 | K114: 14 | L114: ='Formatted AERMET Data'!G113 -> 0.1 | M114: ='Formatted AERMET Data'!M113 -> 0.061 | N114: 0.061 | O114: ='Formatted AERMET Data'!L113 -> -6.4 | P114: 2.258100864 | Q114: -1.01721238 | R114: 1.632912762 | S114: =R114*(-1*COS(RADIANS($D$23-'Formatted AERMET Data'!Q113))) -> 1.591061313 | T114: 0.1600826354 | U114: 2.258100864 | V114: 2.229961684 | W114: -0.1119960179 | X114: 288.6091386 | Y114: 340.6194288 | Z114: 2.258100864 | AA114: 2.229961684 | AB114: -0.1119960179 | AC114: 287.1145019 | AD114: 339.7362912 | AE114: -0.09812639482 | AF114: 0.06195624059
G115: 16 | H115: 1 | I115: 5 | J115: 5 | K115: 15 | L115: ='Formatted AERMET Data'!G114 -> 0.1 | M115: ='Formatted AERMET Data'!M114 -> 0.07 | N115: 0.07 | O115: ='Formatted AERMET Data'!L114 -> -2.2 | P115: 2.930265975 | Q115: -1.239755784 | R115: 2.586359587 | S115: =R115*(-1*COS(RADIANS($D$23-'Formatted AERMET Data'!Q114))) -> 0.0451381987 | T115: 0.004545639346 | U115: 2.930265975 | V115: 3.134408737 | W115: -0.3258065976 | X115: 290.4907586 | Y115: 341.7279784 | Z115: 2.930265975 | AA115: 3.134408737 | AB115: -0.3258065976 | AC115: 286.4422841 | AD115: 339.3383478 | AE115: -0.2655145064 | AF115: -0.2609688671
G116: 16 | H116: 1 | I116: 5 | J116: 5 | K116: 16 | L116: ='Formatted AERMET Data'!G115 -> 0.1 | M116: ='Formatted AERMET Data'!M115 -> 0.049 | N116: 0.049 | O116: ='Formatted AERMET Data'!L115 -> -3.1 | P116: 2.693227664 | Q116: -1.167005651 | R116: 2.216571333 | S116: =R116*(-1*COS(RADIANS($D$23-'Formatted AERMET Data'!Q115))) -> -2.119717708 | T116: -0.2130155469 | U116: 2.693227664 | V116: 2.834974347 | W116: -0.2312175854 | X116: 289.5987705 | Y116: 341.2029158 | Z116: 2.693227664 | AA116: 2.834974347 | AB116: -0.2312175854 | AC116: 286.4966594 | AD116: 339.3705546 | AE116: -0.2035956912 | AF116: -0.4166112381
G117: 16 | H117: 1 | I117: 5 | J117: 5 | K117: 17 | L117: ='Formatted AERMET Data'!G116 -> 0.1 | M117: ='Formatted AERMET Data'!M116 -> 0.049 | N117: 0.049 | O117: ='Formatted AERMET Data'!L116 -> -49.1 | P117: 1.436541362 | Q117: -0.6432062689 | R117: 1.330343256 | S117: =R117*(-1*COS(RADIANS($D$23-'Formatted AERMET Data'!Q116))) -> -1.076270302 | T117: -0.1081569995 | U117: 1.436541362 | V117: 0.852920379 | W117: -0.01459825895 | X117: 288.0303687 | Y117: 340.2777223 | Z117: 1.436541362 | AA117: 0.852920379 | AB117: -0.01459825895 | AC117: 287.740826 | AD117: 340.1066471 | AE117: -0.01900835239 | AF117: -0.1271653519
G118: 16 | H118: 1 | I118: 5 | J118: 5 | K118: 18 | L118: ='Formatted AERMET Data'!G117 -> 0.1 | M118: ='Formatted AERMET Data'!M117 -> 0.049 | N118: 0.049 | O118: ='Formatted AERMET Data'!L117 -> 5.1 | Q118: 9.803921569 | R118: 5.987020423 | S118: =R118*(-1*COS(RADIANS($D$23-'Formatted AERMET Data'!Q117))) -> -5.755093405 | T118: -0.5783432223 | V118: -0.9803921569 | W118: 0.1405440225 | X118: 288.3360689 | Y118: 340.4582508 | AA118: -9.803921569 | AB118: 0.1405440225 | AC118: 293.0855019 | AD118: 343.2507895 | AE118: 0.3102820714 | AF118: -0.2680611509
G119: 16 | H119: 1 | I119: 5 | J119: 5 | K119: 19 | L119: ='Formatted AERMET Data'!G118 -> 0.1 | M119: ='Formatted AERMET Data'!M118 -> 0.072 | N119: 0.072 | O119: ='Formatted AERMET Data'!L118 -> 5.8 | Q119: 8.620689655 | R119: 4.830269874 | S119: =R119*(-1*COS(RADIANS($D$23-'Formatted AERMET Data'!Q118))) -> -2.559653058 | T119: -0.2578216214 | V119: -0.8620689655 | W119: 0.1235818129 | X119: 288.259844 | Y119: 340.4132458 | AA119: -8.620689655 | AB119: 0.1235818129 | AC119: 291.987706 | AD119: 342.6073376 | AE119: 0.2437879748 | AF119: -0.01403364659
G120: 16 | H120: 1 | I120: 5 | J120: 5 | K120: 20 | L120: ='Formatted AERMET Data'!G119 -> 0.1 | M120: ='Formatted AERMET Data'!M119 -> 0.049 | N120: 0.049 | O120: ='Formatted AERMET Data'!L119 -> 2.1 | Q120: 23.80952381 | R120: 28.95172998 | S120: =R120*(-1*COS(RADIANS($D$23-'Formatted AERMET Data'!Q119))) -> -24.00207194 | T120: -2.412026122 | V120: -2.380952381 | W120: 0.3413211975 | X120: 289.9821208 | Y120: 341.4286712 | AA120: -23.80952381 | AB120: 0.3413211975 | AC120: 312.1528956 | AD120: 354.2403766 | AE120: 1.423522826 | AF120: -0.9885032966
G121: 16 | H121: 1 | I121: 5 | J121: 5 | K121: 21 | L121: ='Formatted AERMET Data'!G120 -> 0.1 | M121: ='Formatted AERMET Data'!M120 -> 0.078 | N121: 0.078 | O121: ='Formatted AERMET Data'!L120 -> 3.4 | Q121: 14.70588235 | R121: 11.73512108 | S121: =R121*(-1*COS(RADIANS($D$23-'Formatted AERMET Data'!Q120))) -> -1.835777389 | T121: -0.1850209019 | V121: -1.470588235 | W121: 0.2108160337 | X121: 288.7561551 | Y121: 340.7061729 | AA121: -14.70588235 | AB121: 0.2108160337 | AC121: 297.9612125 | AD121: 346.094138 | AE121: 0.5986627882 | AF121: 0.4136418863
G122: 16 | H122: 1 | I122: 5 | J122: 5 | K122: 22 | L122: ='Formatted AERMET Data'!G121 -> 0.1 | M122: ='Formatted AERMET Data'!M121 -> 0.07 | N122: 0.07 | O122: ='Formatted AERMET Data'!L121 -> 7.5 | Q122: 6.666666667 | R122: 3.379929179 | S122: =R122*(-1*COS(RADIANS($D$23-'Formatted AERMET Data'!Q121))) -> 3.279530837 | T122: 0.3302649383 | V122: -0.6666666667 | W122: 0.09556993529 | X122: 288.1553983 | Y122: 340.351569 | AA122: -6.666666667 | AB122: 0.09556993529 | AC122: 290.6122019 | AD122: 341.7994027 | AE122: 0.160870417 | AF122: 0.4911353553
G123: 16 | H123: 1 | I123: 5 | J123: 5 | K123: 23 | L123: ='Formatted AERMET Data'!G122 -> 0.1 | M123: ='Formatted AERMET Data'!M122 -> 0.091 | N123: 0.091 | O123: ='Formatted AERMET Data'!L122 -> 5.2 | Q123: 9.615384615 | R123: 5.658454627 | S123: =R123*(-1*COS(RADIANS($D$23-'Formatted AERMET Data'!Q122))) -> 2.568884644 | T123: 0.2592476177 | V123: -0.9615384615 | W123: 0.1378412528 | X123: 288.3232675 | Y123: 340.450693 | AA123: -9.615384615 | AB123: 0.1378412528 | AC123: 292.7156773 | AD123: 343.0341587 | AE123: 0.287051751 | AF123: 0.5462993687
G124: 16 | H124: 1 | I124: 5 | J124: 5 | K124: 24 | L124: ='Formatted AERMET Data'!G123 -> 0.1 | M124: ='Formatted AERMET Data'!M123 -> 0.061 | N124: 0.061 | O124: ='Formatted AERMET Data'!L123 -> 3.7 | Q124: 13.51351351 | R124: 10.1533067 | S124: =R124*(-1*COS(RADIANS($D$23-'Formatted AERMET Data'!Q123))) -> 10.14712158 | T124: 1.020939891 | V124: -1.351351351 | W124: 0.1937228418 | X124: 288.6385064 | Y124: 340.6367584 | AA124: -13.51351351 | AB124: 0.1937228418 | AC124: 296.6974085 | AD124: 345.359378 | AE124: 0.5247355128 | AF124: 1.545675404
G125: 16 | H125: 1 | I125: 6 | J125: 6 | K125: 1 | L125: ='Formatted AERMET Data'!G124 -> 0.1 | M125: ='Formatted AERMET Data'!M124 -> 0.07 | N125: 0.07 | O125: ='Formatted AERMET Data'!L124 -> 7.1 | Q125: 7.042253521 | R125: 3.631094555 | S125: =R125*(-1*COS(RADIANS($D$23-'Formatted AERMET Data'!Q124))) -> 3.453376138 | T125: 0.3477720179 | V125: -0.7042253521 | W125: 0.100954157 | X125: 288.1734012 | Y125: 340.3622008 | AA125: -7.042253521 | AB125: 0.100954157 | AC125: 290.8574826 | AD125: 341.943614 | AE125: 0.1757125838 | AF125: 0.5234846017
G126: 16 | H126: 1 | I126: 6 | J126: 6 | K126: 2 | L126: ='Formatted AERMET Data'!G125 -> 0.1 | M126: ='Formatted AERMET Data'!M125 -> 0.061 | N126: 0.061 | O126: ='Formatted AERMET Data'!L125 -> 13.9 | Q126: 3.597122302 | R126: 1.876440427 | S126: =R126*(-1*COS(RADIANS($D$23-'Formatted AERMET Data'!Q125))) -> 1.87529735 | T126: 0.1886806872 | V126: -0.3597122302 | W126: 0.05156651185 | X126: 288.0452417 | Y126: 340.2865076 | AA126: -3.597122302 | AB126: 0.05156651185 | AC126: 288.9945521 | AD126: 340.8467873 | AE126: 0.06225329632 | AF126: 0.2509339835
G127: 16 | H127: 1 | I127: 6 | J127: 6 | K127: 3 | L127: ='Formatted AERMET Data'!G126 -> 0.1 | M127: ='Formatted AERMET Data'!M126 -> 0.061 | N127: 0.061 | O127: ='Formatted AERMET Data'!L126 -> 8.8 | Q127: 5.681818182 | R127: 2.820038914 | S127: =R127*(-1*COS(RADIANS($D$23-'Formatted AERMET Data'!Q126))) -> 2.819609409 | T127: 0.2836914588 | V127: -0.5681818182 | W127: 0.0814516494 | X127: 288.1128765 | Y127: 340.3264559 | AA127: -5.681818182 | AB127: 0.0814516494 | AC127: 290.0430458 | AD127: 341.4645362 | AE127: 0.1264533657 | AF127: 0.4101448245
G128: 16 | H128: 1 | I128: 6 | J128: 6 | K128: 4 | L128: ='Formatted AERMET Data'!G127 -> 0.1 | M128: ='Formatted AERMET Data'!M127 -> 0.061 | N128: 0.061 | O128: ='Formatted AERMET Data'!L127 -> 7.1 | Q128: 7.042253521 | R128: 3.664442661 | S128: =R128*(-1*COS(RADIANS($D$23-'Formatted AERMET Data'!Q127))) -> 3.65049835 | T128: 0.3672903059 | V128: -0.7042253521 | W128: 0.100954157 | X128: 288.1734012 | Y128: 340.3622008 | AA128: -7.042253521 | AB128: 0.100954157 | AC128: 290.8911489 | AD128: 341.9634032 | AE128: 0.1779113779 | AF128: 0.5452016838
G129: 16 | H129: 1 | I129: 6 | J129: 6 | K129: 5 | L129: ='Formatted AERMET Data'!G128 -> 0.1 | M129: ='Formatted AERMET Data'!M128 -> 0.081 | N129: 0.081 | O129: ='Formatted AERMET Data'!L128 -> 10.1 | Q129: 4.95049505 | R129: 2.372058253 | S129: =R129*(-1*COS(RADIANS($D$23-'Formatted AERMET Data'!Q128))) -> 2.255961458 | T129: 0.2274383968 | V129: -0.495049505 | W129: 0.07096777373 | X129: 288.0856892 | Y129: 340.3103984 | AA129: -4.95049505 | AB129: 0.07096777373 | AC129: 289.591881 | AD129: 341.1988572 | AE129: 0.09871764253 | AF129: 0.3261560394
G130: 16 | H130: 1 | I130: 6 | J130: 6 | K130: 6 | L130: ='Formatted AERMET Data'!G129 -> 0.1 | M130: ='Formatted AERMET Data'!M129 -> 0.061 | N130: 0.061 | O130: ='Formatted AERMET Data'!L129 -> 46.1 | Q130: 1.084598698 | R130: 1.302638743 | S130: =R130*(-1*COS(RADIANS($D$23-'Formatted AERMET Data'!Q129))) -> 1.300853522 | T130: 0.130883743 | V130: -0.1084598698 | W130: 0.01554825411 | X130: 288.0041131 | Y130: 340.2622128 | AA130: -1.084598698 | AB130: 0.01554825411 | AC130: 288.1347463 | AD130: 340.3393723 | AE130: 0.008573276944 | AF130: 0.1394570199
G131: 16 | H131: 1 | I131: 6 | J131: 6 | K131: 7 | L131: ='Formatted AERMET Data'!G130 -> 0.1 | M131: ='Formatted AERMET Data'!M130 -> 0.061 | N131: 0.061 | O131: ='Formatted AERMET Data'!L130 -> 9.1 | Q131: 5.494505495 | R131: 2.717918562 | S131: =R131*(-1*COS(RADIANS($D$23-'Formatted AERMET Data'!Q130))) -> 2.684456474 | T131: 0.270093216 | V131: -0.5494505495 | W131: 0.07876643019 | X131: 288.1055567 | Y131: 340.3221328 | AA131: -5.494505495 | AB131: 0.07876643019 | AC131: 289.9364107 | AD131: 341.4017603 | AE131: 0.1199586106 | AF131: 0.3900518266
G132: 16 | H132: 1 | I132: 6 | J132: 6 | K132: 8 | L132: ='Formatted AERMET Data'!G131 -> 0.1 | M132: ='Formatted AERMET Data'!M131 -> 0.081 | N132: 0.081 | O132: ='Formatted AERMET Data'!L131 -> 19.3 | Q132: 2.590673575 | R132: 1.503969879 | S132: =R132*(-1*COS(RADIANS($D$23-'Formatted AERMET Data'!Q131))) -> 1.351759173 | T132: 0.1362797835 | V132: -0.2590673575 | W132: 0.03713857589 | X132: 288.0234668 | Y132: 340.2736453 | AA132: -2.590673575 | AB132: 0.03713857589 | AC132: 288.5716314 | AD132: 340.5972948 | AE132: 0.03596105569 | AF132: 0.1722408392
G133: 16 | H133: 1 | I133: 6 | J133: 6 | K133: 9 | L133: ='Formatted AERMET Data'!G132 -> 0.1 | M133: ='Formatted AERMET Data'!M132 -> 0.061 | N133: =M133 -> 0.061 | O133: ='Formatted AERMET Data'!L132 -> 814 | P133: =IF($O133>0,"",IF(AND($O133<0,$O133<>-99999),(1-((16*$D$5)/$O133))^0.25,"")) ->  | Q133: =IF($O133>0,5*($D$5/$O133),IF(AND($O133<0,$O133<>-99999),(-2*LN((1+P133)/2)-LN((1+P133^2)))/(2+2*ATAN(P133)-PI()/2),"")) -> 0.06142506143 | R133: =IF(L133<>-9,(L133/$D$11)*(LN(($D$5+$M133)/$M133)+Q133*($D$5/$O133)),"") -> 1.245439655 | S133: =R133*(-1*COS(RADIANS($D$23-'Formatted AERMET Data'!Q132))) -> 1.226518628 | T133: =(S133)/($D$5-M133) -> 0.1234046311 | U133: =IFERROR((1-16 *z_h/Obu_len) ^ 0.25, "") -> 0.946756588 | V133: =IF($O133<0,2*LN((1+$U133^2)/2),-5*z_0_T/$O133) -> -0.006142506143 | W133: =($L133^2)/(O133*$D$11*9.8)*theta_0 -> 0.0008805583718 | X133: =IFERROR(theta_0 + W133/ K_const * ( LN(z_0_T/ z_0_T) - V133), "") -> 288.0000132 | Y133: 340.2597909 | Z133: =IFERROR((1-16 * z_h/Obu_len) ^ 0.25, "") -> 0.946756588 | AA133: =IF($O133<0,2*LN((1+$Z133^2)/2),-5*z_h/$O133) -> -0.06142506143 | AB133: =($L133^2)/($O133*$D$11*9.8)*theta_0 -> 0.0008805583718 | AC133: =IFERROR(theta_0 + theta_star_z/ K_const * ( LN( z_h / $N133 + 1) - psi_h) - 0.01 * z_h, "") -> 287.9110971 | AD133: 340.2072616 | AE133: =IFERROR((AD133-Y133)/($D$5-$D$6), "") -> -0.005836592691 | AF133: =AE133+T133 -> 0.1175680384
G134: 16 | H134: 1 | I134: 6 | J134: 6 | K134: 10 | L134: ='Formatted AERMET Data'!G133 -> 0.1 | M134: ='Formatted AERMET Data'!M133 -> 0.061 | N134: 0.061 | O134: ='Formatted AERMET Data'!L133 -> -18.6 | P134: 1.760322044 | Q134: -0.8098629467 | R134: 1.351453211 | S134: =R134*(-1*COS(RADIANS($D$23-'Formatted AERMET Data'!Q133))) -> 1.305403559 | T134: 0.1313415393 | U134: 1.760322044 | V134: 1.435061783 | W134: -0.03853626423 | X134: 288.1348827 | Y134: =IFERROR((X134)^0.5 * 20.05, "") -> 340.3394529 | Z134: 1.760322044 | AA134: 1.435061783 | AB134: -0.03853626423 | AC134: 287.5550077 | AD134: =IFERROR((AC134)^0.5 * 20.05, "") -> 339.9968117 | AE134: -0.03807123817 | AF134: 0.09327030116
G135: 16 | H135: 1 | I135: 6 | J135: 6 | K135: 11 | L135: ='Formatted AERMET Data'!G134 -> 0.1 | M135: ='Formatted AERMET Data'!M134 -> 0.081 | N135: 0.081 | O135: ='Formatted AERMET Data'!L134 -> -36.3 | P135: 1.524942326 | Q135: -0.6920210992 | R135: 1.223072685 | S135: =R135*(-1*COS(RADIANS($D$23-'Formatted AERMET Data'!Q134))) -> 1.117332496 | T135: 0.1126456796 | U135: 1.524942326 | V135: 1.016915102 | W135: -0.0197458544 | X135: 288.0489753 | Y135: 340.288713 | Z135: 1.524942326 | AA135: 1.016915102 | AB135: -0.0197458544 | AC135: 287.7166504 | AD135: 340.0923592 | AE135: -0.02181709004 | AF135: 0.09082858956
G136: 16 | H136: 1 | I136: 6 | J136: 6 | K136: 12 | L136: ='Formatted AERMET Data'!G135 -> 0.1 | M136: ='Formatted AERMET Data'!M135 -> 0.081 | N136: 0.081 | O136: ='Formatted AERMET Data'!L135 -> -28.1 | P136: 1.608498347 | Q136: -0.7357141258 | R136: 1.240433796 | S136: =R136*(-1*COS(RADIANS($D$23-'Formatted AERMET Data'!Q135))) -> 1.028366223 | T136: 0.1036764011 | U136: 1.608498347 | V136: 1.168486864 | W136: -0.02550798985 | X136: 288.072697 | Y136: 340.3027246 | Z136: 1.608498347 | AA136: 1.168486864 | AB136: -0.02550798985 | AC136: 287.6725763 | AD136: 340.0663095 | AE136: -0.02626834578 | AF136: 0.07740805535
G137: 16 | H137: 1 | I137: 6 | J137: 6 | K137: 13 | L137: ='Formatted AERMET Data'!G136 -> 0.1 | M137: ='Formatted AERMET Data'!M136 -> 0.081 | N137: 0.081 | O137: ='Formatted AERMET Data'!L136 -> -27.7 | P137: 1.613415132 | Q137: -0.7382171805 | R137: 1.241576338 | S137: =R137*(-1*COS(RADIANS($D$23-'Formatted AERMET Data'!Q136))) -> 0.9915669519 | T137: 0.09996642322 | U137: 1.613415132 | V137: 1.177299468 | W137: -0.02587633627 | X137: 288.0743029 | Y137: 340.3036731 | Z137: 1.613415132 | AA137: 1.177299468 | AB137: -0.02587633627 | AC137: 287.6698483 | AD137: 340.0646971 | AE137: -0.02655289501 | AF137: 0.07341352821
G138: 16 | H138: 1 | I138: 6 | J138: 6 | K138: 14 | L138: ='Formatted AERMET Data'!G137 -> 0.1 | M138: ='Formatted AERMET Data'!M137 -> 0.078 | N138: 0.078 | O138: ='Formatted AERMET Data'!L137 -> -10.1 | P138: 2.02579612 | Q138: -0.9262675538 | R138: 1.409389724 | S138: =R138*(-1*COS(RADIANS($D$23-'Formatted AERMET Data'!Q137))) -> 0.2204771276 | T138: 0.02222103685 | U138: 2.02579612 | V138: 1.873695921 | W138: -0.07096777373 | X138: 288.324322 | Y138: 340.4513156 | Z138: 2.02579612 | AA138: 1.873695921 | AB138: -0.07096777373 | AC138: 287.3828517 | AD138: 339.8950203 | AE138: -0.06181058047 | AF138: -0.03958954362
G139: 16 | H139: 1 | I139: 6 | J139: 6 | K139: 15 | L139: ='Formatted AERMET Data'!G138 -> 0.1 | M139: ='Formatted AERMET Data'!M138 -> 0.078 | N139: 0.078 | O139: ='Formatted AERMET Data'!L138 -> -6.5 | P139: 2.24970317 | Q139: -1.014075212 | R139: 1.566223657 | S139: =R139*(-1*COS(RADIANS($D$23-'Formatted AERMET Data'!Q138))) -> -0.2719718838 | T139: -0.02741099414 | U139: 2.24970317 | V139: 2.217509477 | W139: -0.1102730023 | X139: 288.5964181 | Y139: 340.6119222 | Z139: 2.24970317 | AA139: 2.217509477 | AB139: -0.1102730023 | AC139: 287.1889027 | AD139: 339.7803068 | AE139: -0.09240172001 | AF139: -0.1198127142
G140: 16 | H140: 1 | I140: 6 | J140: 6 | K140: 16 | L140: ='Formatted AERMET Data'!G139 -> 0.1 | M140: ='Formatted AERMET Data'!M139 -> 0.081 | N140: 0.081 | O140: ='Formatted AERMET Data'!L139 -> -27.3 | P140: 1.618429487 | Q140: -0.7407624487 | R140: 1.242756133 | S140: =R140*(-1*COS(RADIANS($D$23-'Formatted AERMET Data'!Q139))) -> 0.9793051968 | T140: 0.09873023458 | U140: 1.618429487 | V140: 1.186274652 | W140: -0.02625547673 | X140: 288.0759664 | Y140: 340.3046557 | Z140: 1.618429487 | AA140: 1.186274652 | AB140: -0.02625547673 | AC140: 287.6670509 | AD140: 340.0630436 | AE140: -0.02684578278 | AF140: 0.0718844518
G141: 16 | H141: 1 | I141: 6 | J141: 6 | K141: 17 | L141: ='Formatted AERMET Data'!G140 -> 0.1 | M141: ='Formatted AERMET Data'!M140 -> 0.091 | N141: 0.091 | O141: ='Formatted AERMET Data'!L140 -> -87.6 | P141: 1.296616768 | Q141: -0.5595542264 | R141: 1.164003845 | S141: =R141*(-1*COS(RADIANS($D$23-'Formatted AERMET Data'!Q140))) -> 0.7788705984 | T141: 0.07860234114 | U141: 1.296616768 | V141: 0.5862457704 | W141: -0.008182357474 | X141: 288.0116997 | Y141: 340.2666944 | Z141: 1.296616768 | AA141: 0.5862457704 | AB141: -0.008182357474 | AC141: 287.8177315 | AD141: 340.1520948 | AE141: -0.01273328456 | AF141: 0.06586905659
G142: 16 | H142: 1 | I142: 6 | J142: 6 | K142: 18 | L142: ='Formatted AERMET Data'!G141 -> 0.1 | M142: ='Formatted AERMET Data'!M141 -> 0.072 | N142: 0.072 | O142: ='Formatted AERMET Data'!L141 -> 5.7 | Q142: 8.771929825 | R142: 4.958585128 | S142: =R142*(-1*COS(RADIANS($D$23-'Formatted AERMET Data'!Q141))) -> -2.984151024 | T142: -0.3005792731 | V142: -0.8771929825 | W142: 0.1257499149 | X142: 288.2690413 | Y142: 340.4186765 | AA142: -8.771929825 | AB142: 0.1257499149 | AC142: 292.1058066 | AD142: 342.676618 | AE142: 0.2508823912 | AF142: -0.0496968819
G143: 16 | H143: 1 | I143: 6 | J143: 6 | K143: 19 | L143: ='Formatted AERMET Data'!G142 -> 0.1 | M143: ='Formatted AERMET Data'!M142 -> 0.049 | N143: 0.049 | O143: ='Formatted AERMET Data'!L142 -> 85.1 | Q143: 0.5875440658 | R143: 1.315231638 | S143: =R143*(-1*COS(RADIANS($D$23-'Formatted AERMET Data'!Q142))) -> -1.192004675 | T143: -0.1197874259 | V143: -0.05875440658 | W143: 0.008422732252 | X143: 288.001207 | Y143: 340.2604961 | AA143: -0.5875440658 | AB143: 0.008422732252 | AC143: 288.0214302 | AD143: 340.2724423 | AE143: 0.001327351896 | AF143: -0.118460074
G144: 16 | H144: 1 | I144: 6 | J144: 6 | K144: 20 | L144: ='Formatted AERMET Data'!G143 -> 0.1 | M144: ='Formatted AERMET Data'!M143 -> 0.049 | N144: 0.049 | O144: ='Formatted AERMET Data'!L143 -> 39.9 | Q144: 1.253132832 | R144: 1.374994265 | S144: =R144*(-1*COS(RADIANS($D$23-'Formatted AERMET Data'!Q143))) -> -1.334151059 | T144: -0.134072059 | V144: -0.1253132832 | W144: 0.01796427355 | X144: 288.0054906 | Y144: 340.2630266 | AA144: -1.253132832 | AB144: 0.01796427355 | AC144: 288.1881531 | AD144: 340.3709124 | AE144: 0.01198731734 | AF144: -0.1220847417
G145: 16 | H145: 1 | I145: 6 | J145: 6 | K145: 21 | L145: ='Formatted AERMET Data'!G144 -> 0.1 | M145: ='Formatted AERMET Data'!M144 -> 0.07 | N145: 0.07 | O145: ='Formatted AERMET Data'!L144 -> 6.5 | Q145: 7.692307692 | R145: 4.098326895 | S145: =R145*(-1*COS(RADIANS($D$23-'Formatted AERMET Data'!Q144))) -> -4.082731524 | T145: -0.4111512109 | V145: -0.7692307692 | W145: 0.1102730023 | X145: 288.2068912 | Y145: 340.3819777 | AA145: -7.692307692 | AB145: 0.1102730023 | AC145: 291.3053186 | AD145: 342.2067597 | AE145: 0.2027535463 | AF145: -0.2083976646
G146: 16 | H146: 1 | I146: 6 | J146: 6 | K146: 22 | L146: ='Formatted AERMET Data'!G145 -> 0.1 | M146: ='Formatted AERMET Data'!M145 -> 0.059 | N146: 0.059 | O146: ='Formatted AERMET Data'!L145 -> 9.2 | Q146: 5.434782609 | R146: 2.694160486 | S146: =R146*(-1*COS(RADIANS($D$23-'Formatted AERMET Data'!Q145))) -> -1.905059149 | T146: -0.1916365707 | V146: -0.5434782609 | W146: 0.07791027334 | X146: 288.1032745 | Y146: 340.3207849 | AA146: -5.434782609 | AB146: 0.07791027334 | AC146: 289.9092239 | AD146: 341.3857536 | AE146: 0.1183298639 | AF146: -0.07330670678
G147: 16 | H147: 1 | I147: 6 | J147: 6 | K147: 23 | L147: ='Formatted AERMET Data'!G146 -> 0.1 | M147: ='Formatted AERMET Data'!M146 -> 0.072 | N147: 0.072 | O147: ='Formatted AERMET Data'!L146 -> 2.7 | Q147: 18.51851852 | R147: 17.93364734 | S147: =R147*(-1*COS(RADIANS($D$23-'Formatted AERMET Data'!Q146))) -> -7.007234262 | T147: -0.7058052238 | V147: -1.851851852 | W147: 0.2654720425 | X147: 289.1990607 | Y147: 340.9673671 | AA147: -18.51851852 | AB147: 0.2654720425 | AC147: 303.0897709 | AD147: 349.0599456 | AE147: 0.8991753926 | AF147: 0.1933701688
G148: 16 | H148: 1 | I148: 6 | J148: 6 | K148: 24 | L148: ='Formatted AERMET Data'!G147 -> 0.1 | M148: ='Formatted AERMET Data'!M147 -> 0.091 | N148: 0.091 | O148: ='Formatted AERMET Data'!L147 -> 4.8 | Q148: 10.41666667 | R148: 6.441446 | S148: =R148*(-1*COS(RADIANS($D$23-'Formatted AERMET Data'!Q147))) -> 3.694661641 | T148: 0.3728591827 | V148: -1.041666667 | W148: 0.1493280239 | X148: 288.3793903 | Y148: 340.4838261 | AA148: -10.41666667 | AB148: 0.1493280239 | AC148: 293.4088224 | AD148: 343.4400677 | AE148: 0.3284712897 | AF148: 0.7013304724
G149: 16 | H149: 1 | I149: 7 | J149: 7 | K149: 1 | L149: ='Formatted AERMET Data'!G148 -> 0.1 | M149: ='Formatted AERMET Data'!M148 -> 0.081 | N149: 0.081 | O149: ='Formatted AERMET Data'!L148 -> 5.9 | Q149: 8.474576271 | R149: 4.679913947 | S149: =R149*(-1*COS(RADIANS($D$23-'Formatted AERMET Data'!Q148))) -> 4.16983386 | T149: 0.4203885331 | V149: -0.8474576271 | W149: 0.1214872059 | X149: 288.2511104 | Y149: 340.4080889 | AA149: -8.474576271 | AB149: 0.1214872059 | AC149: 291.8404923 | AD149: 342.5209592 | AE149: 0.2347633664 | AF149: 0.6551518995
G150: 16 | H150: 1 | I150: 7 | J150: 7 | K150: 2 | L150: ='Formatted AERMET Data'!G149 -> 0.1 | M150: ='Formatted AERMET Data'!M149 -> 0.061 | N150: 0.061 | O150: ='Formatted AERMET Data'!L149 -> 8 | Q150: 6.25 | R150: 3.150743409 | S150: =R150*(-1*COS(RADIANS($D$23-'Formatted AERMET Data'!Q149))) -> 3.133483307 | T150: 0.3152714868 | V150: -0.625 | W150: 0.08959681434 | X150: 288.1365805 | Y150: 340.3404556 | AA150: -6.25 | AB150: 0.08959681434 | AC150: 290.3815144 | AD150: 341.6637159 | AE150: 0.147028924 | AF150: 0.4623004108
G151: 16 | H151: 1 | I151: 7 | J151: 7 | K151: 3 | L151: ='Formatted AERMET Data'!G150 -> 0.1 | M151: ='Formatted AERMET Data'!M150 -> 0.061 | N151: 0.061 | O151: ='Formatted AERMET Data'!L150 -> 7.4 | Q151: 6.756756757 | R151: 3.472268379 | S151: =R151*(-1*COS(RADIANS($D$23-'Formatted AERMET Data'!Q150))) -> 3.446386617 | T151: 0.3467538602 | V151: -0.6756756757 | W151: 0.0968614209 | X151: 288.1596266 | Y151: 340.3540661 | AA151: -6.756756757 | AB151: 0.0968614209 | AC151: 290.7024383 | AD151: 341.8524637 | AE151: 0.1664886259 | AF151: 0.5132424861
G152: 16 | H152: 1 | I152: 7 | J152: 7 | K152: 4 | L152: ='Formatted AERMET Data'!G151 -> 0.1 | M152: ='Formatted AERMET Data'!M151 -> 0.061 | N152: 0.061 | O152: ='Formatted AERMET Data'!L151 -> 7.8 | Q152: 6.41025641 | R152: 3.249713519 | S152: =R152*(-1*COS(RADIANS($D$23-'Formatted AERMET Data'!Q151))) -> 3.209704153 | T152: 0.3229403514 | V152: -0.641025641 | W152: 0.09189416855 | X152: 288.1436744 | Y152: 340.3446451 | AA152: -6.41025641 | AB152: 0.09189416855 | AC152: 290.4810616 | AD152: 341.7222746 | AE152: 0.1530699424 | AF152: 0.4760102938
G153: 16 | H153: 1 | I153: 7 | J153: 7 | K153: 5 | L153: ='Formatted AERMET Data'!G152 -> 0.1 | M153: ='Formatted AERMET Data'!M152 -> 0.061 | N153: 0.061 | O153: ='Formatted AERMET Data'!L152 -> 42.7 | Q153: 1.170960187 | R153: 1.312140861 | S153: =R153*(-1*COS(RADIANS($D$23-'Formatted AERMET Data'!Q152))) -> 1.29598623 | T153: 0.1303940265 | V153: -0.1170960187 | W153: 0.0167862884 | X153: 288.0047942 | Y153: 340.2626151 | AA153: -1.170960187 | AB153: 0.0167862884 | AC153: 288.1569738 | AD153: 340.3524994 | AE153: 0.009987144206 | AF153: 0.1403811707
G154: 16 | H154: 1 | I154: 7 | J154: 7 | K154: 6 | L154: ='Formatted AERMET Data'!G153 -> 0.1 | M154: ='Formatted AERMET Data'!M153 -> 0.07 | N154: 0.07 | O154: ='Formatted AERMET Data'!L153 -> 14.1 | Q154: 3.546099291 | R154: 1.825313361 | S154: =R154*(-1*COS(RADIANS($D$23-'Formatted AERMET Data'!Q153))) -> 1.640580781 | T154: 0.1652145802 | V154: -0.3546099291 | W154: 0.05083507196 | X154: 288.0439674 | Y154: 340.2857549 | AA154: -3.546099291 | AB154: 0.05083507196 | AC154: 288.9557477 | AD154: 340.8239032 | AE154: 0.05979425284 | AF154: 0.225008833
G155: 16 | H155: 1 | I155: 7 | J155: 7 | K155: 7 | L155: ='Formatted AERMET Data'!G154 -> 0.1 | M155: ='Formatted AERMET Data'!M154 -> 0.061 | N155: 0.061 | O155: ='Formatted AERMET Data'!L154 -> 23 | Q155: 2.173913043 | R155: 1.47578721 | S155: =R155*(-1*COS(RADIANS($D$23-'Formatted AERMET Data'!Q154))) -> 1.467702694 | T155: 0.1476710628 | V155: -0.2173913043 | W155: 0.03116410933 | X155: 288.0165239 | Y155: 340.2695441 | AA155: -2.173913043 | AB155: 0.03116410933 | AC155: 288.453312 | AD155: 340.5274623 | AE155: 0.02865757152 | AF155: 0.1763286344
G156: 16 | H156: 1 | I156: 7 | J156: 7 | K156: 8 | L156: ='Formatted AERMET Data'!G155 -> 0.1 | M156: ='Formatted AERMET Data'!M155 -> 0.061 | N156: 0.061 | O156: ='Formatted AERMET Data'!L155 -> 5.5 | Q156: 9.090909091 | R156: 5.276700878 | S156: =R156*(-1*COS(RADIANS($D$23-'Formatted AERMET Data'!Q155))) -> 5.269469342 | T156: 0.5301810386 | V156: -0.9090909091 | W156: 0.130322639 | X156: 288.2889637 | Y156: 340.4304395 | AA156: -9.090909091 | AB156: 0.130322639 | AC156: 292.4124872 | AD156: 342.8564581 | AE156: 0.2695576258 | AF156: 0.7997386644
G157: 16 | H157: 1 | I157: 7 | J157: 7 | K157: 9 | L157: ='Formatted AERMET Data'!G156 -> 0.1 | M157: ='Formatted AERMET Data'!M156 -> 0.091 | N157: 0.091 | O157: ='Formatted AERMET Data'!L156 -> -16.3 | P157: 1.813494225 | Q157: -0.8344197744 | R157: 1.273281386 | S157: =R157*(-1*COS(RADIANS($D$23-'Formatted AERMET Data'!Q156))) -> 0.5977694021 | T157: 0.06032590595 | U157: 1.813494225 | V157: 1.525701541 | W157: -0.04397389661 | X157: 288.1636367 | Y157: 340.3564343 | Z157: 1.813494225 | AA157: 1.525701541 | AB157: -0.04397389661 | AC157: 287.5586298 | AD157: 339.998953 | AE157: -0.03972013909 | AF157: 0.02060576687
G158: 16 | H158: 1 | I158: 7 | J158: 7 | K158: 10 | L158: ='Formatted AERMET Data'!G157 -> 0.1 | M158: ='Formatted AERMET Data'!M157 -> 0.091 | N158: 0.091 | O158: ='Formatted AERMET Data'!L157 -> -1.6 | P158: 3.17015388 | Q158: -1.308264155 | R158: 3.142729433 | S158: =R158*(-1*COS(RADIANS($D$23-'Formatted AERMET Data'!Q157))) -> 1.934857439 | T158: 0.1952626339 | U158: 3.17015388 | V158: 3.418543983 | W158: -0.4479840717 | X158: 291.7352518 | Y158: 342.4591955 | Z158: 3.17015388 | AA158: 3.418543983 | AB158: -0.4479840717 | AC158: 286.4904938 | AD158: 339.3669028 | AE158: -0.3435880732 | AF158: -0.1483254393
G159: 16 | H159: 1 | I159: 7 | J159: 7 | K159: 11 | L159: ='Formatted AERMET Data'!G158 -> 0.1 | M159: ='Formatted AERMET Data'!M158 -> 0.078 | N159: 0.078 | O159: ='Formatted AERMET Data'!L158 -> -3.3 | P159: 2.652272005 | Q159: -1.153864653 | R159: 2.038527033 | S159: =R159*(-1*COS(RADIANS($D$23-'Formatted AERMET Data'!Q158))) -> -0.4931643241 | T159: -0.04970412459 | U159: 2.652272005 | V159: 2.781206824 | W159: -0.2172043984 | X159: 289.4733911 | Y159: 341.1290473 | Z159: 2.652272005 | AA159: 2.781206824 | AB159: -0.2172043984 | AC159: 286.797982 | AD159: 339.548974 | AE159: -0.1755636982 | AF159: -0.2252678228
G160: 16 | H160: 1 | I160: 7 | J160: 7 | K160: 12 | L160: ='Formatted AERMET Data'!G159 -> 0.1 | M160: ='Formatted AERMET Data'!M159 -> 0.049 | N160: 0.049 | O160: ='Formatted AERMET Data'!L159 -> -11.3 | P160: 1.973193744 | Q160: -0.9043641331 | R160: 1.493592768 | S160: =R160*(-1*COS(RADIANS($D$23-'Formatted AERMET Data'!Q159))) -> -1.403518103 | T160: -0.1410429206 | U160: 1.973193744 | V160: 1.789518591 | W160: -0.06343137298 | X160: 288.2768576 | Y160: 340.4232916 | Z160: 1.973193744 | AA160: 1.789518591 | AB160: -0.06343137298 | AC160: 287.3532696 | AD160: 339.8775261 | AE160: -0.06064060689 | AF160: -0.2016835275
G161: 16 | H161: 1 | I161: 7 | J161: 7 | K161: 13 | L161: ='Formatted AERMET Data'!G160 -> 0.1 | M161: ='Formatted AERMET Data'!M160 -> 0.049 | N161: 0.049 | O161: ='Formatted AERMET Data'!L160 -> -21.6 | P161: 1.702807378 | Q161: -0.7825085873 | R161: 1.386751366 | S161: =R161*(-1*COS(RADIANS($D$23-'Formatted AERMET Data'!Q160))) -> -1.326156927 | T161: -0.1332687094 | U161: 1.702807378 | V161: 1.335429484 | W161: -0.03318400531 | X161: 288.1080851 | Y161: 340.3236261 | Z161: 1.702807378 | AA161: 1.335429484 | AB161: -0.03318400531 | AC161: 287.5772266 | AD161: 340.009947 | AE161: -0.03485323967 | AF161: -0.168121949
G162: 16 | H162: 1 | I162: 7 | J162: 7 | K162: 14 | L162: ='Formatted AERMET Data'!G161 -> 0.1 | M162: ='Formatted AERMET Data'!M161 -> 0.049 | N162: 0.049 | O162: ='Formatted AERMET Data'!L161 -> -27.1 | P162: 1.620974281 | Q162: -0.7420513118 | R162: 1.365177507 | S162: =R162*(-1*COS(RADIANS($D$23-'Formatted AERMET Data'!Q161))) -> -1.274503 | T162: -0.1280778816 | U162: 1.620974281 | V162: 1.190824818 | W162: -0.02644924408 | X162: 288.0768205 | Y162: 340.3051602 | Z162: 1.620974281 | AA162: 1.190824818 | AB162: -0.02644924408 | AC162: 287.6334056 | AD162: 340.0431563 | AE162: -0.029111544 | AF162: -0.1571894256
G163: 16 | H163: 1 | I163: 7 | J163: 7 | K163: 15 | L163: ='Formatted AERMET Data'!G162 -> 0.1 | M163: ='Formatted AERMET Data'!M162 -> 0.049 | N163: 0.049 | O163: ='Formatted AERMET Data'!L162 -> -30.3 | P163: 1.583066067 | Q163: -0.7226495078 | R163: 1.356562511 | S163: =R163*(-1*COS(RADIANS($D$23-'Formatted AERMET Data'!Q162))) -> -1.162801026 | T163: -0.1168526807 | U163: 1.583066067 | V163: 1.122713214 | W163: -0.02365592458 | X163: 288.0647776 | Y163: 340.298047 | Z163: 1.583066067 | AA163: 1.122713214 | AB163: -0.02365592458 | AC163: 287.6576309 | AD163: 340.0574757 | AE163: -0.02673013996 | AF163: -0.1435828207
G164: 16 | H164: 1 | I164: 7 | J164: 7 | K164: 16 | L164: ='Formatted AERMET Data'!G163 -> 0.1 | M164: ='Formatted AERMET Data'!M163 -> 0.049 | N164: 0.049 | O164: ='Formatted AERMET Data'!L163 -> -45.7 | P164: 1.456563836 | Q164: -0.6545136102 | R164: 1.333323833 | S164: =R164*(-1*COS(RADIANS($D$23-'Formatted AERMET Data'!Q163))) -> -1.22733106 | T164: -0.1233374595 | U164: 1.456563836 | V164: 0.8903830584 | W164: -0.01568434387 | X164: 288.0340612 | Y164: 340.2799034 | Z164: 1.456563836 | AA164: 0.8903830584 | AB164: -0.01568434387 | AC164: 287.7304169 | AD164: 340.1004953 | AE164: -0.01993423552 | AF164: -0.143271695
G165: 16 | H165: 1 | I165: 7 | J165: 7 | K165: 17 | L165: ='Formatted AERMET Data'!G164 -> 0.1 | M165: ='Formatted AERMET Data'!M164 -> 0.049 | N165: 0.049 | O165: ='Formatted AERMET Data'!L164 -> -318.2 | P165: 1.107203243 | Q165: -0.4304164288 | R165: 1.301691392 | S165: =R165*(-1*COS(RADIANS($D$23-'Formatted AERMET Data'!Q164))) -> -1.138484944 | T165: -0.114409099 | U165: 1.107203243 | V165: 0.2140274157 | W165: -0.002252591184 | X165: 288.0011759 | Y165: 340.2604777 | Z165: 1.107203243 | AA165: 0.2140274157 | AB165: -0.002252591184 | AC165: 287.8719284 | AD165: 340.1841191 | AE165: -0.008484290317 | AF165: -0.1228933893
G166: 16 | H166: 1 | I166: 7 | J166: 7 | K166: 18 | L166: ='Formatted AERMET Data'!G165 -> 0.1 | M166: ='Formatted AERMET Data'!M165 -> 0.049 | N166: 0.049 | O166: ='Formatted AERMET Data'!L165 -> 68.4 | Q166: 0.730994152 | R166: 1.324458195 | S166: =R166*(-1*COS(RADIANS($D$23-'Formatted AERMET Data'!Q165))) -> -1.219170196 | T166: -0.1225173547 | V166: -0.0730994152 | W166: 0.01047915957 | X166: 288.0018683 | Y166: 340.2608868 | AA166: -0.730994152 | AB166: 0.01047915957 | AC166: 288.054744 | AD166: 340.2921204 | AE166: 0.003470405442 | AF166: -0.1190469492
G167: 16 | H167: 1 | I167: 7 | J167: 7 | K167: 19 | L167: ='Formatted AERMET Data'!G166 -> 0.1 | M167: ='Formatted AERMET Data'!M166 -> 0.049 | N167: 0.049 | O167: ='Formatted AERMET Data'!L166 -> 7.6 | Q167: 6.578947368 | R167: 3.40973605 | S167: =R167*(-1*COS(RADIANS($D$23-'Formatted AERMET Data'!Q166))) -> -3.138678583 | T167: -0.3154133838 | V167: -0.6578947368 | W167: 0.09431243614 | X167: 288.1513357 | Y167: 340.3491697 | AA167: -6.578947368 | AB167: 0.09431243614 | AC167: 290.6379028 | AD167: 341.8145162 | AE167: 0.1628162771 | AF167: -0.1525971067
G168: 16 | H168: 1 | I168: 7 | J168: 7 | K168: 20 | L168: ='Formatted AERMET Data'!G167 -> 0.1 | M168: ='Formatted AERMET Data'!M167 -> 0.059 | N168: 0.059 | O168: ='Formatted AERMET Data'!L167 -> 8.7 | Q168: 5.747126437 | R168: 2.864531231 | S168: =R168*(-1*COS(RADIANS($D$23-'Formatted AERMET Data'!Q167))) -> -2.552316016 | T168: -0.2567464054 | V168: -0.5747126437 | W168: 0.08238787525 | X168: 288.1154862 | Y168: 340.3279973 | AA168: -5.747126437 | AB168: 0.08238787525 | AC168: 290.0874608 | AD168: 341.4906799 | AE168: 0.1291869541 | AF168: -0.1275594513
G169: 16 | H169: 1 | I169: 7 | J169: 7 | K169: 21 | L169: ='Formatted AERMET Data'!G168 -> 0.1 | M169: ='Formatted AERMET Data'!M168 -> 0.059 | N169: 0.059 | O169: ='Formatted AERMET Data'!L168 -> 24.3 | Q169: 2.057613169 | R169: 1.45986341 | S169: =R169*(-1*COS(RADIANS($D$23-'Formatted AERMET Data'!Q168))) -> -1.181054308 | T169: -0.1188063885 | V169: -0.2057613169 | W169: 0.02949689361 | X169: 288.0148032 | Y169: 340.2685277 | AA169: -2.057613169 | AB169: 0.02949689361 | AC169: 288.4177279 | AD169: 340.5064576 | AE169: 0.02643665956 | AF169: -0.09236972896
G170: 16 | H170: 1 | I170: 7 | J170: 7 | K170: 22 | L170: ='Formatted AERMET Data'!G169 -> 0.1 | M170: ='Formatted AERMET Data'!M169 -> 0.059 | N170: 0.059 | O170: ='Formatted AERMET Data'!L169 -> 19.7 | Q170: 2.538071066 | R170: 1.567572326 | S170: =R170*(-1*COS(RADIANS($D$23-'Formatted AERMET Data'!Q169))) -> -1.164933263 | T170: -0.1171847161 | V170: -0.2538071066 | W170: 0.03638449313 | X170: 288.0225235 | Y170: 340.2730881 | AA170: -2.538071066 | AB170: 0.03638449313 | AC170: 288.5812559 | AD170: 340.6029746 | AE170: 0.03665405128 | AF170: -0.08053066484
G171: 16 | H171: 1 | I171: 7 | J171: 7 | K171: 23 | L171: ='Formatted AERMET Data'!G170 -> 0.1 | M171: ='Formatted AERMET Data'!M170 -> 0.078 | N171: 0.078 | O171: ='Formatted AERMET Data'!L170 -> 5.2 | Q171: 9.615384615 | R171: 5.695737937 | S171: =R171*(-1*COS(RADIANS($D$23-'Formatted AERMET Data'!Q170))) -> 1.184210505 | T171: 0.1193519961 | V171: -0.9615384615 | W171: 0.1378412528 | X171: 288.3232675 | Y171: 340.450693 | AA171: -9.615384615 | AB171: 0.1378412528 | AC171: 292.767069 | AD171: 343.0642705 | AE171: 0.2903975011 | AF171: 0.4097494971
G172: 16 | H172: 1 | I172: 7 | J172: 7 | K172: 24 | L172: ='Formatted AERMET Data'!G171 -> 0.055 | M172: ='Formatted AERMET Data'!M171 -> 0.049 | N172: 0.049 | O172: ='Formatted AERMET Data'!L171 -> 4.8 | Q172: 10.41666667 | R172: 3.625277646 | S172: =R172*(-1*COS(RADIANS($D$23-'Formatted AERMET Data'!Q171))) -> -2.895275462 | T172: -0.2909532169 | V172: -1.041666667 | W172: 0.04517172723 | X172: 288.1147656 | Y172: 340.3275717 | AA172: -10.41666667 | AB172: 0.04517172723 | AC172: 289.6341619 | AD172: 341.2237641 | AE172: 0.09957693049 | AF172: -0.1913762865
G173: 16 | H173: 1 | I173: 8 | J173: 8 | K173: 1 | L173: ='Formatted AERMET Data'!G172 -> 0.072 | M173: ='Formatted AERMET Data'!M172 -> 0.049 | N173: 0.049 | O173: ='Formatted AERMET Data'!L172 -> 6.2 | Q173: 8.064516129 | R173: 3.219048384 | S173: =R173*(-1*COS(RADIANS($D$23-'Formatted AERMET Data'!Q172))) -> -2.917448617 | T173: -0.2931814508 | V173: -0.8064516129 | W173: 0.05993159813 | X173: 288.1178828 | Y173: 340.3294127 | AA173: -8.064516129 | AB173: 0.05993159813 | AC173: 289.8569749 | AD173: 341.354989 | AE173: 0.1139529231 | AF173: -0.1792285277
G174: 16 | H174: 1 | I174: 8 | J174: 8 | K174: 2 | L174: ='Formatted AERMET Data'!G173 -> 0.053 | M174: ='Formatted AERMET Data'!M173 -> 0.049 | N174: 0.049 | O174: ='Formatted AERMET Data'!L173 -> 4.6 | Q174: 10.86956522 | R174: 3.742691655 | S174: =R174*(-1*COS(RADIANS($D$23-'Formatted AERMET Data'!Q173))) -> -3.494103672 | T174: -0.3511309086 | V174: -1.086956522 | W174: 0.04376999156 | X174: 288.1160392 | Y174: 340.3283239 | AA174: -10.86956522 | AB174: 0.04376999156 | AC174: 289.6286983 | AD174: 341.2205457 | AE174: 0.09913575192 | AF174: -0.2519951567
G175: 16 | H175: 1 | I175: 8 | J175: 8 | K175: 3 | L175: ='Formatted AERMET Data'!G174 -> 0.061 | M175: ='Formatted AERMET Data'!M174 -> 0.07 | N175: 0.07 | O175: ='Formatted AERMET Data'!L174 -> 5.5 | Q175: 9.090909091 | R175: 3.198445191 | S175: =R175*(-1*COS(RADIANS($D$23-'Formatted AERMET Data'!Q174))) -> 2.520409205 | T175: 0.253817644 | V175: -0.9090909091 | W175: 0.04849305398 | X175: 288.1075234 | Y175: 340.3232943 | AA175: -9.090909091 | AB175: 0.04849305398 | AC175: 289.562925 | AD175: 341.1817987 | AE175: 0.09538936935 | AF175: 0.3492070134
G176: 16 | H176: 1 | I176: 8 | J176: 8 | K176: 4 | L176: ='Formatted AERMET Data'!G175 -> 0.053 | M176: ='Formatted AERMET Data'!M175 -> 0.081 | N176: 0.081 | O176: ='Formatted AERMET Data'!L175 -> 4.8 | Q176: 10.41666667 | R176: 3.428886381 | S176: =R176*(-1*COS(RADIANS($D$23-'Formatted AERMET Data'!Q175))) -> 3.261064736 | T176: 0.3287695067 | V176: -1.041666667 | W176: 0.04194624191 | X176: 288.1065707 | Y176: 340.3227317 | AA176: -10.41666667 | AB176: 0.04194624191 | AC176: 289.4592365 | AD176: 341.120707 | AE176: 0.08866391818 | AF176: 0.4174334248
G177: 16 | H177: 1 | I177: 8 | J177: 8 | K177: 5 | L177: ='Formatted AERMET Data'!G176 -> 0.05 | M177: ='Formatted AERMET Data'!M176 -> 0.081 | N177: 0.081 | O177: ='Formatted AERMET Data'!L176 -> 4.5 | Q177: 11.11111111 | R177: 3.599428855 | S177: =R177*(-1*COS(RADIANS($D$23-'Formatted AERMET Data'!Q176))) -> 2.984061761 | T177: 0.3008430044 | V177: -1.111111111 | W177: 0.03982080637 | X177: 288.1079155 | Y177: 340.3235259 | AA177: -11.11111111 | AB177: 0.03982080637 | AC177: 289.4476764 | AD177: 341.1138953 | AE177: 0.08781881583 | AF177: 0.3886618202
G178: 16 | H178: 1 | I178: 8 | J178: 8 | K178: 6 | L178: ='Formatted AERMET Data'!G177 -> 0.093 | M178: ='Formatted AERMET Data'!M177 -> 0.061 | N178: 0.061 | O178: ='Formatted AERMET Data'!L177 -> 8.2 | Q178: 6.097560976 | R178: 2.844801486 | S178: =R178*(-1*COS(RADIANS($D$23-'Formatted AERMET Data'!Q177))) -> 2.771889408 | T178: 0.2788901708 | V178: -0.6097560976 | W178: 0.07560222899 | X178: 288.1124364 | Y178: 340.326196 | AA178: -6.097560976 | AB178: 0.07560222899 | AC178: 289.9658049 | AD178: 341.4190658 | AE178: 0.1214299722 | AF178: 0.4003201431
G179: 16 | H179: 1 | I179: 8 | J179: 8 | K179: 7 | L179: ='Formatted AERMET Data'!G178 -> 0.11 | M179: ='Formatted AERMET Data'!M178 -> 0.061 | N179: 0.061 | O179: ='Formatted AERMET Data'!L178 -> 9.7 | Q179: 5.154639175 | R179: 2.795504849 | S179: =R179*(-1*COS(RADIANS($D$23-'Formatted AERMET Data'!Q178))) -> 2.77466758 | T179: 0.2791696931 | V179: -0.5154639175 | W179: 0.08941207864 | X179: 288.1124115 | Y179: 340.3261813 | AA179: -5.154639175 | AB179: 0.08941207864 | AC179: 290.1375236 | AD179: 341.5201455 | AE179: 0.1326626925 | AF179: 0.4118323856
G180: 16 | H180: 1 | I180: 8 | J180: 8 | K180: 8 | L180: ='Formatted AERMET Data'!G179 -> 0.071 | M180: ='Formatted AERMET Data'!M179 -> 0.061 | N180: 0.061 | O180: ='Formatted AERMET Data'!L179 -> 6.2 | Q180: 8.064516129 | R180: 3.136612381 | S180: =R180*(-1*COS(RADIANS($D$23-'Formatted AERMET Data'!Q179))) -> 3.124676624 | T180: 0.3143854134 | V180: -0.8064516129 | W180: 0.0582783924 | X180: 288.114631 | Y180: 340.3274922 | AA180: -8.064516129 | AB180: 0.0582783924 | AC180: 289.7720248 | AD180: 341.3049639 | AE180: 0.1086079696 | AF180: 0.4229933829
G181: 16 | H181: 1 | I181: 8 | J181: 8 | K181: 9 | L181: ='Formatted AERMET Data'!G180 -> 0.135 | M181: ='Formatted AERMET Data'!M180 -> 0.061 | N181: 0.061 | O181: ='Formatted AERMET Data'!L180 -> 958.8 | Q181: 0.05214851898 | R181: 1.681274153 | S181: =R181*(-1*COS(RADIANS($D$23-'Formatted AERMET Data'!Q180))) -> 1.681274153 | T181: 0.1691592869 | U181: 0.9553829967 | V181: -0.005214851898 | W181: 0.001362454686 | X181: 288.0000173 | Y181: 340.2597933 | Z181: 0.9553829967 | AA181: -0.05214851898 | AB181: 0.001362454686 | AC181: 287.9171393 | AD181: 340.2108314 | AE181: -0.005440215325 | AF181: 0.1637190716
G182: 16 | H182: 1 | I182: 8 | J182: 8 | K182: 10 | L182: ='Formatted AERMET Data'!G181 -> 0.139 | M182: ='Formatted AERMET Data'!M181 -> 0.061 | N182: 0.061 | O182: ='Formatted AERMET Data'!L181 -> -3.6 | P182: 2.596391625 | Q182: -1.135641283 | R182: 2.800377772 | S182: =R182*(-1*COS(RADIANS($D$23-'Formatted AERMET Data'!Q181))) -> 2.739182799 | T182: 0.2755994364 | U182: 2.596391625 | V182: 2.706831849 | W182: -0.3846889 | X182: 290.5397272 | Y182: 341.75678 | Z182: 2.596391625 | AA182: 2.706831849 | AB182: -0.3846889 | AC182: 285.6493671 | AD182: 338.8683516 | AE182: -0.3209364923 | AF182: -0.0453370558
G183: 16 | H183: 1 | I183: 8 | J183: 8 | K183: 11 | L183: ='Formatted AERMET Data'!G182 -> 0.173 | M183: ='Formatted AERMET Data'!M182 -> 0.081 | N183: 0.081 | O183: ='Formatted AERMET Data'!L182 -> -3.8 | P183: 2.562315332 | Q183: -1.124356719 | R183: 3.283958601 | S183: =R183*(-1*COS(RADIANS($D$23-'Formatted AERMET Data'!Q182))) -> 2.362282124 | T183: 0.2381572864 | U183: 2.562315332 | V183: 2.660891905 | W183: -0.5645353803 | X183: 291.6638235 | Y183: 342.4172691 | Z183: 2.562315332 | AA183: 2.660891905 | AB183: -0.5645353803 | AC183: 284.9216398 | AD183: 338.4364217 | AE183: -0.4423163839 | AF183: -0.2041590975
G184: 16 | H184: 1 | I184: 8 | J184: 8 | K184: 12 | L184: ='Formatted AERMET Data'!G183 -> 0.228 | M184: ='Formatted AERMET Data'!M183 -> 0.072 | N184: 0.072 | O184: ='Formatted AERMET Data'!L183 -> -6.7 | P184: 2.23339325 | Q184: -1.007952021 | R184: 3.584190284 | S184: =R184*(-1*COS(RADIANS($D$23-'Formatted AERMET Data'!Q183))) -> -1.792095142 | T184: -0.1805091803 | U184: 2.23339325 | V184: 2.193235739 | W184: -0.5561314384 | X184: 290.9749447 | Y184: 342.0126536 | Z184: 2.23339325 | AA184: 2.193235739 | AB184: -0.5561314384 | AC184: 284.1730883 | AD184: 337.991556 | AE184: -0.4467886249 | AF184: -0.6272978052
G185: 16 | H185: 1 | I185: 8 | J185: 8 | K185: 13 | L185: ='Formatted AERMET Data'!G184 -> 0.221 | M185: ='Formatted AERMET Data'!M184 -> 0.049 | N185: 0.049 | O185: ='Formatted AERMET Data'!L184 -> -5.5 | P185: 2.342118299 | Q185: -1.048035265 | R185: 3.896567845 | S185: =R185*(-1*COS(RADIANS($D$23-'Formatted AERMET Data'!Q184))) -> -2.940777083 | T185: -0.2955257846 | U185: 2.342118299 | V185: 2.35284906 | W185: -0.6365088013 | X185: 291.6527052 | Y185: 342.4107426 | Z185: 2.342118299 | AA185: 2.35284906 | AB185: -0.6365088013 | AC185: 283.2883244 | AD185: 337.4649828 | AE185: -0.549528858 | AF185: -0.8450546426
G186: 16 | H186: 1 | I186: 8 | J186: 8 | K186: 14 | L186: ='Formatted AERMET Data'!G185 -> 0.203 | M186: ='Formatted AERMET Data'!M185 -> 0.049 | N186: 0.049 | O186: ='Formatted AERMET Data'!L185 -> -4.5 | P186: 2.458885733 | Q186: -1.089268049 | R186: 3.834226258 | S186: =R186*(-1*COS(RADIANS($D$23-'Formatted AERMET Data'!Q185))) -> -3.021411523 | T186: -0.3036289341 | U186: 2.458885733 | V186: 2.51865959 | W186: -0.6563902439 | X186: 292.0322526 | Y186: 342.6334713 | Z186: 2.458885733 | AA186: 2.51865959 | AB186: -0.6563902439 | AC186: 283.4097328 | AD186: 337.5372885 | AE186: -0.5662425361 | AF186: -0.8698714701
G187: 16 | H187: 1 | I187: 8 | J187: 8 | K187: 15 | L187: ='Formatted AERMET Data'!G186 -> 0.203 | M187: ='Formatted AERMET Data'!M186 -> 0.049 | N187: 0.049 | O187: ='Formatted AERMET Data'!L186 -> -5.6 | P187: 2.331943782 | Q187: -1.044355892 | R187: 3.559099651 | S187: =R187*(-1*COS(RADIANS($D$23-'Formatted AERMET Data'!Q186))) -> -3.365194832 | T187: -0.3381765483 | U187: 2.331943782 | V187: 2.338129639 | W187: -0.527456446 | X187: 291.007955 | Y187: 342.0320532 | Z187: 2.331943782 | AA187: 2.338129639 | AB187: -0.527456446 | AC187: 284.0595015 | AD187: 337.924 | AE187: -0.4564503595 | AF187: -0.7946269078
G188: 16 | H188: 1 | I188: 8 | J188: 8 | K188: 16 | L188: ='Formatted AERMET Data'!G187 -> 0.189 | M188: ='Formatted AERMET Data'!M187 -> 0.049 | N188: 0.049 | O188: ='Formatted AERMET Data'!L187 -> -7.5 | P188: 2.173894116 | Q188: -0.9852675338 | R188: 3.059540368 | S188: =R188*(-1*COS(RADIANS($D$23-'Formatted AERMET Data'!Q187))) -> -2.701413803 | T188: -0.2714715911 | U188: 2.173894116 | V188: 2.103675652 | W188: -0.3413853659 | X188: 289.7516197 | Y188: 341.2929468 | Z188: 2.173894116 | AA188: 2.103675652 | AB188: -0.3413853659 | AC188: 285.2190987 | AD188: 338.6130398 | AE188: -0.2977674403 | AF188: -0.5692390315
G189: 16 | H189: 1 | I189: 8 | J189: 8 | K189: 17 | L189: ='Formatted AERMET Data'!G188 -> 0.227 | M189: ='Formatted AERMET Data'!M188 -> 0.07 | N189: 0.07 | O189: ='Formatted AERMET Data'!L188 -> -58.8 | P189: 1.388888871 | Q189: -0.6156613827 | R189: 2.80900046 | S189: =R189*(-1*COS(RADIANS($D$23-'Formatted AERMET Data'!Q188))) -> -2.793612462 | T189: -0.2813305601 | U189: 1.388888871 | V189: 0.7630361701 | W189: -0.06281407137 | X189: 288.116901 | Y189: 340.3288329 | Z189: 1.388888871 | AA189: 0.7630361701 | AB189: -0.06281407137 | AC189: 287.2556526 | AD189: 339.8197912 | AE189: -0.05656019127 | AF189: -0.3378907514
G190: 16 | H190: 1 | I190: 8 | J190: 8 | K190: 18 | L190: ='Formatted AERMET Data'!G189 -> 0.181 | M190: ='Formatted AERMET Data'!M189 -> 0.07 | N190: 0.07 | O190: ='Formatted AERMET Data'!L189 -> 30.8 | Q190: 1.623376623 | R190: 2.426234841 | S190: =R190*(-1*COS(RADIANS($D$23-'Formatted AERMET Data'!Q189))) -> -2.425865314 | T190: -0.2442966076 | V190: -0.1623376623 | W190: 0.07624107102 | X190: 288.0301873 | Y190: 340.2776152 | AA190: -1.623376623 | AB190: 0.07624107102 | AC190: 289.1258444 | AD190: 340.9242031 | AE190: 0.07184310327 | AF190: -0.1724535043
G191: 16 | H191: 1 | I191: 8 | J191: 8 | K191: 19 | L191: ='Formatted AERMET Data'!G190 -> 0.1 | M191: ='Formatted AERMET Data'!M190 -> 0.07 | N191: 0.07 | O191: ='Formatted AERMET Data'!L190 -> 9.8 | Q191: 5.102040816 | R191: 2.48170362 | S191: =R191*(-1*COS(RADIANS($D$23-'Formatted AERMET Data'!Q190))) -> -2.427472442 | T191: -0.2444584533 | V191: -0.5102040816 | W191: 0.0731402566 | X191: 288.0910157 | Y191: 340.3135445 | AA191: -5.102040816 | AB191: 0.0731402566 | AC191: 289.6965498 | AD191: 341.2605123 | AE191: 0.1052186441 | AF191: -0.1392398092
G192: 16 | H192: 1 | I192: 8 | J192: 8 | K192: 20 | L192: ='Formatted AERMET Data'!G191 -> 0.027 | M192: ='Formatted AERMET Data'!M191 -> 0.072 | N192: 0.072 | O192: ='Formatted AERMET Data'!L191 -> 2.5 | Q192: 20 | R192: 5.59366563 | S192: =R192*(-1*COS(RADIANS($D$23-'Formatted AERMET Data'!Q191))) -> -2.964191175 | T192: -0.298568813 | V192: -2 | W192: 0.02090114485 | X192: 288.1019568 | Y192: 340.3200066 | AA192: -20 | AB192: 0.02090114485 | AC192: 289.1714446 | AD192: 340.9510869 | AE192: 0.07012003363 | AF192: -0.2284487793
G193: 16 | H193: 1 | I193: 8 | J193: 8 | K193: 21 | L193: ='Formatted AERMET Data'!G192 -> 0.074 | M193: ='Formatted AERMET Data'!M192 -> 0.069 | N193: 0.069 | O193: ='Formatted AERMET Data'!L192 -> 6.7 | Q193: 7.462686567 | R193: 2.909724821 | S193: =R193*(-1*COS(RADIANS($D$23-'Formatted AERMET Data'!Q192))) -> 1.984427556 | T193: 0.1998215241 | V193: -0.7462686567 | W193: 0.05858294392 | X193: 288.1066308 | Y193: 340.3227671 | AA193: -7.462686567 | AB193: 0.05858294392 | AC193: 289.6783205 | AD193: 341.2497752 | AE193: 0.1030008904 | AF193: 0.3028224145
G194: 16 | H194: 1 | I194: 8 | J194: 8 | K194: 22 | L194: ='Formatted AERMET Data'!G193 -> 0.059 | M194: ='Formatted AERMET Data'!M193 -> 0.061 | N194: 0.061 | O194: ='Formatted AERMET Data'!L193 -> 5.2 | Q194: 9.615384615 | R194: 3.395618688 | S194: =R194*(-1*COS(RADIANS($D$23-'Formatted AERMET Data'!Q193))) -> 3.308589201 | T194: 0.3328895463 | V194: -0.9615384615 | W194: 0.04798254011 | X194: 288.1125294 | Y194: 340.326251 | AA194: -9.615384615 | AB194: 0.04798254011 | AC194: 289.6227994 | AD194: 341.2170708 | AE194: 0.09897997961 | AF194: 0.4318695259
G195: 16 | H195: 1 | I195: 8 | J195: 8 | K195: 23 | L195: ='Formatted AERMET Data'!G194 -> 0.095 | M195: ='Formatted AERMET Data'!M194 -> 0.07 | N195: 0.07 | O195: ='Formatted AERMET Data'!L194 -> 8.5 | Q195: 5.882352941 | R195: 2.754822968 | S195: =R195*(-1*COS(RADIANS($D$23-'Formatted AERMET Data'!Q194))) -> 2.648105799 | T195: 0.2666773211 | V195: -0.5882352941 | W195: 0.07610458818 | X195: 288.1091888 | Y195: 340.324278 | AA195: -5.882352941 | AB195: 0.07610458818 | AC195: 289.9142051 | AD195: 341.3886865 | AE195: 0.1182676124 | AF195: 0.3849449335
G196: 16 | H196: 1 | I196: 8 | J196: 8 | K196: 24 | L196: ='Formatted AERMET Data'!G195 -> 0.099 | M196: ='Formatted AERMET Data'!M195 -> 0.07 | N196: 0.07 | O196: ='Formatted AERMET Data'!L195 -> 8.9 | Q196: 5.617977528 | R196: 2.723986218 | S196: =R196*(-1*COS(RADIANS($D$23-'Formatted AERMET Data'!Q195))) -> 2.643072186 | T196: 0.2661704115 | V196: -0.5617977528 | W196: 0.07893378672 | X196: 288.1081581 | Y196: 340.3236692 | AA196: -5.617977528 | AB196: 0.07893378672 | AC196: 289.9381856 | AD196: 341.4028053 | AE196: 0.1199040045 | AF196: 0.386074416
G197: 16 | H197: 1 | I197: 9 | J197: 9 | K197: 1 | L197: ='Formatted AERMET Data'!G196 -> 0.079 | M197: ='Formatted AERMET Data'!M196 -> 0.061 | N197: =M197 -> 0.061 | O197: ='Formatted AERMET Data'!L196 -> 7 | P197: =IF($O197>0,"",IF(AND($O197<0,$O197<>-99999),(1-((16*$D$5)/$O197))^0.25,"")) ->  | Q197: =IF($O197>0,5*($D$5/$O197),IF(AND($O197<0,$O197<>-99999),(-2*LN((1+P197)/2)-LN((1+P197^2)))/(2+2*ATAN(P197)-PI()/2),"")) -> 7.142857143 | R197: =IF(L197<>-9,(L197/$D$11)*(LN(($D$5+$M197)/$M197)+Q197*($D$5/$O197)),"") -> 2.949904242 | S197: =R197*(-1*COS(RADIANS($D$23-'Formatted AERMET Data'!Q196))) -> 2.94810724 | T197: =(S197)/($D$5-M197) -> 0.2966201067 | U197: =IFERROR((1-16 *z_h/Obu_len) ^ 0.25, "") ->  | V197: =IF($O197<0,2*LN((1+$U197^2)/2),-5*z_0_T/$O197) -> -0.7142857143 | W197: =($L197^2)/(O197*$D$11*9.8)*theta_0 -> 0.0639055678 | X197: =IFERROR(theta_0 + W197/ K_const * ( LN(z_0_T/ z_0_T) - V197), "") -> 288.1113337 | Y197: 340.3255448 | Z197: =IFERROR((1-16 * z_h/Obu_len) ^ 0.25, "") ->  | AA197: =IF($O197<0,2*LN((1+$Z197^2)/2),-5*z_h/$O197) -> -7.142857143 | AB197: =($L197^2)/($O197*$D$11*9.8)*theta_0 -> 0.0639055678 | AC197: =IFERROR(theta_0 + theta_star_z/ K_const * ( LN( z_h / $N197 + 1) - psi_h) - 0.01 * z_h, "") -> 289.8091251 | AD197: 341.3268123 | AE197: =IFERROR((AD197-Y197)/($D$5-$D$6), "") -> 0.1112519464 | AF197: =AE197+T197 -> 0.4078720531
G198: 16 | H198: 1 | I198: 9 | J198: 9 | K198: 2 | L198: ='Formatted AERMET Data'!G197 -> 0.043 | M198: ='Formatted AERMET Data'!M197 -> 0.081 | N198: 0.081 | O198: ='Formatted AERMET Data'!L197 -> 3.9 | Q198: 12.82051282 | R198: 3.953594977 | S198: =R198*(-1*COS(RADIANS($D$23-'Formatted AERMET Data'!Q197))) -> 3.315763745 | T198: 0.3342840755 | V198: -1.282051282 | W198: 0.03398246353 | X198: 288.1062616 | Y198: =IFERROR((X198)^0.5 * 20.05, "") -> 340.3225491 | AA198: -12.82051282 | AB198: 0.03398246353 | AC198: 289.3624454 | AD198: =IFERROR((AC198)^0.5 * 20.05, "") -> 341.0636692 | AE198: 0.08234667668 | AF198: 0.4166307522
G199: 16 | H199: 1 | I199: 9 | J199: 9 | K199: 3 | L199: ='Formatted AERMET Data'!G198 -> 0.079 | M199: ='Formatted AERMET Data'!M198 -> 0.061 | N199: 0.061 | O199: ='Formatted AERMET Data'!L198 -> 7 | Q199: 7.142857143 | R199: 2.949904242 | S199: =R199*(-1*COS(RADIANS($D$23-'Formatted AERMET Data'!Q198))) -> 2.933744358 | T199: 0.2951750033 | V199: -0.7142857143 | W199: 0.0639055678 | X199: 288.1113337 | Y199: 340.3255448 | AA199: -7.142857143 | AB199: 0.0639055678 | AC199: 289.8091251 | AD199: 341.3268123 | AE199: 0.1112519464 | AF199: 0.4064269497
G200: 16 | H200: 1 | I200: 9 | J200: 9 | K200: 4 | L200: ='Formatted AERMET Data'!G199 -> 0.065 | M200: ='Formatted AERMET Data'!M199 -> 0.078 | N200: 0.078 | O200: ='Formatted AERMET Data'!L199 -> 5.8 | Q200: 8.620689655 | R200: 3.127080134 | S200: =R200*(-1*COS(RADIANS($D$23-'Formatted AERMET Data'!Q199))) -> -0.05457507347 | T200: -0.005500410549 | V200: -0.8620689655 | W200: 0.05221331594 | X200: 288.1097841 | Y200: 340.3246296 | AA200: -8.620689655 | AB200: 0.05221331594 | AC200: 289.6169382 | AD200: 341.2136181 | AE200: 0.09877651055 | AF200: 0.0932761
... 2050 more rows

Sheet Raw AERMET Data
B1: 33.688N | C1: 112.081W | D1: UA_ID: | E1: 74626 | F1: SF_ID: | G1: 3184 | H1: OS_ID: | I1: VERSION: | J1: 16216 | K1: THRESH_1MIN | L1: = | M1: 0.5 | N1: m/s; | O1: ADJ_U* | P1: CCVR_Sub | Q1: TEMP_Sub
A2: 13 | B2: 1 | C2: 1 | D2: 1 | E2: 1 | F2: -8.8 | G2: 0.1 | H2: -9 | I2: -9 | J2: -999 | K2: 70 | L2: 8.6 | M2: 0.061 | N2: 1.65 | O2: 1 | P2: 2.43 | Q2: 112 | R2: 10 | S2: 278.8 | T2: 2 | U2: 0 | V2: 0 | W2: 48 | X2: 983 | Y2: 3 | Z2: ADJ-A1 | AA2: NoSubs | AB2: =(S2-273)-((100-W2)/5) -> -4.6 | AC2: =#REF!*10^(($AH$2*(S2-273))/((S2-273)+$AH$3)) ->  | AD2: =621.9907*AC2/(X2-AC2) ->  | AG2: m | AH2: 7.591386
A3: 13 | B3: 1 | C3: 1 | D3: 1 | E3: 2 | F3: -2.4 | G3: 0.1 | H3: -9 | I3: -9 | J3: -999 | K3: 27 | L3: 4.5 | M3: 0.061 | N3: 1.65 | O3: 1 | P3: 1.28 | Q3: 111 | R3: 10 | S3: 278.1 | T3: 2 | U3: 0 | V3: 0 | W3: 61 | X3: 983 | Y3: 3 | Z3: ADJ-A1 | AA3: NoSubs | AB3: =(S3-273)-((100-W3)/5) -> -2.7 | AC3: =#REF!*10^(($AH$2*(S3-273))/((S3-273)+$AH$3)) ->  | AD3: =621.9907*AC3/(X3-AC3) ->  | AG3: T_n | AH3: 240.7263
A4: 13 | B4: 1 | C4: 1 | D4: 1 | E4: 3 | F4: -10.2 | G4: 0.1 | H4: -9 | I4: -9 | J4: -999 | K4: 78 | L4: 9.2 | M4: 0.061 | N4: 1.65 | O4: 1 | P4: 2.61 | Q4: 101 | R4: 10 | S4: 277 | T4: 2 | U4: 0 | V4: 0 | W4: 72 | X4: 983 | Y4: 3 | Z4: ADJ-A1 | AA4: NoSubs | AB4: -1.6 | AC4: =#REF!*10^(($AH$2*(S4-273))/((S4-273)+$AH$3)) -> 
A5: 13 | B5: 1 | C5: 1 | D5: 1 | E5: 4 | F5: -21.2 | G5: 0.1 | H5: -9 | I5: -9 | J5: -999 | K5: 212 | L5: 32.3 | M5: 0.07 | N5: 1.65 | O5: 1 | P5: 3.23 | Q5: 82 | R5: 10 | S5: 277 | T5: 2 | U5: 0 | V5: 0 | W5: 75 | X5: 983 | Y5: 3 | Z5: ADJ-A1 | AA5: NoSubs | AB5: -1 | AC5: =#REF!*10^(($AH$2*(S5-273))/((S5-273)+$AH$3)) -> 
A6: 13 | B6: 1 | C6: 1 | D6: 1 | E6: 5 | F6: -15.6 | G6: 0.1 | H6: -9 | I6: -9 | J6: -999 | K6: 135 | L6: 17.5 | M6: 0.061 | N6: 1.65 | O6: 1 | P6: 2.91 | Q6: 97 | R6: 10 | S6: 276.4 | T6: 2 | U6: 0 | V6: 0 | W6: 75 | X6: 983 | Y6: 3 | Z6: ADJ-A1 | AA6: NoSubs | AB6: -1.6 | AC6: =#REF!*10^(($AH$2*(S6-273))/((S6-273)+$AH$3)) -> 
A7: 13 | B7: 1 | C7: 1 | D7: 1 | E7: 6 | F7: -5.1 | G7: 0.1 | H7: -9 | I7: -9 | J7: -999 | K7: 49 | L7: 6.8 | M7: 0.081 | N7: 1.65 | O7: 1 | P7: 1.77 | Q7: 135 | R7: 10 | S7: 275.9 | T7: 2 | U7: 0 | V7: 0 | W7: 75 | X7: 984 | Y7: 3 | Z7: ADJ-A1 | AA7: NoSubs | AB7: -2.1 | AC7: =#REF!*10^(($AH$2*(S7-273))/((S7-273)+$AH$3)) -> 
A8: 13 | B8: 1 | C8: 1 | D8: 1 | E8: 7 | F8: -7.6 | G8: 0.1 | H8: -9 | I8: -9 | J8: -999 | K8: 63 | L8: 7.9 | M8: 0.061 | N8: 1.65 | O8: 1 | P8: 2.25 | Q8: 95 | R8: 10 | S8: 275.9 | T8: 2 | U8: 0 | V8: 0 | W8: 75 | X8: 984 | Y8: 3 | Z8: ADJ-A1 | AA8: NoSubs | AB8: -2.1 | AC8: =#REF!*10^(($AH$2*(S8-273))/((S8-273)+$AH$3)) -> 
A9: 13 | B9: 1 | C9: 1 | D9: 1 | E9: 8 | F9: -9.3 | G9: 0.1 | H9: -9 | I9: -9 | J9: -999 | K9: 73 | L9: 8.7 | M9: 0.061 | N9: 1.65 | O9: 1 | P9: 2.49 | Q9: 100 | R9: 10 | S9: 275.4 | T9: 2 | U9: 0 | V9: 0 | W9: 78 | X9: 984 | Y9: 3 | Z9: ADJ-A1 | AA9: NoSubs | AB9: -2 | AC9: =#REF!*10^(($AH$2*(S9-273))/((S9-273)+$AH$3)) -> 
A10: 13 | B10: 1 | C10: 1 | D10: 1 | E10: 9 | F10: 3 | G10: 0.1 | H10: 0.121 | I10: 0.006 | J10: 21 | K10: 164 | L10: -138.5 | M10: 0.061 | N10: 1.65 | O10: 0.42 | P10: 2.04 | Q10: 108 | R10: 10 | S10: 277.5 | T10: 2 | U10: 0 | V10: 0 | W10: 69 | X10: 984 | Y10: 5 | Z10: ADJ-A1 | AA10: NoSubs | AB10: -1.7 | AC10: =#REF!*10^(($AH$2*(S10-273))/((S10-273)+$AH$3)) -> 
A11: 13 | B11: 1 | C11: 1 | D11: 1 | E11: 10 | F11: 64.5 | G11: 0.1 | H11: 0.772 | I11: 0.005 | J11: 251 | K11: 239 | L11: -13.5 | M11: 0.061 | N11: 1.65 | O11: 0.28 | P11: 2.23 | Q11: 96 | R11: 10 | S11: 279.9 | T11: 2 | U11: 0 | V11: 0 | W11: 62 | X11: 984 | Y11: 5 | Z11: ADJ-A1 | AA11: NoSubs | AB11: -0.7 | AC11: =#REF!*10^(($AH$2*(S11-273))/((S11-273)+$AH$3)) -> 
A12: 13 | B12: 1 | C12: 1 | D12: 1 | E12: 11 | F12: 79.8 | G12: 0.1 | H12: 0.913 | I12: 0.005 | J12: 335 | K12: 471 | L12: -42.3 | M12: 0.061 | N12: 1.65 | O12: 0.23 | P12: 3.88 | Q12: 93 | R12: 10 | S12: 282.5 | T12: 2 | U12: 0 | V12: 0 | W12: 49 | X12: 984 | Y12: 8 | Z12: ADJ-A1 | AA12: NoSubs | AB12: -0.7 | AC12: =#REF!*10^(($AH$2*(S12-273))/((S12-273)+$AH$3)) -> 
A13: 13 | B13: 1 | C13: 1 | D13: 1 | E13: 12 | F13: 151.3 | G13: 0.1 | H13: 1.519 | I13: 0.005 | J13: 813 | K13: 359 | L13: -12.8 | M13: 0.061 | N13: 1.65 | O13: 0.22 | P13: 2.9 | Q13: 108 | R13: 10 | S13: 284.9 | T13: 2 | U13: 0 | V13: 0 | W13: 40 | X13: 984 | Y13: 3 | Z13: ADJ-A1 | AA13: NoSubs | AB13: -0.1 | AC13: =#REF!*10^(($AH$2*(S13-273))/((S13-273)+$AH$3)) -> 
A14: 13 | B14: 1 | C14: 1 | D14: 1 | E14: 13 | F14: 162.9 | G14: 0.1 | H14: 1.765 | I14: 0.005 | J14: 1184 | K14: 298 | L14: -8.3 | M14: 0.061 | N14: 1.65 | O14: 0.21 | P14: 2.44 | Q14: 93 | R14: 10 | S14: 285.4 | T14: 2 | U14: 0 | V14: 0 | W14: 36 | X14: 982 | Y14: 3 | Z14: ADJ-A1 | AA14: NoSubs | AB14: -0.4 | AC14: =#REF!*10^(($AH$2*(S14-273))/((S14-273)+$AH$3)) -> 
A15: 13 | B15: 1 | C15: 1 | D15: 1 | E15: 14 | F15: 147.7 | G15: 0.1 | H15: 1.761 | I15: 0.005 | J15: 1296 | K15: 209 | L15: -4.5 | M15: 0.07 | N15: 1.65 | O15: 0.22 | P15: 1.7 | Q15: 88 | R15: 10 | S15: 285.9 | T15: 2 | U15: 0 | V15: 0 | W15: 29 | X15: 981 | Y15: 5 | Z15: ADJ-A1 | AA15: NoSubs | AB15: -1.3 | AC15: =#REF!*10^(($AH$2*(S15-273))/((S15-273)+$AH$3)) -> 
A16: 13 | B16: 1 | C16: 1 | D16: 1 | E16: 15 | F16: 118.2 | G16: 0.1 | H16: 1.656 | I16: 0.005 | J16: 1346 | K16: 179 | L16: -4.1 | M16: 0.081 | N16: 1.65 | O16: 0.23 | P16: 1.45 | Q16: 140 | R16: 10 | S16: 287 | T16: 2 | U16: 0 | V16: 0 | W16: 28 | X16: 981 | Y16: 5 | Z16: ADJ-A1 | AA16: NoSubs | AB16: -0.4 | AC16: =#REF!*10^(($AH$2*(S16-273))/((S16-273)+$AH$3)) -> 
A17: 13 | B17: 1 | C17: 1 | D17: 1 | E17: 16 | F17: 69.4 | G17: 0.1 | H17: 1.396 | I17: 0.006 | J17: 1373 | K17: 180 | L17: -7.1 | M17: 0.07 | N17: 1.65 | O17: 0.28 | P17: 1.65 | Q17: 11 | R17: 10 | S17: 286.4 | T17: 2 | U17: 0 | V17: 0 | W17: 29 | X17: 980 | Y17: 5 | Z17: ADJ-A1 | AA17: NoSubs | AB17: -0.8 | AC17: =#REF!*10^(($AH$2*(S17-273))/((S17-273)+$AH$3)) -> 
A18: 13 | B18: 1 | C18: 1 | D18: 1 | E18: 17 | F18: 8.1 | G18: 0.1 | H18: 0.684 | I18: 0.006 | J18: 1375 | K18: 165 | L18: -51 | M18: 0.065 | N18: 1.65 | O18: 0.41 | P18: 1.93 | Q18: 339 | R18: 10 | S18: 285.4 | T18: 2 | U18: 0 | V18: 0 | W18: 32 | X18: 980 | Y18: 5 | Z18: ADJ-A1 | AA18: NoSubs | AB18: -1.2 | AC18: =#REF!*10^(($AH$2*(S18-273))/((S18-273)+$AH$3)) -> 
A19: 13 | B19: 1 | C19: 1 | D19: 1 | E19: 18 | F19: -8.3 | G19: 0.1 | H19: -9 | I19: -9 | J19: -999 | K19: 71 | L19: 8.7 | M19: 0.049 | N19: 1.65 | O19: 1 | P19: 2.5 | Q19: 269 | R19: 10 | S19: 284.9 | T19: 2 | U19: 0 | V19: 0 | W19: 36 | X19: 980 | Y19: 5 | Z19: ADJ-A1 | AA19: NoSubs | AB19: -0.9 | AC19: =#REF!*10^(($AH$2*(S19-273))/((S19-273)+$AH$3)) -> 
A20: 13 | B20: 1 | C20: 1 | D20: 1 | E20: 19 | F20: -18.1 | G20: 0.1 | H20: -9 | I20: -9 | J20: -999 | K20: 200 | L20: 33.4 | M20: 0.07 | N20: 1.65 | O20: 1 | P20: 3.08 | Q20: 289 | R20: 10 | S20: 284.2 | T20: 2 | U20: 0 | V20: 0 | W20: 37 | X20: 981 | Y20: 5 | Z20: ADJ-A1 | AA20: NoSubs | AB20: -1.4 | AC20: =#REF!*10^(($AH$2*(S20-273))/((S20-273)+$AH$3)) -> 
A21: 13 | B21: 1 | C21: 1 | D21: 1 | E21: 20 | F21: -18.2 | G21: 0.1 | H21: -9 | I21: -9 | J21: -999 | K21: 201 | L21: 33.6 | M21: 0.059 | N21: 1.65 | O21: 1 | P21: 3.17 | Q21: 311 | R21: 10 | S21: 283.8 | T21: 2 | U21: 0 | V21: 0 | W21: 38 | X21: 981 | Y21: 5 | Z21: ADJ-A1 | AA21: NoSubs | AB21: -1.6 | AC21: =#REF!*10^(($AH$2*(S21-273))/((S21-273)+$AH$3)) -> 
A22: 13 | B22: 1 | C22: 1 | D22: 1 | E22: 21 | F22: -9.5 | G22: 0.1 | H22: -9 | I22: -9 | J22: -999 | K22: 81 | L22: 9.7 | M22: 0.065 | N22: 1.65 | O22: 1 | P22: 2.57 | Q22: 343 | R22: 10 | S22: 283.1 | T22: 2 | U22: 0 | V22: 0 | W22: 40 | X22: 981 | Y22: 5 | Z22: ADJ-A1 | AA22: NoSubs | AB22: -1.9 | AC22: =#REF!*10^(($AH$2*(S22-273))/((S22-273)+$AH$3)) -> 
A23: 13 | B23: 1 | C23: 1 | D23: 1 | E23: 22 | F23: -12.5 | G23: 0.1 | H23: -9 | I23: -9 | J23: -999 | K23: 114 | L23: 15.8 | M23: 0.07 | N23: 1.65 | O23: 1 | P23: 2.67 | Q23: 5 | R23: 10 | S23: 283.1 | T23: 2 | U23: 0 | V23: 0 | W23: 38 | X23: 981 | Y23: 5 | Z23: ADJ-A1 | AA23: NoSubs | AB23: -2.3 | AC23: =#REF!*10^(($AH$2*(S23-273))/((S23-273)+$AH$3)) -> 
A24: 13 | B24: 1 | C24: 1 | D24: 1 | E24: 23 | F24: -2.5 | G24: 0.1 | H24: -9 | I24: -9 | J24: -999 | K24: 32 | L24: 5.2 | M24: 0.081 | N24: 1.65 | O24: 1 | P24: 1.28 | Q24: 137 | R24: 10 | S24: 281.4 | T24: 2 | U24: 0 | V24: 0 | W24: 47 | X24: 981 | Y24: 5 | Z24: ADJ-A1 | AA24: NoSubs | AB24: -2.2 | AC24: =#REF!*10^(($AH$2*(S24-273))/((S24-273)+$AH$3)) -> 
A25: 13 | B25: 1 | C25: 1 | D25: 1 | E25: 24 | F25: -7.4 | G25: 0.1 | H25: -9 | I25: -9 | J25: -999 | K25: 65 | L25: 8.7 | M25: 0.069 | N25: 1.65 | O25: 1 | P25: 2.25 | Q25: 53 | R25: 10 | S25: 282.5 | T25: 2 | U25: 0 | V25: 0 | W25: 34 | X25: 981 | Y25: 5 | Z25: ADJ-A1 | AA25: NoSubs | AB25: -3.7 | AC25: =#REF!*10^(($AH$2*(S25-273))/((S25-273)+$AH$3)) -> 
A26: 13 | B26: 1 | C26: 2 | D26: 2 | E26: 1 | F26: -4.4 | G26: 0.1 | H26: -9 | I26: -9 | J26: -999 | K26: 43 | L26: 6.3 | M26: 0.049 | N26: 1.65 | O26: 1 | P26: 1.81 | Q26: 262 | R26: 10 | S26: 280.4 | T26: 2 | U26: 0 | V26: 0 | W26: 51 | X26: 981 | Y26: 5 | Z26: ADJ-A1 | AA26: NoSubs | AB26: -2.4 | AC26: =#REF!*10^(($AH$2*(S26-273))/((S26-273)+$AH$3)) -> 
A27: 13 | B27: 1 | C27: 2 | D27: 2 | E27: 2 | F27: -7.3 | G27: 0.1 | H27: -9 | I27: -9 | J27: -999 | K27: 64 | L27: 8.6 | M27: 0.072 | N27: 1.65 | O27: 1 | P27: 2.21 | Q27: 238 | R27: 10 | S27: 278.8 | T27: 2 | U27: 0 | V27: 0 | W27: 57 | X27: 981 | Y27: 5 | Z27: ADJ-A1 | AA27: NoSubs | AB27: -2.8 | AC27: =#REF!*10^(($AH$2*(S27-273))/((S27-273)+$AH$3)) -> 
A28: 13 | B28: 1 | C28: 2 | D28: 2 | E28: 3 | F28: -4.9 | G28: 0.1 | H28: -9 | I28: -9 | J28: -999 | K28: 48 | L28: 7 | M28: 0.072 | N28: 1.65 | O28: 1 | P28: 1.81 | Q28: 237 | R28: 10 | S28: 278.1 | T28: 2 | U28: 0 | V28: 0 | W28: 57 | X28: 980 | Y28: 5 | Z28: ADJ-A1 | AA28: NoSubs | AB28: -3.5 | AC28: =#REF!*10^(($AH$2*(S28-273))/((S28-273)+$AH$3)) -> 
A29: 13 | B29: 1 | C29: 2 | D29: 2 | E29: 4 | F29: -4.5 | G29: 0.1 | H29: -9 | I29: -9 | J29: -999 | K29: 44 | L29: 6.3 | M29: 0.049 | N29: 1.65 | O29: 1 | P29: 1.84 | Q29: 243 | R29: 10 | S29: 277.5 | T29: 2 | U29: 0 | V29: 0 | W29: 57 | X29: 980 | Y29: 5 | Z29: ADJ-A1 | AA29: NoSubs | AB29: -4.1 | AC29: =#REF!*10^(($AH$2*(S29-273))/((S29-273)+$AH$3)) -> 
A30: 13 | B30: 1 | C30: 2 | D30: 2 | E30: 5 | F30: -4.2 | G30: 0.1 | H30: -9 | I30: -9 | J30: -999 | K30: 41 | L30: 6.1 | M30: 0.049 | N30: 1.65 | O30: 1 | P30: 1.76 | Q30: 244 | R30: 10 | S30: 277 | T30: 2 | U30: 0 | V30: 0 | W30: 56 | X30: 980 | Y30: 5 | Z30: ADJ-A1 | AA30: NoSubs | AB30: -4.8 | AC30: =#REF!*10^(($AH$2*(S30-273))/((S30-273)+$AH$3)) -> 
A31: 13 | B31: 1 | C31: 2 | D31: 2 | E31: 6 | F31: -6.3 | G31: 0.1 | H31: -9 | I31: -9 | J31: -999 | K31: 56 | L31: 7.4 | M31: 0.072 | N31: 1.65 | O31: 1 | P31: 2.01 | Q31: 226 | R31: 10 | S31: 276.4 | T31: 2 | U31: 0 | V31: 0 | W31: 54 | X31: 979 | Y31: 3 | Z31: ADJ-A1 | AA31: NoSubs | AB31: -5.8 | AC31: =#REF!*10^(($AH$2*(S31-273))/((S31-273)+$AH$3)) -> 
A32: 13 | B32: 1 | C32: 2 | D32: 2 | E32: 7 | F32: -7.1 | G32: 0.1 | H32: -9 | I32: -9 | J32: -999 | K32: 59 | L32: 7.6 | M32: 0.072 | N32: 1.65 | O32: 1 | P32: 2.1 | Q32: 226 | R32: 10 | S32: 277 | T32: 2 | U32: 0 | V32: 0 | W32: 49 | X32: 980 | Y32: 0 | Z32: ADJ-A1 | AA32: NoSubs | AB32: -6.2 | AC32: =#REF!*10^(($AH$2*(S32-273))/((S32-273)+$AH$3)) -> 
A33: 13 | B33: 1 | C33: 2 | D33: 2 | E33: 8 | F33: -3.6 | G33: 0.1 | H33: -9 | I33: -9 | J33: -999 | K33: 36 | L33: 5.4 | M33: 0.072 | N33: 1.65 | O33: 1 | P33: 1.5 | Q33: 226 | R33: 10 | S33: 276.4 | T33: 2 | U33: 0 | V33: 0 | W33: 52 | X33: 980 | Y33: 0 | Z33: ADJ-A1 | AA33: NoSubs | AB33: -6.2 | AC33: =#REF!*10^(($AH$2*(S33-273))/((S33-273)+$AH$3)) -> 
A34: 13 | B34: 1 | C34: 2 | D34: 2 | E34: 9 | F34: -1.9 | G34: 0.1 | H34: -9 | I34: -9 | J34: -999 | K34: 45 | L34: 16.7 | M34: 0.049 | N34: 1.65 | O34: 0.42 | P34: 1.48 | Q34: 253 | R34: 10 | S34: 279.9 | T34: 2 | U34: 0 | V34: 0 | W34: 41 | X34: 980 | Y34: 0 | Z34: ADJ-A1 | AA34: NoSubs | AB34: -4.9 | AC34: =#REF!*10^(($AH$2*(S34-273))/((S34-273)+$AH$3)) -> 
A35: 13 | B35: 1 | C35: 2 | D35: 2 | E35: 10 | F35: 57.4 | G35: 0.1 | H35: 0.622 | I35: 0.009 | J35: 147 | K35: 183 | L35: -8.9 | M35: 0.07 | N35: 1.65 | O35: 0.28 | P35: 1.72 | Q35: 288 | R35: 10 | S35: 282 | T35: 2 | U35: 0 | V35: 0 | W35: 29 | X35: 980 | Y35: 0 | Z35: ADJ-A1 | AA35: NoSubs | AB35: -5.2 | AC35: =#REF!*10^(($AH$2*(S35-273))/((S35-273)+$AH$3)) -> 
A36: 13 | B36: 1 | C36: 2 | D36: 2 | E36: 11 | F36: 111.2 | G36: 0.1 | H36: 1.03 | I36: 0.008 | J36: 343 | K36: 173 | L36: -4.1 | M36: 0.059 | N36: 1.65 | O36: 0.23 | P36: 1.55 | Q36: 304 | R36: 10 | S36: 283.8 | T36: 2 | U36: 0 | V36: 0 | W36: 24 | X36: 980 | Y36: 0 | Z36: ADJ-A1 | AA36: NoSubs | AB36: -4.4 | AC36: =#REF!*10^(($AH$2*(S36-273))/((S36-273)+$AH$3)) -> 
A37: 13 | B37: 1 | C37: 2 | D37: 2 | E37: 12 | F37: 145.9 | G37: 0.1 | H37: 1.274 | I37: 0.009 | J37: 495 | K37: 554 | L37: -31.9 | M37: 0.069 | N37: 1.65 | O37: 0.22 | P37: 4.12 | Q37: 45 | R37: 10 | S37: 287 | T37: 2 | U37: 0 | V37: 0 | W37: 18 | X37: 979 | Y37: 0 | Z37: ADJ-A1 | AA37: NoSubs | AB37: -2.4 | AC37: =#REF!*10^(($AH$2*(S37-273))/((S37-273)+$AH$3)) -> 
A38: 13 | B38: 1 | C38: 2 | D38: 2 | E38: 13 | F38: 158.1 | G38: 0.1 | H38: 1.426 | I38: 0.011 | J38: 641 | K38: 782 | L38: -58.6 | M38: 0.069 | N38: 1.65 | O38: 0.21 | P38: 5.41 | Q38: 47 | R38: 10 | S38: 288.1 | T38: 2 | U38: 0 | V38: 0 | W38: 18 | X38: 978 | Y38: 0 | Z38: ADJ-A1 | AA38: NoSubs | AB38: -1.3 | AC38: =#REF!*10^(($AH$2*(S38-273))/((S38-273)+$AH$3)) -> 
A39: 13 | B39: 1 | C39: 2 | D39: 2 | E39: 14 | F39: 148.3 | G39: 0.1 | H39: 1.509 | I39: 0.011 | J39: 808 | K39: 774 | L39: -61 | M39: 0.069 | N39: 1.65 | O39: 0.22 | P39: 5.38 | Q39: 47 | R39: 10 | S39: 289.2 | T39: 2 | U39: 0 | V39: 0 | W39: 14 | X39: 977 | Y39: 0 | Z39: ADJ-A1 | AA39: NoSubs | AB39: -1 | AC39: =#REF!*10^(($AH$2*(S39-273))/((S39-273)+$AH$3)) -> 
A40: 13 | B40: 1 | C40: 2 | D40: 2 | E40: 15 | F40: 116.5 | G40: 0.1 | H40: 1.413 | I40: 0.011 | J40: 843 | K40: 523 | L40: -34.3 | M40: 0.07 | N40: 1.65 | O40: 0.23 | P40: 3.93 | Q40: 60 | R40: 10 | S40: 289.9 | T40: 2 | U40: 0 | V40: 0 | W40: 15 | X40: 976 | Y40: 0 | Z40: ADJ-A1 | AA40: NoSubs | AB40: -0.1 | AC40: =#REF!*10^(($AH$2*(S40-273))/((S40-273)+$AH$3)) -> 
A41: 13 | B41: 1 | C41: 2 | D41: 2 | E41: 16 | F41: 64.4 | G41: 0.1 | H41: 1.168 | I41: 0.011 | J41: 861 | K41: 475 | L41: -52.8 | M41: 0.069 | N41: 1.65 | O41: 0.28 | P41: 3.85 | Q41: 57 | R41: 10 | S41: 289.9 | T41: 2 | U41: 0 | V41: 0 | W41: 17 | X41: 976 | Y41: 0 | Z41: ADJ-A1 | AA41: NoSubs | AB41: 0.3 | AC41: =#REF!*10^(($AH$2*(S41-273))/((S41-273)+$AH$3)) -> 
A42: 13 | B42: 1 | C42: 2 | D42: 2 | E42: 17 | F42: -0.9 | G42: 0.1 | H42: -9 | I42: -9 | J42: -999 | K42: 336 | L42: 1841.7 | M42: 0.07 | N42: 1.65 | O42: 0.41 | P42: 3.35 | Q42: 17 | R42: 10 | S42: 289.9 | T42: 2 | U42: 0 | V42: 0 | W42: 16 | X42: 976 | Y42: 0 | Z42: ADJ-A1 | AA42: NoSubs | AB42: 0.1 | AC42: =#REF!*10^(($AH$2*(S42-273))/((S42-273)+$AH$3)) -> 
A43: 13 | B43: 1 | C43: 2 | D43: 2 | E43: 18 | F43: -18.4 | G43: 0.1 | H43: -9 | I43: -9 | J43: -999 | K43: 176 | L43: 24.4 | M43: 0.07 | N43: 1.65 | O43: 1 | P43: 3.03 | Q43: 20 | R43: 10 | S43: 288.8 | T43: 2 | U43: 0 | V43: 0 | W43: 19 | X43: 976 | Y43: 0 | Z43: ADJ-A1 | AA43: NoSubs | AB43: -0.4 | AC43: =#REF!*10^(($AH$2*(S43-273))/((S43-273)+$AH$3)) -> 
A44: 13 | B44: 1 | C44: 2 | D44: 2 | E44: 19 | F44: -4.1 | G44: 0.1 | H44: -9 | I44: -9 | J44: -999 | K44: 49 | L44: 5.9 | M44: 0.069 | N44: 1.65 | O44: 1 | P44: 1.62 | Q44: 54 | R44: 10 | S44: 288.1 | T44: 2 | U44: 0 | V44: 0 | W44: 20 | X44: 976 | Y44: 0 | Z44: ADJ-A1 | AA44: NoSubs | AB44: -0.9 | AC44: =#REF!*10^(($AH$2*(S44-273))/((S44-273)+$AH$3)) -> 
A45: 13 | B45: 1 | C45: 2 | D45: 2 | E45: 20 | F45: -3.4 | G45: 0.1 | H45: -9 | I45: -9 | J45: -999 | K45: 35 | L45: 5.4 | M45: 0.07 | N45: 1.65 | O45: 1 | P45: 1.48 | Q45: 284 | R45: 10 | S45: 284.2 | T45: 2 | U45: 0 | V45: 0 | W45: 30 | X45: 976 | Y45: 0 | Z45: ADJ-A1 | AA45: NoSubs | AB45: -2.8 | AC45: =#REF!*10^(($AH$2*(S45-273))/((S45-273)+$AH$3)) -> 
A46: 13 | B46: 1 | C46: 2 | D46: 2 | E46: 21 | F46: -8.4 | G46: 0.1 | H46: -9 | I46: -9 | J46: -999 | K46: 68 | L46: 8.4 | M46: 0.07 | N46: 1.65 | O46: 1 | P46: 2.32 | Q46: 285 | R46: 10 | S46: 283.8 | T46: 2 | U46: 0 | V46: 0 | W46: 31 | X46: 977 | Y46: 0 | Z46: ADJ-A1 | AA46: NoSubs | AB46: -3 | AC46: =#REF!*10^(($AH$2*(S46-273))/((S46-273)+$AH$3)) -> 
A47: 13 | B47: 1 | C47: 2 | D47: 2 | E47: 22 | F47: -2.5 | G47: 0.1 | H47: -9 | I47: -9 | J47: -999 | K47: 28 | L47: 4.8 | M47: 0.078 | N47: 1.65 | O47: 1 | P47: 1.25 | Q47: 196 | R47: 10 | S47: 282.5 | T47: 2 | U47: 0 | V47: 0 | W47: 35 | X47: 977 | Y47: 3 | Z47: ADJ-A1 | AA47: NoSubs | AB47: -3.5 | AC47: =#REF!*10^(($AH$2*(S47-273))/((S47-273)+$AH$3)) -> 
A48: 13 | B48: 1 | C48: 2 | D48: 2 | E48: 23 | F48: -8.8 | G48: 0.1 | H48: -9 | I48: -9 | J48: -999 | K48: 72 | L48: 8.9 | M48: 0.069 | N48: 1.65 | O48: 1 | P48: 2.4 | Q48: 53 | R48: 10 | S48: 285.4 | T48: 2 | U48: 0 | V48: 0 | W48: 25 | X48: 977 | Y48: 3 | Z48: ADJ-A1 | AA48: NoSubs | AB48: -2.6 | AC48: =#REF!*10^(($AH$2*(S48-273))/((S48-273)+$AH$3)) -> 
A49: 13 | B49: 1 | C49: 2 | D49: 2 | E49: 24 | F49: -30.9 | G49: 0.1 | H49: -9 | I49: -9 | J49: -999 | K49: 393 | L49: 75.6 | M49: 0.069 | N49: 1.65 | O49: 1 | P49: 4.22 | Q49: 52 | R49: 10 | S49: 284.9 | T49: 2 | U49: 0 | V49: 0 | W49: 21 | X49: 977 | Y49: 3 | Z49: ADJ-A1 | AA49: NoSubs | AB49: -3.9 | AC49: =#REF!*10^(($AH$2*(S49-273))/((S49-273)+$AH$3)) -> 
A50: 13 | B50: 1 | C50: 3 | D50: 3 | E50: 1 | F50: -22.7 | G50: 0.1 | H50: -9 | I50: -9 | J50: -999 | K50: 234 | L50: 35.3 | M50: 0.069 | N50: 1.65 | O50: 1 | P50: 3.35 | Q50: 55 | R50: 10 | S50: 284.2 | T50: 2 | U50: 0 | V50: 0 | W50: 19 | X50: 977 | Y50: 0 | Z50: ADJ-A1 | AA50: NoSubs | AB50: -5 | AC50: =#REF!*10^(($AH$2*(S50-273))/((S50-273)+$AH$3)) -> 
A51: 13 | B51: 1 | C51: 3 | D51: 3 | E51: 2 | F51: -15.9 | G51: 0.1 | H51: -9 | I51: -9 | J51: -999 | K51: 136 | L51: 17.4 | M51: 0.069 | N51: 1.65 | O51: 1 | P51: 2.89 | Q51: 53 | R51: 10 | S51: 283.8 | T51: 2 | U51: 0 | V51: 0 | W51: 20 | X51: 977 | Y51: 0 | Z51: ADJ-A1 | AA51: NoSubs | AB51: -5.2 | AC51: =#REF!*10^(($AH$2*(S51-273))/((S51-273)+$AH$3)) -> 
A52: 13 | B52: 1 | C52: 3 | D52: 3 | E52: 3 | F52: -11.4 | G52: 0.1 | H52: -9 | I52: -9 | J52: -999 | K52: 85 | L52: 9.6 | M52: 0.065 | N52: 1.65 | O52: 1 | P52: 2.72 | Q52: 358 | R52: 10 | S52: 282 | T52: 2 | U52: 0 | V52: 0 | W52: 28 | X52: 978 | Y52: 0 | Z52: ADJ-A1 | AA52: NoSubs | AB52: -5.4 | AC52: =#REF!*10^(($AH$2*(S52-273))/((S52-273)+$AH$3)) -> 
A53: 13 | B53: 1 | C53: 3 | D53: 3 | E53: 4 | F53: -8.3 | G53: 0.1 | H53: -9 | I53: -9 | J53: -999 | K53: 67 | L53: 8.3 | M53: 0.069 | N53: 1.65 | O53: 1 | P53: 2.3 | Q53: 34 | R53: 10 | S53: 283.1 | T53: 2 | U53: 0 | V53: 0 | W53: 22 | X53: 978 | Y53: 0 | Z53: ADJ-A1 | AA53: NoSubs | AB53: -5.5 | AC53: =#REF!*10^(($AH$2*(S53-273))/((S53-273)+$AH$3)) -> 
A54: 13 | B54: 1 | C54: 3 | D54: 3 | E54: 5 | F54: -2.4 | G54: 0.1 | H54: -9 | I54: -9 | J54: -999 | K54: 27 | L54: 4.4 | M54: 0.07 | N54: 1.65 | O54: 1 | P54: 1.23 | Q54: 15 | R54: 10 | S54: 280.9 | T54: 2 | U54: 0 | V54: 0 | W54: 28 | X54: 978 | Y54: 0 | Z54: ADJ-A1 | AA54: NoSubs | AB54: -6.5 | AC54: =#REF!*10^(($AH$2*(S54-273))/((S54-273)+$AH$3)) -> 
A55: 13 | B55: 1 | C55: 3 | D55: 3 | E55: 6 | F55: -4 | G55: 0.1 | H55: -9 | I55: -9 | J55: -999 | K55: 39 | L55: 5.8 | M55: 0.078 | N55: 1.65 | O55: 1 | P55: 1.57 | Q55: 190 | R55: 10 | S55: 279.2 | T55: 2 | U55: 0 | V55: 0 | W55: 41 | X55: 978 | Y55: 0 | Z55: ADJ-A1 | AA55: NoSubs | AB55: -5.6 | AC55: =#REF!*10^(($AH$2*(S55-273))/((S55-273)+$AH$3)) -> 
A56: 13 | B56: 1 | C56: 3 | D56: 3 | E56: 7 | F56: -11 | G56: 0.1 | H56: -9 | I56: -9 | J56: -999 | K56: 83 | L56: 9.5 | M56: 0.07 | N56: 1.65 | O56: 1 | P56: 2.64 | Q56: 72 | R56: 10 | S56: 280.4 | T56: 2 | U56: 0 | V56: 0 | W56: 28 | X56: 979 | Y56: 0 | Z56: ADJ-A1 | AA56: NoSubs | AB56: -7 | AC56: =#REF!*10^(($AH$2*(S56-273))/((S56-273)+$AH$3)) -> 
A57: 13 | B57: 1 | C57: 3 | D57: 3 | E57: 8 | F57: -2.1 | G57: 0.1 | H57: -9 | I57: -9 | J57: -999 | K57: 25 | L57: 4.1 | M57: 0.065 | N57: 1.65 | O57: 1 | P57: 1.16 | Q57: 336 | R57: 10 | S57: 278.1 | T57: 2 | U57: 0 | V57: 0 | W57: 42 | X57: 979 | Y57: 0 | Z57: ADJ-A1 | AA57: NoSubs | AB57: -6.5 | AC57: =#REF!*10^(($AH$2*(S57-273))/((S57-273)+$AH$3)) -> 
A58: 13 | B58: 1 | C58: 3 | D58: 3 | E58: 9 | F58: -0.5 | G58: 0.1 | H58: -9 | I58: -9 | J58: -999 | K58: 14 | L58: 6 | M58: 0.072 | N58: 1.65 | O58: 0.42 | P58: 0.8 | Q58: 229 | R58: 10 | S58: 280.9 | T58: 2 | U58: 0 | V58: 0 | W58: 38 | X58: 980 | Y58: 0 | Z58: ADJ-A1 | AA58: NoSubs | AB58: -4.5 | AC58: =#REF!*10^(($AH$2*(S58-273))/((S58-273)+$AH$3)) -> 
A59: 13 | B59: 1 | C59: 3 | D59: 3 | E59: 10 | F59: 58 | G59: 0.1 | H59: 0.563 | I59: 0.013 | J59: 108 | K59: 108 | L59: -3.1 | M59: 0.049 | N59: 1.65 | O59: 0.28 | P59: 1.14 | Q59: 258 | R59: 10 | S59: 283.8 | T59: 2 | U59: 0 | V59: 0 | W59: 25 | X59: 980 | Y59: 0 | Z59: ADJ-A1 | AA59: NoSubs | AB59: -4.2 | AC59: =#REF!*10^(($AH$2*(S59-273))/((S59-273)+$AH$3)) -> 
A60: 13 | B60: 1 | C60: 3 | D60: 3 | E60: 11 | F60: 112.5 | G60: 0.1 | H60: 0.955 | I60: 0.005 | J60: 271 | K60: 849 | L60: -97.4 | M60: 0.07 | N60: 1.65 | O60: 0.23 | P60: 5.85 | Q60: 65 | R60: 10 | S60: 286.4 | T60: 2 | U60: 0 | V60: 0 | W60: 17 | X60: 981 | Y60: 0 | Z60: ADJ-A1 | AA60: NoSubs | AB60: -3.2 | AC60: =#REF!*10^(($AH$2*(S60-273))/((S60-273)+$AH$3)) -> 
A61: 13 | B61: 1 | C61: 3 | D61: 3 | E61: 12 | F61: 146.5 | G61: 0.1 | H61: 1.21 | I61: 0.005 | J61: 423 | K61: 914 | L61: -86.6 | M61: 0.07 | N61: 1.65 | O61: 0.22 | P61: 6.11 | Q61: 63 | R61: 10 | S61: 287.5 | T61: 2 | U61: 0 | V61: 0 | W61: 17 | X61: 980 | Y61: 0 | Z61: ADJ-A1 | AA61: NoSubs | AB61: -2.1 | AC61: =#REF!*10^(($AH$2*(S61-273))/((S61-273)+$AH$3)) -> 
A62: 13 | B62: 1 | C62: 3 | D62: 3 | E62: 13 | F62: 158.9 | G62: 0.1 | H62: 1.349 | I62: 0.005 | J62: 540 | K62: 935 | L62: -83.4 | M62: 0.069 | N62: 1.65 | O62: 0.21 | P62: 6.21 | Q62: 53 | R62: 10 | S62: 288.8 | T62: 2 | U62: 0 | V62: 0 | W62: 16 | X62: 979 | Y62: 0 | Z62: ADJ-A1 | AA62: NoSubs | AB62: -1 | AC62: =#REF!*10^(($AH$2*(S62-273))/((S62-273)+$AH$3)) -> 
A63: 13 | B63: 1 | C63: 3 | D63: 3 | E63: 14 | F63: 149 | G63: 0.1 | H63: 1.405 | I63: 0.005 | J63: 651 | K63: 872 | L63: -77.2 | M63: 0.069 | N63: 1.65 | O63: 0.21 | P63: 5.9 | Q63: 57 | R63: 10 | S63: 289.2 | T63: 2 | U63: 0 | V63: 0 | W63: 16 | X63: 978 | Y63: 0 | Z63: ADJ-A1 | AA63: NoSubs | AB63: -0.6 | AC63: =#REF!*10^(($AH$2*(S63-273))/((S63-273)+$AH$3)) -> 
A64: 13 | B64: 1 | C64: 3 | D64: 3 | E64: 15 | F64: 117.4 | G64: 0.1 | H64: 1.366 | I64: 0.005 | J64: 759 | K64: 1077 | L64: -150.1 | M64: 0.07 | N64: 1.65 | O64: 0.23 | P64: 6.98 | Q64: 71 | R64: 10 | S64: 289.9 | T64: 2 | U64: 0 | V64: 0 | W64: 15 | X64: 978 | Y64: 0 | Z64: ADJ-A1 | AA64: NoSubs | AB64: -0.1 | AC64: =#REF!*10^(($AH$2*(S64-273))/((S64-273)+$AH$3)) -> 
A65: 13 | B65: 1 | C65: 3 | D65: 3 | E65: 16 | F65: 65.3 | G65: 0.1 | H65: 1.145 | I65: 0.005 | J65: 803 | K65: 919 | L65: -193.7 | M65: 0.07 | N65: 1.65 | O65: 0.27 | P65: 6.3 | Q65: 71 | R65: 10 | S65: 289.9 | T65: 2 | U65: 0 | V65: 0 | W65: 16 | X65: 979 | Y65: 0 | Z65: ADJ-A1 | AA65: NoSubs | AB65: 0.1 | AC65: =#REF!*10^(($AH$2*(S65-273))/((S65-273)+$AH$3)) -> 
A66: 13 | B66: 1 | C66: 3 | D66: 3 | E66: 17 | F66: -0.6 | G66: 0.1 | H66: -9 | I66: -9 | J66: -999 | K66: 757 | L66: 8888 | M66: 0.07 | N66: 1.65 | O66: 0.4 | P66: 5.73 | Q66: 68 | R66: 10 | S66: 289.9 | T66: 2 | U66: 0 | V66: 0 | W66: 17 | X66: 979 | Y66: 0 | Z66: ADJ-A1 | AA66: NoSubs | AB66: 0.3 | AC66: =#REF!*10^(($AH$2*(S66-273))/((S66-273)+$AH$3)) -> 
A67: 13 | B67: 1 | C67: 3 | D67: 3 | E67: 18 | F67: -38.1 | G67: 0.1 | H67: -9 | I67: -9 | J67: -999 | K67: 518 | L67: 103.5 | M67: 0.07 | N67: 1.65 | O67: 1 | P67: 4.85 | Q67: 71 | R67: 10 | S67: 288.1 | T67: 2 | U67: 0 | V67: 0 | W67: 19 | X67: 979 | Y67: 0 | Z67: ADJ-A1 | AA67: NoSubs | AB67: =(S67-273)-((100-W67)/5) -> -1.1 | AC67: =#REF!*10^(($AH$2*(S67-273))/((S67-273)+$AH$3)) ->  | AD67: =621.9907*AC67/(X67-AC67) -> 
A68: 13 | B68: 1 | C68: 3 | D68: 3 | E68: 19 | F68: -36.4 | G68: 0.1 | H68: -9 | I68: -9 | J68: -999 | K68: 475 | L68: 93.9 | M68: 0.069 | N68: 1.65 | O68: 1 | P68: 4.68 | Q68: 51 | R68: 10 | S68: 287.5 | T68: 2 | U68: 0 | V68: 0 | W68: 20 | X68: 980 | Y68: 0 | Z68: ADJ-A1 | AA68: NoSubs | AB68: -1.5 | AC68: =#REF!*10^(($AH$2*(S68-273))/((S68-273)+$AH$3)) -> 
A69: 13 | B69: 1 | C69: 3 | D69: 3 | E69: 20 | F69: -41.7 | G69: 0.1 | H69: -9 | I69: -9 | J69: -999 | K69: 578 | L69: 121.8 | M69: 0.069 | N69: 1.65 | O69: 1 | P69: 5.22 | Q69: 38 | R69: 10 | S69: 286.4 | T69: 2 | U69: 0 | V69: 0 | W69: 17 | X69: 980 | Y69: 0 | Z69: ADJ-A1 | AA69: NoSubs | AB69: -3.2 | AC69: =#REF!*10^(($AH$2*(S69-273))/((S69-273)+$AH$3)) -> 
A70: 13 | B70: 1 | C70: 3 | D70: 3 | E70: 21 | F70: -50.7 | G70: 0.1 | H70: -9 | I70: -9 | J70: -999 | K70: 769 | L70: 177.3 | M70: 0.069 | N70: 1.65 | O70: 1 | P70: 6.16 | Q70: 47 | R70: 10 | S70: 285.4 | T70: 2 | U70: 0 | V70: 0 | W70: 18 | X70: 981 | Y70: 0 | Z70: ADJ-A1 | AA70: NoSubs | AB70: -4 | AC70: =#REF!*10^(($AH$2*(S70-273))/((S70-273)+$AH$3)) -> 
A71: 13 | B71: 1 | C71: 3 | D71: 3 | E71: 22 | F71: -49.2 | G71: 0.1 | H71: -9 | I71: -9 | J71: -999 | K71: 734 | L71: 166.2 | M71: 0.069 | N71: 1.65 | O71: 1 | P71: 5.99 | Q71: 59 | R71: 10 | S71: 284.9 | T71: 2 | U71: 0 | V71: 0 | W71: 20 | X71: 982 | Y71: 0 | Z71: ADJ-A1 | AA71: NoSubs | AB71: -4.1 | AC71: =#REF!*10^(($AH$2*(S71-273))/((S71-273)+$AH$3)) -> 
A72: 13 | B72: 1 | C72: 3 | D72: 3 | E72: 23 | F72: -31.6 | G72: 0.1 | H72: -9 | I72: -9 | J72: -999 | K72: 396 | L72: 67.7 | M72: 0.069 | N72: 1.65 | O72: 1 | P72: 4.15 | Q72: 52 | R72: 10 | S72: 283.8 | T72: 2 | U72: 0 | V72: 0 | W72: 22 | X72: 983 | Y72: 0 | Z72: ADJ-A1 | AA72: NoSubs | AB72: -4.8 | AC72: =#REF!*10^(($AH$2*(S72-273))/((S72-273)+$AH$3)) -> 
A73: 13 | B73: 1 | C73: 3 | D73: 3 | E73: 24 | F73: -29 | G73: 0.1 | H73: -9 | I73: -9 | J73: -999 | K73: 330 | L73: 57 | M73: 0.069 | N73: 1.65 | O73: 1 | P73: 3.9 | Q73: 49 | R73: 10 | S73: 283.8 | T73: 2 | U73: 0 | V73: 0 | W73: 21 | X73: 983 | Y73: 0 | Z73: ADJ-A1 | AA73: NoSubs | AB73: -5 | AC73: =#REF!*10^(($AH$2*(S73-273))/((S73-273)+$AH$3)) -> 
A74: 13 | B74: 1 | C74: 4 | D74: 4 | E74: 1 | F74: -18.5 | G74: 0.1 | H74: -9 | I74: -9 | J74: -999 | K74: 171 | L74: 23 | M74: 0.069 | N74: 1.65 | O74: 1 | P74: 3.03 | Q74: 56 | R74: 10 | S74: 283.1 | T74: 2 | U74: 0 | V74: 0 | W74: 24 | X74: 982 | Y74: 0 | Z74: ADJ-A1 | AA74: NoSubs | AB74: -5.1 | AC74: =#REF!*10^(($AH$2*(S74-273))/((S74-273)+$AH$3)) -> 
A75: 13 | B75: 1 | C75: 4 | D75: 4 | E75: 2 | F75: -7.4 | G75: 0.1 | H75: -9 | I75: -9 | J75: -999 | K75: 64 | L75: 7.8 | M75: 0.069 | N75: 1.65 | O75: 1 | P75: 2.16 | Q75: 56 | R75: 10 | S75: 282 | T75: 2 | U75: 0 | V75: 0 | W75: 27 | X75: 983 | Y75: 0 | Z75: ADJ-A1 | AA75: NoSubs | AB75: -5.6 | AC75: =#REF!*10^(($AH$2*(S75-273))/((S75-273)+$AH$3)) -> 
A76: 13 | B76: 1 | C76: 4 | D76: 4 | E76: 3 | F76: -5.9 | G76: 0.1 | H76: -9 | I76: -9 | J76: -999 | K76: 52 | L76: 6.9 | M76: 0.072 | N76: 1.65 | O76: 1 | P76: 1.91 | Q76: 234 | R76: 10 | S76: 278.8 | T76: 2 | U76: 0 | V76: 0 | W76: 33 | X76: 984 | Y76: 0 | Z76: ADJ-A1 | AA76: NoSubs | AB76: -7.6 | AC76: =#REF!*10^(($AH$2*(S76-273))/((S76-273)+$AH$3)) -> 
A77: 13 | B77: 1 | C77: 4 | D77: 4 | E77: 4 | F77: -8.9 | G77: 0.1 | H77: -9 | I77: -9 | J77: -999 | K77: 71 | L77: 8.6 | M77: 0.07 | N77: 1.65 | O77: 1 | P77: 2.37 | Q77: 82 | R77: 10 | S77: 281.4 | T77: 2 | U77: 0 | V77: 0 | W77: 28 | X77: 984 | Y77: 0 | Z77: ADJ-A1 | AA77: NoSubs | AB77: -6 | AC77: =#REF!*10^(($AH$2*(S77-273))/((S77-273)+$AH$3)) -> 
A78: 13 | B78: 1 | C78: 4 | D78: 4 | E78: 5 | F78: -11 | G78: 0.1 | H78: -9 | I78: -9 | J78: -999 | K78: 84 | L78: 9.6 | M78: 0.081 | N78: 1.65 | O78: 1 | P78: 2.57 | Q78: 128 | R78: 10 | S78: 278.1 | T78: 2 | U78: 0 | V78: 0 | W78: 37 | X78: 984 | Y78: 0 | Z78: ADJ-A1 | AA78: NoSubs | AB78: -7.5 | AC78: =#REF!*10^(($AH$2*(S78-273))/((S78-273)+$AH$3)) -> 
A79: 13 | B79: 1 | C79: 4 | D79: 4 | E79: 6 | F79: -3.5 | G79: 0.1 | H79: -9 | I79: -9 | J79: -999 | K79: 35 | L79: 5.4 | M79: 0.072 | N79: 1.65 | O79: 1 | P79: 1.48 | Q79: 238 | R79: 10 | S79: 278.1 | T79: 2 | U79: 0 | V79: 0 | W79: 39 | X79: 984 | Y79: 0 | Z79: ADJ-A1 | AA79: NoSubs | AB79: -7.1 | AC79: =#REF!*10^(($AH$2*(S79-273))/((S79-273)+$AH$3)) -> 
A80: 13 | B80: 1 | C80: 4 | D80: 4 | E80: 7 | F80: -10.5 | G80: 0.1 | H80: -9 | I80: -9 | J80: -999 | K80: 80 | L80: 9.3 | M80: 0.07 | N80: 1.65 | O80: 1 | P80: 2.57 | Q80: 12 | R80: 10 | S80: 281.4 | T80: 2 | U80: 0 | V80: 0 | W80: 29 | X80: 984 | Y80: 0 | Z80: ADJ-A1 | AA80: NoSubs | AB80: -5.8 | AC80: =#REF!*10^(($AH$2*(S80-273))/((S80-273)+$AH$3)) -> 
A81: 13 | B81: 1 | C81: 4 | D81: 4 | E81: 8 | F81: -42.2 | G81: 0.1 | H81: -9 | I81: -9 | J81: -999 | K81: 568 | L81: 116.8 | M81: 0.07 | N81: 1.65 | O81: 1 | P81: 5.16 | Q81: 74 | R81: 10 | S81: 281.4 | T81: 2 | U81: 0 | V81: 0 | W81: 31 | X81: 985 | Y81: 0 | Z81: ADJ-A1 | AA81: NoSubs | AB81: -5.4 | AC81: =#REF!*10^(($AH$2*(S81-273))/((S81-273)+$AH$3)) -> 
A82: 13 | B82: 1 | C82: 4 | D82: 4 | E82: 9 | F82: 0.1 | G82: 0.1 | H82: 0.038 | I82: 0.007 | J82: 15 | K82: 770 | L82: -8888 | M82: 0.07 | N82: 1.65 | O82: 0.42 | P82: 5.82 | Q82: 68 | R82: 10 | S82: 282.5 | T82: 2 | U82: 0 | V82: 0 | W82: 28 | X82: 986 | Y82: 3 | Z82: ADJ-A1 | AA82: NoSubs | AB82: -4.9 | AC82: =#REF!*10^(($AH$2*(S82-273))/((S82-273)+$AH$3)) -> 
A83: 13 | B83: 1 | C83: 4 | D83: 4 | E83: 10 | F83: 65.7 | G83: 0.1 | H83: 0.926 | I83: 0.005 | J83: 425 | K83: 1038 | L83: -250.4 | M83: 0.07 | N83: 1.65 | O83: 0.28 | P83: 6.91 | Q83: 71 | R83: 10 | S83: 283.8 | T83: 2 | U83: 0 | V83: 0 | W83: 27 | X83: 986 | Y83: 3 | Z83: ADJ-A1 | AA83: NoSubs | AB83: -3.8 | AC83: =#REF!*10^(($AH$2*(S83-273))/((S83-273)+$AH$3)) -> 
A84: 13 | B84: 1 | C84: 4 | D84: 4 | E84: 11 | F84: 112.1 | G84: 0.1 | H84: 1.285 | I84: 0.005 | J84: 665 | K84: 1207 | L84: -198.9 | M84: 0.07 | N84: 1.65 | O84: 0.23 | P84: 7.6 | Q84: 71 | R84: 10 | S84: 284.9 | T84: 2 | U84: 0 | V84: 0 | W84: 28 | X84: 986 | Y84: 0 | Z84: ADJ-A1 | AA84: NoSubs | AB84: -2.5 | AC84: =#REF!*10^(($AH$2*(S84-273))/((S84-273)+$AH$3)) -> 
A85: 13 | B85: 1 | C85: 4 | D85: 4 | E85: 12 | F85: 146.2 | G85: 0.1 | H85: 1.485 | I85: 0.006 | J85: 788 | K85: 880 | L85: -77.8 | M85: 0.07 | N85: 1.65 | O85: 0.22 | P85: 5.85 | Q85: 66 | R85: 10 | S85: 285.9 | T85: 2 | U85: 0 | V85: 0 | W85: 27 | X85: 985 | Y85: 0 | Z85: ADJ-A1 | AA85: NoSubs | AB85: -1.7 | AC85: =#REF!*10^(($AH$2*(S85-273))/((S85-273)+$AH$3)) -> 
A86: 13 | B86: 1 | C86: 4 | D86: 4 | E86: 13 | F86: 159 | G86: 0.1 | H86: 1.582 | I86: 0.006 | J86: 875 | K86: 531 | L86: -25 | M86: 0.061 | N86: 1.65 | O86: 0.21 | P86: 3.93 | Q86: 102 | R86: 10 | S86: 287.5 | T86: 2 | U86: 0 | V86: 0 | W86: 25 | X86: 983 | Y86: 0 | Z86: ADJ-A1 | AA86: NoSubs | AB86: -0.5 | AC86: =#REF!*10^(($AH$2*(S86-273))/((S86-273)+$AH$3)) -> 
A87: 13 | B87: 1 | C87: 4 | D87: 4 | E87: 14 | F87: 149.5 | G87: 0.1 | H87: 1.594 | I87: 0.005 | J87: 950 | K87: 437 | L87: -19.3 | M87: 0.07 | N87: 1.65 | O87: 0.21 | P87: 3.34 | Q87: 84 | R87: 10 | S87: 288.8 | T87: 2 | U87: 0 | V87: 0 | W87: 21 | X87: 982 | Y87: 0 | Z87: ADJ-A1 | AA87: NoSubs | AB87: 0 | AC87: =#REF!*10^(($AH$2*(S87-273))/((S87-273)+$AH$3)) -> 
A88: 13 | B88: 1 | C88: 4 | D88: 4 | E88: 15 | F88: 117.7 | G88: 0.1 | H88: 1.499 | I88: 0.005 | J88: 1005 | K88: 409 | L88: -21.6 | M88: 0.069 | N88: 1.65 | O88: 0.23 | P88: 3.25 | Q88: 56 | R88: 10 | S88: 288.8 | T88: 2 | U88: 0 | V88: 0 | W88: 21 | X88: 982 | Y88: 0 | Z88: ADJ-A1 | AA88: NoSubs | AB88: 0 | AC88: =#REF!*10^(($AH$2*(S88-273))/((S88-273)+$AH$3)) -> 
A89: 13 | B89: 1 | C89: 4 | D89: 4 | E89: 16 | F89: 65.7 | G89: 0.1 | H89: 1.251 | I89: 0.005 | J89: 1046 | K89: 202 | L89: -8.7 | M89: 0.081 | N89: 1.65 | O89: 0.27 | P89: 1.71 | Q89: 123 | R89: 10 | S89: 288.8 | T89: 2 | U89: 0 | V89: 0 | W89: 20 | X89: 982 | Y89: 0 | Z89: ADJ-A1 | AA89: NoSubs | AB89: -0.2 | AC89: =#REF!*10^(($AH$2*(S89-273))/((S89-273)+$AH$3)) -> 
A90: 13 | B90: 1 | C90: 4 | D90: 4 | E90: 17 | F90: 0.1 | G90: 0.1 | H90: 0.128 | I90: 0.005 | J90: 1046 | K90: 85 | L90: -1467.1 | M90: 0.072 | N90: 1.65 | O90: 0.4 | P90: 1.3 | Q90: 232 | R90: 10 | S90: 288.8 | T90: 2 | U90: 0 | V90: 0 | W90: 20 | X90: 982 | Y90: 0 | Z90: ADJ-A1 | AA90: NoSubs | AB90: -0.2 | AC90: =#REF!*10^(($AH$2*(S90-273))/((S90-273)+$AH$3)) -> 
A91: 13 | B91: 1 | C91: 4 | D91: 4 | E91: 18 | F91: -2.9 | G91: 0.1 | H91: -9 | I91: -9 | J91: -999 | K91: 32 | L91: 5.1 | M91: 0.091 | N91: 1.65 | O91: 1 | P91: 1.3 | Q91: 155 | R91: 10 | S91: 287 | T91: 2 | U91: 0 | V91: 0 | W91: 25 | X91: 982 | Y91: 0 | Z91: ADJ-A1 | AA91: NoSubs | AB91: -1 | AC91: =#REF!*10^(($AH$2*(S91-273))/((S91-273)+$AH$3)) -> 
A92: 13 | B92: 1 | C92: 4 | D92: 4 | E92: 19 | F92: -1.9 | G92: 0.1 | H92: -9 | I92: -9 | J92: -999 | K92: 23 | L92: 4.1 | M92: 0.072 | N92: 1.65 | O92: 1 | P92: 1.11 | Q92: 218 | R92: 10 | S92: 286.4 | T92: 2 | U92: 0 | V92: 0 | W92: 26 | X92: 983 | Y92: 0 | Z92: ADJ-A1 | AA92: NoSubs | AB92: -1.4 | AC92: =#REF!*10^(($AH$2*(S92-273))/((S92-273)+$AH$3)) -> 
A93: 13 | B93: 1 | C93: 4 | D93: 4 | E93: 20 | F93: -1.6 | G93: 0.1 | H93: -9 | I93: -9 | J93: -999 | K93: 20 | L93: 3.7 | M93: 0.072 | N93: 1.65 | O93: 1 | P93: 1.01 | Q93: 224 | R93: 10 | S93: 283.8 | T93: 2 | U93: 0 | V93: 0 | W93: 37 | X93: 983 | Y93: 0 | Z93: ADJ-A1 | AA93: NoSubs | AB93: -1.8 | AC93: =#REF!*10^(($AH$2*(S93-273))/((S93-273)+$AH$3)) -> 
A94: 13 | B94: 1 | C94: 4 | D94: 4 | E94: 21 | F94: -4.4 | G94: 0.1 | H94: -9 | I94: -9 | J94: -999 | K94: 41 | L94: 5.8 | M94: 0.049 | N94: 1.65 | O94: 1 | P94: 1.76 | Q94: 259 | R94: 10 | S94: 284.9 | T94: 2 | U94: 0 | V94: 0 | W94: 30 | X94: 984 | Y94: 0 | Z94: ADJ-A1 | AA94: NoSubs | AB94: -2.1 | AC94: =#REF!*10^(($AH$2*(S94-273))/((S94-273)+$AH$3)) -> 
A95: 13 | B95: 1 | C95: 4 | D95: 4 | E95: 22 | F95: -2.7 | G95: 0.1 | H95: -9 | I95: -9 | J95: -999 | K95: 29 | L95: 4.8 | M95: 0.072 | N95: 1.65 | O95: 1 | P95: 1.31 | Q95: 222 | R95: 10 | S95: 282 | T95: 2 | U95: 0 | V95: 0 | W95: 40 | X95: 984 | Y95: 0 | Z95: ADJ-A1 | AA95: NoSubs | AB95: -3 | AC95: =#REF!*10^(($AH$2*(S95-273))/((S95-273)+$AH$3)) -> 
A96: 13 | B96: 1 | C96: 4 | D96: 4 | E96: 23 | F96: -6.2 | G96: 0.1 | H96: -9 | I96: -9 | J96: -999 | K96: 53 | L96: 7 | M96: 0.061 | N96: 1.65 | O96: 1 | P96: 2.01 | Q96: 97 | R96: 10 | S96: 280.9 | T96: 2 | U96: 0 | V96: 0 | W96: 45 | X96: 985 | Y96: 0 | Z96: ADJ-A1 | AA96: NoSubs | AB96: -3.1 | AC96: =#REF!*10^(($AH$2*(S96-273))/((S96-273)+$AH$3)) -> 
A97: 13 | B97: 1 | C97: 4 | D97: 4 | E97: 24 | F97: -4.8 | G97: 0.1 | H97: -9 | I97: -9 | J97: -999 | K97: 44 | L97: 6.1 | M97: 0.061 | N97: 1.65 | O97: 1 | P97: 1.77 | Q97: 114 | R97: 10 | S97: 280.4 | T97: 2 | U97: 0 | V97: 0 | W97: 45 | X97: 984 | Y97: 0 | Z97: ADJ-A1 | AA97: NoSubs | AB97: -3.6 | AC97: =#REF!*10^(($AH$2*(S97-273))/((S97-273)+$AH$3)) -> 
A98: 13 | B98: 1 | C98: 5 | D98: 5 | E98: 1 | F98: -2.4 | G98: 0.1 | H98: -9 | I98: -9 | J98: -999 | K98: 27 | L98: 4.5 | M98: 0.081 | N98: 1.65 | O98: 1 | P98: 1.21 | Q98: 130 | R98: 10 | S98: 279.9 | T98: 2 | U98: 0 | V98: 0 | W98: 46 | X98: 984 | Y98: 0 | Z98: ADJ-A1 | AA98: NoSubs | AB98: -3.9 | AC98: =#REF!*10^(($AH$2*(S98-273))/((S98-273)+$AH$3)) -> 
A99: 13 | B99: 1 | C99: 5 | D99: 5 | E99: 2 | F99: -4.4 | G99: 0.1 | H99: -9 | I99: -9 | J99: -999 | K99: 42 | L99: 6.1 | M99: 0.081 | N99: 1.65 | O99: 1 | P99: 1.62 | Q99: 134 | R99: 10 | S99: 279.2 | T99: 2 | U99: 0 | V99: 0 | W99: 48 | X99: 984 | Y99: 0 | Z99: ADJ-A1 | AA99: NoSubs | AB99: -4.2 | AC99: =#REF!*10^(($AH$2*(S99-273))/((S99-273)+$AH$3)) -> 
A100: 13 | B100: 1 | C100: 5 | D100: 5 | E100: 3 | F100: -1.4 | G100: 0.1 | H100: -9 | I100: -9 | J100: -999 | K100: 18 | L100: 3.5 | M100: 0.091 | N100: 1.65 | O100: 1 | P100: 0.89 | Q100: 161 | R100: 10 | S100: 279.2 | T100: 2 | U100: 0 | V100: 0 | W100: 46 | X100: 985 | Y100: 0 | Z100: ADJ-A1 | AA100: NoSubs | AB100: -4.6 | AC100: =#REF!*10^(($AH$2*(S100-273))/((S100-273)+$AH$3)) -> 
A101: 13 | B101: 1 | C101: 5 | D101: 5 | E101: 4 | F101: -0.5 | G101: 0.1 | H101: -9 | I101: -9 | J101: -999 | K101: 8 | L101: 2 | M101: 0.081 | N101: 1.65 | O101: 1 | P101: 0.53 | Q101: 132 | R101: 10 | S101: 278.1 | T101: 2 | U101: 0 | V101: 0 | W101: 52 | X101: 985 | Y101: 0 | Z101: ADJ-A1 | AA101: NoSubs | AB101: -4.5 | AC101: =#REF!*10^(($AH$2*(S101-273))/((S101-273)+$AH$3)) -> 
A102: 13 | B102: 1 | C102: 5 | D102: 5 | E102: 5 | F102: -1.3 | G102: 0.1 | H102: -9 | I102: -9 | J102: -999 | K102: 17 | L102: 3.4 | M102: 0.091 | N102: 1.65 | O102: 1 | P102: 0.87 | Q102: 166 | R102: 10 | S102: 278.1 | T102: 2 | U102: 0 | V102: 0 | W102: 52 | X102: 985 | Y102: 0 | Z102: ADJ-A1 | AA102: NoSubs | AB102: -4.5 | AC102: =#REF!*10^(($AH$2*(S102-273))/((S102-273)+$AH$3)) -> 
A103: 13 | B103: 1 | C103: 5 | D103: 5 | E103: 6 | F103: -1.5 | G103: 0.1 | H103: -9 | I103: -9 | J103: -999 | K103: 18 | L103: 3.5 | M103: 0.07 | N103: 1.65 | O103: 1 | P103: 0.97 | Q103: 79 | R103: 10 | S103: 278.1 | T103: 2 | U103: 0 | V103: 0 | W103: 50 | X103: 986 | Y103: 0 | Z103: ADJ-A1 | AA103: NoSubs | AB103: -4.9 | AC103: =#REF!*10^(($AH$2*(S103-273))/((S103-273)+$AH$3)) -> 
A104: 13 | B104: 1 | C104: 5 | D104: 5 | E104: 7 | F104: -0.9 | G104: 0.1 | H104: -9 | I104: -9 | J104: -999 | K104: 12 | L104: 2.6 | M104: 0.069 | N104: 1.65 | O104: 1 | P104: 0.74 | Q104: 38 | R104: 10 | S104: 276.4 | T104: 2 | U104: 0 | V104: 0 | W104: 59 | X104: 986 | Y104: 0 | Z104: ADJ-A1 | AA104: NoSubs | AB104: -4.8 | AC104: =#REF!*10^(($AH$2*(S104-273))/((S104-273)+$AH$3)) -> 
A105: 13 | B105: 1 | C105: 5 | D105: 5 | E105: 8 | F105: -2.8 | G105: 0.1 | H105: -9 | I105: -9 | J105: -999 | K105: 30 | L105: 5 | M105: 0.081 | N105: 1.65 | O105: 1 | P105: 1.3 | Q105: 140 | R105: 10 | S105: 277 | T105: 2 | U105: 0 | V105: 0 | W105: 56 | X105: 986 | Y105: 3 | Z105: ADJ-A1 | AA105: NoSubs | AB105: -4.8 | AC105: =#REF!*10^(($AH$2*(S105-273))/((S105-273)+$AH$3)) -> 
A106: 13 | B106: 1 | C106: 5 | D106: 5 | E106: 9 | F106: -0.3 | G106: 0.1 | H106: -9 | I106: -9 | J106: -999 | K106: 192 | L106: 1793.3 | M106: 0.061 | N106: 1.65 | O106: 0.42 | P106: 2.38 | Q106: 104 | R106: 10 | S106: 280.4 | T106: 2 | U106: 0 | V106: 0 | W106: 39 | X106: 987 | Y106: 3 | Z106: ADJ-A1 | AA106: NoSubs | AB106: -4.8 | AC106: =#REF!*10^(($AH$2*(S106-273))/((S106-273)+$AH$3)) -> 
A107: 13 | B107: 1 | C107: 5 | D107: 5 | E107: 10 | F107: 65.9 | G107: 0.1 | H107: 0.715 | I107: 0.007 | J107: 195 | K107: 389 | L107: -35.1 | M107: 0.061 | N107: 1.65 | O107: 0.28 | P107: 3.37 | Q107: 97 | R107: 10 | S107: 283.8 | T107: 2 | U107: 0 | V107: 0 | W107: 32 | X107: 987 | Y107: 3 | Z107: ADJ-A1 | AA107: NoSubs | AB107: -2.8 | AC107: =#REF!*10^(($AH$2*(S107-273))/((S107-273)+$AH$3)) -> 
A108: 13 | B108: 1 | C108: 5 | D108: 5 | E108: 11 | F108: 119.6 | G108: 0.1 | H108: 1.026 | I108: 0.01 | J108: 318 | K108: 699 | L108: -62.4 | M108: 0.061 | N108: 1.65 | O108: 0.23 | P108: 5.17 | Q108: 92 | R108: 10 | S108: 285.4 | T108: 2 | U108: 0 | V108: 0 | W108: 29 | X108: 987 | Y108: 3 | Z108: ADJ-A1 | AA108: NoSubs | AB108: -1.8 | AC108: =#REF!*10^(($AH$2*(S108-273))/((S108-273)+$AH$3)) -> 
A109: 13 | B109: 1 | C109: 5 | D109: 5 | E109: 12 | F109: 153.5 | G109: 0.1 | H109: 1.331 | I109: 0.009 | J109: 541 | K109: 653 | L109: -42.3 | M109: 0.061 | N109: 1.65 | O109: 0.22 | P109: 4.82 | Q109: 90 | R109: 10 | S109: 286.4 | T109: 2 | U109: 0 | V109: 0 | W109: 27 | X109: 986 | Y109: 3 | Z109: ADJ-A1 | AA109: NoSubs | AB109: -1.2 | AC109: =#REF!*10^(($AH$2*(S109-273))/((S109-273)+$AH$3)) -> 
A110: 13 | B110: 1 | C110: 5 | D110: 5 | E110: 13 | F110: 159.8 | G110: 0.1 | H110: 1.498 | I110: 0.01 | J110: 740 | K110: 444 | L110: -18.2 | M110: 0.061 | N110: 1.65 | O110: 0.21 | P110: 3.44 | Q110: 93 | R110: 10 | S110: 288.1 | T110: 2 | U110: 0 | V110: 0 | W110: 24 | X110: 984 | Y110: 0 | Z110: ADJ-A1 | AA110: NoSubs | AB110: -0.1 | AC110: =#REF!*10^(($AH$2*(S110-273))/((S110-273)+$AH$3)) -> 
A111: 13 | B111: 1 | C111: 5 | D111: 5 | E111: 14 | F111: 150.5 | G111: 0.1 | H111: 1.531 | I111: 0.009 | J111: 837 | K111: 256 | L111: -6.4 | M111: 0.061 | N111: 1.65 | O111: 0.21 | P111: 2.1 | Q111: 116 | R111: 10 | S111: 289.2 | T111: 2 | U111: 0 | V111: 0 | W111: 21 | X111: 984 | Y111: 0 | Z111: ADJ-A1 | AA111: NoSubs | AB111: 0.4 | AC111: =#REF!*10^(($AH$2*(S111-273))/((S111-273)+$AH$3)) -> 
A112: 13 | B112: 1 | C112: 5 | D112: 5 | E112: 15 | F112: 118.9 | G112: 0.1 | H112: 1.432 | I112: 0.009 | J112: 867 | K112: 134 | L112: -2.2 | M112: 0.07 | N112: 1.65 | O112: 0.23 | P112: 1.11 | Q112: 14 | R112: 10 | S112: 289.2 | T112: 2 | U112: 0 | V112: 0 | W112: 20 | X112: 983 | Y112: 0 | Z112: ADJ-A1 | AA112: NoSubs | AB112: 0.2 | AC112: =#REF!*10^(($AH$2*(S112-273))/((S112-273)+$AH$3)) -> 
A113: 13 | B113: 1 | C113: 5 | D113: 5 | E113: 16 | F113: 67.3 | G113: 0.1 | H113: 1.192 | I113: 0.008 | J113: 884 | K113: 117 | L113: -3.1 | M113: 0.049 | N113: 1.65 | O113: 0.27 | P113: 1.2 | Q113: 266 | R113: 10 | S113: 289.9 | T113: 2 | U113: 0 | V113: 0 | W113: 19 | X113: 983 | Y113: 0 | Z113: ADJ-A1 | AA113: NoSubs | AB113: 0.7 | AC113: =#REF!*10^(($AH$2*(S113-273))/((S113-273)+$AH$3)) -> 
A114: 13 | B114: 1 | C114: 5 | D114: 5 | E114: 17 | F114: 1.2 | G114: 0.1 | H114: 0.316 | I114: 0.008 | J114: 884 | K114: 64 | L114: -49.1 | M114: 0.049 | N114: 1.65 | O114: 0.4 | P114: 1.08 | Q114: 247 | R114: 10 | S114: 289.2 | T114: 2 | U114: 0 | V114: 0 | W114: 18 | X114: 983 | Y114: 0 | Z114: ADJ-A1 | AA114: NoSubs | AB114: -0.2 | AC114: =#REF!*10^(($AH$2*(S114-273))/((S114-273)+$AH$3)) -> 
A115: 13 | B115: 1 | C115: 5 | D115: 5 | E115: 18 | F115: -3.3 | G115: 0.1 | H115: -9 | I115: -9 | J115: -999 | K115: 33 | L115: 5.1 | M115: 0.049 | N115: 1.65 | O115: 1 | P115: 1.54 | Q115: 267 | R115: 10 | S115: 287.5 | T115: 2 | U115: 0 | V115: 0 | W115: 23 | X115: 982 | Y115: 0 | Z115: ADJ-A1 | AA115: NoSubs | AB115: -0.9 | AC115: =#REF!*10^(($AH$2*(S115-273))/((S115-273)+$AH$3)) -> 
A116: 13 | B116: 1 | C116: 5 | D116: 5 | E116: 19 | F116: -3.9 | G116: 0.1 | H116: -9 | I116: -9 | J116: -999 | K116: 38 | L116: 5.8 | M116: 0.072 | N116: 1.65 | O116: 1 | P116: 1.57 | Q116: 225 | R116: 10 | S116: 286.4 | T116: 2 | U116: 0 | V116: 0 | W116: 25 | X116: 982 | Y116: 0 | Z116: ADJ-A1 | AA116: NoSubs | AB116: -1.6 | AC116: =#REF!*10^(($AH$2*(S116-273))/((S116-273)+$AH$3)) -> 
A117: 13 | B117: 1 | C117: 5 | D117: 5 | E117: 20 | F117: -0.6 | G117: 0.1 | H117: -9 | I117: -9 | J117: -999 | K117: 9 | L117: 2.1 | M117: 0.049 | N117: 1.65 | O117: 1 | P117: 0.63 | Q117: 249 | R117: 10 | S117: 285.4 | T117: 2 | U117: 0 | V117: 0 | W117: 29 | X117: 982 | Y117: 0 | Z117: ADJ-A1 | AA117: NoSubs | AB117: -1.8 | AC117: =#REF!*10^(($AH$2*(S117-273))/((S117-273)+$AH$3)) -> 
A118: 13 | B118: 1 | C118: 5 | D118: 5 | E118: 21 | F118: -1.4 | G118: 0.1 | H118: -9 | I118: -9 | J118: -999 | K118: 18 | L118: 3.4 | M118: 0.078 | N118: 1.65 | O118: 1 | P118: 0.92 | Q118: 202 | R118: 10 | S118: 283.1 | T118: 2 | U118: 0 | V118: 0 | W118: 38 | X118: 982 | Y118: 0 | Z118: ADJ-A1 | AA118: NoSubs | AB118: -2.3 | AC118: =#REF!*10^(($AH$2*(S118-273))/((S118-273)+$AH$3)) -> 
A119: 13 | B119: 1 | C119: 5 | D119: 5 | E119: 22 | F119: -6.8 | G119: 0.1 | H119: -9 | I119: -9 | J119: -999 | K119: 58 | L119: 7.5 | M119: 0.07 | N119: 1.65 | O119: 1 | P119: 2.08 | Q119: 89 | R119: 10 | S119: 282.5 | T119: 2 | U119: 0 | V119: 0 | W119: 38 | X119: 982 | Y119: 0 | Z119: ADJ-A1 | AA119: NoSubs | AB119: -2.9 | AC119: =#REF!*10^(($AH$2*(S119-273))/((S119-273)+$AH$3)) -> 
A120: 13 | B120: 1 | C120: 5 | D120: 5 | E120: 23 | F120: -3 | G120: 0.1 | H120: -9 | I120: -9 | J120: -999 | K120: 32 | L120: 5.2 | M120: 0.091 | N120: 1.65 | O120: 1 | P120: 1.33 | Q120: 166 | R120: 10 | S120: 280.9 | T120: 2 | U120: 0 | V120: 0 | W120: 46 | X120: 982 | Y120: 0 | Z120: ADJ-A1 | AA120: NoSubs | AB120: -2.9 | AC120: =#REF!*10^(($AH$2*(S120-273))/((S120-273)+$AH$3)) -> 
A121: 13 | B121: 1 | C121: 5 | D121: 5 | E121: 24 | F121: -1.7 | G121: 0.1 | H121: -9 | I121: -9 | J121: -999 | K121: 20 | L121: 3.7 | M121: 0.061 | N121: 1.65 | O121: 1 | P121: 1.06 | Q121: 101 | R121: 10 | S121: 280.9 | T121: 2 | U121: 0 | V121: 0 | W121: 45 | X121: 982 | Y121: 0 | Z121: ADJ-A1 | AA121: NoSubs | AB121: -3.1 | AC121: =#REF!*10^(($AH$2*(S121-273))/((S121-273)+$AH$3)) -> 
A122: 13 | B122: 1 | C122: 6 | D122: 6 | E122: 1 | F122: -6.2 | G122: 0.1 | H122: -9 | I122: -9 | J122: -999 | K122: 54 | L122: 7.1 | M122: 0.07 | N122: 1.65 | O122: 1 | P122: 1.98 | Q122: 85 | R122: 10 | S122: 280.9 | T122: 2 | U122: 0 | V122: 0 | W122: 41 | X122: 982 | Y122: 0 | Z122: ADJ-A1 | AA122: NoSubs | AB122: -3.9 | AC122: =#REF!*10^(($AH$2*(S122-273))/((S122-273)+$AH$3)) -> 
A123: 13 | B123: 1 | C123: 6 | D123: 6 | E123: 2 | F123: -14.6 | G123: 0.1 | H123: -9 | I123: -9 | J123: -999 | K123: 116 | L123: 13.9 | M123: 0.061 | N123: 1.65 | O123: 1 | P123: 2.88 | Q123: 105 | R123: 10 | S123: 280.4 | T123: 2 | U123: 0 | V123: 0 | W123: 45 | X123: 982 | Y123: 0 | Z123: ADJ-A1 | AA123: NoSubs | AB123: -3.6 | AC123: =#REF!*10^(($AH$2*(S123-273))/((S123-273)+$AH$3)) -> 
A124: 13 | B124: 1 | C124: 6 | D124: 6 | E124: 3 | F124: -9.2 | G124: 0.1 | H124: -9 | I124: -9 | J124: -999 | K124: 73 | L124: 8.8 | M124: 0.061 | N124: 1.65 | O124: 1 | P124: 2.49 | Q124: 102 | R124: 10 | S124: 279.9 | T124: 2 | U124: 0 | V124: 0 | W124: 46 | X124: 982 | Y124: 3 | Z124: ADJ-A1 | AA124: NoSubs | AB124: -3.9 | AC124: =#REF!*10^(($AH$2*(S124-273))/((S124-273)+$AH$3)) -> 
A125: 13 | B125: 1 | C125: 6 | D125: 6 | E125: 4 | F125: -6 | G125: 0.1 | H125: -9 | I125: -9 | J125: -999 | K125: 53 | L125: 7.1 | M125: 0.061 | N125: 1.65 | O125: 1 | P125: 2.01 | Q125: 108 | R125: 10 | S125: 279.2 | T125: 2 | U125: 0 | V125: 0 | W125: 50 | X125: 981 | Y125: 3 | Z125: ADJ-A1 | AA125: NoSubs | AB125: -3.8 | AC125: =#REF!*10^(($AH$2*(S125-273))/((S125-273)+$AH$3)) -> 
A126: 13 | B126: 1 | C126: 6 | D126: 6 | E126: 5 | F126: -11 | G126: 0.1 | H126: -9 | I126: -9 | J126: -999 | K126: 85 | L126: 10.1 | M126: 0.081 | N126: 1.65 | O126: 1 | P126: 2.61 | Q126: 121 | R126: 10 | S126: 280.9 | T126: 2 | U126: 0 | V126: 0 | W126: 41 | X126: 981 | Y126: 3 | Z126: ADJ-A1 | AA126: NoSubs | AB126: -3.9 | AC126: =#REF!*10^(($AH$2*(S126-273))/((S126-273)+$AH$3)) -> 
A127: 13 | B127: 1 | C127: 6 | D127: 6 | E127: 6 | F127: -24.7 | G127: 0.1 | H127: -9 | I127: -9 | J127: -999 | K127: 274 | L127: 46.1 | M127: 0.061 | N127: 1.65 | O127: 1 | P127: 3.64 | Q127: 106 | R127: 10 | S127: 280.9 | T127: 2 | U127: 0 | V127: 0 | W127: 39 | X127: 980 | Y127: 3 | Z127: ADJ-A1 | AA127: NoSubs | AB127: -4.3 | AC127: =#REF!*10^(($AH$2*(S127-273))/((S127-273)+$AH$3)) -> 
A128: 13 | B128: 1 | C128: 6 | D128: 6 | E128: 7 | F128: -9.8 | G128: 0.1 | H128: -9 | I128: -9 | J128: -999 | K128: 91 | L128: 9.1 | M128: 0.061 | N128: 1.65 | O128: 1 | P128: 2.57 | Q128: 112 | R128: 10 | S128: 280.9 | T128: 2 | U128: 0 | V128: 0 | W128: 41 | X128: 981 | Y128: 3 | Z128: ADJ-A1 | AA128: NoSubs | AB128: -3.9 | AC128: =#REF!*10^(($AH$2*(S128-273))/((S128-273)+$AH$3)) -> 
A129: 13 | B129: 1 | C129: 6 | D129: 6 | E129: 8 | F129: -7.9 | G129: 0.1 | H129: -9 | I129: -9 | J129: -999 | K129: 100 | L129: 19.3 | M129: 0.081 | N129: 1.65 | O129: 1 | P129: 2.23 | Q129: 129 | R129: 10 | S129: 280.4 | T129: 2 | U129: 0 | V129: 0 | W129: 43 | X129: 981 | Y129: 9 | Z129: ADJ-A1 | AA129: NoSubs | AB129: -4 | AC129: =#REF!*10^(($AH$2*(S129-273))/((S129-273)+$AH$3)) -> 
A130: 13 | B130: 1 | C130: 6 | D130: 6 | E130: 9 | F130: -1.2 | G130: 0.1 | H130: -9 | I130: -9 | J130: -999 | K130: 257 | L130: 814 | M130: 0.061 | N130: 1.65 | O130: 0.42 | P130: 2.91 | Q130: 113 | R130: 10 | S130: 281.4 | T130: 2 | U130: 0 | V130: 0 | W130: 40 | X130: 981 | Y130: 9 | Z130: ADJ-A1 | AA130: NoSubs | AB130: -3.6 | AC130: =#REF!*10^(($AH$2*(S130-273))/((S130-273)+$AH$3)) -> 
A131: 13 | B131: 1 | C131: 6 | D131: 6 | E131: 10 | F131: 66.4 | G131: 0.1 | H131: 0.583 | I131: 0.008 | J131: 104 | K131: 285 | L131: -18.6 | M131: 0.061 | N131: 1.65 | O131: 0.28 | P131: 2.59 | Q131: 118 | R131: 10 | S131: 284.9 | T131: 2 | U131: 0 | V131: 0 | W131: 33 | X131: 981 | Y131: 5 | Z131: ADJ-A1 | AA131: NoSubs | AB131: =(S131-273)-((100-W131)/5) -> -1.5 | AC131: =#REF!*10^(($AH$2*(S131-273))/((S131-273)+$AH$3)) ->  | AD131: =621.9907*AC131/(X131-AC131) -> 
A132: 13 | B132: 1 | C132: 6 | D132: 6 | E132: 11 | F132: 58 | G132: 0.1 | H132: 0.672 | I132: 0.008 | J132: 183 | K132: 372 | L132: -36.3 | M132: 0.081 | N132: 1.65 | O132: 0.23 | P132: 3.08 | Q132: 127 | R132: 10 | S132: 287 | T132: 2 | U132: 0 | V132: 0 | W132: 26 | X132: 980 | Y132: 9 | Z132: ADJ-A1 | AA132: NoSubs | AB132: -0.8 | AC132: =#REF!*10^(($AH$2*(S132-273))/((S132-273)+$AH$3)) -> 
A133: 13 | B133: 1 | C133: 6 | D133: 6 | E133: 12 | F133: 74.7 | G133: 0.1 | H133: 0.769 | I133: 0.008 | J133: 212 | K133: 372 | L133: -28.1 | M133: 0.081 | N133: 1.65 | O133: 0.21 | P133: 3.01 | Q133: 137 | R133: 10 | S133: 288.1 | T133: 2 | U133: 0 | V133: 0 | W133: 24 | X133: 979 | Y133: 9 | Z133: ADJ-A1 | AA133: NoSubs | AB133: -0.1 | AC133: =#REF!*10^(($AH$2*(S133-273))/((S133-273)+$AH$3)) -> 
A134: 13 | B134: 1 | C134: 6 | D134: 6 | E134: 13 | F134: 81.4 | G134: 0.1 | H134: 0.881 | I134: 0.007 | J134: 293 | K134: 386 | L134: -27.7 | M134: 0.081 | N134: 1.65 | O134: 0.21 | P134: 3.08 | Q134: 140 | R134: 10 | S134: 289.9 | T134: 2 | U134: 0 | V134: 0 | W134: 20 | X134: 977 | Y134: 9 | Z134: ADJ-A1 | AA134: NoSubs | AB134: 0.9 | AC134: =#REF!*10^(($AH$2*(S134-273))/((S134-273)+$AH$3)) -> 
A135: 13 | B135: 1 | C135: 6 | D135: 6 | E135: 14 | F135: 153.1 | G135: 0.1 | H135: 1.306 | I135: 0.005 | J135: 507 | K135: 321 | L135: -10.1 | M135: 0.078 | N135: 1.65 | O135: 0.21 | P135: 2.47 | Q135: 184 | R135: 10 | S135: 290.4 | T135: 2 | U135: 0 | V135: 0 | W135: 21 | X135: 976 | Y135: 5 | Z135: ADJ-A1 | AA135: NoSubs | AB135: 1.6 | AC135: =#REF!*10^(($AH$2*(S135-273))/((S135-273)+$AH$3)) -> 
A136: 13 | B136: 1 | C136: 6 | D136: 6 | E136: 15 | F136: 128.5 | G136: 0.1 | H136: 1.309 | I136: 0.005 | J136: 608 | K136: 236 | L136: -6.5 | M136: 0.078 | N136: 1.65 | O136: 0.23 | P136: 1.89 | Q136: 203 | R136: 10 | S136: 292.5 | T136: 2 | U136: 0 | V136: 0 | W136: 15 | X136: 975 | Y136: 3 | Z136: ADJ-A1 | AA136: NoSubs | AB136: 2.5 | AC136: =#REF!*10^(($AH$2*(S136-273))/((S136-273)+$AH$3)) -> 
A137: 13 | B137: 1 | C137: 6 | D137: 6 | E137: 16 | F137: 77.1 | G137: 0.1 | H137: 1.135 | I137: 0.006 | J137: 659 | K137: 373 | L137: -27.3 | M137: 0.081 | N137: 1.65 | O137: 0.27 | P137: 3.01 | Q137: 141 | R137: 10 | S137: 292 | T137: 2 | U137: 0 | V137: 0 | W137: 16 | X137: 975 | Y137: 3 | Z137: ADJ-A1 | AA137: NoSubs | AB137: 2.2 | AC137: =#REF!*10^(($AH$2*(S137-273))/((S137-273)+$AH$3)) -> 
A138: 13 | B138: 1 | C138: 6 | D138: 6 | E138: 17 | F138: 14.9 | G138: 0.1 | H138: 0.659 | I138: 0.006 | J138: 668 | K138: 295 | L138: -87.6 | M138: 0.091 | N138: 1.65 | O138: 0.4 | P138: 2.71 | Q138: 151 | R138: 10 | S138: 290.9 | T138: 2 | U138: 0 | V138: 0 | W138: 19 | X138: 974 | Y138: 5 | Z138: ADJ-A1 | AA138: NoSubs | AB138: 1.7 | AC138: =#REF!*10^(($AH$2*(S138-273))/((S138-273)+$AH$3)) -> 
A139: 13 | B139: 1 | C139: 6 | D139: 6 | E139: 18 | F139: -1.7 | G139: 0.1 | H139: -9 | I139: -9 | J139: -999 | K139: 108 | L139: 5.7 | M139: 0.072 | N139: 1.65 | O139: 1 | P139: 1.2 | Q139: 230 | R139: 10 | S139: 289.9 | T139: 2 | U139: 0 | V139: 0 | W139: 20 | X139: 973 | Y139: 9 | Z139: ADJ-A1 | AA139: NoSubs | AB139: 0.9 | AC139: =#REF!*10^(($AH$2*(S139-273))/((S139-273)+$AH$3)) -> 
A140: 13 | B140: 1 | C140: 6 | D140: 6 | E140: 19 | F140: -15.8 | G140: 0.1 | H140: -9 | I140: -9 | J140: -999 | K140: 298 | L140: 85.1 | M140: 0.049 | N140: 1.65 | O140: 1 | P140: 3.68 | Q140: 258 | R140: 10 | S140: 288.1 | T140: 2 | U140: 0 | V140: 0 | W140: 21 | X140: 974 | Y140: 9 | Z140: ADJ-A1 | AA140: NoSubs | AB140: -0.7 | AC140: =#REF!*10^(($AH$2*(S140-273))/((S140-273)+$AH$3)) -> 
A141: 13 | B141: 1 | C141: 6 | D141: 6 | E141: 20 | F141: -10.9 | G141: 0.1 | H141: -9 | I141: -9 | J141: -999 | K141: 172 | L141: 39.9 | M141: 0.049 | N141: 1.65 | O141: 1 | P141: 2.81 | Q141: 269 | R141: 10 | S141: 287 | T141: 2 | U141: 0 | V141: 0 | W141: 24 | X141: 974 | Y141: 9 | Z141: ADJ-A1 | AA141: NoSubs | AB141: -1.2 | AC141: =#REF!*10^(($AH$2*(S141-273))/((S141-273)+$AH$3)) -> 
A142: 13 | B142: 1 | C142: 6 | D142: 6 | E142: 21 | F142: -2.3 | G142: 0.1 | H142: -9 | I142: -9 | J142: -999 | K142: 45 | L142: 6.5 | M142: 0.07 | N142: 1.65 | O142: 1 | P142: 1.38 | Q142: 278 | R142: 10 | S142: 286.4 | T142: 2 | U142: 0 | V142: 0 | W142: 26 | X142: 974 | Y142: 9 | Z142: ADJ-A1 | AA142: NoSubs | AB142: -1.4 | AC142: =#REF!*10^(($AH$2*(S142-273))/((S142-273)+$AH$3)) -> 
A143: 13 | B143: 1 | C143: 6 | D143: 6 | E143: 22 | F143: -4.8 | G143: 0.1 | H143: -9 | I143: -9 | J143: -999 | K143: 54 | L143: 9.2 | M143: 0.059 | N143: 1.65 | O143: 1 | P143: 2.05 | Q143: 328 | R143: 10 | S143: 284.9 | T143: 2 | U143: 0 | V143: 0 | W143: 30 | X143: 973 | Y143: 9 | Z143: ADJ-A1 | AA143: NoSubs | AB143: -2.1 | AC143: =#REF!*10^(($AH$2*(S143-273))/((S143-273)+$AH$3)) -> 
A144: 13 | B144: 1 | C144: 6 | D144: 6 | E144: 23 | F144: -0.5 | G144: 0.1 | H144: -9 | I144: -9 | J144: -999 | K144: 11 | L144: 2.7 | M144: 0.072 | N144: 1.65 | O144: 1 | P144: 0.62 | Q144: 216 | R144: 10 | S144: 283.8 | T144: 2 | U144: 0 | V144: 0 | W144: 34 | X144: 973 | Y144: 8 | Z144: ADJ-A1 | AA144: NoSubs | AB144: -2.4 | AC144: =#REF!*10^(($AH$2*(S144-273))/((S144-273)+$AH$3)) -> 
A145: 13 | B145: 1 | C145: 6 | D145: 6 | E145: 24 | F145: -1.2 | G145: 0.1 | H145: -9 | I145: -9 | J145: -999 | K145: 19 | L145: 4.8 | M145: 0.091 | N145: 1.65 | O145: 1 | P145: 0.94 | Q145: 158 | R145: 10 | S145: 282.5 | T145: 2 | U145: 0 | V145: 0 | W145: 40 | X145: 974 | Y145: 9 | Z145: ADJ-A1 | AA145: NoSubs | AB145: -2.5 | AC145: =#REF!*10^(($AH$2*(S145-273))/((S145-273)+$AH$3)) -> 
A146: 13 | B146: 1 | C146: 7 | D146: 7 | E146: 1 | F146: -1.8 | G146: 0.1 | H146: -9 | I146: -9 | J146: -999 | K146: 27 | L146: 5.9 | M146: 0.081 | N146: 1.65 | O146: 1 | P146: 1.2 | Q146: 130 | R146: 10 | S146: 282.5 | T146: 2 | U146: 0 | V146: 0 | W146: 40 | X146: 973 | Y146: 9 | Z146: ADJ-A1 | AA146: NoSubs | AB146: -2.5 | AC146: =#REF!*10^(($AH$2*(S146-273))/((S146-273)+$AH$3)) -> 
A147: 13 | B147: 1 | C147: 7 | D147: 7 | E147: 2 | F147: -3.7 | G147: 0.1 | H147: -9 | I147: -9 | J147: -999 | K147: 45 | L147: 8 | M147: 0.061 | N147: 1.65 | O147: 1 | P147: 1.79 | Q147: 109 | R147: 10 | S147: 281.4 | T147: 2 | U147: 0 | V147: 0 | W147: 45 | X147: 973 | Y147: 9 | Z147: ADJ-A1 | AA147: NoSubs | AB147: -2.6 | AC147: =#REF!*10^(($AH$2*(S147-273))/((S147-273)+$AH$3)) -> 
A148: 13 | B148: 1 | C148: 7 | D148: 7 | E148: 3 | F148: -5.6 | G148: 0.1 | H148: -9 | I148: -9 | J148: -999 | K148: 52 | L148: 7.4 | M148: 0.061 | N148: 1.65 | O148: 1 | P148: 1.99 | Q148: 96 | R148: 10 | S148: 280.4 | T148: 2 | U148: 0 | V148: 0 | W148: 47 | X148: 973 | Y148: 5 | Z148: ADJ-A1 | AA148: NoSubs | AB148: -3.2 | AC148: =#REF!*10^(($AH$2*(S148-273))/((S148-273)+$AH$3)) -> 
A149: 13 | B149: 1 | C149: 7 | D149: 7 | E149: 4 | F149: -6.2 | G149: 0.1 | H149: -9 | I149: -9 | J149: -999 | K149: 57 | L149: 7.8 | M149: 0.061 | N149: 1.65 | O149: 1 | P149: 2.1 | Q149: 112 | R149: 10 | S149: 279.9 | T149: 2 | U149: 0 | V149: 0 | W149: 48 | X149: 973 | Y149: 5 | Z149: ADJ-A1 | AA149: NoSubs | AB149: -3.5 | AC149: =#REF!*10^(($AH$2*(S149-273))/((S149-273)+$AH$3)) -> 
A150: 13 | B150: 1 | C150: 7 | D150: 7 | E150: 5 | F150: -20.9 | G150: 0.1 | H150: -9 | I150: -9 | J150: -999 | K150: 243 | L150: 42.7 | M150: 0.061 | N150: 1.65 | O150: 1 | P150: 3.41 | Q150: 94 | R150: 10 | S150: 279.2 | T150: 2 | U150: 0 | V150: 0 | W150: 50 | X150: 973 | Y150: 5 | Z150: ADJ-A1 | AA150: NoSubs | AB150: -3.8 | AC150: =#REF!*10^(($AH$2*(S150-273))/((S150-273)+$AH$3)) -> 
A151: 13 | B151: 1 | C151: 7 | D151: 7 | E151: 6 | F151: -12 | G151: 0.1 | H151: -9 | I151: -9 | J151: -999 | K151: 110 | L151: 14.1 | M151: 0.07 | N151: 1.65 | O151: 1 | P151: 2.66 | Q151: 77 | R151: 10 | S151: 279.2 | T151: 2 | U151: 0 | V151: 0 | W151: 50 | X151: 973 | Y151: 5 | Z151: ADJ-A1 | AA151: NoSubs | AB151: -3.8 | AC151: =#REF!*10^(($AH$2*(S151-273))/((S151-273)+$AH$3)) -> 
A152: 13 | B152: 1 | C152: 7 | D152: 7 | E152: 7 | F152: -15.4 | G152: 0.1 | H152: -9 | I152: -9 | J152: -999 | K152: 154 | L152: 23 | M152: 0.061 | N152: 1.65 | O152: 1 | P152: 2.91 | Q152: 97 | R152: 10 | S152: 278.1 | T152: 2 | U152: 0 | V152: 0 | W152: 54 | X152: 973 | Y152: 5 | Z152: ADJ-A1 | AA152: NoSubs | AB152: -4.1 | AC152: =#REF!*10^(($AH$2*(S152-273))/((S152-273)+$AH$3)) -> 
A153: 13 | B153: 1 | C153: 7 | D153: 7 | E153: 8 | F153: -3.2 | G153: 0.1 | H153: -9 | I153: -9 | J153: -999 | K153: 42 | L153: 5.5 | M153: 0.061 | N153: 1.65 | O153: 1 | P153: 1.5 | Q153: 106 | R153: 10 | S153: 278.1 | T153: 2 | U153: 0 | V153: 0 | W153: 54 | X153: 974 | Y153: 5 | Z153: ADJ-A1 | AA153: NoSubs | AB153: -4.1 | AC153: =#REF!*10^(($AH$2*(S153-273))/((S153-273)+$AH$3)) -> 
A154: 13 | B154: 1 | C154: 7 | D154: 7 | E154: 9 | F154: 3.5 | G154: 0.1 | H154: 0.147 | I154: 0.011 | J154: 31 | K154: 62 | L154: -16.3 | M154: 0.091 | N154: 1.65 | O154: 0.42 | P154: 0.84 | Q154: 165 | R154: 10 | S154: 280.9 | T154: 2 | U154: 0 | V154: 0 | W154: 45 | X154: 974 | Y154: 5 | Z154: ADJ-A1 | AA154: NoSubs | AB154: -3.1 | AC154: =#REF!*10^(($AH$2*(S154-273))/((S154-273)+$AH$3)) -> 
A155: 13 | B155: 1 | C155: 7 | D155: 7 | E155: 10 | F155: 66 | G155: 0.1 | H155: 0.622 | I155: 0.006 | J155: 126 | K155: 85 | L155: -1.6 | M155: 0.091 | N155: 1.65 | O155: 0.28 | P155: 0.72 | Q155: 155 | R155: 10 | S155: 283.1 | T155: 2 | U155: 0 | V155: 0 | W155: 38 | X155: 974 | Y155: 5 | Z155: ADJ-A1 | AA155: NoSubs | AB155: -2.3 | AC155: =#REF!*10^(($AH$2*(S155-273))/((S155-273)+$AH$3)) -> 
A156: 13 | B156: 1 | C156: 7 | D156: 7 | E156: 11 | F156: 117.3 | G156: 0.1 | H156: 1.106 | I156: 0.005 | J156: 400 | K156: 160 | L156: -3.3 | M156: 0.078 | N156: 1.65 | O156: 0.23 | P156: 1.31 | Q156: 207 | R156: 10 | S156: 285.9 | T156: 2 | U156: 0 | V156: 0 | W156: 29 | X156: 974 | Y156: 5 | Z156: ADJ-A1 | AA156: NoSubs | AB156: -1.3 | AC156: =#REF!*10^(($AH$2*(S156-273))/((S156-273)+$AH$3)) -> 
A157: 13 | B157: 1 | C157: 7 | D157: 7 | E157: 12 | F157: 74 | G157: 0.1 | H157: 1.062 | I157: 0.005 | J157: 561 | K157: 235 | L157: -11.3 | M157: 0.049 | N157: 1.65 | O157: 0.21 | P157: 2.28 | Q157: 263 | R157: 10 | S157: 285.9 | T157: 2 | U157: 0 | V157: 0 | W157: 29 | X157: 973 | Y157: 9 | Z157: ADJ-A1 | AA157: NoSubs | AB157: -1.3 | AC157: =#REF!*10^(($AH$2*(S157-273))/((S157-273)+$AH$3)) -> 
A158: 13 | B158: 1 | C158: 7 | D158: 7 | E158: 13 | F158: 80.2 | G158: 0.1 | H158: 1.172 | I158: 0.005 | J158: 696 | K158: 339 | L158: -21.6 | M158: 0.049 | N158: 1.65 | O158: 0.21 | P158: 3.1 | Q158: 266 | R158: 10 | S158: 286.4 | T158: 2 | U158: 0 | V158: 0 | W158: 31 | X158: 972 | Y158: 9 | Z158: ADJ-A1 | AA158: NoSubs | AB158: -0.4 | AC158: =#REF!*10^(($AH$2*(S158-273))/((S158-273)+$AH$3)) -> 
A159: 13 | B159: 1 | C159: 7 | D159: 7 | E159: 14 | F159: 75.9 | G159: 0.1 | H159: 1.204 | I159: 0.005 | J159: 797 | K159: 370 | L159: -27.1 | M159: 0.049 | N159: 1.65 | O159: 0.21 | P159: 3.35 | Q159: 262 | R159: 10 | S159: 287 | T159: 2 | U159: 0 | V159: 0 | W159: 30 | X159: 972 | Y159: 9 | Z159: ADJ-A1 | AA159: NoSubs | AB159: 0 | AC159: =#REF!*10^(($AH$2*(S159-273))/((S159-273)+$AH$3)) -> 
A160: 13 | B160: 1 | C160: 7 | D160: 7 | E160: 15 | F160: 61.4 | G160: 0.1 | H160: 1.156 | I160: 0.005 | J160: 872 | K160: 352 | L160: -30.3 | M160: 0.049 | N160: 1.65 | O160: 0.23 | P160: 3.27 | Q160: 252 | R160: 10 | S160: 288.1 | T160: 2 | U160: 0 | V160: 0 | W160: 25 | X160: 971 | Y160: 9 | Z160: ADJ-A1 | AA160: NoSubs | AB160: 0.1 | AC160: =#REF!*10^(($AH$2*(S160-273))/((S160-273)+$AH$3)) -> 
A161: 13 | B161: 1 | C161: 7 | D161: 7 | E161: 16 | F161: 75.9 | G161: 0.1 | H161: 1.279 | I161: 0.005 | J161: 955 | K161: 480 | L161: -45.7 | M161: 0.049 | N161: 1.65 | O161: 0.27 | P161: 4.14 | Q161: 260 | R161: 10 | S161: 288.8 | T161: 2 | U161: 0 | V161: 0 | W161: 26 | X161: 971 | Y161: 5 | Z161: ADJ-A1 | AA161: NoSubs | AB161: 1 | AC161: =#REF!*10^(($AH$2*(S161-273))/((S161-273)+$AH$3)) -> 
A162: 13 | B162: 1 | C162: 7 | D162: 7 | E162: 17 | F162: 11.1 | G162: 0.1 | H162: 0.677 | I162: 0.005 | J162: 965 | K162: 485 | L162: -318.2 | M162: 0.049 | N162: 1.65 | O162: 0.39 | P162: 4.49 | Q162: 254 | R162: 10 | S162: 288.1 | T162: 2 | U162: 0 | V162: 0 | W162: 28 | X162: 972 | Y162: 3 | Z162: ADJ-A1 | AA162: NoSubs | AB162: 0.7 | AC162: =#REF!*10^(($AH$2*(S162-273))/((S162-273)+$AH$3)) -> 
A163: 13 | B163: 1 | C163: 7 | D163: 7 | E163: 18 | F163: -28.9 | G163: 0.1 | H163: -9 | I163: -9 | J163: -999 | K163: 364 | L163: 68.4 | M163: 0.049 | N163: 1.65 | O163: 0.77 | P163: 4.29 | Q163: 260 | R163: 10 | S163: 287 | T163: 2 | U163: 0 | V163: 0 | W163: 30 | X163: 972 | Y163: 3 | Z163: ADJ-A1 | AA163: NoSubs | AB163: 0 | AC163: =#REF!*10^(($AH$2*(S163-273))/((S163-273)+$AH$3)) -> 
A164: 13 | B164: 1 | C164: 7 | D164: 7 | E164: 19 | F164: -7.1 | G164: 0.1 | H164: -9 | I164: -9 | J164: -999 | K164: 116 | L164: 7.6 | M164: 0.049 | N164: 1.65 | O164: 1 | P164: 2.27 | Q164: 260 | R164: 10 | S164: 285.9 | T164: 2 | U164: 0 | V164: 0 | W164: 32 | X164: 972 | Y164: 3 | Z164: ADJ-A1 | AA164: NoSubs | AB164: -0.7 | AC164: =#REF!*10^(($AH$2*(S164-273))/((S164-273)+$AH$3)) -> 
A165: 13 | B165: 1 | C165: 7 | D165: 7 | E165: 20 | F165: -8.8 | G165: 0.1 | H165: -9 | I165: -9 | J165: -999 | K165: 72 | L165: 8.7 | M165: 0.059 | N165: 1.65 | O165: 1 | P165: 2.47 | Q165: 310 | R165: 10 | S165: 286.4 | T165: 2 | U165: 0 | V165: 0 | W165: 29 | X165: 973 | Y165: 3 | Z165: ADJ-A1 | AA165: NoSubs | AB165: -0.8 | AC165: =#REF!*10^(($AH$2*(S165-273))/((S165-273)+$AH$3)) -> 
A166: 13 | B166: 1 | C166: 7 | D166: 7 | E166: 21 | F166: -17.4 | G166: 0.1 | H166: -9 | I166: -9 | J166: -999 | K166: 168 | L166: 24.3 | M166: 0.059 | N166: 1.65 | O166: 1 | P166: 3.05 | Q166: 319 | R166: 10 | S166: 285.4 | T166: 2 | U166: 0 | V166: 0 | W166: 32 | X166: 973 | Y166: 3 | Z166: ADJ-A1 | AA166: NoSubs | AB166: -1.2 | AC166: =#REF!*10^(($AH$2*(S166-273))/((S166-273)+$AH$3)) -> 
A167: 13 | B167: 1 | C167: 7 | D167: 7 | E167: 22 | F167: -16.8 | G167: 0.1 | H167: -9 | I167: -9 | J167: -999 | K167: 148 | L167: 19.7 | M167: 0.059 | N167: 1.65 | O167: 1 | P167: 3 | Q167: 325 | R167: 10 | S167: 284.9 | T167: 2 | U167: 0 | V167: 0 | W167: 33 | X167: 973 | Y167: 0 | Z167: ADJ-A1 | AA167: NoSubs | AB167: -1.5 | AC167: =#REF!*10^(($AH$2*(S167-273))/((S167-273)+$AH$3)) -> 
A168: 13 | B168: 1 | C168: 7 | D168: 7 | E168: 23 | F168: -3.1 | G168: 0.1 | H168: -9 | I168: -9 | J168: -999 | K168: 40 | L168: 5.2 | M168: 0.078 | N168: 1.65 | O168: 1 | P168: 1.38 | Q168: 181 | R168: 10 | S168: 282.5 | T168: 2 | U168: 0 | V168: 0 | W168: 40 | X168: 972 | Y168: 0 | Z168: ADJ-A1 | AA168: NoSubs | AB168: -2.5 | AC168: =#REF!*10^(($AH$2*(S168-273))/((S168-273)+$AH$3)) -> 
A169: 13 | B169: 1 | C169: 7 | D169: 7 | E169: 24 | F169: -3 | G169: 0.055 | H169: -9 | I169: -9 | J169: -999 | K169: 31 | L169: 4.8 | M169: 0.049 | N169: 1.65 | O169: 1 | P169: 1.47 | Q169: 246 | R169: 10 | S169: 281.4 | T169: 2 | U169: 0 | V169: 0 | W169: 43 | X169: 972 | Y169: 0 | Z169: ADJ-A1 | AA169: NoSubs | AB169: -3 | AC169: =#REF!*10^(($AH$2*(S169-273))/((S169-273)+$AH$3)) -> 
A170: 13 | B170: 1 | C170: 8 | D170: 8 | E170: 1 | F170: -5.1 | G170: 0.072 | H170: -9 | I170: -9 | J170: -999 | K170: 46 | L170: 6.2 | M170: 0.049 | N170: 1.65 | O170: 1 | P170: 1.91 | Q170: 258 | R170: 10 | S170: 282 | T170: 2 | U170: 0 | V170: 0 | W170: 40 | X170: 973 | Y170: 0 | Z170: ADJ-A1 | AA170: NoSubs | AB170: -3 | AC170: =#REF!*10^(($AH$2*(S170-273))/((S170-273)+$AH$3)) -> 
A171: 13 | B171: 1 | C171: 8 | D171: 8 | E171: 2 | F171: -2.9 | G171: 0.053 | H171: -9 | I171: -9 | J171: -999 | K171: 30 | L171: 4.6 | M171: 0.049 | N171: 1.65 | O171: 1 | P171: 1.42 | Q171: 262 | R171: 10 | S171: 280.4 | T171: 2 | U171: 0 | V171: 0 | W171: 47 | X171: 973 | Y171: 0 | Z171: ADJ-A1 | AA171: NoSubs | AB171: -3.2 | AC171: =#REF!*10^(($AH$2*(S171-273))/((S171-273)+$AH$3)) -> 
A172: 13 | B172: 1 | C172: 8 | D172: 8 | E172: 3 | F172: -3.6 | G172: 0.061 | H172: -9 | I172: -9 | J172: -999 | K172: 36 | L172: 5.5 | M172: 0.07 | N172: 1.65 | O172: 1 | P172: 1.52 | Q172: 65 | R172: 10 | S172: 279.2 | T172: 2 | U172: 0 | V172: 0 | W172: 52 | X172: 973 | Y172: 0 | Z172: ADJ-A1 | AA172: NoSubs | AB172: -3.4 | AC172: =#REF!*10^(($AH$2*(S172-273))/((S172-273)+$AH$3)) -> 
A173: 13 | B173: 1 | C173: 8 | D173: 8 | E173: 4 | F173: -2.7 | G173: 0.053 | H173: -9 | I173: -9 | J173: -999 | K173: 29 | L173: 4.8 | M173: 0.081 | N173: 1.65 | O173: 1 | P173: 1.28 | Q173: 121 | R173: 10 | S173: 279.2 | T173: 2 | U173: 0 | V173: 0 | W173: 52 | X173: 973 | Y173: 0 | Z173: ADJ-A1 | AA173: NoSubs | AB173: -3.4 | AC173: =#REF!*10^(($AH$2*(S173-273))/((S173-273)+$AH$3)) -> 
A174: 13 | B174: 1 | C174: 8 | D174: 8 | E174: 5 | F174: -2.4 | G174: 0.05 | H174: -9 | I174: -9 | J174: -999 | K174: 27 | L174: 4.5 | M174: 0.081 | N174: 1.65 | O174: 1 | P174: 1.21 | Q174: 137 | R174: 10 | S174: 279.2 | T174: 2 | U174: 0 | V174: 0 | W174: 52 | X174: 974 | Y174: 0 | Z174: ADJ-A1 | AA174: NoSubs | AB174: -3.4 | AC174: =#REF!*10^(($AH$2*(S174-273))/((S174-273)+$AH$3)) -> 
A175: 13 | B175: 1 | C175: 8 | D175: 8 | E175: 6 | F175: -8.5 | G175: 0.093 | H175: -9 | I175: -9 | J175: -999 | K175: 68 | L175: 8.2 | M175: 0.061 | N175: 1.65 | O175: 1 | P175: 2.37 | Q175: 90 | R175: 10 | S175: 278.1 | T175: 2 | U175: 0 | V175: 0 | W175: 57 | X175: 974 | Y175: 0 | Z175: ADJ-A1 | AA175: NoSubs | AB175: -3.5 | AC175: =#REF!*10^(($AH$2*(S175-273))/((S175-273)+$AH$3)) -> 
A176: 13 | B176: 1 | C176: 8 | D176: 8 | E176: 7 | F176: -12 | G176: 0.11 | H176: -9 | I176: -9 | J176: -999 | K176: 88 | L176: 9.7 | M176: 0.061 | N176: 1.65 | O176: 1 | P176: 2.81 | Q176: 96 | R176: 10 | S176: 277.5 | T176: 2 | U176: 0 | V176: 0 | W176: 59 | X176: 975 | Y176: 0 | Z176: ADJ-A1 | AA176: NoSubs | AB176: -3.7 | AC176: =#REF!*10^(($AH$2*(S176-273))/((S176-273)+$AH$3)) -> 
A177: 13 | B177: 1 | C177: 8 | D177: 8 | E177: 8 | F177: -5 | G177: 0.071 | H177: -9 | I177: -9 | J177: -999 | K177: 45 | L177: 6.2 | M177: 0.061 | N177: 1.65 | O177: 1 | P177: 1.81 | Q177: 108 | R177: 10 | S177: 277.5 | T177: 2 | U177: 0 | V177: 0 | W177: 62 | X177: 976 | Y177: 0 | Z177: ADJ-A1 | AA177: NoSubs | AB177: -3.1 | AC177: =#REF!*10^(($AH$2*(S177-273))/((S177-273)+$AH$3)) -> 
A178: 13 | B178: 1 | C178: 8 | D178: 8 | E178: 9 | F178: -0.2 | G178: 0.135 | H178: -9 | I178: -9 | J178: -999 | K178: 119 | L178: 958.8 | M178: 0.061 | N178: 1.65 | O178: 0.42 | P178: 1.74 | Q178: 103 | R178: 10 | S178: 280.4 | T178: 2 | U178: 0 | V178: 0 | W178: 53 | X178: 977 | Y178: 3 | Z178: ADJ-A1 | AA178: NoSubs | AB178: -2 | AC178: =#REF!*10^(($AH$2*(S178-273))/((S178-273)+$AH$3)) -> 
A179: 13 | B179: 1 | C179: 8 | D179: 8 | E179: 10 | F179: 66.1 | G179: 0.139 | H179: 0.711 | I179: 0.013 | J179: 189 | K179: 125 | L179: -3.6 | M179: 0.061 | N179: 1.65 | O179: 0.28 | P179: 1.21 | Q179: 91 | R179: 10 | S179: 282.5 | T179: 2 | U179: 0 | V179: 0 | W179: 44 | X179: 978 | Y179: 3 | Z179: ADJ-A1 | AA179: NoSubs | AB179: -1.7 | AC179: =#REF!*10^(($AH$2*(S179-273))/((S179-273)+$AH$3)) -> 
A180: 13 | B180: 1 | C180: 8 | D180: 8 | E180: 11 | F180: 120.7 | G180: 0.173 | H180: 1.008 | I180: 0.012 | J180: 296 | K180: 173 | L180: -3.8 | M180: 0.081 | N180: 1.65 | O180: 0.23 | P180: 1.4 | Q180: 147 | R180: 10 | S180: 285.4 | T180: 2 | U180: 0 | V180: 0 | W180: 32 | X180: 978 | Y180: 3 | Z180: ADJ-A1 | AA180: NoSubs | AB180: -1.2 | AC180: =#REF!*10^(($AH$2*(S180-273))/((S180-273)+$AH$3)) -> 
A181: 13 | B181: 1 | C181: 8 | D181: 8 | E181: 12 | F181: 155.6 | G181: 0.228 | H181: 1.289 | I181: 0.01 | J181: 480 | K181: 262 | L181: -6.7 | M181: 0.072 | N181: 1.65 | O181: 0.21 | P181: 2.08 | Q181: 223 | R181: 10 | S181: 287.5 | T181: 2 | U181: 0 | V181: 0 | W181: 25 | X181: 977 | Y181: 3 | Z181: ADJ-A1 | AA181: NoSubs | AB181: -0.5 | AC181: =#REF!*10^(($AH$2*(S181-273))/((S181-273)+$AH$3)) -> 
A182: 13 | B182: 1 | C182: 8 | D182: 8 | E182: 13 | F182: 168.9 | G182: 0.221 | H182: 1.41 | I182: 0.008 | J182: 578 | K182: 249 | L182: -5.5 | M182: 0.049 | N182: 1.65 | O182: 0.21 | P182: 2.16 | Q182: 242 | R182: 10 | S182: 289.2 | T182: 2 | U182: 0 | V182: 0 | W182: 21 | X182: 976 | Y182: 3 | Z182: ADJ-A1 | AA182: NoSubs | AB182: 0.4 | AC182: =#REF!*10^(($AH$2*(S182-273))/((S182-273)+$AH$3)) -> 
A183: 13 | B183: 1 | C183: 8 | D183: 8 | E183: 14 | F183: 160.5 | G183: 0.203 | H183: 1.426 | I183: 0.006 | J183: 629 | K183: 219 | L183: -4.5 | M183: 0.049 | N183: 1.65 | O183: 0.21 | P183: 1.93 | Q183: 245 | R183: 10 | S183: 290.9 | T183: 2 | U183: 0 | V183: 0 | W183: 17 | X183: 976 | Y183: 3 | Z183: ADJ-A1 | AA183: NoSubs | AB183: 1.3 | AC183: =#REF!*10^(($AH$2*(S183-273))/((S183-273)+$AH$3)) -> 
A184: 13 | B184: 1 | C184: 8 | D184: 8 | E184: 15 | F184: 129.6 | G184: 0.203 | H184: 1.41 | I184: 0.005 | J184: 753 | K184: 219 | L184: -5.6 | M184: 0.049 | N184: 1.65 | O184: 0.23 | P184: 1.99 | Q184: 264 | R184: 10 | S184: 290.9 | T184: 2 | U184: 0 | V184: 0 | W184: 17 | X184: 975 | Y184: 3 | Z184: ADJ-A1 | AA184: NoSubs | AB184: 1.3 | AC184: =#REF!*10^(($AH$2*(S184-273))/((S184-273)+$AH$3)) -> 
A185: 13 | B185: 1 | C185: 8 | D185: 8 | E185: 16 | F185: 78.3 | G185: 0.189 | H185: 1.203 | I185: 0.005 | J185: 773 | K185: 197 | L185: -7.5 | M185: 0.049 | N185: 1.65 | O185: 0.27 | P185: 1.93 | Q185: 255 | R185: 10 | S185: 291.4 | T185: 2 | U185: 0 | V185: 0 | W185: 16 | X185: 975 | Y185: 5 | Z185: ADJ-A1 | AA185: NoSubs | AB185: 1.6 | AC185: =#REF!*10^(($AH$2*(S185-273))/((S185-273)+$AH$3)) -> 
A186: 13 | B186: 1 | C186: 8 | D186: 8 | E186: 17 | F186: 17.4 | G186: 0.227 | H186: 0.73 | I186: 0.005 | J186: 778 | K186: 260 | L186: -58.8 | M186: 0.07 | N186: 1.65 | O186: 0.39 | P186: 2.59 | Q186: 277 | R186: 10 | S186: 292 | T186: 2 | U186: 0 | V186: 0 | W186: 14 | X186: 975 | Y186: 5 | Z186: ADJ-A1 | AA186: NoSubs | AB186: 1.8 | AC186: =#REF!*10^(($AH$2*(S186-273))/((S186-273)+$AH$3)) -> 
A187: 13 | B187: 1 | C187: 8 | D187: 8 | E187: 18 | F187: -16.7 | G187: 0.181 | H187: -9 | I187: -9 | J187: -999 | K187: 185 | L187: 30.8 | M187: 0.07 | N187: 1.65 | O187: 0.76 | P187: 2.98 | Q187: 282 | R187: 10 | S187: 290.9 | T187: 2 | U187: 0 | V187: 0 | W187: 15 | X187: 976 | Y187: 5 | Z187: ADJ-A1 | AA187: NoSubs | AB187: 0.9 | AC187: =#REF!*10^(($AH$2*(S187-273))/((S187-273)+$AH$3)) -> 
A188: 13 | B188: 1 | C188: 8 | D188: 8 | E188: 19 | F188: -9 | G188: 0.1 | H188: -9 | I188: -9 | J188: -999 | K188: 78 | L188: 9.8 | M188: 0.07 | N188: 1.65 | O188: 1 | P188: 2.49 | Q188: 271 | R188: 10 | S188: 290.4 | T188: 2 | U188: 0 | V188: 0 | W188: 16 | X188: 976 | Y188: 5 | Z188: ADJ-A1 | AA188: NoSubs | AB188: 0.6 | AC188: =#REF!*10^(($AH$2*(S188-273))/((S188-273)+$AH$3)) -> 
A189: 13 | B189: 1 | C189: 8 | D189: 8 | E189: 20 | F189: -0.7 | G189: 0.027 | H189: -9 | I189: -9 | J189: -999 | K189: 16 | L189: 2.5 | M189: 0.072 | N189: 1.65 | O189: 1 | P189: 0.67 | Q189: 225 | R189: 10 | S189: 287.5 | T189: 2 | U189: 0 | V189: 0 | W189: 22 | X189: 977 | Y189: 3 | Z189: ADJ-A1 | AA189: NoSubs | AB189: -1.1 | AC189: =#REF!*10^(($AH$2*(S189-273))/((S189-273)+$AH$3)) -> 
A190: 13 | B190: 1 | C190: 8 | D190: 8 | E190: 21 | F190: -5.3 | G190: 0.074 | H190: -9 | I190: -9 | J190: -999 | K190: 48 | L190: 6.7 | M190: 0.069 | N190: 1.65 | O190: 1 | P190: 1.84 | Q190: 56 | R190: 10 | S190: 286.4 | T190: 2 | U190: 0 | V190: 0 | W190: 25 | X190: 978 | Y190: 0 | Z190: ADJ-A1 | AA190: NoSubs | AB190: -1.6 | AC190: =#REF!*10^(($AH$2*(S190-273))/((S190-273)+$AH$3)) -> 
A191: 13 | B191: 1 | C191: 8 | D191: 8 | E191: 22 | F191: -3.4 | G191: 0.059 | H191: -9 | I191: -9 | J191: -999 | K191: 34 | L191: 5.2 | M191: 0.061 | N191: 1.65 | O191: 1 | P191: 1.5 | Q191: 116 | R191: 10 | S191: 284.9 | T191: 2 | U191: 0 | V191: 0 | W191: 30 | X191: 978 | Y191: 0 | Z191: ADJ-A1 | AA191: NoSubs | AB191: -2.1 | AC191: =#REF!*10^(($AH$2*(S191-273))/((S191-273)+$AH$3)) -> 
A192: 13 | B192: 1 | C192: 8 | D192: 8 | E192: 23 | F192: -8.7 | G192: 0.095 | H192: -9 | I192: -9 | J192: -999 | K192: 70 | L192: 8.5 | M192: 0.07 | N192: 1.65 | O192: 1 | P192: 2.35 | Q192: 87 | R192: 10 | S192: 283.8 | T192: 2 | U192: 0 | V192: 0 | W192: 35 | X192: 979 | Y192: 0 | Z192: ADJ-A1 | AA192: NoSubs | AB192: -2.2 | AC192: =#REF!*10^(($AH$2*(S192-273))/((S192-273)+$AH$3)) -> 
A193: 13 | B193: 1 | C193: 8 | D193: 8 | E193: 24 | F193: -9.6 | G193: 0.099 | H193: -9 | I193: -9 | J193: -999 | K193: 75 | L193: 8.9 | M193: 0.07 | N193: 1.65 | O193: 1 | P193: 2.47 | Q193: 89 | R193: 10 | S193: 283.1 | T193: 2 | U193: 0 | V193: 0 | W193: 38 | X193: 979 | Y193: 0 | Z193: ADJ-A1 | AA193: NoSubs | AB193: -2.3 | AC193: =#REF!*10^(($AH$2*(S193-273))/((S193-273)+$AH$3)) -> 
A194: 13 | B194: 1 | C194: 9 | D194: 9 | E194: 1 | F194: -6.2 | G194: 0.079 | H194: -9 | I194: -9 | J194: -999 | K194: 54 | L194: 7 | M194: 0.061 | N194: 1.65 | O194: 1 | P194: 2.03 | Q194: 105 | R194: 10 | S194: 282.5 | T194: 2 | U194: 0 | V194: 0 | W194: 40 | X194: 979 | Y194: 0 | Z194: ADJ-A1 | AA194: NoSubs | AB194: -2.5 | AC194: =#REF!*10^(($AH$2*(S194-273))/((S194-273)+$AH$3)) -> 
A195: 13 | B195: 1 | C195: 9 | D195: 9 | E195: 2 | F195: -1.7 | G195: 0.043 | H195: -9 | I195: -9 | J195: -999 | K195: 21 | L195: 3.9 | M195: 0.081 | N195: 1.65 | O195: 1 | P195: 1.03 | Q195: 136 | R195: 10 | S195: 281.4 | T195: 2 | U195: 0 | V195: 0 | W195: 45 | X195: 979 | Y195: 0 | Z195: ADJ-A1 | AA195: NoSubs | AB195: =(S195-273)-((100-W195)/5) -> -2.6 | AC195: =#REF!*10^(($AH$2*(S195-273))/((S195-273)+$AH$3)) ->  | AD195: =621.9907*AC195/(X195-AC195) -> 
A196: 13 | B196: 1 | C196: 9 | D196: 9 | E196: 3 | F196: -6.2 | G196: 0.079 | H196: -9 | I196: -9 | J196: -999 | K196: 54 | L196: 7 | M196: 0.061 | N196: 1.65 | O196: 1 | P196: 2.03 | Q196: 97 | R196: 10 | S196: 280.9 | T196: 2 | U196: 0 | V196: 0 | W196: 46 | X196: 979 | Y196: 0 | Z196: ADJ-A1 | AA196: NoSubs | AB196: -2.9 | AC196: =#REF!*10^(($AH$2*(S196-273))/((S196-273)+$AH$3)) -> 
A197: 13 | B197: 1 | C197: 9 | D197: 9 | E197: 4 | F197: -4 | G197: 0.065 | H197: -9 | I197: -9 | J197: -999 | K197: 39 | L197: 5.8 | M197: 0.078 | N197: 1.65 | O197: 1 | P197: 1.57 | Q197: 194 | R197: 10 | S197: 280.4 | T197: 2 | U197: 0 | V197: 0 | W197: 51 | X197: 979 | Y197: 0 | Z197: ADJ-A1 | AA197: NoSubs | AB197: -2.4 | AC197: =#REF!*10^(($AH$2*(S197-273))/((S197-273)+$AH$3)) -> 
A198: 13 | B198: 1 | C198: 9 | D198: 9 | E198: 5 | F198: -1 | G198: 0.032 | H198: -9 | I198: -9 | J198: -999 | K198: 14 | L198: 2.9 | M198: 0.07 | N198: 1.65 | O198: 1 | P198: 0.8 | Q198: 3 | R198: 10 | S198: 279.9 | T198: 2 | U198: 0 | V198: 0 | W198: 50 | X198: 979 | Y198: 0 | Z198: ADJ-A1 | AA198: NoSubs | AB198: -3.1 | AC198: =#REF!*10^(($AH$2*(S198-273))/((S198-273)+$AH$3)) -> 
A199: 13 | B199: 1 | C199: 9 | D199: 9 | E199: 6 | F199: -20.6 | G199: 0.187 | H199: -9 | I199: -9 | J199: -999 | K199: 194 | L199: 27.7 | M199: 0.061 | N199: 1.65 | O199: 1 | P199: 3.23 | Q199: 100 | R199: 10 | S199: 279.9 | T199: 2 | U199: 0 | V199: 0 | W199: 50 | X199: 980 | Y199: 0 | Z199: ADJ-A1 | AA199: NoSubs | AB199: -3.1 | AC199: =#REF!*10^(($AH$2*(S199-273))/((S199-273)+$AH$3)) -> 
A200: 13 | B200: 1 | C200: 9 | D200: 9 | E200: 7 | F200: -29.4 | G200: 0.279 | H200: -9 | I200: -9 | J200: -999 | K200: 353 | L200: 64.3 | M200: 0.07 | N200: 1.65 | O200: 1 | P200: 4 | Q200: 86 | R200: 10 | S200: 279.2 | T200: 2 | U200: 0 | V200: 0 | W200: 50 | X200: 981 | Y200: 3 | Z200: ADJ-A1 | AA200: NoSubs | AB200: -3.8 | AC200: =#REF!*10^(($AH$2*(S200-273))/((S200-273)+$AH$3)) -> 
... 2050 more rows

Sheet Formatted AERMET Data
B1: ='Raw AERMET Data'!B1 -> 33.688N | C1: ='Raw AERMET Data'!C1 -> 112.081W | D1: ='Raw AERMET Data'!D1 -> UA_ID: | E1: ='Raw AERMET Data'!E1 -> 74626 | F1: ='Raw AERMET Data'!F1 -> SF_ID: | G1: ='Raw AERMET Data'!G1 -> 3184 | H1: ='Raw AERMET Data'!H1 -> OS_ID: | I1: ='Raw AERMET Data'!I1 -> VERSION: | J1: ='Raw AERMET Data'!J1 -> 16216 | K1: ='Raw AERMET Data'!K1 -> THRESH_1MIN | L1: ='Raw AERMET Data'!L1 -> = | M1: ='Raw AERMET Data'!M1 -> 0.5 | N1: ='Raw AERMET Data'!N1 -> m/s; | O1: ='Raw AERMET Data'!O1 -> ADJ_U* | P1: ='Raw AERMET Data'!P1 -> CCVR_Sub | Q1: ='Raw AERMET Data'!Q1 -> TEMP_Sub
F2: sensible heat flux | G2: surface friction velocity | H2: convective velocity scale | I2: vertical potential temperature gradient above BPL | J2: height of convectively-generated boundary layer | K2: height of mechanically-generated boundary layer | L2: Monin-Obukhov length | M2: surface roughness length | N2: Bowen ratio | O2: Albedo | P2: Wind Speed | Q2: Wind Direction | R2: Reference Height | S2: Temperature | T2: Temp Reference Height | U2: Precip. Code | V2: Precip. Rate | W2: Relative Humidity | X2: Barometric Pressure | Y2: Cloud Cover | AC2: Saturation Press (hPa) | AD2: Mixing Ratio (g/kg)
A3: YEAR | B3: MONTH | C3: DAY | D3: DAY_YR | E3: HOUR | F3: H | G3: u* | H3: w* | I3: VPTG | J3: PBL | K3: SBL | L3: L | M3: z_0 | N3: B_0 | O3: r | P3: W_s | Q3: W_d | R3: z_ref | S3: Temp_K | T3: Temp_ref | V3: Precip_mm | W3: RH | X3: PRESS | AB3: DewPT | AC3: P_ws | AD3: M/R | AG3: A | AH3: 6.116441
A4: ='Raw AERMET Data'!A2 -> 13 | B4: ='Raw AERMET Data'!B2 -> 1 | C4: ='Raw AERMET Data'!C2 -> 1 | D4: ='Raw AERMET Data'!D2 -> 1 | E4: ='Raw AERMET Data'!E2 -> 1 | F4: ='Raw AERMET Data'!F2 -> -8.8 | G4: ='Raw AERMET Data'!G2 -> 0.1 | H4: ='Raw AERMET Data'!H2 -> -9 | I4: ='Raw AERMET Data'!I2 -> -9 | J4: ='Raw AERMET Data'!J2 -> -999 | K4: ='Raw AERMET Data'!K2 -> 70 | L4: ='Raw AERMET Data'!L2 -> 8.6 | M4: ='Raw AERMET Data'!M2 -> 0.061 | N4: ='Raw AERMET Data'!N2 -> 1.65 | O4: ='Raw AERMET Data'!O2 -> 1 | P4: ='Raw AERMET Data'!P2 -> 2.43 | Q4: ='Raw AERMET Data'!Q2 -> 112 | R4: ='Raw AERMET Data'!R2 -> 10 | S4: ='Raw AERMET Data'!S2 -> 278.8 | T4: ='Raw AERMET Data'!T2 -> 2 | U4: ='Raw AERMET Data'!U2 -> 0 | V4: ='Raw AERMET Data'!V2 -> 0 | W4: ='Raw AERMET Data'!W2 -> 48 | X4: ='Raw AERMET Data'!X2 -> 983 | Y4: ='Raw AERMET Data'!Y2 -> 3 | Z4: ='Raw AERMET Data'!Z2 -> ADJ-A1 | AA4: ='Raw AERMET Data'!AA2 -> NoSubs | AB4: ='Raw AERMET Data'!AB2 -> -4.6 | AC4: ='Raw AERMET Data'!AC2 ->  | AD4: ='Raw AERMET Data'!AD2 ->  | AG4: m | AH4: 7.591386
A5: ='Raw AERMET Data'!A3 -> 13 | B5: ='Raw AERMET Data'!B3 -> 1 | C5: ='Raw AERMET Data'!C3 -> 1 | D5: ='Raw AERMET Data'!D3 -> 1 | E5: ='Raw AERMET Data'!E3 -> 2 | F5: ='Raw AERMET Data'!F3 -> -2.4 | G5: ='Raw AERMET Data'!G3 -> 0.1 | H5: ='Raw AERMET Data'!H3 -> -9 | I5: ='Raw AERMET Data'!I3 -> -9 | J5: ='Raw AERMET Data'!J3 -> -999 | K5: ='Raw AERMET Data'!K3 -> 27 | L5: ='Raw AERMET Data'!L3 -> 4.5 | M5: ='Raw AERMET Data'!M3 -> 0.061 | N5: ='Raw AERMET Data'!N3 -> 1.65 | O5: ='Raw AERMET Data'!O3 -> 1 | P5: ='Raw AERMET Data'!P3 -> 1.28 | Q5: ='Raw AERMET Data'!Q3 -> 111 | R5: ='Raw AERMET Data'!R3 -> 10 | S5: ='Raw AERMET Data'!S3 -> 278.1 | T5: ='Raw AERMET Data'!T3 -> 2 | U5: ='Raw AERMET Data'!U3 -> 0 | V5: ='Raw AERMET Data'!V3 -> 0 | W5: ='Raw AERMET Data'!W3 -> 61 | X5: ='Raw AERMET Data'!X3 -> 983 | Y5: ='Raw AERMET Data'!Y3 -> 3 | Z5: ='Raw AERMET Data'!Z3 -> ADJ-A1 | AA5: ='Raw AERMET Data'!AA3 -> NoSubs | AB5: ='Raw AERMET Data'!AB3 -> -2.7 | AC5: ='Raw AERMET Data'!AC3 ->  | AD5: ='Raw AERMET Data'!AD3 ->  | AG5: T_n | AH5: 240.7263
A6: ='Raw AERMET Data'!A4 -> 13 | B6: ='Raw AERMET Data'!B4 -> 1 | C6: ='Raw AERMET Data'!C4 -> 1 | D6: ='Raw AERMET Data'!D4 -> 1 | E6: ='Raw AERMET Data'!E4 -> 3 | F6: ='Raw AERMET Data'!F4 -> -10.2 | G6: ='Raw AERMET Data'!G4 -> 0.1 | H6: ='Raw AERMET Data'!H4 -> -9 | I6: ='Raw AERMET Data'!I4 -> -9 | J6: ='Raw AERMET Data'!J4 -> -999 | K6: ='Raw AERMET Data'!K4 -> 78 | L6: ='Raw AERMET Data'!L4 -> 9.2 | M6: ='Raw AERMET Data'!M4 -> 0.061 | N6: ='Raw AERMET Data'!N4 -> 1.65 | O6: ='Raw AERMET Data'!O4 -> 1 | P6: ='Raw AERMET Data'!P4 -> 2.61 | Q6: ='Raw AERMET Data'!Q4 -> 101 | R6: ='Raw AERMET Data'!R4 -> 10 | S6: ='Raw AERMET Data'!S4 -> 277 | T6: ='Raw AERMET Data'!T4 -> 2 | U6: ='Raw AERMET Data'!U4 -> 0 | V6: ='Raw AERMET Data'!V4 -> 0 | W6: ='Raw AERMET Data'!W4 -> 72 | X6: ='Raw AERMET Data'!X4 -> 983 | Y6: ='Raw AERMET Data'!Y4 -> 3 | Z6: ='Raw AERMET Data'!Z4 -> ADJ-A1 | AA6: ='Raw AERMET Data'!AA4 -> NoSubs | AB6: ='Raw AERMET Data'!AB4 -> -1.6 | AC6: ='Raw AERMET Data'!AC4 ->  | AD6: ='Raw AERMET Data'!AD4 -> 
A7: ='Raw AERMET Data'!A5 -> 13 | B7: ='Raw AERMET Data'!B5 -> 1 | C7: ='Raw AERMET Data'!C5 -> 1 | D7: ='Raw AERMET Data'!D5 -> 1 | E7: ='Raw AERMET Data'!E5 -> 4 | F7: ='Raw AERMET Data'!F5 -> -21.2 | G7: ='Raw AERMET Data'!G5 -> 0.1 | H7: ='Raw AERMET Data'!H5 -> -9 | I7: ='Raw AERMET Data'!I5 -> -9 | J7: ='Raw AERMET Data'!J5 -> -999 | K7: ='Raw AERMET Data'!K5 -> 212 | L7: ='Raw AERMET Data'!L5 -> 32.3 | M7: ='Raw AERMET Data'!M5 -> 0.07 | N7: ='Raw AERMET Data'!N5 -> 1.65 | O7: ='Raw AERMET Data'!O5 -> 1 | P7: ='Raw AERMET Data'!P5 -> 3.23 | Q7: ='Raw AERMET Data'!Q5 -> 82 | R7: ='Raw AERMET Data'!R5 -> 10 | S7: ='Raw AERMET Data'!S5 -> 277 | T7: ='Raw AERMET Data'!T5 -> 2 | U7: ='Raw AERMET Data'!U5 -> 0 | V7: ='Raw AERMET Data'!V5 -> 0 | W7: ='Raw AERMET Data'!W5 -> 75 | X7: ='Raw AERMET Data'!X5 -> 983 | Y7: ='Raw AERMET Data'!Y5 -> 3 | Z7: ='Raw AERMET Data'!Z5 -> ADJ-A1 | AA7: ='Raw AERMET Data'!AA5 -> NoSubs | AB7: ='Raw AERMET Data'!AB5 -> -1 | AC7: ='Raw AERMET Data'!AC5 ->  | AD7: ='Raw AERMET Data'!AD5 -> 
A8: ='Raw AERMET Data'!A6 -> 13 | B8: ='Raw AERMET Data'!B6 -> 1 | C8: ='Raw AERMET Data'!C6 -> 1 | D8: ='Raw AERMET Data'!D6 -> 1 | E8: ='Raw AERMET Data'!E6 -> 5 | F8: ='Raw AERMET Data'!F6 -> -15.6 | G8: ='Raw AERMET Data'!G6 -> 0.1 | H8: ='Raw AERMET Data'!H6 -> -9 | I8: ='Raw AERMET Data'!I6 -> -9 | J8: ='Raw AERMET Data'!J6 -> -999 | K8: ='Raw AERMET Data'!K6 -> 135 | L8: ='Raw AERMET Data'!L6 -> 17.5 | M8: ='Raw AERMET Data'!M6 -> 0.061 | N8: ='Raw AERMET Data'!N6 -> 1.65 | O8: ='Raw AERMET Data'!O6 -> 1 | P8: ='Raw AERMET Data'!P6 -> 2.91 | Q8: ='Raw AERMET Data'!Q6 -> 97 | R8: ='Raw AERMET Data'!R6 -> 10 | S8: ='Raw AERMET Data'!S6 -> 276.4 | T8: ='Raw AERMET Data'!T6 -> 2 | U8: ='Raw AERMET Data'!U6 -> 0 | V8: ='Raw AERMET Data'!V6 -> 0 | W8: ='Raw AERMET Data'!W6 -> 75 | X8: ='Raw AERMET Data'!X6 -> 983 | Y8: ='Raw AERMET Data'!Y6 -> 3 | Z8: ='Raw AERMET Data'!Z6 -> ADJ-A1 | AA8: ='Raw AERMET Data'!AA6 -> NoSubs | AB8: ='Raw AERMET Data'!AB6 -> -1.6 | AC8: ='Raw AERMET Data'!AC6 ->  | AD8: ='Raw AERMET Data'!AD6 -> 
A9: ='Raw AERMET Data'!A7 -> 13 | B9: ='Raw AERMET Data'!B7 -> 1 | C9: ='Raw AERMET Data'!C7 -> 1 | D9: ='Raw AERMET Data'!D7 -> 1 | E9: ='Raw AERMET Data'!E7 -> 6 | F9: ='Raw AERMET Data'!F7 -> -5.1 | G9: ='Raw AERMET Data'!G7 -> 0.1 | H9: ='Raw AERMET Data'!H7 -> -9 | I9: ='Raw AERMET Data'!I7 -> -9 | J9: ='Raw AERMET Data'!J7 -> -999 | K9: ='Raw AERMET Data'!K7 -> 49 | L9: ='Raw AERMET Data'!L7 -> 6.8 | M9: ='Raw AERMET Data'!M7 -> 0.081 | N9: ='Raw AERMET Data'!N7 -> 1.65 | O9: ='Raw AERMET Data'!O7 -> 1 | P9: ='Raw AERMET Data'!P7 -> 1.77 | Q9: ='Raw AERMET Data'!Q7 -> 135 | R9: ='Raw AERMET Data'!R7 -> 10 | S9: ='Raw AERMET Data'!S7 -> 275.9 | T9: ='Raw AERMET Data'!T7 -> 2 | U9: ='Raw AERMET Data'!U7 -> 0 | V9: ='Raw AERMET Data'!V7 -> 0 | W9: ='Raw AERMET Data'!W7 -> 75 | X9: ='Raw AERMET Data'!X7 -> 984 | Y9: ='Raw AERMET Data'!Y7 -> 3 | Z9: ='Raw AERMET Data'!Z7 -> ADJ-A1 | AA9: ='Raw AERMET Data'!AA7 -> NoSubs | AB9: ='Raw AERMET Data'!AB7 -> -2.1 | AC9: ='Raw AERMET Data'!AC7 ->  | AD9: ='Raw AERMET Data'!AD7 -> 
A10: ='Raw AERMET Data'!A8 -> 13 | B10: ='Raw AERMET Data'!B8 -> 1 | C10: ='Raw AERMET Data'!C8 -> 1 | D10: ='Raw AERMET Data'!D8 -> 1 | E10: ='Raw AERMET Data'!E8 -> 7 | F10: ='Raw AERMET Data'!F8 -> -7.6 | G10: ='Raw AERMET Data'!G8 -> 0.1 | H10: ='Raw AERMET Data'!H8 -> -9 | I10: ='Raw AERMET Data'!I8 -> -9 | J10: ='Raw AERMET Data'!J8 -> -999 | K10: ='Raw AERMET Data'!K8 -> 63 | L10: ='Raw AERMET Data'!L8 -> 7.9 | M10: ='Raw AERMET Data'!M8 -> 0.061 | N10: ='Raw AERMET Data'!N8 -> 1.65 | O10: ='Raw AERMET Data'!O8 -> 1 | P10: ='Raw AERMET Data'!P8 -> 2.25 | Q10: ='Raw AERMET Data'!Q8 -> 95 | R10: ='Raw AERMET Data'!R8 -> 10 | S10: ='Raw AERMET Data'!S8 -> 275.9 | T10: ='Raw AERMET Data'!T8 -> 2 | U10: ='Raw AERMET Data'!U8 -> 0 | V10: ='Raw AERMET Data'!V8 -> 0 | W10: ='Raw AERMET Data'!W8 -> 75 | X10: ='Raw AERMET Data'!X8 -> 984 | Y10: ='Raw AERMET Data'!Y8 -> 3 | Z10: ='Raw AERMET Data'!Z8 -> ADJ-A1 | AA10: ='Raw AERMET Data'!AA8 -> NoSubs | AB10: ='Raw AERMET Data'!AB8 -> -2.1 | AC10: ='Raw AERMET Data'!AC8 ->  | AD10: ='Raw AERMET Data'!AD8 -> 
A11: ='Raw AERMET Data'!A9 -> 13 | B11: ='Raw AERMET Data'!B9 -> 1 | C11: ='Raw AERMET Data'!C9 -> 1 | D11: ='Raw AERMET Data'!D9 -> 1 | E11: ='Raw AERMET Data'!E9 -> 8 | F11: ='Raw AERMET Data'!F9 -> -9.3 | G11: ='Raw AERMET Data'!G9 -> 0.1 | H11: ='Raw AERMET Data'!H9 -> -9 | I11: ='Raw AERMET Data'!I9 -> -9 | J11: ='Raw AERMET Data'!J9 -> -999 | K11: ='Raw AERMET Data'!K9 -> 73 | L11: ='Raw AERMET Data'!L9 -> 8.7 | M11: ='Raw AERMET Data'!M9 -> 0.061 | N11: ='Raw AERMET Data'!N9 -> 1.65 | O11: ='Raw AERMET Data'!O9 -> 1 | P11: ='Raw AERMET Data'!P9 -> 2.49 | Q11: ='Raw AERMET Data'!Q9 -> 100 | R11: ='Raw AERMET Data'!R9 -> 10 | S11: ='Raw AERMET Data'!S9 -> 275.4 | T11: ='Raw AERMET Data'!T9 -> 2 | U11: ='Raw AERMET Data'!U9 -> 0 | V11: ='Raw AERMET Data'!V9 -> 0 | W11: ='Raw AERMET Data'!W9 -> 78 | X11: ='Raw AERMET Data'!X9 -> 984 | Y11: ='Raw AERMET Data'!Y9 -> 3 | Z11: ='Raw AERMET Data'!Z9 -> ADJ-A1 | AA11: ='Raw AERMET Data'!AA9 -> NoSubs | AB11: ='Raw AERMET Data'!AB9 -> -2 | AC11: ='Raw AERMET Data'!AC9 ->  | AD11: ='Raw AERMET Data'!AD9 -> 
A12: ='Raw AERMET Data'!A10 -> 13 | B12: ='Raw AERMET Data'!B10 -> 1 | C12: ='Raw AERMET Data'!C10 -> 1 | D12: ='Raw AERMET Data'!D10 -> 1 | E12: ='Raw AERMET Data'!E10 -> 9 | F12: ='Raw AERMET Data'!F10 -> 3 | G12: ='Raw AERMET Data'!G10 -> 0.1 | H12: ='Raw AERMET Data'!H10 -> 0.121 | I12: ='Raw AERMET Data'!I10 -> 0.006 | J12: ='Raw AERMET Data'!J10 -> 21 | K12: ='Raw AERMET Data'!K10 -> 164 | L12: ='Raw AERMET Data'!L10 -> -138.5 | M12: ='Raw AERMET Data'!M10 -> 0.061 | N12: ='Raw AERMET Data'!N10 -> 1.65 | O12: ='Raw AERMET Data'!O10 -> 0.42 | P12: ='Raw AERMET Data'!P10 -> 2.04 | Q12: ='Raw AERMET Data'!Q10 -> 108 | R12: ='Raw AERMET Data'!R10 -> 10 | S12: ='Raw AERMET Data'!S10 -> 277.5 | T12: ='Raw AERMET Data'!T10 -> 2 | U12: ='Raw AERMET Data'!U10 -> 0 | V12: ='Raw AERMET Data'!V10 -> 0 | W12: ='Raw AERMET Data'!W10 -> 69 | X12: ='Raw AERMET Data'!X10 -> 984 | Y12: ='Raw AERMET Data'!Y10 -> 5 | Z12: ='Raw AERMET Data'!Z10 -> ADJ-A1 | AA12: ='Raw AERMET Data'!AA10 -> NoSubs | AB12: ='Raw AERMET Data'!AB10 -> -1.7 | AC12: ='Raw AERMET Data'!AC10 ->  | AD12: ='Raw AERMET Data'!AD10 -> 
A13: ='Raw AERMET Data'!A11 -> 13 | B13: ='Raw AERMET Data'!B11 -> 1 | C13: ='Raw AERMET Data'!C11 -> 1 | D13: ='Raw AERMET Data'!D11 -> 1 | E13: ='Raw AERMET Data'!E11 -> 10 | F13: ='Raw AERMET Data'!F11 -> 64.5 | G13: ='Raw AERMET Data'!G11 -> 0.1 | H13: ='Raw AERMET Data'!H11 -> 0.772 | I13: ='Raw AERMET Data'!I11 -> 0.005 | J13: ='Raw AERMET Data'!J11 -> 251 | K13: ='Raw AERMET Data'!K11 -> 239 | L13: ='Raw AERMET Data'!L11 -> -13.5 | M13: ='Raw AERMET Data'!M11 -> 0.061 | N13: ='Raw AERMET Data'!N11 -> 1.65 | O13: ='Raw AERMET Data'!O11 -> 0.28 | P13: ='Raw AERMET Data'!P11 -> 2.23 | Q13: ='Raw AERMET Data'!Q11 -> 96 | R13: ='Raw AERMET Data'!R11 -> 10 | S13: ='Raw AERMET Data'!S11 -> 279.9 | T13: ='Raw AERMET Data'!T11 -> 2 | U13: ='Raw AERMET Data'!U11 -> 0 | V13: ='Raw AERMET Data'!V11 -> 0 | W13: ='Raw AERMET Data'!W11 -> 62 | X13: ='Raw AERMET Data'!X11 -> 984 | Y13: ='Raw AERMET Data'!Y11 -> 5 | Z13: ='Raw AERMET Data'!Z11 -> ADJ-A1 | AA13: ='Raw AERMET Data'!AA11 -> NoSubs | AB13: ='Raw AERMET Data'!AB11 -> -0.7 | AC13: ='Raw AERMET Data'!AC11 ->  | AD13: ='Raw AERMET Data'!AD11 -> 
A14: ='Raw AERMET Data'!A12 -> 13 | B14: ='Raw AERMET Data'!B12 -> 1 | C14: ='Raw AERMET Data'!C12 -> 1 | D14: ='Raw AERMET Data'!D12 -> 1 | E14: ='Raw AERMET Data'!E12 -> 11 | F14: ='Raw AERMET Data'!F12 -> 79.8 | G14: ='Raw AERMET Data'!G12 -> 0.1 | H14: ='Raw AERMET Data'!H12 -> 0.913 | I14: ='Raw AERMET Data'!I12 -> 0.005 | J14: ='Raw AERMET Data'!J12 -> 335 | K14: ='Raw AERMET Data'!K12 -> 471 | L14: ='Raw AERMET Data'!L12 -> -42.3 | M14: ='Raw AERMET Data'!M12 -> 0.061 | N14: ='Raw AERMET Data'!N12 -> 1.65 | O14: ='Raw AERMET Data'!O12 -> 0.23 | P14: ='Raw AERMET Data'!P12 -> 3.88 | Q14: ='Raw AERMET Data'!Q12 -> 93 | R14: ='Raw AERMET Data'!R12 -> 10 | S14: ='Raw AERMET Data'!S12 -> 282.5 | T14: ='Raw AERMET Data'!T12 -> 2 | U14: ='Raw AERMET Data'!U12 -> 0 | V14: ='Raw AERMET Data'!V12 -> 0 | W14: ='Raw AERMET Data'!W12 -> 49 | X14: ='Raw AERMET Data'!X12 -> 984 | Y14: ='Raw AERMET Data'!Y12 -> 8 | Z14: ='Raw AERMET Data'!Z12 -> ADJ-A1 | AA14: ='Raw AERMET Data'!AA12 -> NoSubs | AB14: ='Raw AERMET Data'!AB12 -> -0.7 | AC14: ='Raw AERMET Data'!AC12 ->  | AD14: ='Raw AERMET Data'!AD12 -> 
A15: ='Raw AERMET Data'!A13 -> 13 | B15: ='Raw AERMET Data'!B13 -> 1 | C15: ='Raw AERMET Data'!C13 -> 1 | D15: ='Raw AERMET Data'!D13 -> 1 | E15: ='Raw AERMET Data'!E13 -> 12 | F15: ='Raw AERMET Data'!F13 -> 151.3 | G15: ='Raw AERMET Data'!G13 -> 0.1 | H15: ='Raw AERMET Data'!H13 -> 1.519 | I15: ='Raw AERMET Data'!I13 -> 0.005 | J15: ='Raw AERMET Data'!J13 -> 813 | K15: ='Raw AERMET Data'!K13 -> 359 | L15: ='Raw AERMET Data'!L13 -> -12.8 | M15: ='Raw AERMET Data'!M13 -> 0.061 | N15: ='Raw AERMET Data'!N13 -> 1.65 | O15: ='Raw AERMET Data'!O13 -> 0.22 | P15: ='Raw AERMET Data'!P13 -> 2.9 | Q15: ='Raw AERMET Data'!Q13 -> 108 | R15: ='Raw AERMET Data'!R13 -> 10 | S15: ='Raw AERMET Data'!S13 -> 284.9 | T15: ='Raw AERMET Data'!T13 -> 2 | U15: ='Raw AERMET Data'!U13 -> 0 | V15: ='Raw AERMET Data'!V13 -> 0 | W15: ='Raw AERMET Data'!W13 -> 40 | X15: ='Raw AERMET Data'!X13 -> 984 | Y15: ='Raw AERMET Data'!Y13 -> 3 | Z15: ='Raw AERMET Data'!Z13 -> ADJ-A1 | AA15: ='Raw AERMET Data'!AA13 -> NoSubs | AB15: ='Raw AERMET Data'!AB13 -> -0.1 | AC15: ='Raw AERMET Data'!AC13 ->  | AD15: ='Raw AERMET Data'!AD13 -> 
A16: ='Raw AERMET Data'!A14 -> 13 | B16: ='Raw AERMET Data'!B14 -> 1 | C16: ='Raw AERMET Data'!C14 -> 1 | D16: ='Raw AERMET Data'!D14 -> 1 | E16: ='Raw AERMET Data'!E14 -> 13 | F16: ='Raw AERMET Data'!F14 -> 162.9 | G16: ='Raw AERMET Data'!G14 -> 0.1 | H16: ='Raw AERMET Data'!H14 -> 1.765 | I16: ='Raw AERMET Data'!I14 -> 0.005 | J16: ='Raw AERMET Data'!J14 -> 1184 | K16: ='Raw AERMET Data'!K14 -> 298 | L16: ='Raw AERMET Data'!L14 -> -8.3 | M16: ='Raw AERMET Data'!M14 -> 0.061 | N16: ='Raw AERMET Data'!N14 -> 1.65 | O16: ='Raw AERMET Data'!O14 -> 0.21 | P16: ='Raw AERMET Data'!P14 -> 2.44 | Q16: ='Raw AERMET Data'!Q14 -> 93 | R16: ='Raw AERMET Data'!R14 -> 10 | S16: ='Raw AERMET Data'!S14 -> 285.4 | T16: ='Raw AERMET Data'!T14 -> 2 | U16: ='Raw AERMET Data'!U14 -> 0 | V16: ='Raw AERMET Data'!V14 -> 0 | W16: ='Raw AERMET Data'!W14 -> 36 | X16: ='Raw AERMET Data'!X14 -> 982 | Y16: ='Raw AERMET Data'!Y14 -> 3 | Z16: ='Raw AERMET Data'!Z14 -> ADJ-A1 | AA16: ='Raw AERMET Data'!AA14 -> NoSubs | AB16: ='Raw AERMET Data'!AB14 -> -0.4 | AC16: ='Raw AERMET Data'!AC14 ->  | AD16: ='Raw AERMET Data'!AD14 -> 
A17: ='Raw AERMET Data'!A15 -> 13 | B17: ='Raw AERMET Data'!B15 -> 1 | C17: ='Raw AERMET Data'!C15 -> 1 | D17: ='Raw AERMET Data'!D15 -> 1 | E17: ='Raw AERMET Data'!E15 -> 14 | F17: ='Raw AERMET Data'!F15 -> 147.7 | G17: ='Raw AERMET Data'!G15 -> 0.1 | H17: ='Raw AERMET Data'!H15 -> 1.761 | I17: ='Raw AERMET Data'!I15 -> 0.005 | J17: ='Raw AERMET Data'!J15 -> 1296 | K17: ='Raw AERMET Data'!K15 -> 209 | L17: ='Raw AERMET Data'!L15 -> -4.5 | M17: ='Raw AERMET Data'!M15 -> 0.07 | N17: ='Raw AERMET Data'!N15 -> 1.65 | O17: ='Raw AERMET Data'!O15 -> 0.22 | P17: ='Raw AERMET Data'!P15 -> 1.7 | Q17: ='Raw AERMET Data'!Q15 -> 88 | R17: ='Raw AERMET Data'!R15 -> 10 | S17: ='Raw AERMET Data'!S15 -> 285.9 | T17: ='Raw AERMET Data'!T15 -> 2 | U17: ='Raw AERMET Data'!U15 -> 0 | V17: ='Raw AERMET Data'!V15 -> 0 | W17: ='Raw AERMET Data'!W15 -> 29 | X17: ='Raw AERMET Data'!X15 -> 981 | Y17: ='Raw AERMET Data'!Y15 -> 5 | Z17: ='Raw AERMET Data'!Z15 -> ADJ-A1 | AA17: ='Raw AERMET Data'!AA15 -> NoSubs | AB17: ='Raw AERMET Data'!AB15 -> -1.3 | AC17: ='Raw AERMET Data'!AC15 ->  | AD17: ='Raw AERMET Data'!AD15 -> 
A18: ='Raw AERMET Data'!A16 -> 13 | B18: ='Raw AERMET Data'!B16 -> 1 | C18: ='Raw AERMET Data'!C16 -> 1 | D18: ='Raw AERMET Data'!D16 -> 1 | E18: ='Raw AERMET Data'!E16 -> 15 | F18: ='Raw AERMET Data'!F16 -> 118.2 | G18: ='Raw AERMET Data'!G16 -> 0.1 | H18: ='Raw AERMET Data'!H16 -> 1.656 | I18: ='Raw AERMET Data'!I16 -> 0.005 | J18: ='Raw AERMET Data'!J16 -> 1346 | K18: ='Raw AERMET Data'!K16 -> 179 | L18: ='Raw AERMET Data'!L16 -> -4.1 | M18: ='Raw AERMET Data'!M16 -> 0.081 | N18: ='Raw AERMET Data'!N16 -> 1.65 | O18: ='Raw AERMET Data'!O16 -> 0.23 | P18: ='Raw AERMET Data'!P16 -> 1.45 | Q18: ='Raw AERMET Data'!Q16 -> 140 | R18: ='Raw AERMET Data'!R16 -> 10 | S18: ='Raw AERMET Data'!S16 -> 287 | T18: ='Raw AERMET Data'!T16 -> 2 | U18: ='Raw AERMET Data'!U16 -> 0 | V18: ='Raw AERMET Data'!V16 -> 0 | W18: ='Raw AERMET Data'!W16 -> 28 | X18: ='Raw AERMET Data'!X16 -> 981 | Y18: ='Raw AERMET Data'!Y16 -> 5 | Z18: ='Raw AERMET Data'!Z16 -> ADJ-A1 | AA18: ='Raw AERMET Data'!AA16 -> NoSubs | AB18: ='Raw AERMET Data'!AB16 -> -0.4 | AC18: ='Raw AERMET Data'!AC16 ->  | AD18: ='Raw AERMET Data'!AD16 -> 
A19: ='Raw AERMET Data'!A17 -> 13 | B19: ='Raw AERMET Data'!B17 -> 1 | C19: ='Raw AERMET Data'!C17 -> 1 | D19: ='Raw AERMET Data'!D17 -> 1 | E19: ='Raw AERMET Data'!E17 -> 16 | F19: ='Raw AERMET Data'!F17 -> 69.4 | G19: ='Raw AERMET Data'!G17 -> 0.1 | H19: ='Raw AERMET Data'!H17 -> 1.396 | I19: ='Raw AERMET Data'!I17 -> 0.006 | J19: ='Raw AERMET Data'!J17 -> 1373 | K19: ='Raw AERMET Data'!K17 -> 180 | L19: ='Raw AERMET Data'!L17 -> -7.1 | M19: ='Raw AERMET Data'!M17 -> 0.07 | N19: ='Raw AERMET Data'!N17 -> 1.65 | O19: ='Raw AERMET Data'!O17 -> 0.28 | P19: ='Raw AERMET Data'!P17 -> 1.65 | Q19: ='Raw AERMET Data'!Q17 -> 11 | R19: ='Raw AERMET Data'!R17 -> 10 | S19: ='Raw AERMET Data'!S17 -> 286.4 | T19: ='Raw AERMET Data'!T17 -> 2 | U19: ='Raw AERMET Data'!U17 -> 0 | V19: ='Raw AERMET Data'!V17 -> 0 | W19: ='Raw AERMET Data'!W17 -> 29 | X19: ='Raw AERMET Data'!X17 -> 980 | Y19: ='Raw AERMET Data'!Y17 -> 5 | Z19: ='Raw AERMET Data'!Z17 -> ADJ-A1 | AA19: ='Raw AERMET Data'!AA17 -> NoSubs | AB19: ='Raw AERMET Data'!AB17 -> -0.8 | AC19: ='Raw AERMET Data'!AC17 ->  | AD19: ='Raw AERMET Data'!AD17 -> 
A20: ='Raw AERMET Data'!A18 -> 13 | B20: ='Raw AERMET Data'!B18 -> 1 | C20: ='Raw AERMET Data'!C18 -> 1 | D20: ='Raw AERMET Data'!D18 -> 1 | E20: ='Raw AERMET Data'!E18 -> 17 | F20: ='Raw AERMET Data'!F18 -> 8.1 | G20: ='Raw AERMET Data'!G18 -> 0.1 | H20: ='Raw AERMET Data'!H18 -> 0.684 | I20: ='Raw AERMET Data'!I18 -> 0.006 | J20: ='Raw AERMET Data'!J18 -> 1375 | K20: ='Raw AERMET Data'!K18 -> 165 | L20: ='Raw AERMET Data'!L18 -> -51 | M20: ='Raw AERMET Data'!M18 -> 0.065 | N20: ='Raw AERMET Data'!N18 -> 1.65 | O20: ='Raw AERMET Data'!O18 -> 0.41 | P20: ='Raw AERMET Data'!P18 -> 1.93 | Q20: ='Raw AERMET Data'!Q18 -> 339 | R20: ='Raw AERMET Data'!R18 -> 10 | S20: ='Raw AERMET Data'!S18 -> 285.4 | T20: ='Raw AERMET Data'!T18 -> 2 | U20: ='Raw AERMET Data'!U18 -> 0 | V20: ='Raw AERMET Data'!V18 -> 0 | W20: ='Raw AERMET Data'!W18 -> 32 | X20: ='Raw AERMET Data'!X18 -> 980 | Y20: ='Raw AERMET Data'!Y18 -> 5 | Z20: ='Raw AERMET Data'!Z18 -> ADJ-A1 | AA20: ='Raw AERMET Data'!AA18 -> NoSubs | AB20: ='Raw AERMET Data'!AB18 -> -1.2 | AC20: ='Raw AERMET Data'!AC18 ->  | AD20: ='Raw AERMET Data'!AD18 -> 
A21: ='Raw AERMET Data'!A19 -> 13 | B21: ='Raw AERMET Data'!B19 -> 1 | C21: ='Raw AERMET Data'!C19 -> 1 | D21: ='Raw AERMET Data'!D19 -> 1 | E21: ='Raw AERMET Data'!E19 -> 18 | F21: ='Raw AERMET Data'!F19 -> -8.3 | G21: ='Raw AERMET Data'!G19 -> 0.1 | H21: ='Raw AERMET Data'!H19 -> -9 | I21: ='Raw AERMET Data'!I19 -> -9 | J21: ='Raw AERMET Data'!J19 -> -999 | K21: ='Raw AERMET Data'!K19 -> 71 | L21: ='Raw AERMET Data'!L19 -> 8.7 | M21: ='Raw AERMET Data'!M19 -> 0.049 | N21: ='Raw AERMET Data'!N19 -> 1.65 | O21: ='Raw AERMET Data'!O19 -> 1 | P21: ='Raw AERMET Data'!P19 -> 2.5 | Q21: ='Raw AERMET Data'!Q19 -> 269 | R21: ='Raw AERMET Data'!R19 -> 10 | S21: ='Raw AERMET Data'!S19 -> 284.9 | T21: ='Raw AERMET Data'!T19 -> 2 | U21: ='Raw AERMET Data'!U19 -> 0 | V21: ='Raw AERMET Data'!V19 -> 0 | W21: ='Raw AERMET Data'!W19 -> 36 | X21: ='Raw AERMET Data'!X19 -> 980 | Y21: ='Raw AERMET Data'!Y19 -> 5 | Z21: ='Raw AERMET Data'!Z19 -> ADJ-A1 | AA21: ='Raw AERMET Data'!AA19 -> NoSubs | AB21: ='Raw AERMET Data'!AB19 -> -0.9 | AC21: ='Raw AERMET Data'!AC19 ->  | AD21: ='Raw AERMET Data'!AD19 -> 
A22: ='Raw AERMET Data'!A20 -> 13 | B22: ='Raw AERMET Data'!B20 -> 1 | C22: ='Raw AERMET Data'!C20 -> 1 | D22: ='Raw AERMET Data'!D20 -> 1 | E22: ='Raw AERMET Data'!E20 -> 19 | F22: ='Raw AERMET Data'!F20 -> -18.1 | G22: ='Raw AERMET Data'!G20 -> 0.1 | H22: ='Raw AERMET Data'!H20 -> -9 | I22: ='Raw AERMET Data'!I20 -> -9 | J22: ='Raw AERMET Data'!J20 -> -999 | K22: ='Raw AERMET Data'!K20 -> 200 | L22: ='Raw AERMET Data'!L20 -> 33.4 | M22: ='Raw AERMET Data'!M20 -> 0.07 | N22: ='Raw AERMET Data'!N20 -> 1.65 | O22: ='Raw AERMET Data'!O20 -> 1 | P22: ='Raw AERMET Data'!P20 -> 3.08 | Q22: ='Raw AERMET Data'!Q20 -> 289 | R22: ='Raw AERMET Data'!R20 -> 10 | S22: ='Raw AERMET Data'!S20 -> 284.2 | T22: ='Raw AERMET Data'!T20 -> 2 | U22: ='Raw AERMET Data'!U20 -> 0 | V22: ='Raw AERMET Data'!V20 -> 0 | W22: ='Raw AERMET Data'!W20 -> 37 | X22: ='Raw AERMET Data'!X20 -> 981 | Y22: ='Raw AERMET Data'!Y20 -> 5 | Z22: ='Raw AERMET Data'!Z20 -> ADJ-A1 | AA22: ='Raw AERMET Data'!AA20 -> NoSubs | AB22: ='Raw AERMET Data'!AB20 -> -1.4 | AC22: ='Raw AERMET Data'!AC20 ->  | AD22: ='Raw AERMET Data'!AD20 -> 
A23: ='Raw AERMET Data'!A21 -> 13 | B23: ='Raw AERMET Data'!B21 -> 1 | C23: ='Raw AERMET Data'!C21 -> 1 | D23: ='Raw AERMET Data'!D21 -> 1 | E23: ='Raw AERMET Data'!E21 -> 20 | F23: ='Raw AERMET Data'!F21 -> -18.2 | G23: ='Raw AERMET Data'!G21 -> 0.1 | H23: ='Raw AERMET Data'!H21 -> -9 | I23: ='Raw AERMET Data'!I21 -> -9 | J23: ='Raw AERMET Data'!J21 -> -999 | K23: ='Raw AERMET Data'!K21 -> 201 | L23: ='Raw AERMET Data'!L21 -> 33.6 | M23: ='Raw AERMET Data'!M21 -> 0.059 | N23: ='Raw AERMET Data'!N21 -> 1.65 | O23: ='Raw AERMET Data'!O21 -> 1 | P23: ='Raw AERMET Data'!P21 -> 3.17 | Q23: ='Raw AERMET Data'!Q21 -> 311 | R23: ='Raw AERMET Data'!R21 -> 10 | S23: ='Raw AERMET Data'!S21 -> 283.8 | T23: ='Raw AERMET Data'!T21 -> 2 | U23: ='Raw AERMET Data'!U21 -> 0 | V23: ='Raw AERMET Data'!V21 -> 0 | W23: ='Raw AERMET Data'!W21 -> 38 | X23: ='Raw AERMET Data'!X21 -> 981 | Y23: ='Raw AERMET Data'!Y21 -> 5 | Z23: ='Raw AERMET Data'!Z21 -> ADJ-A1 | AA23: ='Raw AERMET Data'!AA21 -> NoSubs | AB23: ='Raw AERMET Data'!AB21 -> -1.6 | AC23: ='Raw AERMET Data'!AC21 ->  | AD23: ='Raw AERMET Data'!AD21 -> 
A24: ='Raw AERMET Data'!A22 -> 13 | B24: ='Raw AERMET Data'!B22 -> 1 | C24: ='Raw AERMET Data'!C22 -> 1 | D24: ='Raw AERMET Data'!D22 -> 1 | E24: ='Raw AERMET Data'!E22 -> 21 | F24: ='Raw AERMET Data'!F22 -> -9.5 | G24: ='Raw AERMET Data'!G22 -> 0.1 | H24: ='Raw AERMET Data'!H22 -> -9 | I24: ='Raw AERMET Data'!I22 -> -9 | J24: ='Raw AERMET Data'!J22 -> -999 | K24: ='Raw AERMET Data'!K22 -> 81 | L24: ='Raw AERMET Data'!L22 -> 9.7 | M24: ='Raw AERMET Data'!M22 -> 0.065 | N24: ='Raw AERMET Data'!N22 -> 1.65 | O24: ='Raw AERMET Data'!O22 -> 1 | P24: ='Raw AERMET Data'!P22 -> 2.57 | Q24: ='Raw AERMET Data'!Q22 -> 343 | R24: ='Raw AERMET Data'!R22 -> 10 | S24: ='Raw AERMET Data'!S22 -> 283.1 | T24: ='Raw AERMET Data'!T22 -> 2 | U24: ='Raw AERMET Data'!U22 -> 0 | V24: ='Raw AERMET Data'!V22 -> 0 | W24: ='Raw AERMET Data'!W22 -> 40 | X24: ='Raw AERMET Data'!X22 -> 981 | Y24: ='Raw AERMET Data'!Y22 -> 5 | Z24: ='Raw AERMET Data'!Z22 -> ADJ-A1 | AA24: ='Raw AERMET Data'!AA22 -> NoSubs | AB24: ='Raw AERMET Data'!AB22 -> -1.9 | AC24: ='Raw AERMET Data'!AC22 ->  | AD24: ='Raw AERMET Data'!AD22 -> 
A25: ='Raw AERMET Data'!A23 -> 13 | B25: ='Raw AERMET Data'!B23 -> 1 | C25: ='Raw AERMET Data'!C23 -> 1 | D25: ='Raw AERMET Data'!D23 -> 1 | E25: ='Raw AERMET Data'!E23 -> 22 | F25: ='Raw AERMET Data'!F23 -> -12.5 | G25: ='Raw AERMET Data'!G23 -> 0.1 | H25: ='Raw AERMET Data'!H23 -> -9 | I25: ='Raw AERMET Data'!I23 -> -9 | J25: ='Raw AERMET Data'!J23 -> -999 | K25: ='Raw AERMET Data'!K23 -> 114 | L25: ='Raw AERMET Data'!L23 -> 15.8 | M25: ='Raw AERMET Data'!M23 -> 0.07 | N25: ='Raw AERMET Data'!N23 -> 1.65 | O25: ='Raw AERMET Data'!O23 -> 1 | P25: ='Raw AERMET Data'!P23 -> 2.67 | Q25: ='Raw AERMET Data'!Q23 -> 5 | R25: ='Raw AERMET Data'!R23 -> 10 | S25: ='Raw AERMET Data'!S23 -> 283.1 | T25: ='Raw AERMET Data'!T23 -> 2 | U25: ='Raw AERMET Data'!U23 -> 0 | V25: ='Raw AERMET Data'!V23 -> 0 | W25: ='Raw AERMET Data'!W23 -> 38 | X25: ='Raw AERMET Data'!X23 -> 981 | Y25: ='Raw AERMET Data'!Y23 -> 5 | Z25: ='Raw AERMET Data'!Z23 -> ADJ-A1 | AA25: ='Raw AERMET Data'!AA23 -> NoSubs | AB25: ='Raw AERMET Data'!AB23 -> -2.3 | AC25: ='Raw AERMET Data'!AC23 ->  | AD25: ='Raw AERMET Data'!AD23 -> 
A26: ='Raw AERMET Data'!A24 -> 13 | B26: ='Raw AERMET Data'!B24 -> 1 | C26: ='Raw AERMET Data'!C24 -> 1 | D26: ='Raw AERMET Data'!D24 -> 1 | E26: ='Raw AERMET Data'!E24 -> 23 | F26: ='Raw AERMET Data'!F24 -> -2.5 | G26: ='Raw AERMET Data'!G24 -> 0.1 | H26: ='Raw AERMET Data'!H24 -> -9 | I26: ='Raw AERMET Data'!I24 -> -9 | J26: ='Raw AERMET Data'!J24 -> -999 | K26: ='Raw AERMET Data'!K24 -> 32 | L26: ='Raw AERMET Data'!L24 -> 5.2 | M26: ='Raw AERMET Data'!M24 -> 0.081 | N26: ='Raw AERMET Data'!N24 -> 1.65 | O26: ='Raw AERMET Data'!O24 -> 1 | P26: ='Raw AERMET Data'!P24 -> 1.28 | Q26: ='Raw AERMET Data'!Q24 -> 137 | R26: ='Raw AERMET Data'!R24 -> 10 | S26: ='Raw AERMET Data'!S24 -> 281.4 | T26: ='Raw AERMET Data'!T24 -> 2 | U26: ='Raw AERMET Data'!U24 -> 0 | V26: ='Raw AERMET Data'!V24 -> 0 | W26: ='Raw AERMET Data'!W24 -> 47 | X26: ='Raw AERMET Data'!X24 -> 981 | Y26: ='Raw AERMET Data'!Y24 -> 5 | Z26: ='Raw AERMET Data'!Z24 -> ADJ-A1 | AA26: ='Raw AERMET Data'!AA24 -> NoSubs | AB26: ='Raw AERMET Data'!AB24 -> -2.2 | AC26: ='Raw AERMET Data'!AC24 ->  | AD26: ='Raw AERMET Data'!AD24 -> 
A27: ='Raw AERMET Data'!A25 -> 13 | B27: ='Raw AERMET Data'!B25 -> 1 | C27: ='Raw AERMET Data'!C25 -> 1 | D27: ='Raw AERMET Data'!D25 -> 1 | E27: ='Raw AERMET Data'!E25 -> 24 | F27: ='Raw AERMET Data'!F25 -> -7.4 | G27: ='Raw AERMET Data'!G25 -> 0.1 | H27: ='Raw AERMET Data'!H25 -> -9 | I27: ='Raw AERMET Data'!I25 -> -9 | J27: ='Raw AERMET Data'!J25 -> -999 | K27: ='Raw AERMET Data'!K25 -> 65 | L27: ='Raw AERMET Data'!L25 -> 8.7 | M27: ='Raw AERMET Data'!M25 -> 0.069 | N27: ='Raw AERMET Data'!N25 -> 1.65 | O27: ='Raw AERMET Data'!O25 -> 1 | P27: ='Raw AERMET Data'!P25 -> 2.25 | Q27: ='Raw AERMET Data'!Q25 -> 53 | R27: ='Raw AERMET Data'!R25 -> 10 | S27: ='Raw AERMET Data'!S25 -> 282.5 | T27: ='Raw AERMET Data'!T25 -> 2 | U27: ='Raw AERMET Data'!U25 -> 0 | V27: ='Raw AERMET Data'!V25 -> 0 | W27: ='Raw AERMET Data'!W25 -> 34 | X27: ='Raw AERMET Data'!X25 -> 981 | Y27: ='Raw AERMET Data'!Y25 -> 5 | Z27: ='Raw AERMET Data'!Z25 -> ADJ-A1 | AA27: ='Raw AERMET Data'!AA25 -> NoSubs | AB27: ='Raw AERMET Data'!AB25 -> -3.7 | AC27: ='Raw AERMET Data'!AC25 ->  | AD27: ='Raw AERMET Data'!AD25 -> 
A28: ='Raw AERMET Data'!A26 -> 13 | B28: ='Raw AERMET Data'!B26 -> 1 | C28: ='Raw AERMET Data'!C26 -> 2 | D28: ='Raw AERMET Data'!D26 -> 2 | E28: ='Raw AERMET Data'!E26 -> 1 | F28: ='Raw AERMET Data'!F26 -> -4.4 | G28: ='Raw AERMET Data'!G26 -> 0.1 | H28: ='Raw AERMET Data'!H26 -> -9 | I28: ='Raw AERMET Data'!I26 -> -9 | J28: ='Raw AERMET Data'!J26 -> -999 | K28: ='Raw AERMET Data'!K26 -> 43 | L28: ='Raw AERMET Data'!L26 -> 6.3 | M28: ='Raw AERMET Data'!M26 -> 0.049 | N28: ='Raw AERMET Data'!N26 -> 1.65 | O28: ='Raw AERMET Data'!O26 -> 1 | P28: ='Raw AERMET Data'!P26 -> 1.81 | Q28: ='Raw AERMET Data'!Q26 -> 262 | R28: ='Raw AERMET Data'!R26 -> 10 | S28: ='Raw AERMET Data'!S26 -> 280.4 | T28: ='Raw AERMET Data'!T26 -> 2 | U28: ='Raw AERMET Data'!U26 -> 0 | V28: ='Raw AERMET Data'!V26 -> 0 | W28: ='Raw AERMET Data'!W26 -> 51 | X28: ='Raw AERMET Data'!X26 -> 981 | Y28: ='Raw AERMET Data'!Y26 -> 5 | Z28: ='Raw AERMET Data'!Z26 -> ADJ-A1 | AA28: ='Raw AERMET Data'!AA26 -> NoSubs | AB28: ='Raw AERMET Data'!AB26 -> -2.4 | AC28: ='Raw AERMET Data'!AC26 ->  | AD28: ='Raw AERMET Data'!AD26 -> 
A29: ='Raw AERMET Data'!A27 -> 13 | B29: ='Raw AERMET Data'!B27 -> 1 | C29: ='Raw AERMET Data'!C27 -> 2 | D29: ='Raw AERMET Data'!D27 -> 2 | E29: ='Raw AERMET Data'!E27 -> 2 | F29: ='Raw AERMET Data'!F27 -> -7.3 | G29: ='Raw AERMET Data'!G27 -> 0.1 | H29: ='Raw AERMET Data'!H27 -> -9 | I29: ='Raw AERMET Data'!I27 -> -9 | J29: ='Raw AERMET Data'!J27 -> -999 | K29: ='Raw AERMET Data'!K27 -> 64 | L29: ='Raw AERMET Data'!L27 -> 8.6 | M29: ='Raw AERMET Data'!M27 -> 0.072 | N29: ='Raw AERMET Data'!N27 -> 1.65 | O29: ='Raw AERMET Data'!O27 -> 1 | P29: ='Raw AERMET Data'!P27 -> 2.21 | Q29: ='Raw AERMET Data'!Q27 -> 238 | R29: ='Raw AERMET Data'!R27 -> 10 | S29: ='Raw AERMET Data'!S27 -> 278.8 | T29: ='Raw AERMET Data'!T27 -> 2 | U29: ='Raw AERMET Data'!U27 -> 0 | V29: ='Raw AERMET Data'!V27 -> 0 | W29: ='Raw AERMET Data'!W27 -> 57 | X29: ='Raw AERMET Data'!X27 -> 981 | Y29: ='Raw AERMET Data'!Y27 -> 5 | Z29: ='Raw AERMET Data'!Z27 -> ADJ-A1 | AA29: ='Raw AERMET Data'!AA27 -> NoSubs | AB29: ='Raw AERMET Data'!AB27 -> -2.8 | AC29: ='Raw AERMET Data'!AC27 ->  | AD29: ='Raw AERMET Data'!AD27 -> 
A30: ='Raw AERMET Data'!A28 -> 13 | B30: ='Raw AERMET Data'!B28 -> 1 | C30: ='Raw AERMET Data'!C28 -> 2 | D30: ='Raw AERMET Data'!D28 -> 2 | E30: ='Raw AERMET Data'!E28 -> 3 | F30: ='Raw AERMET Data'!F28 -> -4.9 | G30: ='Raw AERMET Data'!G28 -> 0.1 | H30: ='Raw AERMET Data'!H28 -> -9 | I30: ='Raw AERMET Data'!I28 -> -9 | J30: ='Raw AERMET Data'!J28 -> -999 | K30: ='Raw AERMET Data'!K28 -> 48 | L30: ='Raw AERMET Data'!L28 -> 7 | M30: ='Raw AERMET Data'!M28 -> 0.072 | N30: ='Raw AERMET Data'!N28 -> 1.65 | O30: ='Raw AERMET Data'!O28 -> 1 | P30: ='Raw AERMET Data'!P28 -> 1.81 | Q30: ='Raw AERMET Data'!Q28 -> 237 | R30: ='Raw AERMET Data'!R28 -> 10 | S30: ='Raw AERMET Data'!S28 -> 278.1 | T30: ='Raw AERMET Data'!T28 -> 2 | U30: ='Raw AERMET Data'!U28 -> 0 | V30: ='Raw AERMET Data'!V28 -> 0 | W30: ='Raw AERMET Data'!W28 -> 57 | X30: ='Raw AERMET Data'!X28 -> 980 | Y30: ='Raw AERMET Data'!Y28 -> 5 | Z30: ='Raw AERMET Data'!Z28 -> ADJ-A1 | AA30: ='Raw AERMET Data'!AA28 -> NoSubs | AB30: ='Raw AERMET Data'!AB28 -> -3.5 | AC30: ='Raw AERMET Data'!AC28 ->  | AD30: ='Raw AERMET Data'!AD28 -> 
A31: ='Raw AERMET Data'!A29 -> 13 | B31: ='Raw AERMET Data'!B29 -> 1 | C31: ='Raw AERMET Data'!C29 -> 2 | D31: ='Raw AERMET Data'!D29 -> 2 | E31: ='Raw AERMET Data'!E29 -> 4 | F31: ='Raw AERMET Data'!F29 -> -4.5 | G31: ='Raw AERMET Data'!G29 -> 0.1 | H31: ='Raw AERMET Data'!H29 -> -9 | I31: ='Raw AERMET Data'!I29 -> -9 | J31: ='Raw AERMET Data'!J29 -> -999 | K31: ='Raw AERMET Data'!K29 -> 44 | L31: ='Raw AERMET Data'!L29 -> 6.3 | M31: ='Raw AERMET Data'!M29 -> 0.049 | N31: ='Raw AERMET Data'!N29 -> 1.65 | O31: ='Raw AERMET Data'!O29 -> 1 | P31: ='Raw AERMET Data'!P29 -> 1.84 | Q31: ='Raw AERMET Data'!Q29 -> 243 | R31: ='Raw AERMET Data'!R29 -> 10 | S31: ='Raw AERMET Data'!S29 -> 277.5 | T31: ='Raw AERMET Data'!T29 -> 2 | U31: ='Raw AERMET Data'!U29 -> 0 | V31: ='Raw AERMET Data'!V29 -> 0 | W31: ='Raw AERMET Data'!W29 -> 57 | X31: ='Raw AERMET Data'!X29 -> 980 | Y31: ='Raw AERMET Data'!Y29 -> 5 | Z31: ='Raw AERMET Data'!Z29 -> ADJ-A1 | AA31: ='Raw AERMET Data'!AA29 -> NoSubs | AB31: ='Raw AERMET Data'!AB29 -> -4.1 | AC31: ='Raw AERMET Data'!AC29 ->  | AD31: ='Raw AERMET Data'!AD29 -> 
A32: ='Raw AERMET Data'!A30 -> 13 | B32: ='Raw AERMET Data'!B30 -> 1 | C32: ='Raw AERMET Data'!C30 -> 2 | D32: ='Raw AERMET Data'!D30 -> 2 | E32: ='Raw AERMET Data'!E30 -> 5 | F32: ='Raw AERMET Data'!F30 -> -4.2 | G32: ='Raw AERMET Data'!G30 -> 0.1 | H32: ='Raw AERMET Data'!H30 -> -9 | I32: ='Raw AERMET Data'!I30 -> -9 | J32: ='Raw AERMET Data'!J30 -> -999 | K32: ='Raw AERMET Data'!K30 -> 41 | L32: ='Raw AERMET Data'!L30 -> 6.1 | M32: ='Raw AERMET Data'!M30 -> 0.049 | N32: ='Raw AERMET Data'!N30 -> 1.65 | O32: ='Raw AERMET Data'!O30 -> 1 | P32: ='Raw AERMET Data'!P30 -> 1.76 | Q32: ='Raw AERMET Data'!Q30 -> 244 | R32: ='Raw AERMET Data'!R30 -> 10 | S32: ='Raw AERMET Data'!S30 -> 277 | T32: ='Raw AERMET Data'!T30 -> 2 | U32: ='Raw AERMET Data'!U30 -> 0 | V32: ='Raw AERMET Data'!V30 -> 0 | W32: ='Raw AERMET Data'!W30 -> 56 | X32: ='Raw AERMET Data'!X30 -> 980 | Y32: ='Raw AERMET Data'!Y30 -> 5 | Z32: ='Raw AERMET Data'!Z30 -> ADJ-A1 | AA32: ='Raw AERMET Data'!AA30 -> NoSubs | AB32: ='Raw AERMET Data'!AB30 -> -4.8 | AC32: ='Raw AERMET Data'!AC30 ->  | AD32: ='Raw AERMET Data'!AD30 -> 
A33: ='Raw AERMET Data'!A31 -> 13 | B33: ='Raw AERMET Data'!B31 -> 1 | C33: ='Raw AERMET Data'!C31 -> 2 | D33: ='Raw AERMET Data'!D31 -> 2 | E33: ='Raw AERMET Data'!E31 -> 6 | F33: ='Raw AERMET Data'!F31 -> -6.3 | G33: ='Raw AERMET Data'!G31 -> 0.1 | H33: ='Raw AERMET Data'!H31 -> -9 | I33: ='Raw AERMET Data'!I31 -> -9 | J33: ='Raw AERMET Data'!J31 -> -999 | K33: ='Raw AERMET Data'!K31 -> 56 | L33: ='Raw AERMET Data'!L31 -> 7.4 | M33: ='Raw AERMET Data'!M31 -> 0.072 | N33: ='Raw AERMET Data'!N31 -> 1.65 | O33: ='Raw AERMET Data'!O31 -> 1 | P33: ='Raw AERMET Data'!P31 -> 2.01 | Q33: ='Raw AERMET Data'!Q31 -> 226 | R33: ='Raw AERMET Data'!R31 -> 10 | S33: ='Raw AERMET Data'!S31 -> 276.4 | T33: ='Raw AERMET Data'!T31 -> 2 | U33: ='Raw AERMET Data'!U31 -> 0 | V33: ='Raw AERMET Data'!V31 -> 0 | W33: ='Raw AERMET Data'!W31 -> 54 | X33: ='Raw AERMET Data'!X31 -> 979 | Y33: ='Raw AERMET Data'!Y31 -> 3 | Z33: ='Raw AERMET Data'!Z31 -> ADJ-A1 | AA33: ='Raw AERMET Data'!AA31 -> NoSubs | AB33: ='Raw AERMET Data'!AB31 -> -5.8 | AC33: ='Raw AERMET Data'!AC31 ->  | AD33: ='Raw AERMET Data'!AD31 -> 
A34: ='Raw AERMET Data'!A32 -> 13 | B34: ='Raw AERMET Data'!B32 -> 1 | C34: ='Raw AERMET Data'!C32 -> 2 | D34: ='Raw AERMET Data'!D32 -> 2 | E34: ='Raw AERMET Data'!E32 -> 7 | F34: ='Raw AERMET Data'!F32 -> -7.1 | G34: ='Raw AERMET Data'!G32 -> 0.1 | H34: ='Raw AERMET Data'!H32 -> -9 | I34: ='Raw AERMET Data'!I32 -> -9 | J34: ='Raw AERMET Data'!J32 -> -999 | K34: ='Raw AERMET Data'!K32 -> 59 | L34: ='Raw AERMET Data'!L32 -> 7.6 | M34: ='Raw AERMET Data'!M32 -> 0.072 | N34: ='Raw AERMET Data'!N32 -> 1.65 | O34: ='Raw AERMET Data'!O32 -> 1 | P34: ='Raw AERMET Data'!P32 -> 2.1 | Q34: ='Raw AERMET Data'!Q32 -> 226 | R34: ='Raw AERMET Data'!R32 -> 10 | S34: ='Raw AERMET Data'!S32 -> 277 | T34: ='Raw AERMET Data'!T32 -> 2 | U34: ='Raw AERMET Data'!U32 -> 0 | V34: ='Raw AERMET Data'!V32 -> 0 | W34: ='Raw AERMET Data'!W32 -> 49 | X34: ='Raw AERMET Data'!X32 -> 980 | Y34: ='Raw AERMET Data'!Y32 -> 0 | Z34: ='Raw AERMET Data'!Z32 -> ADJ-A1 | AA34: ='Raw AERMET Data'!AA32 -> NoSubs | AB34: ='Raw AERMET Data'!AB32 -> -6.2 | AC34: ='Raw AERMET Data'!AC32 ->  | AD34: ='Raw AERMET Data'!AD32 -> 
A35: ='Raw AERMET Data'!A33 -> 13 | B35: ='Raw AERMET Data'!B33 -> 1 | C35: ='Raw AERMET Data'!C33 -> 2 | D35: ='Raw AERMET Data'!D33 -> 2 | E35: ='Raw AERMET Data'!E33 -> 8 | F35: ='Raw AERMET Data'!F33 -> -3.6 | G35: ='Raw AERMET Data'!G33 -> 0.1 | H35: ='Raw AERMET Data'!H33 -> -9 | I35: ='Raw AERMET Data'!I33 -> -9 | J35: ='Raw AERMET Data'!J33 -> -999 | K35: ='Raw AERMET Data'!K33 -> 36 | L35: ='Raw AERMET Data'!L33 -> 5.4 | M35: ='Raw AERMET Data'!M33 -> 0.072 | N35: ='Raw AERMET Data'!N33 -> 1.65 | O35: ='Raw AERMET Data'!O33 -> 1 | P35: ='Raw AERMET Data'!P33 -> 1.5 | Q35: ='Raw AERMET Data'!Q33 -> 226 | R35: ='Raw AERMET Data'!R33 -> 10 | S35: ='Raw AERMET Data'!S33 -> 276.4 | T35: ='Raw AERMET Data'!T33 -> 2 | U35: ='Raw AERMET Data'!U33 -> 0 | V35: ='Raw AERMET Data'!V33 -> 0 | W35: ='Raw AERMET Data'!W33 -> 52 | X35: ='Raw AERMET Data'!X33 -> 980 | Y35: ='Raw AERMET Data'!Y33 -> 0 | Z35: ='Raw AERMET Data'!Z33 -> ADJ-A1 | AA35: ='Raw AERMET Data'!AA33 -> NoSubs | AB35: ='Raw AERMET Data'!AB33 -> -6.2 | AC35: ='Raw AERMET Data'!AC33 ->  | AD35: ='Raw AERMET Data'!AD33 -> 
A36: ='Raw AERMET Data'!A34 -> 13 | B36: ='Raw AERMET Data'!B34 -> 1 | C36: ='Raw AERMET Data'!C34 -> 2 | D36: ='Raw AERMET Data'!D34 -> 2 | E36: ='Raw AERMET Data'!E34 -> 9 | F36: ='Raw AERMET Data'!F34 -> -1.9 | G36: ='Raw AERMET Data'!G34 -> 0.1 | H36: ='Raw AERMET Data'!H34 -> -9 | I36: ='Raw AERMET Data'!I34 -> -9 | J36: ='Raw AERMET Data'!J34 -> -999 | K36: ='Raw AERMET Data'!K34 -> 45 | L36: ='Raw AERMET Data'!L34 -> 16.7 | M36: ='Raw AERMET Data'!M34 -> 0.049 | N36: ='Raw AERMET Data'!N34 -> 1.65 | O36: ='Raw AERMET Data'!O34 -> 0.42 | P36: ='Raw AERMET Data'!P34 -> 1.48 | Q36: ='Raw AERMET Data'!Q34 -> 253 | R36: ='Raw AERMET Data'!R34 -> 10 | S36: ='Raw AERMET Data'!S34 -> 279.9 | T36: ='Raw AERMET Data'!T34 -> 2 | U36: ='Raw AERMET Data'!U34 -> 0 | V36: ='Raw AERMET Data'!V34 -> 0 | W36: ='Raw AERMET Data'!W34 -> 41 | X36: ='Raw AERMET Data'!X34 -> 980 | Y36: ='Raw AERMET Data'!Y34 -> 0 | Z36: ='Raw AERMET Data'!Z34 -> ADJ-A1 | AA36: ='Raw AERMET Data'!AA34 -> NoSubs | AB36: ='Raw AERMET Data'!AB34 -> -4.9 | AC36: ='Raw AERMET Data'!AC34 ->  | AD36: ='Raw AERMET Data'!AD34 -> 
A37: ='Raw AERMET Data'!A35 -> 13 | B37: ='Raw AERMET Data'!B35 -> 1 | C37: ='Raw AERMET Data'!C35 -> 2 | D37: ='Raw AERMET Data'!D35 -> 2 | E37: ='Raw AERMET Data'!E35 -> 10 | F37: ='Raw AERMET Data'!F35 -> 57.4 | G37: ='Raw AERMET Data'!G35 -> 0.1 | H37: ='Raw AERMET Data'!H35 -> 0.622 | I37: ='Raw AERMET Data'!I35 -> 0.009 | J37: ='Raw AERMET Data'!J35 -> 147 | K37: ='Raw AERMET Data'!K35 -> 183 | L37: ='Raw AERMET Data'!L35 -> -8.9 | M37: ='Raw AERMET Data'!M35 -> 0.07 | N37: ='Raw AERMET Data'!N35 -> 1.65 | O37: ='Raw AERMET Data'!O35 -> 0.28 | P37: ='Raw AERMET Data'!P35 -> 1.72 | Q37: ='Raw AERMET Data'!Q35 -> 288 | R37: ='Raw AERMET Data'!R35 -> 10 | S37: ='Raw AERMET Data'!S35 -> 282 | T37: ='Raw AERMET Data'!T35 -> 2 | U37: ='Raw AERMET Data'!U35 -> 0 | V37: ='Raw AERMET Data'!V35 -> 0 | W37: ='Raw AERMET Data'!W35 -> 29 | X37: ='Raw AERMET Data'!X35 -> 980 | Y37: ='Raw AERMET Data'!Y35 -> 0 | Z37: ='Raw AERMET Data'!Z35 -> ADJ-A1 | AA37: ='Raw AERMET Data'!AA35 -> NoSubs | AB37: ='Raw AERMET Data'!AB35 -> -5.2 | AC37: ='Raw AERMET Data'!AC35 ->  | AD37: ='Raw AERMET Data'!AD35 -> 
A38: ='Raw AERMET Data'!A36 -> 13 | B38: ='Raw AERMET Data'!B36 -> 1 | C38: ='Raw AERMET Data'!C36 -> 2 | D38: ='Raw AERMET Data'!D36 -> 2 | E38: ='Raw AERMET Data'!E36 -> 11 | F38: ='Raw AERMET Data'!F36 -> 111.2 | G38: ='Raw AERMET Data'!G36 -> 0.1 | H38: ='Raw AERMET Data'!H36 -> 1.03 | I38: ='Raw AERMET Data'!I36 -> 0.008 | J38: ='Raw AERMET Data'!J36 -> 343 | K38: ='Raw AERMET Data'!K36 -> 173 | L38: ='Raw AERMET Data'!L36 -> -4.1 | M38: ='Raw AERMET Data'!M36 -> 0.059 | N38: ='Raw AERMET Data'!N36 -> 1.65 | O38: ='Raw AERMET Data'!O36 -> 0.23 | P38: ='Raw AERMET Data'!P36 -> 1.55 | Q38: ='Raw AERMET Data'!Q36 -> 304 | R38: ='Raw AERMET Data'!R36 -> 10 | S38: ='Raw AERMET Data'!S36 -> 283.8 | T38: ='Raw AERMET Data'!T36 -> 2 | U38: ='Raw AERMET Data'!U36 -> 0 | V38: ='Raw AERMET Data'!V36 -> 0 | W38: ='Raw AERMET Data'!W36 -> 24 | X38: ='Raw AERMET Data'!X36 -> 980 | Y38: ='Raw AERMET Data'!Y36 -> 0 | Z38: ='Raw AERMET Data'!Z36 -> ADJ-A1 | AA38: ='Raw AERMET Data'!AA36 -> NoSubs | AB38: ='Raw AERMET Data'!AB36 -> -4.4 | AC38: ='Raw AERMET Data'!AC36 ->  | AD38: ='Raw AERMET Data'!AD36 -> 
A39: ='Raw AERMET Data'!A37 -> 13 | B39: ='Raw AERMET Data'!B37 -> 1 | C39: ='Raw AERMET Data'!C37 -> 2 | D39: ='Raw AERMET Data'!D37 -> 2 | E39: ='Raw AERMET Data'!E37 -> 12 | F39: ='Raw AERMET Data'!F37 -> 145.9 | G39: ='Raw AERMET Data'!G37 -> 0.1 | H39: ='Raw AERMET Data'!H37 -> 1.274 | I39: ='Raw AERMET Data'!I37 -> 0.009 | J39: ='Raw AERMET Data'!J37 -> 495 | K39: ='Raw AERMET Data'!K37 -> 554 | L39: ='Raw AERMET Data'!L37 -> -31.9 | M39: ='Raw AERMET Data'!M37 -> 0.069 | N39: ='Raw AERMET Data'!N37 -> 1.65 | O39: ='Raw AERMET Data'!O37 -> 0.22 | P39: ='Raw AERMET Data'!P37 -> 4.12 | Q39: ='Raw AERMET Data'!Q37 -> 45 | R39: ='Raw AERMET Data'!R37 -> 10 | S39: ='Raw AERMET Data'!S37 -> 287 | T39: ='Raw AERMET Data'!T37 -> 2 | U39: ='Raw AERMET Data'!U37 -> 0 | V39: ='Raw AERMET Data'!V37 -> 0 | W39: ='Raw AERMET Data'!W37 -> 18 | X39: ='Raw AERMET Data'!X37 -> 979 | Y39: ='Raw AERMET Data'!Y37 -> 0 | Z39: ='Raw AERMET Data'!Z37 -> ADJ-A1 | AA39: ='Raw AERMET Data'!AA37 -> NoSubs | AB39: ='Raw AERMET Data'!AB37 -> -2.4 | AC39: ='Raw AERMET Data'!AC37 ->  | AD39: ='Raw AERMET Data'!AD37 -> 
A40: ='Raw AERMET Data'!A38 -> 13 | B40: ='Raw AERMET Data'!B38 -> 1 | C40: ='Raw AERMET Data'!C38 -> 2 | D40: ='Raw AERMET Data'!D38 -> 2 | E40: ='Raw AERMET Data'!E38 -> 13 | F40: ='Raw AERMET Data'!F38 -> 158.1 | G40: ='Raw AERMET Data'!G38 -> 0.1 | H40: ='Raw AERMET Data'!H38 -> 1.426 | I40: ='Raw AERMET Data'!I38 -> 0.011 | J40: ='Raw AERMET Data'!J38 -> 641 | K40: ='Raw AERMET Data'!K38 -> 782 | L40: ='Raw AERMET Data'!L38 -> -58.6 | M40: ='Raw AERMET Data'!M38 -> 0.069 | N40: ='Raw AERMET Data'!N38 -> 1.65 | O40: ='Raw AERMET Data'!O38 -> 0.21 | P40: ='Raw AERMET Data'!P38 -> 5.41 | Q40: ='Raw AERMET Data'!Q38 -> 47 | R40: ='Raw AERMET Data'!R38 -> 10 | S40: ='Raw AERMET Data'!S38 -> 288.1 | T40: ='Raw AERMET Data'!T38 -> 2 | U40: ='Raw AERMET Data'!U38 -> 0 | V40: ='Raw AERMET Data'!V38 -> 0 | W40: ='Raw AERMET Data'!W38 -> 18 | X40: ='Raw AERMET Data'!X38 -> 978 | Y40: ='Raw AERMET Data'!Y38 -> 0 | Z40: ='Raw AERMET Data'!Z38 -> ADJ-A1 | AA40: ='Raw AERMET Data'!AA38 -> NoSubs | AB40: ='Raw AERMET Data'!AB38 -> -1.3 | AC40: ='Raw AERMET Data'!AC38 ->  | AD40: ='Raw AERMET Data'!AD38 -> 
A41: ='Raw AERMET Data'!A39 -> 13 | B41: ='Raw AERMET Data'!B39 -> 1 | C41: ='Raw AERMET Data'!C39 -> 2 | D41: ='Raw AERMET Data'!D39 -> 2 | E41: ='Raw AERMET Data'!E39 -> 14 | F41: ='Raw AERMET Data'!F39 -> 148.3 | G41: ='Raw AERMET Data'!G39 -> 0.1 | H41: ='Raw AERMET Data'!H39 -> 1.509 | I41: ='Raw AERMET Data'!I39 -> 0.011 | J41: ='Raw AERMET Data'!J39 -> 808 | K41: ='Raw AERMET Data'!K39 -> 774 | L41: ='Raw AERMET Data'!L39 -> -61 | M41: ='Raw AERMET Data'!M39 -> 0.069 | N41: ='Raw AERMET Data'!N39 -> 1.65 | O41: ='Raw AERMET Data'!O39 -> 0.22 | P41: ='Raw AERMET Data'!P39 -> 5.38 | Q41: ='Raw AERMET Data'!Q39 -> 47 | R41: ='Raw AERMET Data'!R39 -> 10 | S41: ='Raw AERMET Data'!S39 -> 289.2 | T41: ='Raw AERMET Data'!T39 -> 2 | U41: ='Raw AERMET Data'!U39 -> 0 | V41: ='Raw AERMET Data'!V39 -> 0 | W41: ='Raw AERMET Data'!W39 -> 14 | X41: ='Raw AERMET Data'!X39 -> 977 | Y41: ='Raw AERMET Data'!Y39 -> 0 | Z41: ='Raw AERMET Data'!Z39 -> ADJ-A1 | AA41: ='Raw AERMET Data'!AA39 -> NoSubs | AB41: ='Raw AERMET Data'!AB39 -> -1 | AC41: ='Raw AERMET Data'!AC39 ->  | AD41: ='Raw AERMET Data'!AD39 -> 
A42: ='Raw AERMET Data'!A40 -> 13 | B42: ='Raw AERMET Data'!B40 -> 1 | C42: ='Raw AERMET Data'!C40 -> 2 | D42: ='Raw AERMET Data'!D40 -> 2 | E42: ='Raw AERMET Data'!E40 -> 15 | F42: ='Raw AERMET Data'!F40 -> 116.5 | G42: ='Raw AERMET Data'!G40 -> 0.1 | H42: ='Raw AERMET Data'!H40 -> 1.413 | I42: ='Raw AERMET Data'!I40 -> 0.011 | J42: ='Raw AERMET Data'!J40 -> 843 | K42: ='Raw AERMET Data'!K40 -> 523 | L42: ='Raw AERMET Data'!L40 -> -34.3 | M42: ='Raw AERMET Data'!M40 -> 0.07 | N42: ='Raw AERMET Data'!N40 -> 1.65 | O42: ='Raw AERMET Data'!O40 -> 0.23 | P42: ='Raw AERMET Data'!P40 -> 3.93 | Q42: ='Raw AERMET Data'!Q40 -> 60 | R42: ='Raw AERMET Data'!R40 -> 10 | S42: ='Raw AERMET Data'!S40 -> 289.9 | T42: ='Raw AERMET Data'!T40 -> 2 | U42: ='Raw AERMET Data'!U40 -> 0 | V42: ='Raw AERMET Data'!V40 -> 0 | W42: ='Raw AERMET Data'!W40 -> 15 | X42: ='Raw AERMET Data'!X40 -> 976 | Y42: ='Raw AERMET Data'!Y40 -> 0 | Z42: ='Raw AERMET Data'!Z40 -> ADJ-A1 | AA42: ='Raw AERMET Data'!AA40 -> NoSubs | AB42: ='Raw AERMET Data'!AB40 -> -0.1 | AC42: ='Raw AERMET Data'!AC40 ->  | AD42: ='Raw AERMET Data'!AD40 -> 
A43: ='Raw AERMET Data'!A41 -> 13 | B43: ='Raw AERMET Data'!B41 -> 1 | C43: ='Raw AERMET Data'!C41 -> 2 | D43: ='Raw AERMET Data'!D41 -> 2 | E43: ='Raw AERMET Data'!E41 -> 16 | F43: ='Raw AERMET Data'!F41 -> 64.4 | G43: ='Raw AERMET Data'!G41 -> 0.1 | H43: ='Raw AERMET Data'!H41 -> 1.168 | I43: ='Raw AERMET Data'!I41 -> 0.011 | J43: ='Raw AERMET Data'!J41 -> 861 | K43: ='Raw AERMET Data'!K41 -> 475 | L43: ='Raw AERMET Data'!L41 -> -52.8 | M43: ='Raw AERMET Data'!M41 -> 0.069 | N43: ='Raw AERMET Data'!N41 -> 1.65 | O43: ='Raw AERMET Data'!O41 -> 0.28 | P43: ='Raw AERMET Data'!P41 -> 3.85 | Q43: ='Raw AERMET Data'!Q41 -> 57 | R43: ='Raw AERMET Data'!R41 -> 10 | S43: ='Raw AERMET Data'!S41 -> 289.9 | T43: ='Raw AERMET Data'!T41 -> 2 | U43: ='Raw AERMET Data'!U41 -> 0 | V43: ='Raw AERMET Data'!V41 -> 0 | W43: ='Raw AERMET Data'!W41 -> 17 | X43: ='Raw AERMET Data'!X41 -> 976 | Y43: ='Raw AERMET Data'!Y41 -> 0 | Z43: ='Raw AERMET Data'!Z41 -> ADJ-A1 | AA43: ='Raw AERMET Data'!AA41 -> NoSubs | AB43: ='Raw AERMET Data'!AB41 -> 0.3 | AC43: ='Raw AERMET Data'!AC41 ->  | AD43: ='Raw AERMET Data'!AD41 -> 
A44: ='Raw AERMET Data'!A42 -> 13 | B44: ='Raw AERMET Data'!B42 -> 1 | C44: ='Raw AERMET Data'!C42 -> 2 | D44: ='Raw AERMET Data'!D42 -> 2 | E44: ='Raw AERMET Data'!E42 -> 17 | F44: ='Raw AERMET Data'!F42 -> -0.9 | G44: ='Raw AERMET Data'!G42 -> 0.1 | H44: ='Raw AERMET Data'!H42 -> -9 | I44: ='Raw AERMET Data'!I42 -> -9 | J44: ='Raw AERMET Data'!J42 -> -999 | K44: ='Raw AERMET Data'!K42 -> 336 | L44: ='Raw AERMET Data'!L42 -> 1841.7 | M44: ='Raw AERMET Data'!M42 -> 0.07 | N44: ='Raw AERMET Data'!N42 -> 1.65 | O44: ='Raw AERMET Data'!O42 -> 0.41 | P44: ='Raw AERMET Data'!P42 -> 3.35 | Q44: ='Raw AERMET Data'!Q42 -> 17 | R44: ='Raw AERMET Data'!R42 -> 10 | S44: ='Raw AERMET Data'!S42 -> 289.9 | T44: ='Raw AERMET Data'!T42 -> 2 | U44: ='Raw AERMET Data'!U42 -> 0 | V44: ='Raw AERMET Data'!V42 -> 0 | W44: ='Raw AERMET Data'!W42 -> 16 | X44: ='Raw AERMET Data'!X42 -> 976 | Y44: ='Raw AERMET Data'!Y42 -> 0 | Z44: ='Raw AERMET Data'!Z42 -> ADJ-A1 | AA44: ='Raw AERMET Data'!AA42 -> NoSubs | AB44: ='Raw AERMET Data'!AB42 -> 0.1 | AC44: ='Raw AERMET Data'!AC42 ->  | AD44: ='Raw AERMET Data'!AD42 -> 
A45: ='Raw AERMET Data'!A43 -> 13 | B45: ='Raw AERMET Data'!B43 -> 1 | C45: ='Raw AERMET Data'!C43 -> 2 | D45: ='Raw AERMET Data'!D43 -> 2 | E45: ='Raw AERMET Data'!E43 -> 18 | F45: ='Raw AERMET Data'!F43 -> -18.4 | G45: ='Raw AERMET Data'!G43 -> 0.1 | H45: ='Raw AERMET Data'!H43 -> -9 | I45: ='Raw AERMET Data'!I43 -> -9 | J45: ='Raw AERMET Data'!J43 -> -999 | K45: ='Raw AERMET Data'!K43 -> 176 | L45: ='Raw AERMET Data'!L43 -> 24.4 | M45: ='Raw AERMET Data'!M43 -> 0.07 | N45: ='Raw AERMET Data'!N43 -> 1.65 | O45: ='Raw AERMET Data'!O43 -> 1 | P45: ='Raw AERMET Data'!P43 -> 3.03 | Q45: ='Raw AERMET Data'!Q43 -> 20 | R45: ='Raw AERMET Data'!R43 -> 10 | S45: ='Raw AERMET Data'!S43 -> 288.8 | T45: ='Raw AERMET Data'!T43 -> 2 | U45: ='Raw AERMET Data'!U43 -> 0 | V45: ='Raw AERMET Data'!V43 -> 0 | W45: ='Raw AERMET Data'!W43 -> 19 | X45: ='Raw AERMET Data'!X43 -> 976 | Y45: ='Raw AERMET Data'!Y43 -> 0 | Z45: ='Raw AERMET Data'!Z43 -> ADJ-A1 | AA45: ='Raw AERMET Data'!AA43 -> NoSubs | AB45: ='Raw AERMET Data'!AB43 -> -0.4 | AC45: ='Raw AERMET Data'!AC43 ->  | AD45: ='Raw AERMET Data'!AD43 -> 
A46: ='Raw AERMET Data'!A44 -> 13 | B46: ='Raw AERMET Data'!B44 -> 1 | C46: ='Raw AERMET Data'!C44 -> 2 | D46: ='Raw AERMET Data'!D44 -> 2 | E46: ='Raw AERMET Data'!E44 -> 19 | F46: ='Raw AERMET Data'!F44 -> -4.1 | G46: ='Raw AERMET Data'!G44 -> 0.1 | H46: ='Raw AERMET Data'!H44 -> -9 | I46: ='Raw AERMET Data'!I44 -> -9 | J46: ='Raw AERMET Data'!J44 -> -999 | K46: ='Raw AERMET Data'!K44 -> 49 | L46: ='Raw AERMET Data'!L44 -> 5.9 | M46: ='Raw AERMET Data'!M44 -> 0.069 | N46: ='Raw AERMET Data'!N44 -> 1.65 | O46: ='Raw AERMET Data'!O44 -> 1 | P46: ='Raw AERMET Data'!P44 -> 1.62 | Q46: ='Raw AERMET Data'!Q44 -> 54 | R46: ='Raw AERMET Data'!R44 -> 10 | S46: ='Raw AERMET Data'!S44 -> 288.1 | T46: ='Raw AERMET Data'!T44 -> 2 | U46: ='Raw AERMET Data'!U44 -> 0 | V46: ='Raw AERMET Data'!V44 -> 0 | W46: ='Raw AERMET Data'!W44 -> 20 | X46: ='Raw AERMET Data'!X44 -> 976 | Y46: ='Raw AERMET Data'!Y44 -> 0 | Z46: ='Raw AERMET Data'!Z44 -> ADJ-A1 | AA46: ='Raw AERMET Data'!AA44 -> NoSubs | AB46: ='Raw AERMET Data'!AB44 -> -0.9 | AC46: ='Raw AERMET Data'!AC44 ->  | AD46: ='Raw AERMET Data'!AD44 -> 
A47: ='Raw AERMET Data'!A45 -> 13 | B47: ='Raw AERMET Data'!B45 -> 1 | C47: ='Raw AERMET Data'!C45 -> 2 | D47: ='Raw AERMET Data'!D45 -> 2 | E47: ='Raw AERMET Data'!E45 -> 20 | F47: ='Raw AERMET Data'!F45 -> -3.4 | G47: ='Raw AERMET Data'!G45 -> 0.1 | H47: ='Raw AERMET Data'!H45 -> -9 | I47: ='Raw AERMET Data'!I45 -> -9 | J47: ='Raw AERMET Data'!J45 -> -999 | K47: ='Raw AERMET Data'!K45 -> 35 | L47: ='Raw AERMET Data'!L45 -> 5.4 | M47: ='Raw AERMET Data'!M45 -> 0.07 | N47: ='Raw AERMET Data'!N45 -> 1.65 | O47: ='Raw AERMET Data'!O45 -> 1 | P47: ='Raw AERMET Data'!P45 -> 1.48 | Q47: ='Raw AERMET Data'!Q45 -> 284 | R47: ='Raw AERMET Data'!R45 -> 10 | S47: ='Raw AERMET Data'!S45 -> 284.2 | T47: ='Raw AERMET Data'!T45 -> 2 | U47: ='Raw AERMET Data'!U45 -> 0 | V47: ='Raw AERMET Data'!V45 -> 0 | W47: ='Raw AERMET Data'!W45 -> 30 | X47: ='Raw AERMET Data'!X45 -> 976 | Y47: ='Raw AERMET Data'!Y45 -> 0 | Z47: ='Raw AERMET Data'!Z45 -> ADJ-A1 | AA47: ='Raw AERMET Data'!AA45 -> NoSubs | AB47: ='Raw AERMET Data'!AB45 -> -2.8 | AC47: ='Raw AERMET Data'!AC45 ->  | AD47: ='Raw AERMET Data'!AD45 -> 
A48: ='Raw AERMET Data'!A46 -> 13 | B48: ='Raw AERMET Data'!B46 -> 1 | C48: ='Raw AERMET Data'!C46 -> 2 | D48: ='Raw AERMET Data'!D46 -> 2 | E48: ='Raw AERMET Data'!E46 -> 21 | F48: ='Raw AERMET Data'!F46 -> -8.4 | G48: ='Raw AERMET Data'!G46 -> 0.1 | H48: ='Raw AERMET Data'!H46 -> -9 | I48: ='Raw AERMET Data'!I46 -> -9 | J48: ='Raw AERMET Data'!J46 -> -999 | K48: ='Raw AERMET Data'!K46 -> 68 | L48: ='Raw AERMET Data'!L46 -> 8.4 | M48: ='Raw AERMET Data'!M46 -> 0.07 | N48: ='Raw AERMET Data'!N46 -> 1.65 | O48: ='Raw AERMET Data'!O46 -> 1 | P48: ='Raw AERMET Data'!P46 -> 2.32 | Q48: ='Raw AERMET Data'!Q46 -> 285 | R48: ='Raw AERMET Data'!R46 -> 10 | S48: ='Raw AERMET Data'!S46 -> 283.8 | T48: ='Raw AERMET Data'!T46 -> 2 | U48: ='Raw AERMET Data'!U46 -> 0 | V48: ='Raw AERMET Data'!V46 -> 0 | W48: ='Raw AERMET Data'!W46 -> 31 | X48: ='Raw AERMET Data'!X46 -> 977 | Y48: ='Raw AERMET Data'!Y46 -> 0 | Z48: ='Raw AERMET Data'!Z46 -> ADJ-A1 | AA48: ='Raw AERMET Data'!AA46 -> NoSubs | AB48: ='Raw AERMET Data'!AB46 -> -3 | AC48: ='Raw AERMET Data'!AC46 ->  | AD48: ='Raw AERMET Data'!AD46 -> 
A49: ='Raw AERMET Data'!A47 -> 13 | B49: ='Raw AERMET Data'!B47 -> 1 | C49: ='Raw AERMET Data'!C47 -> 2 | D49: ='Raw AERMET Data'!D47 -> 2 | E49: ='Raw AERMET Data'!E47 -> 22 | F49: ='Raw AERMET Data'!F47 -> -2.5 | G49: ='Raw AERMET Data'!G47 -> 0.1 | H49: ='Raw AERMET Data'!H47 -> -9 | I49: ='Raw AERMET Data'!I47 -> -9 | J49: ='Raw AERMET Data'!J47 -> -999 | K49: ='Raw AERMET Data'!K47 -> 28 | L49: ='Raw AERMET Data'!L47 -> 4.8 | M49: ='Raw AERMET Data'!M47 -> 0.078 | N49: ='Raw AERMET Data'!N47 -> 1.65 | O49: ='Raw AERMET Data'!O47 -> 1 | P49: ='Raw AERMET Data'!P47 -> 1.25 | Q49: ='Raw AERMET Data'!Q47 -> 196 | R49: ='Raw AERMET Data'!R47 -> 10 | S49: ='Raw AERMET Data'!S47 -> 282.5 | T49: ='Raw AERMET Data'!T47 -> 2 | U49: ='Raw AERMET Data'!U47 -> 0 | V49: ='Raw AERMET Data'!V47 -> 0 | W49: ='Raw AERMET Data'!W47 -> 35 | X49: ='Raw AERMET Data'!X47 -> 977 | Y49: ='Raw AERMET Data'!Y47 -> 3 | Z49: ='Raw AERMET Data'!Z47 -> ADJ-A1 | AA49: ='Raw AERMET Data'!AA47 -> NoSubs | AB49: ='Raw AERMET Data'!AB47 -> -3.5 | AC49: ='Raw AERMET Data'!AC47 ->  | AD49: ='Raw AERMET Data'!AD47 -> 
A50: ='Raw AERMET Data'!A48 -> 13 | B50: ='Raw AERMET Data'!B48 -> 1 | C50: ='Raw AERMET Data'!C48 -> 2 | D50: ='Raw AERMET Data'!D48 -> 2 | E50: ='Raw AERMET Data'!E48 -> 23 | F50: ='Raw AERMET Data'!F48 -> -8.8 | G50: ='Raw AERMET Data'!G48 -> 0.1 | H50: ='Raw AERMET Data'!H48 -> -9 | I50: ='Raw AERMET Data'!I48 -> -9 | J50: ='Raw AERMET Data'!J48 -> -999 | K50: ='Raw AERMET Data'!K48 -> 72 | L50: ='Raw AERMET Data'!L48 -> 8.9 | M50: ='Raw AERMET Data'!M48 -> 0.069 | N50: ='Raw AERMET Data'!N48 -> 1.65 | O50: ='Raw AERMET Data'!O48 -> 1 | P50: ='Raw AERMET Data'!P48 -> 2.4 | Q50: ='Raw AERMET Data'!Q48 -> 53 | R50: ='Raw AERMET Data'!R48 -> 10 | S50: ='Raw AERMET Data'!S48 -> 285.4 | T50: ='Raw AERMET Data'!T48 -> 2 | U50: ='Raw AERMET Data'!U48 -> 0 | V50: ='Raw AERMET Data'!V48 -> 0 | W50: ='Raw AERMET Data'!W48 -> 25 | X50: ='Raw AERMET Data'!X48 -> 977 | Y50: ='Raw AERMET Data'!Y48 -> 3 | Z50: ='Raw AERMET Data'!Z48 -> ADJ-A1 | AA50: ='Raw AERMET Data'!AA48 -> NoSubs | AB50: ='Raw AERMET Data'!AB48 -> -2.6 | AC50: ='Raw AERMET Data'!AC48 ->  | AD50: ='Raw AERMET Data'!AD48 -> 
A51: ='Raw AERMET Data'!A49 -> 13 | B51: ='Raw AERMET Data'!B49 -> 1 | C51: ='Raw AERMET Data'!C49 -> 2 | D51: ='Raw AERMET Data'!D49 -> 2 | E51: ='Raw AERMET Data'!E49 -> 24 | F51: ='Raw AERMET Data'!F49 -> -30.9 | G51: ='Raw AERMET Data'!G49 -> 0.1 | H51: ='Raw AERMET Data'!H49 -> -9 | I51: ='Raw AERMET Data'!I49 -> -9 | J51: ='Raw AERMET Data'!J49 -> -999 | K51: ='Raw AERMET Data'!K49 -> 393 | L51: ='Raw AERMET Data'!L49 -> 75.6 | M51: ='Raw AERMET Data'!M49 -> 0.069 | N51: ='Raw AERMET Data'!N49 -> 1.65 | O51: ='Raw AERMET Data'!O49 -> 1 | P51: ='Raw AERMET Data'!P49 -> 4.22 | Q51: ='Raw AERMET Data'!Q49 -> 52 | R51: ='Raw AERMET Data'!R49 -> 10 | S51: ='Raw AERMET Data'!S49 -> 284.9 | T51: ='Raw AERMET Data'!T49 -> 2 | U51: ='Raw AERMET Data'!U49 -> 0 | V51: ='Raw AERMET Data'!V49 -> 0 | W51: ='Raw AERMET Data'!W49 -> 21 | X51: ='Raw AERMET Data'!X49 -> 977 | Y51: ='Raw AERMET Data'!Y49 -> 3 | Z51: ='Raw AERMET Data'!Z49 -> ADJ-A1 | AA51: ='Raw AERMET Data'!AA49 -> NoSubs | AB51: ='Raw AERMET Data'!AB49 -> -3.9 | AC51: ='Raw AERMET Data'!AC49 ->  | AD51: ='Raw AERMET Data'!AD49 -> 
A52: ='Raw AERMET Data'!A50 -> 13 | B52: ='Raw AERMET Data'!B50 -> 1 | C52: ='Raw AERMET Data'!C50 -> 3 | D52: ='Raw AERMET Data'!D50 -> 3 | E52: ='Raw AERMET Data'!E50 -> 1 | F52: ='Raw AERMET Data'!F50 -> -22.7 | G52: ='Raw AERMET Data'!G50 -> 0.1 | H52: ='Raw AERMET Data'!H50 -> -9 | I52: ='Raw AERMET Data'!I50 -> -9 | J52: ='Raw AERMET Data'!J50 -> -999 | K52: ='Raw AERMET Data'!K50 -> 234 | L52: ='Raw AERMET Data'!L50 -> 35.3 | M52: ='Raw AERMET Data'!M50 -> 0.069 | N52: ='Raw AERMET Data'!N50 -> 1.65 | O52: ='Raw AERMET Data'!O50 -> 1 | P52: ='Raw AERMET Data'!P50 -> 3.35 | Q52: ='Raw AERMET Data'!Q50 -> 55 | R52: ='Raw AERMET Data'!R50 -> 10 | S52: ='Raw AERMET Data'!S50 -> 284.2 | T52: ='Raw AERMET Data'!T50 -> 2 | U52: ='Raw AERMET Data'!U50 -> 0 | V52: ='Raw AERMET Data'!V50 -> 0 | W52: ='Raw AERMET Data'!W50 -> 19 | X52: ='Raw AERMET Data'!X50 -> 977 | Y52: ='Raw AERMET Data'!Y50 -> 0 | Z52: ='Raw AERMET Data'!Z50 -> ADJ-A1 | AA52: ='Raw AERMET Data'!AA50 -> NoSubs | AB52: ='Raw AERMET Data'!AB50 -> -5 | AC52: ='Raw AERMET Data'!AC50 ->  | AD52: ='Raw AERMET Data'!AD50 -> 
A53: ='Raw AERMET Data'!A51 -> 13 | B53: ='Raw AERMET Data'!B51 -> 1 | C53: ='Raw AERMET Data'!C51 -> 3 | D53: ='Raw AERMET Data'!D51 -> 3 | E53: ='Raw AERMET Data'!E51 -> 2 | F53: ='Raw AERMET Data'!F51 -> -15.9 | G53: ='Raw AERMET Data'!G51 -> 0.1 | H53: ='Raw AERMET Data'!H51 -> -9 | I53: ='Raw AERMET Data'!I51 -> -9 | J53: ='Raw AERMET Data'!J51 -> -999 | K53: ='Raw AERMET Data'!K51 -> 136 | L53: ='Raw AERMET Data'!L51 -> 17.4 | M53: ='Raw AERMET Data'!M51 -> 0.069 | N53: ='Raw AERMET Data'!N51 -> 1.65 | O53: ='Raw AERMET Data'!O51 -> 1 | P53: ='Raw AERMET Data'!P51 -> 2.89 | Q53: ='Raw AERMET Data'!Q51 -> 53 | R53: ='Raw AERMET Data'!R51 -> 10 | S53: ='Raw AERMET Data'!S51 -> 283.8 | T53: ='Raw AERMET Data'!T51 -> 2 | U53: ='Raw AERMET Data'!U51 -> 0 | V53: ='Raw AERMET Data'!V51 -> 0 | W53: ='Raw AERMET Data'!W51 -> 20 | X53: ='Raw AERMET Data'!X51 -> 977 | Y53: ='Raw AERMET Data'!Y51 -> 0 | Z53: ='Raw AERMET Data'!Z51 -> ADJ-A1 | AA53: ='Raw AERMET Data'!AA51 -> NoSubs | AB53: ='Raw AERMET Data'!AB51 -> -5.2 | AC53: ='Raw AERMET Data'!AC51 ->  | AD53: ='Raw AERMET Data'!AD51 -> 
A54: ='Raw AERMET Data'!A52 -> 13 | B54: ='Raw AERMET Data'!B52 -> 1 | C54: ='Raw AERMET Data'!C52 -> 3 | D54: ='Raw AERMET Data'!D52 -> 3 | E54: ='Raw AERMET Data'!E52 -> 3 | F54: ='Raw AERMET Data'!F52 -> -11.4 | G54: ='Raw AERMET Data'!G52 -> 0.1 | H54: ='Raw AERMET Data'!H52 -> -9 | I54: ='Raw AERMET Data'!I52 -> -9 | J54: ='Raw AERMET Data'!J52 -> -999 | K54: ='Raw AERMET Data'!K52 -> 85 | L54: ='Raw AERMET Data'!L52 -> 9.6 | M54: ='Raw AERMET Data'!M52 -> 0.065 | N54: ='Raw AERMET Data'!N52 -> 1.65 | O54: ='Raw AERMET Data'!O52 -> 1 | P54: ='Raw AERMET Data'!P52 -> 2.72 | Q54: ='Raw AERMET Data'!Q52 -> 358 | R54: ='Raw AERMET Data'!R52 -> 10 | S54: ='Raw AERMET Data'!S52 -> 282 | T54: ='Raw AERMET Data'!T52 -> 2 | U54: ='Raw AERMET Data'!U52 -> 0 | V54: ='Raw AERMET Data'!V52 -> 0 | W54: ='Raw AERMET Data'!W52 -> 28 | X54: ='Raw AERMET Data'!X52 -> 978 | Y54: ='Raw AERMET Data'!Y52 -> 0 | Z54: ='Raw AERMET Data'!Z52 -> ADJ-A1 | AA54: ='Raw AERMET Data'!AA52 -> NoSubs | AB54: ='Raw AERMET Data'!AB52 -> -5.4 | AC54: ='Raw AERMET Data'!AC52 ->  | AD54: ='Raw AERMET Data'!AD52 -> 
A55: ='Raw AERMET Data'!A53 -> 13 | B55: ='Raw AERMET Data'!B53 -> 1 | C55: ='Raw AERMET Data'!C53 -> 3 | D55: ='Raw AERMET Data'!D53 -> 3 | E55: ='Raw AERMET Data'!E53 -> 4 | F55: ='Raw AERMET Data'!F53 -> -8.3 | G55: ='Raw AERMET Data'!G53 -> 0.1 | H55: ='Raw AERMET Data'!H53 -> -9 | I55: ='Raw AERMET Data'!I53 -> -9 | J55: ='Raw AERMET Data'!J53 -> -999 | K55: ='Raw AERMET Data'!K53 -> 67 | L55: ='Raw AERMET Data'!L53 -> 8.3 | M55: ='Raw AERMET Data'!M53 -> 0.069 | N55: ='Raw AERMET Data'!N53 -> 1.65 | O55: ='Raw AERMET Data'!O53 -> 1 | P55: ='Raw AERMET Data'!P53 -> 2.3 | Q55: ='Raw AERMET Data'!Q53 -> 34 | R55: ='Raw AERMET Data'!R53 -> 10 | S55: ='Raw AERMET Data'!S53 -> 283.1 | T55: ='Raw AERMET Data'!T53 -> 2 | U55: ='Raw AERMET Data'!U53 -> 0 | V55: ='Raw AERMET Data'!V53 -> 0 | W55: ='Raw AERMET Data'!W53 -> 22 | X55: ='Raw AERMET Data'!X53 -> 978 | Y55: ='Raw AERMET Data'!Y53 -> 0 | Z55: ='Raw AERMET Data'!Z53 -> ADJ-A1 | AA55: ='Raw AERMET Data'!AA53 -> NoSubs | AB55: ='Raw AERMET Data'!AB53 -> -5.5 | AC55: ='Raw AERMET Data'!AC53 ->  | AD55: ='Raw AERMET Data'!AD53 -> 
A56: ='Raw AERMET Data'!A54 -> 13 | B56: ='Raw AERMET Data'!B54 -> 1 | C56: ='Raw AERMET Data'!C54 -> 3 | D56: ='Raw AERMET Data'!D54 -> 3 | E56: ='Raw AERMET Data'!E54 -> 5 | F56: ='Raw AERMET Data'!F54 -> -2.4 | G56: ='Raw AERMET Data'!G54 -> 0.1 | H56: ='Raw AERMET Data'!H54 -> -9 | I56: ='Raw AERMET Data'!I54 -> -9 | J56: ='Raw AERMET Data'!J54 -> -999 | K56: ='Raw AERMET Data'!K54 -> 27 | L56: ='Raw AERMET Data'!L54 -> 4.4 | M56: ='Raw AERMET Data'!M54 -> 0.07 | N56: ='Raw AERMET Data'!N54 -> 1.65 | O56: ='Raw AERMET Data'!O54 -> 1 | P56: ='Raw AERMET Data'!P54 -> 1.23 | Q56: ='Raw AERMET Data'!Q54 -> 15 | R56: ='Raw AERMET Data'!R54 -> 10 | S56: ='Raw AERMET Data'!S54 -> 280.9 | T56: ='Raw AERMET Data'!T54 -> 2 | U56: ='Raw AERMET Data'!U54 -> 0 | V56: ='Raw AERMET Data'!V54 -> 0 | W56: ='Raw AERMET Data'!W54 -> 28 | X56: ='Raw AERMET Data'!X54 -> 978 | Y56: ='Raw AERMET Data'!Y54 -> 0 | Z56: ='Raw AERMET Data'!Z54 -> ADJ-A1 | AA56: ='Raw AERMET Data'!AA54 -> NoSubs | AB56: ='Raw AERMET Data'!AB54 -> -6.5 | AC56: ='Raw AERMET Data'!AC54 ->  | AD56: ='Raw AERMET Data'!AD54 -> 
A57: ='Raw AERMET Data'!A55 -> 13 | B57: ='Raw AERMET Data'!B55 -> 1 | C57: ='Raw AERMET Data'!C55 -> 3 | D57: ='Raw AERMET Data'!D55 -> 3 | E57: ='Raw AERMET Data'!E55 -> 6 | F57: ='Raw AERMET Data'!F55 -> -4 | G57: ='Raw AERMET Data'!G55 -> 0.1 | H57: ='Raw AERMET Data'!H55 -> -9 | I57: ='Raw AERMET Data'!I55 -> -9 | J57: ='Raw AERMET Data'!J55 -> -999 | K57: ='Raw AERMET Data'!K55 -> 39 | L57: ='Raw AERMET Data'!L55 -> 5.8 | M57: ='Raw AERMET Data'!M55 -> 0.078 | N57: ='Raw AERMET Data'!N55 -> 1.65 | O57: ='Raw AERMET Data'!O55 -> 1 | P57: ='Raw AERMET Data'!P55 -> 1.57 | Q57: ='Raw AERMET Data'!Q55 -> 190 | R57: ='Raw AERMET Data'!R55 -> 10 | S57: ='Raw AERMET Data'!S55 -> 279.2 | T57: ='Raw AERMET Data'!T55 -> 2 | U57: ='Raw AERMET Data'!U55 -> 0 | V57: ='Raw AERMET Data'!V55 -> 0 | W57: ='Raw AERMET Data'!W55 -> 41 | X57: ='Raw AERMET Data'!X55 -> 978 | Y57: ='Raw AERMET Data'!Y55 -> 0 | Z57: ='Raw AERMET Data'!Z55 -> ADJ-A1 | AA57: ='Raw AERMET Data'!AA55 -> NoSubs | AB57: ='Raw AERMET Data'!AB55 -> -5.6 | AC57: ='Raw AERMET Data'!AC55 ->  | AD57: ='Raw AERMET Data'!AD55 -> 
A58: ='Raw AERMET Data'!A56 -> 13 | B58: ='Raw AERMET Data'!B56 -> 1 | C58: ='Raw AERMET Data'!C56 -> 3 | D58: ='Raw AERMET Data'!D56 -> 3 | E58: ='Raw AERMET Data'!E56 -> 7 | F58: ='Raw AERMET Data'!F56 -> -11 | G58: ='Raw AERMET Data'!G56 -> 0.1 | H58: ='Raw AERMET Data'!H56 -> -9 | I58: ='Raw AERMET Data'!I56 -> -9 | J58: ='Raw AERMET Data'!J56 -> -999 | K58: ='Raw AERMET Data'!K56 -> 83 | L58: ='Raw AERMET Data'!L56 -> 9.5 | M58: ='Raw AERMET Data'!M56 -> 0.07 | N58: ='Raw AERMET Data'!N56 -> 1.65 | O58: ='Raw AERMET Data'!O56 -> 1 | P58: ='Raw AERMET Data'!P56 -> 2.64 | Q58: ='Raw AERMET Data'!Q56 -> 72 | R58: ='Raw AERMET Data'!R56 -> 10 | S58: ='Raw AERMET Data'!S56 -> 280.4 | T58: ='Raw AERMET Data'!T56 -> 2 | U58: ='Raw AERMET Data'!U56 -> 0 | V58: ='Raw AERMET Data'!V56 -> 0 | W58: ='Raw AERMET Data'!W56 -> 28 | X58: ='Raw AERMET Data'!X56 -> 979 | Y58: ='Raw AERMET Data'!Y56 -> 0 | Z58: ='Raw AERMET Data'!Z56 -> ADJ-A1 | AA58: ='Raw AERMET Data'!AA56 -> NoSubs | AB58: ='Raw AERMET Data'!AB56 -> -7 | AC58: ='Raw AERMET Data'!AC56 ->  | AD58: ='Raw AERMET Data'!AD56 -> 
A59: ='Raw AERMET Data'!A57 -> 13 | B59: ='Raw AERMET Data'!B57 -> 1 | C59: ='Raw AERMET Data'!C57 -> 3 | D59: ='Raw AERMET Data'!D57 -> 3 | E59: ='Raw AERMET Data'!E57 -> 8 | F59: ='Raw AERMET Data'!F57 -> -2.1 | G59: ='Raw AERMET Data'!G57 -> 0.1 | H59: ='Raw AERMET Data'!H57 -> -9 | I59: ='Raw AERMET Data'!I57 -> -9 | J59: ='Raw AERMET Data'!J57 -> -999 | K59: ='Raw AERMET Data'!K57 -> 25 | L59: ='Raw AERMET Data'!L57 -> 4.1 | M59: ='Raw AERMET Data'!M57 -> 0.065 | N59: ='Raw AERMET Data'!N57 -> 1.65 | O59: ='Raw AERMET Data'!O57 -> 1 | P59: ='Raw AERMET Data'!P57 -> 1.16 | Q59: ='Raw AERMET Data'!Q57 -> 336 | R59: ='Raw AERMET Data'!R57 -> 10 | S59: ='Raw AERMET Data'!S57 -> 278.1 | T59: ='Raw AERMET Data'!T57 -> 2 | U59: ='Raw AERMET Data'!U57 -> 0 | V59: ='Raw AERMET Data'!V57 -> 0 | W59: ='Raw AERMET Data'!W57 -> 42 | X59: ='Raw AERMET Data'!X57 -> 979 | Y59: ='Raw AERMET Data'!Y57 -> 0 | Z59: ='Raw AERMET Data'!Z57 -> ADJ-A1 | AA59: ='Raw AERMET Data'!AA57 -> NoSubs | AB59: ='Raw AERMET Data'!AB57 -> -6.5 | AC59: ='Raw AERMET Data'!AC57 ->  | AD59: ='Raw AERMET Data'!AD57 -> 
A60: ='Raw AERMET Data'!A58 -> 13 | B60: ='Raw AERMET Data'!B58 -> 1 | C60: ='Raw AERMET Data'!C58 -> 3 | D60: ='Raw AERMET Data'!D58 -> 3 | E60: ='Raw AERMET Data'!E58 -> 9 | F60: ='Raw AERMET Data'!F58 -> -0.5 | G60: ='Raw AERMET Data'!G58 -> 0.1 | H60: ='Raw AERMET Data'!H58 -> -9 | I60: ='Raw AERMET Data'!I58 -> -9 | J60: ='Raw AERMET Data'!J58 -> -999 | K60: ='Raw AERMET Data'!K58 -> 14 | L60: ='Raw AERMET Data'!L58 -> 6 | M60: ='Raw AERMET Data'!M58 -> 0.072 | N60: ='Raw AERMET Data'!N58 -> 1.65 | O60: ='Raw AERMET Data'!O58 -> 0.42 | P60: ='Raw AERMET Data'!P58 -> 0.8 | Q60: ='Raw AERMET Data'!Q58 -> 229 | R60: ='Raw AERMET Data'!R58 -> 10 | S60: ='Raw AERMET Data'!S58 -> 280.9 | T60: ='Raw AERMET Data'!T58 -> 2 | U60: ='Raw AERMET Data'!U58 -> 0 | V60: ='Raw AERMET Data'!V58 -> 0 | W60: ='Raw AERMET Data'!W58 -> 38 | X60: ='Raw AERMET Data'!X58 -> 980 | Y60: ='Raw AERMET Data'!Y58 -> 0 | Z60: ='Raw AERMET Data'!Z58 -> ADJ-A1 | AA60: ='Raw AERMET Data'!AA58 -> NoSubs | AB60: ='Raw AERMET Data'!AB58 -> -4.5 | AC60: ='Raw AERMET Data'!AC58 ->  | AD60: ='Raw AERMET Data'!AD58 -> 
A61: ='Raw AERMET Data'!A59 -> 13 | B61: ='Raw AERMET Data'!B59 -> 1 | C61: ='Raw AERMET Data'!C59 -> 3 | D61: ='Raw AERMET Data'!D59 -> 3 | E61: ='Raw AERMET Data'!E59 -> 10 | F61: ='Raw AERMET Data'!F59 -> 58 | G61: ='Raw AERMET Data'!G59 -> 0.1 | H61: ='Raw AERMET Data'!H59 -> 0.563 | I61: ='Raw AERMET Data'!I59 -> 0.013 | J61: ='Raw AERMET Data'!J59 -> 108 | K61: ='Raw AERMET Data'!K59 -> 108 | L61: ='Raw AERMET Data'!L59 -> -3.1 | M61: ='Raw AERMET Data'!M59 -> 0.049 | N61: ='Raw AERMET Data'!N59 -> 1.65 | O61: ='Raw AERMET Data'!O59 -> 0.28 | P61: ='Raw AERMET Data'!P59 -> 1.14 | Q61: ='Raw AERMET Data'!Q59 -> 258 | R61: ='Raw AERMET Data'!R59 -> 10 | S61: ='Raw AERMET Data'!S59 -> 283.8 | T61: ='Raw AERMET Data'!T59 -> 2 | U61: ='Raw AERMET Data'!U59 -> 0 | V61: ='Raw AERMET Data'!V59 -> 0 | W61: ='Raw AERMET Data'!W59 -> 25 | X61: ='Raw AERMET Data'!X59 -> 980 | Y61: ='Raw AERMET Data'!Y59 -> 0 | Z61: ='Raw AERMET Data'!Z59 -> ADJ-A1 | AA61: ='Raw AERMET Data'!AA59 -> NoSubs | AB61: ='Raw AERMET Data'!AB59 -> -4.2 | AC61: ='Raw AERMET Data'!AC59 ->  | AD61: ='Raw AERMET Data'!AD59 -> 
A62: ='Raw AERMET Data'!A60 -> 13 | B62: ='Raw AERMET Data'!B60 -> 1 | C62: ='Raw AERMET Data'!C60 -> 3 | D62: ='Raw AERMET Data'!D60 -> 3 | E62: ='Raw AERMET Data'!E60 -> 11 | F62: ='Raw AERMET Data'!F60 -> 112.5 | G62: ='Raw AERMET Data'!G60 -> 0.1 | H62: ='Raw AERMET Data'!H60 -> 0.955 | I62: ='Raw AERMET Data'!I60 -> 0.005 | J62: ='Raw AERMET Data'!J60 -> 271 | K62: ='Raw AERMET Data'!K60 -> 849 | L62: ='Raw AERMET Data'!L60 -> -97.4 | M62: ='Raw AERMET Data'!M60 -> 0.07 | N62: ='Raw AERMET Data'!N60 -> 1.65 | O62: ='Raw AERMET Data'!O60 -> 0.23 | P62: ='Raw AERMET Data'!P60 -> 5.85 | Q62: ='Raw AERMET Data'!Q60 -> 65 | R62: ='Raw AERMET Data'!R60 -> 10 | S62: ='Raw AERMET Data'!S60 -> 286.4 | T62: ='Raw AERMET Data'!T60 -> 2 | U62: ='Raw AERMET Data'!U60 -> 0 | V62: ='Raw AERMET Data'!V60 -> 0 | W62: ='Raw AERMET Data'!W60 -> 17 | X62: ='Raw AERMET Data'!X60 -> 981 | Y62: ='Raw AERMET Data'!Y60 -> 0 | Z62: ='Raw AERMET Data'!Z60 -> ADJ-A1 | AA62: ='Raw AERMET Data'!AA60 -> NoSubs | AB62: ='Raw AERMET Data'!AB60 -> -3.2 | AC62: ='Raw AERMET Data'!AC60 ->  | AD62: ='Raw AERMET Data'!AD60 -> 
A63: ='Raw AERMET Data'!A61 -> 13 | B63: ='Raw AERMET Data'!B61 -> 1 | C63: ='Raw AERMET Data'!C61 -> 3 | D63: ='Raw AERMET Data'!D61 -> 3 | E63: ='Raw AERMET Data'!E61 -> 12 | F63: ='Raw AERMET Data'!F61 -> 146.5 | G63: ='Raw AERMET Data'!G61 -> 0.1 | H63: ='Raw AERMET Data'!H61 -> 1.21 | I63: ='Raw AERMET Data'!I61 -> 0.005 | J63: ='Raw AERMET Data'!J61 -> 423 | K63: ='Raw AERMET Data'!K61 -> 914 | L63: ='Raw AERMET Data'!L61 -> -86.6 | M63: ='Raw AERMET Data'!M61 -> 0.07 | N63: ='Raw AERMET Data'!N61 -> 1.65 | O63: ='Raw AERMET Data'!O61 -> 0.22 | P63: ='Raw AERMET Data'!P61 -> 6.11 | Q63: ='Raw AERMET Data'!Q61 -> 63 | R63: ='Raw AERMET Data'!R61 -> 10 | S63: ='Raw AERMET Data'!S61 -> 287.5 | T63: ='Raw AERMET Data'!T61 -> 2 | U63: ='Raw AERMET Data'!U61 -> 0 | V63: ='Raw AERMET Data'!V61 -> 0 | W63: ='Raw AERMET Data'!W61 -> 17 | X63: ='Raw AERMET Data'!X61 -> 980 | Y63: ='Raw AERMET Data'!Y61 -> 0 | Z63: ='Raw AERMET Data'!Z61 -> ADJ-A1 | AA63: ='Raw AERMET Data'!AA61 -> NoSubs | AB63: ='Raw AERMET Data'!AB61 -> -2.1 | AC63: ='Raw AERMET Data'!AC61 ->  | AD63: ='Raw AERMET Data'!AD61 -> 
A64: ='Raw AERMET Data'!A62 -> 13 | B64: ='Raw AERMET Data'!B62 -> 1 | C64: ='Raw AERMET Data'!C62 -> 3 | D64: ='Raw AERMET Data'!D62 -> 3 | E64: ='Raw AERMET Data'!E62 -> 13 | F64: ='Raw AERMET Data'!F62 -> 158.9 | G64: ='Raw AERMET Data'!G62 -> 0.1 | H64: ='Raw AERMET Data'!H62 -> 1.349 | I64: ='Raw AERMET Data'!I62 -> 0.005 | J64: ='Raw AERMET Data'!J62 -> 540 | K64: ='Raw AERMET Data'!K62 -> 935 | L64: ='Raw AERMET Data'!L62 -> -83.4 | M64: ='Raw AERMET Data'!M62 -> 0.069 | N64: ='Raw AERMET Data'!N62 -> 1.65 | O64: ='Raw AERMET Data'!O62 -> 0.21 | P64: ='Raw AERMET Data'!P62 -> 6.21 | Q64: ='Raw AERMET Data'!Q62 -> 53 | R64: ='Raw AERMET Data'!R62 -> 10 | S64: ='Raw AERMET Data'!S62 -> 288.8 | T64: ='Raw AERMET Data'!T62 -> 2 | U64: ='Raw AERMET Data'!U62 -> 0 | V64: ='Raw AERMET Data'!V62 -> 0 | W64: ='Raw AERMET Data'!W62 -> 16 | X64: ='Raw AERMET Data'!X62 -> 979 | Y64: ='Raw AERMET Data'!Y62 -> 0 | Z64: ='Raw AERMET Data'!Z62 -> ADJ-A1 | AA64: ='Raw AERMET Data'!AA62 -> NoSubs | AB64: ='Raw AERMET Data'!AB62 -> -1 | AC64: ='Raw AERMET Data'!AC62 ->  | AD64: ='Raw AERMET Data'!AD62 -> 
A65: ='Raw AERMET Data'!A63 -> 13 | B65: ='Raw AERMET Data'!B63 -> 1 | C65: ='Raw AERMET Data'!C63 -> 3 | D65: ='Raw AERMET Data'!D63 -> 3 | E65: ='Raw AERMET Data'!E63 -> 14 | F65: ='Raw AERMET Data'!F63 -> 149 | G65: ='Raw AERMET Data'!G63 -> 0.1 | H65: ='Raw AERMET Data'!H63 -> 1.405 | I65: ='Raw AERMET Data'!I63 -> 0.005 | J65: ='Raw AERMET Data'!J63 -> 651 | K65: ='Raw AERMET Data'!K63 -> 872 | L65: ='Raw AERMET Data'!L63 -> -77.2 | M65: ='Raw AERMET Data'!M63 -> 0.069 | N65: ='Raw AERMET Data'!N63 -> 1.65 | O65: ='Raw AERMET Data'!O63 -> 0.21 | P65: ='Raw AERMET Data'!P63 -> 5.9 | Q65: ='Raw AERMET Data'!Q63 -> 57 | R65: ='Raw AERMET Data'!R63 -> 10 | S65: ='Raw AERMET Data'!S63 -> 289.2 | T65: ='Raw AERMET Data'!T63 -> 2 | U65: ='Raw AERMET Data'!U63 -> 0 | V65: ='Raw AERMET Data'!V63 -> 0 | W65: ='Raw AERMET Data'!W63 -> 16 | X65: ='Raw AERMET Data'!X63 -> 978 | Y65: ='Raw AERMET Data'!Y63 -> 0 | Z65: ='Raw AERMET Data'!Z63 -> ADJ-A1 | AA65: ='Raw AERMET Data'!AA63 -> NoSubs | AB65: ='Raw AERMET Data'!AB63 -> -0.6 | AC65: ='Raw AERMET Data'!AC63 ->  | AD65: ='Raw AERMET Data'!AD63 -> 
A66: ='Raw AERMET Data'!A64 -> 13 | B66: ='Raw AERMET Data'!B64 -> 1 | C66: ='Raw AERMET Data'!C64 -> 3 | D66: ='Raw AERMET Data'!D64 -> 3 | E66: ='Raw AERMET Data'!E64 -> 15 | F66: ='Raw AERMET Data'!F64 -> 117.4 | G66: ='Raw AERMET Data'!G64 -> 0.1 | H66: ='Raw AERMET Data'!H64 -> 1.366 | I66: ='Raw AERMET Data'!I64 -> 0.005 | J66: ='Raw AERMET Data'!J64 -> 759 | K66: ='Raw AERMET Data'!K64 -> 1077 | L66: ='Raw AERMET Data'!L64 -> -150.1 | M66: ='Raw AERMET Data'!M64 -> 0.07 | N66: ='Raw AERMET Data'!N64 -> 1.65 | O66: ='Raw AERMET Data'!O64 -> 0.23 | P66: ='Raw AERMET Data'!P64 -> 6.98 | Q66: ='Raw AERMET Data'!Q64 -> 71 | R66: ='Raw AERMET Data'!R64 -> 10 | S66: ='Raw AERMET Data'!S64 -> 289.9 | T66: ='Raw AERMET Data'!T64 -> 2 | U66: ='Raw AERMET Data'!U64 -> 0 | V66: ='Raw AERMET Data'!V64 -> 0 | W66: ='Raw AERMET Data'!W64 -> 15 | X66: ='Raw AERMET Data'!X64 -> 978 | Y66: ='Raw AERMET Data'!Y64 -> 0 | Z66: ='Raw AERMET Data'!Z64 -> ADJ-A1 | AA66: ='Raw AERMET Data'!AA64 -> NoSubs | AB66: ='Raw AERMET Data'!AB64 -> -0.1 | AC66: ='Raw AERMET Data'!AC64 ->  | AD66: ='Raw AERMET Data'!AD64 -> 
A67: ='Raw AERMET Data'!A65 -> 13 | B67: ='Raw AERMET Data'!B65 -> 1 | C67: ='Raw AERMET Data'!C65 -> 3 | D67: ='Raw AERMET Data'!D65 -> 3 | E67: ='Raw AERMET Data'!E65 -> 16 | F67: ='Raw AERMET Data'!F65 -> 65.3 | G67: ='Raw AERMET Data'!G65 -> 0.1 | H67: ='Raw AERMET Data'!H65 -> 1.145 | I67: ='Raw AERMET Data'!I65 -> 0.005 | J67: ='Raw AERMET Data'!J65 -> 803 | K67: ='Raw AERMET Data'!K65 -> 919 | L67: ='Raw AERMET Data'!L65 -> -193.7 | M67: ='Raw AERMET Data'!M65 -> 0.07 | N67: ='Raw AERMET Data'!N65 -> 1.65 | O67: ='Raw AERMET Data'!O65 -> 0.27 | P67: ='Raw AERMET Data'!P65 -> 6.3 | Q67: ='Raw AERMET Data'!Q65 -> 71 | R67: ='Raw AERMET Data'!R65 -> 10 | S67: ='Raw AERMET Data'!S65 -> 289.9 | T67: ='Raw AERMET Data'!T65 -> 2 | U67: ='Raw AERMET Data'!U65 -> 0 | V67: ='Raw AERMET Data'!V65 -> 0 | W67: ='Raw AERMET Data'!W65 -> 16 | X67: ='Raw AERMET Data'!X65 -> 979 | Y67: ='Raw AERMET Data'!Y65 -> 0 | Z67: ='Raw AERMET Data'!Z65 -> ADJ-A1 | AA67: ='Raw AERMET Data'!AA65 -> NoSubs | AB67: ='Raw AERMET Data'!AB65 -> 0.1 | AC67: ='Raw AERMET Data'!AC65 ->  | AD67: ='Raw AERMET Data'!AD65 -> 
A68: ='Raw AERMET Data'!A66 -> 13 | B68: ='Raw AERMET Data'!B66 -> 1 | C68: ='Raw AERMET Data'!C66 -> 3 | D68: ='Raw AERMET Data'!D66 -> 3 | E68: ='Raw AERMET Data'!E66 -> 17 | F68: ='Raw AERMET Data'!F66 -> -0.6 | G68: ='Raw AERMET Data'!G66 -> 0.1 | H68: ='Raw AERMET Data'!H66 -> -9 | I68: ='Raw AERMET Data'!I66 -> -9 | J68: ='Raw AERMET Data'!J66 -> -999 | K68: ='Raw AERMET Data'!K66 -> 757 | L68: ='Raw AERMET Data'!L66 -> 8888 | M68: ='Raw AERMET Data'!M66 -> 0.07 | N68: ='Raw AERMET Data'!N66 -> 1.65 | O68: ='Raw AERMET Data'!O66 -> 0.4 | P68: ='Raw AERMET Data'!P66 -> 5.73 | Q68: ='Raw AERMET Data'!Q66 -> 68 | R68: ='Raw AERMET Data'!R66 -> 10 | S68: ='Raw AERMET Data'!S66 -> 289.9 | T68: ='Raw AERMET Data'!T66 -> 2 | U68: ='Raw AERMET Data'!U66 -> 0 | V68: ='Raw AERMET Data'!V66 -> 0 | W68: ='Raw AERMET Data'!W66 -> 17 | X68: ='Raw AERMET Data'!X66 -> 979 | Y68: ='Raw AERMET Data'!Y66 -> 0 | Z68: ='Raw AERMET Data'!Z66 -> ADJ-A1 | AA68: ='Raw AERMET Data'!AA66 -> NoSubs | AB68: ='Raw AERMET Data'!AB66 -> 0.3 | AC68: ='Raw AERMET Data'!AC66 ->  | AD68: ='Raw AERMET Data'!AD66 -> 
A69: ='Raw AERMET Data'!A67 -> 13 | B69: ='Raw AERMET Data'!B67 -> 1 | C69: ='Raw AERMET Data'!C67 -> 3 | D69: ='Raw AERMET Data'!D67 -> 3 | E69: ='Raw AERMET Data'!E67 -> 18 | F69: ='Raw AERMET Data'!F67 -> -38.1 | G69: ='Raw AERMET Data'!G67 -> 0.1 | H69: ='Raw AERMET Data'!H67 -> -9 | I69: ='Raw AERMET Data'!I67 -> -9 | J69: ='Raw AERMET Data'!J67 -> -999 | K69: ='Raw AERMET Data'!K67 -> 518 | L69: ='Raw AERMET Data'!L67 -> 103.5 | M69: ='Raw AERMET Data'!M67 -> 0.07 | N69: ='Raw AERMET Data'!N67 -> 1.65 | O69: ='Raw AERMET Data'!O67 -> 1 | P69: ='Raw AERMET Data'!P67 -> 4.85 | Q69: ='Raw AERMET Data'!Q67 -> 71 | R69: ='Raw AERMET Data'!R67 -> 10 | S69: ='Raw AERMET Data'!S67 -> 288.1 | T69: ='Raw AERMET Data'!T67 -> 2 | U69: ='Raw AERMET Data'!U67 -> 0 | V69: ='Raw AERMET Data'!V67 -> 0 | W69: ='Raw AERMET Data'!W67 -> 19 | X69: ='Raw AERMET Data'!X67 -> 979 | Y69: ='Raw AERMET Data'!Y67 -> 0 | Z69: ='Raw AERMET Data'!Z67 -> ADJ-A1 | AA69: ='Raw AERMET Data'!AA67 -> NoSubs | AB69: ='Raw AERMET Data'!AB67 -> -1.1 | AC69: ='Raw AERMET Data'!AC67 ->  | AD69: ='Raw AERMET Data'!AD67 -> 
A70: ='Raw AERMET Data'!A68 -> 13 | B70: ='Raw AERMET Data'!B68 -> 1 | C70: ='Raw AERMET Data'!C68 -> 3 | D70: ='Raw AERMET Data'!D68 -> 3 | E70: ='Raw AERMET Data'!E68 -> 19 | F70: ='Raw AERMET Data'!F68 -> -36.4 | G70: ='Raw AERMET Data'!G68 -> 0.1 | H70: ='Raw AERMET Data'!H68 -> -9 | I70: ='Raw AERMET Data'!I68 -> -9 | J70: ='Raw AERMET Data'!J68 -> -999 | K70: ='Raw AERMET Data'!K68 -> 475 | L70: ='Raw AERMET Data'!L68 -> 93.9 | M70: ='Raw AERMET Data'!M68 -> 0.069 | N70: ='Raw AERMET Data'!N68 -> 1.65 | O70: ='Raw AERMET Data'!O68 -> 1 | P70: ='Raw AERMET Data'!P68 -> 4.68 | Q70: ='Raw AERMET Data'!Q68 -> 51 | R70: ='Raw AERMET Data'!R68 -> 10 | S70: ='Raw AERMET Data'!S68 -> 287.5 | T70: ='Raw AERMET Data'!T68 -> 2 | U70: ='Raw AERMET Data'!U68 -> 0 | V70: ='Raw AERMET Data'!V68 -> 0 | W70: ='Raw AERMET Data'!W68 -> 20 | X70: ='Raw AERMET Data'!X68 -> 980 | Y70: ='Raw AERMET Data'!Y68 -> 0 | Z70: ='Raw AERMET Data'!Z68 -> ADJ-A1 | AA70: ='Raw AERMET Data'!AA68 -> NoSubs | AB70: ='Raw AERMET Data'!AB68 -> -1.5 | AC70: ='Raw AERMET Data'!AC68 ->  | AD70: ='Raw AERMET Data'!AD68 -> 
A71: ='Raw AERMET Data'!A69 -> 13 | B71: ='Raw AERMET Data'!B69 -> 1 | C71: ='Raw AERMET Data'!C69 -> 3 | D71: ='Raw AERMET Data'!D69 -> 3 | E71: ='Raw AERMET Data'!E69 -> 20 | F71: ='Raw AERMET Data'!F69 -> -41.7 | G71: ='Raw AERMET Data'!G69 -> 0.1 | H71: ='Raw AERMET Data'!H69 -> -9 | I71: ='Raw AERMET Data'!I69 -> -9 | J71: ='Raw AERMET Data'!J69 -> -999 | K71: ='Raw AERMET Data'!K69 -> 578 | L71: ='Raw AERMET Data'!L69 -> 121.8 | M71: ='Raw AERMET Data'!M69 -> 0.069 | N71: ='Raw AERMET Data'!N69 -> 1.65 | O71: ='Raw AERMET Data'!O69 -> 1 | P71: ='Raw AERMET Data'!P69 -> 5.22 | Q71: ='Raw AERMET Data'!Q69 -> 38 | R71: ='Raw AERMET Data'!R69 -> 10 | S71: ='Raw AERMET Data'!S69 -> 286.4 | T71: ='Raw AERMET Data'!T69 -> 2 | U71: ='Raw AERMET Data'!U69 -> 0 | V71: ='Raw AERMET Data'!V69 -> 0 | W71: ='Raw AERMET Data'!W69 -> 17 | X71: ='Raw AERMET Data'!X69 -> 980 | Y71: ='Raw AERMET Data'!Y69 -> 0 | Z71: ='Raw AERMET Data'!Z69 -> ADJ-A1 | AA71: ='Raw AERMET Data'!AA69 -> NoSubs | AB71: ='Raw AERMET Data'!AB69 -> -3.2 | AC71: ='Raw AERMET Data'!AC69 ->  | AD71: ='Raw AERMET Data'!AD69 -> 
A72: ='Raw AERMET Data'!A70 -> 13 | B72: ='Raw AERMET Data'!B70 -> 1 | C72: ='Raw AERMET Data'!C70 -> 3 | D72: ='Raw AERMET Data'!D70 -> 3 | E72: ='Raw AERMET Data'!E70 -> 21 | F72: ='Raw AERMET Data'!F70 -> -50.7 | G72: ='Raw AERMET Data'!G70 -> 0.1 | H72: ='Raw AERMET Data'!H70 -> -9 | I72: ='Raw AERMET Data'!I70 -> -9 | J72: ='Raw AERMET Data'!J70 -> -999 | K72: ='Raw AERMET Data'!K70 -> 769 | L72: ='Raw AERMET Data'!L70 -> 177.3 | M72: ='Raw AERMET Data'!M70 -> 0.069 | N72: ='Raw AERMET Data'!N70 -> 1.65 | O72: ='Raw AERMET Data'!O70 -> 1 | P72: ='Raw AERMET Data'!P70 -> 6.16 | Q72: ='Raw AERMET Data'!Q70 -> 47 | R72: ='Raw AERMET Data'!R70 -> 10 | S72: ='Raw AERMET Data'!S70 -> 285.4 | T72: ='Raw AERMET Data'!T70 -> 2 | U72: ='Raw AERMET Data'!U70 -> 0 | V72: ='Raw AERMET Data'!V70 -> 0 | W72: ='Raw AERMET Data'!W70 -> 18 | X72: ='Raw AERMET Data'!X70 -> 981 | Y72: ='Raw AERMET Data'!Y70 -> 0 | Z72: ='Raw AERMET Data'!Z70 -> ADJ-A1 | AA72: ='Raw AERMET Data'!AA70 -> NoSubs | AB72: ='Raw AERMET Data'!AB70 -> -4 | AC72: ='Raw AERMET Data'!AC70 ->  | AD72: ='Raw AERMET Data'!AD70 -> 
A73: ='Raw AERMET Data'!A71 -> 13 | B73: ='Raw AERMET Data'!B71 -> 1 | C73: ='Raw AERMET Data'!C71 -> 3 | D73: ='Raw AERMET Data'!D71 -> 3 | E73: ='Raw AERMET Data'!E71 -> 22 | F73: ='Raw AERMET Data'!F71 -> -49.2 | G73: ='Raw AERMET Data'!G71 -> 0.1 | H73: ='Raw AERMET Data'!H71 -> -9 | I73: ='Raw AERMET Data'!I71 -> -9 | J73: ='Raw AERMET Data'!J71 -> -999 | K73: ='Raw AERMET Data'!K71 -> 734 | L73: ='Raw AERMET Data'!L71 -> 166.2 | M73: ='Raw AERMET Data'!M71 -> 0.069 | N73: ='Raw AERMET Data'!N71 -> 1.65 | O73: ='Raw AERMET Data'!O71 -> 1 | P73: ='Raw AERMET Data'!P71 -> 5.99 | Q73: ='Raw AERMET Data'!Q71 -> 59 | R73: ='Raw AERMET Data'!R71 -> 10 | S73: ='Raw AERMET Data'!S71 -> 284.9 | T73: ='Raw AERMET Data'!T71 -> 2 | U73: ='Raw AERMET Data'!U71 -> 0 | V73: ='Raw AERMET Data'!V71 -> 0 | W73: ='Raw AERMET Data'!W71 -> 20 | X73: ='Raw AERMET Data'!X71 -> 982 | Y73: ='Raw AERMET Data'!Y71 -> 0 | Z73: ='Raw AERMET Data'!Z71 -> ADJ-A1 | AA73: ='Raw AERMET Data'!AA71 -> NoSubs | AB73: ='Raw AERMET Data'!AB71 -> -4.1 | AC73: ='Raw AERMET Data'!AC71 ->  | AD73: ='Raw AERMET Data'!AD71 -> 
A74: ='Raw AERMET Data'!A72 -> 13 | B74: ='Raw AERMET Data'!B72 -> 1 | C74: ='Raw AERMET Data'!C72 -> 3 | D74: ='Raw AERMET Data'!D72 -> 3 | E74: ='Raw AERMET Data'!E72 -> 23 | F74: ='Raw AERMET Data'!F72 -> -31.6 | G74: ='Raw AERMET Data'!G72 -> 0.1 | H74: ='Raw AERMET Data'!H72 -> -9 | I74: ='Raw AERMET Data'!I72 -> -9 | J74: ='Raw AERMET Data'!J72 -> -999 | K74: ='Raw AERMET Data'!K72 -> 396 | L74: ='Raw AERMET Data'!L72 -> 67.7 | M74: ='Raw AERMET Data'!M72 -> 0.069 | N74: ='Raw AERMET Data'!N72 -> 1.65 | O74: ='Raw AERMET Data'!O72 -> 1 | P74: ='Raw AERMET Data'!P72 -> 4.15 | Q74: ='Raw AERMET Data'!Q72 -> 52 | R74: ='Raw AERMET Data'!R72 -> 10 | S74: ='Raw AERMET Data'!S72 -> 283.8 | T74: ='Raw AERMET Data'!T72 -> 2 | U74: ='Raw AERMET Data'!U72 -> 0 | V74: ='Raw AERMET Data'!V72 -> 0 | W74: ='Raw AERMET Data'!W72 -> 22 | X74: ='Raw AERMET Data'!X72 -> 983 | Y74: ='Raw AERMET Data'!Y72 -> 0 | Z74: ='Raw AERMET Data'!Z72 -> ADJ-A1 | AA74: ='Raw AERMET Data'!AA72 -> NoSubs | AB74: ='Raw AERMET Data'!AB72 -> -4.8 | AC74: ='Raw AERMET Data'!AC72 ->  | AD74: ='Raw AERMET Data'!AD72 -> 
A75: ='Raw AERMET Data'!A73 -> 13 | B75: ='Raw AERMET Data'!B73 -> 1 | C75: ='Raw AERMET Data'!C73 -> 3 | D75: ='Raw AERMET Data'!D73 -> 3 | E75: ='Raw AERMET Data'!E73 -> 24 | F75: ='Raw AERMET Data'!F73 -> -29 | G75: ='Raw AERMET Data'!G73 -> 0.1 | H75: ='Raw AERMET Data'!H73 -> -9 | I75: ='Raw AERMET Data'!I73 -> -9 | J75: ='Raw AERMET Data'!J73 -> -999 | K75: ='Raw AERMET Data'!K73 -> 330 | L75: ='Raw AERMET Data'!L73 -> 57 | M75: ='Raw AERMET Data'!M73 -> 0.069 | N75: ='Raw AERMET Data'!N73 -> 1.65 | O75: ='Raw AERMET Data'!O73 -> 1 | P75: ='Raw AERMET Data'!P73 -> 3.9 | Q75: ='Raw AERMET Data'!Q73 -> 49 | R75: ='Raw AERMET Data'!R73 -> 10 | S75: ='Raw AERMET Data'!S73 -> 283.8 | T75: ='Raw AERMET Data'!T73 -> 2 | U75: ='Raw AERMET Data'!U73 -> 0 | V75: ='Raw AERMET Data'!V73 -> 0 | W75: ='Raw AERMET Data'!W73 -> 21 | X75: ='Raw AERMET Data'!X73 -> 983 | Y75: ='Raw AERMET Data'!Y73 -> 0 | Z75: ='Raw AERMET Data'!Z73 -> ADJ-A1 | AA75: ='Raw AERMET Data'!AA73 -> NoSubs | AB75: ='Raw AERMET Data'!AB73 -> -5 | AC75: ='Raw AERMET Data'!AC73 ->  | AD75: ='Raw AERMET Data'!AD73 -> 
A76: ='Raw AERMET Data'!A74 -> 13 | B76: ='Raw AERMET Data'!B74 -> 1 | C76: ='Raw AERMET Data'!C74 -> 4 | D76: ='Raw AERMET Data'!D74 -> 4 | E76: ='Raw AERMET Data'!E74 -> 1 | F76: ='Raw AERMET Data'!F74 -> -18.5 | G76: ='Raw AERMET Data'!G74 -> 0.1 | H76: ='Raw AERMET Data'!H74 -> -9 | I76: ='Raw AERMET Data'!I74 -> -9 | J76: ='Raw AERMET Data'!J74 -> -999 | K76: ='Raw AERMET Data'!K74 -> 171 | L76: ='Raw AERMET Data'!L74 -> 23 | M76: ='Raw AERMET Data'!M74 -> 0.069 | N76: ='Raw AERMET Data'!N74 -> 1.65 | O76: ='Raw AERMET Data'!O74 -> 1 | P76: ='Raw AERMET Data'!P74 -> 3.03 | Q76: ='Raw AERMET Data'!Q74 -> 56 | R76: ='Raw AERMET Data'!R74 -> 10 | S76: ='Raw AERMET Data'!S74 -> 283.1 | T76: ='Raw AERMET Data'!T74 -> 2 | U76: ='Raw AERMET Data'!U74 -> 0 | V76: ='Raw AERMET Data'!V74 -> 0 | W76: ='Raw AERMET Data'!W74 -> 24 | X76: ='Raw AERMET Data'!X74 -> 982 | Y76: ='Raw AERMET Data'!Y74 -> 0 | Z76: ='Raw AERMET Data'!Z74 -> ADJ-A1 | AA76: ='Raw AERMET Data'!AA74 -> NoSubs | AB76: ='Raw AERMET Data'!AB74 -> -5.1 | AC76: ='Raw AERMET Data'!AC74 ->  | AD76: ='Raw AERMET Data'!AD74 -> 
A77: ='Raw AERMET Data'!A75 -> 13 | B77: ='Raw AERMET Data'!B75 -> 1 | C77: ='Raw AERMET Data'!C75 -> 4 | D77: ='Raw AERMET Data'!D75 -> 4 | E77: ='Raw AERMET Data'!E75 -> 2 | F77: ='Raw AERMET Data'!F75 -> -7.4 | G77: ='Raw AERMET Data'!G75 -> 0.1 | H77: ='Raw AERMET Data'!H75 -> -9 | I77: ='Raw AERMET Data'!I75 -> -9 | J77: ='Raw AERMET Data'!J75 -> -999 | K77: ='Raw AERMET Data'!K75 -> 64 | L77: ='Raw AERMET Data'!L75 -> 7.8 | M77: ='Raw AERMET Data'!M75 -> 0.069 | N77: ='Raw AERMET Data'!N75 -> 1.65 | O77: ='Raw AERMET Data'!O75 -> 1 | P77: ='Raw AERMET Data'!P75 -> 2.16 | Q77: ='Raw AERMET Data'!Q75 -> 56 | R77: ='Raw AERMET Data'!R75 -> 10 | S77: ='Raw AERMET Data'!S75 -> 282 | T77: ='Raw AERMET Data'!T75 -> 2 | U77: ='Raw AERMET Data'!U75 -> 0 | V77: ='Raw AERMET Data'!V75 -> 0 | W77: ='Raw AERMET Data'!W75 -> 27 | X77: ='Raw AERMET Data'!X75 -> 983 | Y77: ='Raw AERMET Data'!Y75 -> 0 | Z77: ='Raw AERMET Data'!Z75 -> ADJ-A1 | AA77: ='Raw AERMET Data'!AA75 -> NoSubs | AB77: ='Raw AERMET Data'!AB75 -> -5.6 | AC77: ='Raw AERMET Data'!AC75 ->  | AD77: ='Raw AERMET Data'!AD75 -> 
A78: ='Raw AERMET Data'!A76 -> 13 | B78: ='Raw AERMET Data'!B76 -> 1 | C78: ='Raw AERMET Data'!C76 -> 4 | D78: ='Raw AERMET Data'!D76 -> 4 | E78: ='Raw AERMET Data'!E76 -> 3 | F78: ='Raw AERMET Data'!F76 -> -5.9 | G78: ='Raw AERMET Data'!G76 -> 0.1 | H78: ='Raw AERMET Data'!H76 -> -9 | I78: ='Raw AERMET Data'!I76 -> -9 | J78: ='Raw AERMET Data'!J76 -> -999 | K78: ='Raw AERMET Data'!K76 -> 52 | L78: ='Raw AERMET Data'!L76 -> 6.9 | M78: ='Raw AERMET Data'!M76 -> 0.072 | N78: ='Raw AERMET Data'!N76 -> 1.65 | O78: ='Raw AERMET Data'!O76 -> 1 | P78: ='Raw AERMET Data'!P76 -> 1.91 | Q78: ='Raw AERMET Data'!Q76 -> 234 | R78: ='Raw AERMET Data'!R76 -> 10 | S78: ='Raw AERMET Data'!S76 -> 278.8 | T78: ='Raw AERMET Data'!T76 -> 2 | U78: ='Raw AERMET Data'!U76 -> 0 | V78: ='Raw AERMET Data'!V76 -> 0 | W78: ='Raw AERMET Data'!W76 -> 33 | X78: ='Raw AERMET Data'!X76 -> 984 | Y78: ='Raw AERMET Data'!Y76 -> 0 | Z78: ='Raw AERMET Data'!Z76 -> ADJ-A1 | AA78: ='Raw AERMET Data'!AA76 -> NoSubs | AB78: ='Raw AERMET Data'!AB76 -> -7.6 | AC78: ='Raw AERMET Data'!AC76 ->  | AD78: ='Raw AERMET Data'!AD76 -> 
A79: ='Raw AERMET Data'!A77 -> 13 | B79: ='Raw AERMET Data'!B77 -> 1 | C79: ='Raw AERMET Data'!C77 -> 4 | D79: ='Raw AERMET Data'!D77 -> 4 | E79: ='Raw AERMET Data'!E77 -> 4 | F79: ='Raw AERMET Data'!F77 -> -8.9 | G79: ='Raw AERMET Data'!G77 -> 0.1 | H79: ='Raw AERMET Data'!H77 -> -9 | I79: ='Raw AERMET Data'!I77 -> -9 | J79: ='Raw AERMET Data'!J77 -> -999 | K79: ='Raw AERMET Data'!K77 -> 71 | L79: ='Raw AERMET Data'!L77 -> 8.6 | M79: ='Raw AERMET Data'!M77 -> 0.07 | N79: ='Raw AERMET Data'!N77 -> 1.65 | O79: ='Raw AERMET Data'!O77 -> 1 | P79: ='Raw AERMET Data'!P77 -> 2.37 | Q79: ='Raw AERMET Data'!Q77 -> 82 | R79: ='Raw AERMET Data'!R77 -> 10 | S79: ='Raw AERMET Data'!S77 -> 281.4 | T79: ='Raw AERMET Data'!T77 -> 2 | U79: ='Raw AERMET Data'!U77 -> 0 | V79: ='Raw AERMET Data'!V77 -> 0 | W79: ='Raw AERMET Data'!W77 -> 28 | X79: ='Raw AERMET Data'!X77 -> 984 | Y79: ='Raw AERMET Data'!Y77 -> 0 | Z79: ='Raw AERMET Data'!Z77 -> ADJ-A1 | AA79: ='Raw AERMET Data'!AA77 -> NoSubs | AB79: ='Raw AERMET Data'!AB77 -> -6 | AC79: ='Raw AERMET Data'!AC77 ->  | AD79: ='Raw AERMET Data'!AD77 -> 
A80: ='Raw AERMET Data'!A78 -> 13 | B80: ='Raw AERMET Data'!B78 -> 1 | C80: ='Raw AERMET Data'!C78 -> 4 | D80: ='Raw AERMET Data'!D78 -> 4 | E80: ='Raw AERMET Data'!E78 -> 5 | F80: ='Raw AERMET Data'!F78 -> -11 | G80: ='Raw AERMET Data'!G78 -> 0.1 | H80: ='Raw AERMET Data'!H78 -> -9 | I80: ='Raw AERMET Data'!I78 -> -9 | J80: ='Raw AERMET Data'!J78 -> -999 | K80: ='Raw AERMET Data'!K78 -> 84 | L80: ='Raw AERMET Data'!L78 -> 9.6 | M80: ='Raw AERMET Data'!M78 -> 0.081 | N80: ='Raw AERMET Data'!N78 -> 1.65 | O80: ='Raw AERMET Data'!O78 -> 1 | P80: ='Raw AERMET Data'!P78 -> 2.57 | Q80: ='Raw AERMET Data'!Q78 -> 128 | R80: ='Raw AERMET Data'!R78 -> 10 | S80: ='Raw AERMET Data'!S78 -> 278.1 | T80: ='Raw AERMET Data'!T78 -> 2 | U80: ='Raw AERMET Data'!U78 -> 0 | V80: ='Raw AERMET Data'!V78 -> 0 | W80: ='Raw AERMET Data'!W78 -> 37 | X80: ='Raw AERMET Data'!X78 -> 984 | Y80: ='Raw AERMET Data'!Y78 -> 0 | Z80: ='Raw AERMET Data'!Z78 -> ADJ-A1 | AA80: ='Raw AERMET Data'!AA78 -> NoSubs | AB80: ='Raw AERMET Data'!AB78 -> -7.5 | AC80: ='Raw AERMET Data'!AC78 ->  | AD80: ='Raw AERMET Data'!AD78 -> 
A81: ='Raw AERMET Data'!A79 -> 13 | B81: ='Raw AERMET Data'!B79 -> 1 | C81: ='Raw AERMET Data'!C79 -> 4 | D81: ='Raw AERMET Data'!D79 -> 4 | E81: ='Raw AERMET Data'!E79 -> 6 | F81: ='Raw AERMET Data'!F79 -> -3.5 | G81: ='Raw AERMET Data'!G79 -> 0.1 | H81: ='Raw AERMET Data'!H79 -> -9 | I81: ='Raw AERMET Data'!I79 -> -9 | J81: ='Raw AERMET Data'!J79 -> -999 | K81: ='Raw AERMET Data'!K79 -> 35 | L81: ='Raw AERMET Data'!L79 -> 5.4 | M81: ='Raw AERMET Data'!M79 -> 0.072 | N81: ='Raw AERMET Data'!N79 -> 1.65 | O81: ='Raw AERMET Data'!O79 -> 1 | P81: ='Raw AERMET Data'!P79 -> 1.48 | Q81: ='Raw AERMET Data'!Q79 -> 238 | R81: ='Raw AERMET Data'!R79 -> 10 | S81: ='Raw AERMET Data'!S79 -> 278.1 | T81: ='Raw AERMET Data'!T79 -> 2 | U81: ='Raw AERMET Data'!U79 -> 0 | V81: ='Raw AERMET Data'!V79 -> 0 | W81: ='Raw AERMET Data'!W79 -> 39 | X81: ='Raw AERMET Data'!X79 -> 984 | Y81: ='Raw AERMET Data'!Y79 -> 0 | Z81: ='Raw AERMET Data'!Z79 -> ADJ-A1 | AA81: ='Raw AERMET Data'!AA79 -> NoSubs | AB81: ='Raw AERMET Data'!AB79 -> -7.1 | AC81: ='Raw AERMET Data'!AC79 ->  | AD81: ='Raw AERMET Data'!AD79 -> 
A82: ='Raw AERMET Data'!A80 -> 13 | B82: ='Raw AERMET Data'!B80 -> 1 | C82: ='Raw AERMET Data'!C80 -> 4 | D82: ='Raw AERMET Data'!D80 -> 4 | E82: ='Raw AERMET Data'!E80 -> 7 | F82: ='Raw AERMET Data'!F80 -> -10.5 | G82: ='Raw AERMET Data'!G80 -> 0.1 | H82: ='Raw AERMET Data'!H80 -> -9 | I82: ='Raw AERMET Data'!I80 -> -9 | J82: ='Raw AERMET Data'!J80 -> -999 | K82: ='Raw AERMET Data'!K80 -> 80 | L82: ='Raw AERMET Data'!L80 -> 9.3 | M82: ='Raw AERMET Data'!M80 -> 0.07 | N82: ='Raw AERMET Data'!N80 -> 1.65 | O82: ='Raw AERMET Data'!O80 -> 1 | P82: ='Raw AERMET Data'!P80 -> 2.57 | Q82: ='Raw AERMET Data'!Q80 -> 12 | R82: ='Raw AERMET Data'!R80 -> 10 | S82: ='Raw AERMET Data'!S80 -> 281.4 | T82: ='Raw AERMET Data'!T80 -> 2 | U82: ='Raw AERMET Data'!U80 -> 0 | V82: ='Raw AERMET Data'!V80 -> 0 | W82: ='Raw AERMET Data'!W80 -> 29 | X82: ='Raw AERMET Data'!X80 -> 984 | Y82: ='Raw AERMET Data'!Y80 -> 0 | Z82: ='Raw AERMET Data'!Z80 -> ADJ-A1 | AA82: ='Raw AERMET Data'!AA80 -> NoSubs | AB82: ='Raw AERMET Data'!AB80 -> -5.8 | AC82: ='Raw AERMET Data'!AC80 ->  | AD82: ='Raw AERMET Data'!AD80 -> 
A83: ='Raw AERMET Data'!A81 -> 13 | B83: ='Raw AERMET Data'!B81 -> 1 | C83: ='Raw AERMET Data'!C81 -> 4 | D83: ='Raw AERMET Data'!D81 -> 4 | E83: ='Raw AERMET Data'!E81 -> 8 | F83: ='Raw AERMET Data'!F81 -> -42.2 | G83: ='Raw AERMET Data'!G81 -> 0.1 | H83: ='Raw AERMET Data'!H81 -> -9 | I83: ='Raw AERMET Data'!I81 -> -9 | J83: ='Raw AERMET Data'!J81 -> -999 | K83: ='Raw AERMET Data'!K81 -> 568 | L83: ='Raw AERMET Data'!L81 -> 116.8 | M83: ='Raw AERMET Data'!M81 -> 0.07 | N83: ='Raw AERMET Data'!N81 -> 1.65 | O83: ='Raw AERMET Data'!O81 -> 1 | P83: ='Raw AERMET Data'!P81 -> 5.16 | Q83: ='Raw AERMET Data'!Q81 -> 74 | R83: ='Raw AERMET Data'!R81 -> 10 | S83: ='Raw AERMET Data'!S81 -> 281.4 | T83: ='Raw AERMET Data'!T81 -> 2 | U83: ='Raw AERMET Data'!U81 -> 0 | V83: ='Raw AERMET Data'!V81 -> 0 | W83: ='Raw AERMET Data'!W81 -> 31 | X83: ='Raw AERMET Data'!X81 -> 985 | Y83: ='Raw AERMET Data'!Y81 -> 0 | Z83: ='Raw AERMET Data'!Z81 -> ADJ-A1 | AA83: ='Raw AERMET Data'!AA81 -> NoSubs | AB83: ='Raw AERMET Data'!AB81 -> -5.4 | AC83: ='Raw AERMET Data'!AC81 ->  | AD83: ='Raw AERMET Data'!AD81 -> 
A84: ='Raw AERMET Data'!A82 -> 13 | B84: ='Raw AERMET Data'!B82 -> 1 | C84: ='Raw AERMET Data'!C82 -> 4 | D84: ='Raw AERMET Data'!D82 -> 4 | E84: ='Raw AERMET Data'!E82 -> 9 | F84: ='Raw AERMET Data'!F82 -> 0.1 | G84: ='Raw AERMET Data'!G82 -> 0.1 | H84: ='Raw AERMET Data'!H82 -> 0.038 | I84: ='Raw AERMET Data'!I82 -> 0.007 | J84: ='Raw AERMET Data'!J82 -> 15 | K84: ='Raw AERMET Data'!K82 -> 770 | L84: ='Raw AERMET Data'!L82 -> -8888 | M84: ='Raw AERMET Data'!M82 -> 0.07 | N84: ='Raw AERMET Data'!N82 -> 1.65 | O84: ='Raw AERMET Data'!O82 -> 0.42 | P84: ='Raw AERMET Data'!P82 -> 5.82 | Q84: ='Raw AERMET Data'!Q82 -> 68 | R84: ='Raw AERMET Data'!R82 -> 10 | S84: ='Raw AERMET Data'!S82 -> 282.5 | T84: ='Raw AERMET Data'!T82 -> 2 | U84: ='Raw AERMET Data'!U82 -> 0 | V84: ='Raw AERMET Data'!V82 -> 0 | W84: ='Raw AERMET Data'!W82 -> 28 | X84: ='Raw AERMET Data'!X82 -> 986 | Y84: ='Raw AERMET Data'!Y82 -> 3 | Z84: ='Raw AERMET Data'!Z82 -> ADJ-A1 | AA84: ='Raw AERMET Data'!AA82 -> NoSubs | AB84: ='Raw AERMET Data'!AB82 -> -4.9 | AC84: ='Raw AERMET Data'!AC82 ->  | AD84: ='Raw AERMET Data'!AD82 -> 
A85: ='Raw AERMET Data'!A83 -> 13 | B85: ='Raw AERMET Data'!B83 -> 1 | C85: ='Raw AERMET Data'!C83 -> 4 | D85: ='Raw AERMET Data'!D83 -> 4 | E85: ='Raw AERMET Data'!E83 -> 10 | F85: ='Raw AERMET Data'!F83 -> 65.7 | G85: ='Raw AERMET Data'!G83 -> 0.1 | H85: ='Raw AERMET Data'!H83 -> 0.926 | I85: ='Raw AERMET Data'!I83 -> 0.005 | J85: ='Raw AERMET Data'!J83 -> 425 | K85: ='Raw AERMET Data'!K83 -> 1038 | L85: ='Raw AERMET Data'!L83 -> -250.4 | M85: ='Raw AERMET Data'!M83 -> 0.07 | N85: ='Raw AERMET Data'!N83 -> 1.65 | O85: ='Raw AERMET Data'!O83 -> 0.28 | P85: ='Raw AERMET Data'!P83 -> 6.91 | Q85: ='Raw AERMET Data'!Q83 -> 71 | R85: ='Raw AERMET Data'!R83 -> 10 | S85: ='Raw AERMET Data'!S83 -> 283.8 | T85: ='Raw AERMET Data'!T83 -> 2 | U85: ='Raw AERMET Data'!U83 -> 0 | V85: ='Raw AERMET Data'!V83 -> 0 | W85: ='Raw AERMET Data'!W83 -> 27 | X85: ='Raw AERMET Data'!X83 -> 986 | Y85: ='Raw AERMET Data'!Y83 -> 3 | Z85: ='Raw AERMET Data'!Z83 -> ADJ-A1 | AA85: ='Raw AERMET Data'!AA83 -> NoSubs | AB85: ='Raw AERMET Data'!AB83 -> -3.8 | AC85: ='Raw AERMET Data'!AC83 ->  | AD85: ='Raw AERMET Data'!AD83 -> 
A86: ='Raw AERMET Data'!A84 -> 13 | B86: ='Raw AERMET Data'!B84 -> 1 | C86: ='Raw AERMET Data'!C84 -> 4 | D86: ='Raw AERMET Data'!D84 -> 4 | E86: ='Raw AERMET Data'!E84 -> 11 | F86: ='Raw AERMET Data'!F84 -> 112.1 | G86: ='Raw AERMET Data'!G84 -> 0.1 | H86: ='Raw AERMET Data'!H84 -> 1.285 | I86: ='Raw AERMET Data'!I84 -> 0.005 | J86: ='Raw AERMET Data'!J84 -> 665 | K86: ='Raw AERMET Data'!K84 -> 1207 | L86: ='Raw AERMET Data'!L84 -> -198.9 | M86: ='Raw AERMET Data'!M84 -> 0.07 | N86: ='Raw AERMET Data'!N84 -> 1.65 | O86: ='Raw AERMET Data'!O84 -> 0.23 | P86: ='Raw AERMET Data'!P84 -> 7.6 | Q86: ='Raw AERMET Data'!Q84 -> 71 | R86: ='Raw AERMET Data'!R84 -> 10 | S86: ='Raw AERMET Data'!S84 -> 284.9 | T86: ='Raw AERMET Data'!T84 -> 2 | U86: ='Raw AERMET Data'!U84 -> 0 | V86: ='Raw AERMET Data'!V84 -> 0 | W86: ='Raw AERMET Data'!W84 -> 28 | X86: ='Raw AERMET Data'!X84 -> 986 | Y86: ='Raw AERMET Data'!Y84 -> 0 | Z86: ='Raw AERMET Data'!Z84 -> ADJ-A1 | AA86: ='Raw AERMET Data'!AA84 -> NoSubs | AB86: ='Raw AERMET Data'!AB84 -> -2.5 | AC86: ='Raw AERMET Data'!AC84 ->  | AD86: ='Raw AERMET Data'!AD84 -> 
A87: ='Raw AERMET Data'!A85 -> 13 | B87: ='Raw AERMET Data'!B85 -> 1 | C87: ='Raw AERMET Data'!C85 -> 4 | D87: ='Raw AERMET Data'!D85 -> 4 | E87: ='Raw AERMET Data'!E85 -> 12 | F87: ='Raw AERMET Data'!F85 -> 146.2 | G87: ='Raw AERMET Data'!G85 -> 0.1 | H87: ='Raw AERMET Data'!H85 -> 1.485 | I87: ='Raw AERMET Data'!I85 -> 0.006 | J87: ='Raw AERMET Data'!J85 -> 788 | K87: ='Raw AERMET Data'!K85 -> 880 | L87: ='Raw AERMET Data'!L85 -> -77.8 | M87: ='Raw AERMET Data'!M85 -> 0.07 | N87: ='Raw AERMET Data'!N85 -> 1.65 | O87: ='Raw AERMET Data'!O85 -> 0.22 | P87: ='Raw AERMET Data'!P85 -> 5.85 | Q87: ='Raw AERMET Data'!Q85 -> 66 | R87: ='Raw AERMET Data'!R85 -> 10 | S87: ='Raw AERMET Data'!S85 -> 285.9 | T87: ='Raw AERMET Data'!T85 -> 2 | U87: ='Raw AERMET Data'!U85 -> 0 | V87: ='Raw AERMET Data'!V85 -> 0 | W87: ='Raw AERMET Data'!W85 -> 27 | X87: ='Raw AERMET Data'!X85 -> 985 | Y87: ='Raw AERMET Data'!Y85 -> 0 | Z87: ='Raw AERMET Data'!Z85 -> ADJ-A1 | AA87: ='Raw AERMET Data'!AA85 -> NoSubs | AB87: ='Raw AERMET Data'!AB85 -> -1.7 | AC87: ='Raw AERMET Data'!AC85 ->  | AD87: ='Raw AERMET Data'!AD85 -> 
A88: ='Raw AERMET Data'!A86 -> 13 | B88: ='Raw AERMET Data'!B86 -> 1 | C88: ='Raw AERMET Data'!C86 -> 4 | D88: ='Raw AERMET Data'!D86 -> 4 | E88: ='Raw AERMET Data'!E86 -> 13 | F88: ='Raw AERMET Data'!F86 -> 159 | G88: ='Raw AERMET Data'!G86 -> 0.1 | H88: ='Raw AERMET Data'!H86 -> 1.582 | I88: ='Raw AERMET Data'!I86 -> 0.006 | J88: ='Raw AERMET Data'!J86 -> 875 | K88: ='Raw AERMET Data'!K86 -> 531 | L88: ='Raw AERMET Data'!L86 -> -25 | M88: ='Raw AERMET Data'!M86 -> 0.061 | N88: ='Raw AERMET Data'!N86 -> 1.65 | O88: ='Raw AERMET Data'!O86 -> 0.21 | P88: ='Raw AERMET Data'!P86 -> 3.93 | Q88: ='Raw AERMET Data'!Q86 -> 102 | R88: ='Raw AERMET Data'!R86 -> 10 | S88: ='Raw AERMET Data'!S86 -> 287.5 | T88: ='Raw AERMET Data'!T86 -> 2 | U88: ='Raw AERMET Data'!U86 -> 0 | V88: ='Raw AERMET Data'!V86 -> 0 | W88: ='Raw AERMET Data'!W86 -> 25 | X88: ='Raw AERMET Data'!X86 -> 983 | Y88: ='Raw AERMET Data'!Y86 -> 0 | Z88: ='Raw AERMET Data'!Z86 -> ADJ-A1 | AA88: ='Raw AERMET Data'!AA86 -> NoSubs | AB88: ='Raw AERMET Data'!AB86 -> -0.5 | AC88: ='Raw AERMET Data'!AC86 ->  | AD88: ='Raw AERMET Data'!AD86 -> 
A89: ='Raw AERMET Data'!A87 -> 13 | B89: ='Raw AERMET Data'!B87 -> 1 | C89: ='Raw AERMET Data'!C87 -> 4 | D89: ='Raw AERMET Data'!D87 -> 4 | E89: ='Raw AERMET Data'!E87 -> 14 | F89: ='Raw AERMET Data'!F87 -> 149.5 | G89: ='Raw AERMET Data'!G87 -> 0.1 | H89: ='Raw AERMET Data'!H87 -> 1.594 | I89: ='Raw AERMET Data'!I87 -> 0.005 | J89: ='Raw AERMET Data'!J87 -> 950 | K89: ='Raw AERMET Data'!K87 -> 437 | L89: ='Raw AERMET Data'!L87 -> -19.3 | M89: ='Raw AERMET Data'!M87 -> 0.07 | N89: ='Raw AERMET Data'!N87 -> 1.65 | O89: ='Raw AERMET Data'!O87 -> 0.21 | P89: ='Raw AERMET Data'!P87 -> 3.34 | Q89: ='Raw AERMET Data'!Q87 -> 84 | R89: ='Raw AERMET Data'!R87 -> 10 | S89: ='Raw AERMET Data'!S87 -> 288.8 | T89: ='Raw AERMET Data'!T87 -> 2 | U89: ='Raw AERMET Data'!U87 -> 0 | V89: ='Raw AERMET Data'!V87 -> 0 | W89: ='Raw AERMET Data'!W87 -> 21 | X89: ='Raw AERMET Data'!X87 -> 982 | Y89: ='Raw AERMET Data'!Y87 -> 0 | Z89: ='Raw AERMET Data'!Z87 -> ADJ-A1 | AA89: ='Raw AERMET Data'!AA87 -> NoSubs | AB89: ='Raw AERMET Data'!AB87 -> 0 | AC89: ='Raw AERMET Data'!AC87 ->  | AD89: ='Raw AERMET Data'!AD87 -> 
A90: ='Raw AERMET Data'!A88 -> 13 | B90: ='Raw AERMET Data'!B88 -> 1 | C90: ='Raw AERMET Data'!C88 -> 4 | D90: ='Raw AERMET Data'!D88 -> 4 | E90: ='Raw AERMET Data'!E88 -> 15 | F90: ='Raw AERMET Data'!F88 -> 117.7 | G90: ='Raw AERMET Data'!G88 -> 0.1 | H90: ='Raw AERMET Data'!H88 -> 1.499 | I90: ='Raw AERMET Data'!I88 -> 0.005 | J90: ='Raw AERMET Data'!J88 -> 1005 | K90: ='Raw AERMET Data'!K88 -> 409 | L90: ='Raw AERMET Data'!L88 -> -21.6 | M90: ='Raw AERMET Data'!M88 -> 0.069 | N90: ='Raw AERMET Data'!N88 -> 1.65 | O90: ='Raw AERMET Data'!O88 -> 0.23 | P90: ='Raw AERMET Data'!P88 -> 3.25 | Q90: ='Raw AERMET Data'!Q88 -> 56 | R90: ='Raw AERMET Data'!R88 -> 10 | S90: ='Raw AERMET Data'!S88 -> 288.8 | T90: ='Raw AERMET Data'!T88 -> 2 | U90: ='Raw AERMET Data'!U88 -> 0 | V90: ='Raw AERMET Data'!V88 -> 0 | W90: ='Raw AERMET Data'!W88 -> 21 | X90: ='Raw AERMET Data'!X88 -> 982 | Y90: ='Raw AERMET Data'!Y88 -> 0 | Z90: ='Raw AERMET Data'!Z88 -> ADJ-A1 | AA90: ='Raw AERMET Data'!AA88 -> NoSubs | AB90: ='Raw AERMET Data'!AB88 -> 0 | AC90: ='Raw AERMET Data'!AC88 ->  | AD90: ='Raw AERMET Data'!AD88 -> 
A91: ='Raw AERMET Data'!A89 -> 13 | B91: ='Raw AERMET Data'!B89 -> 1 | C91: ='Raw AERMET Data'!C89 -> 4 | D91: ='Raw AERMET Data'!D89 -> 4 | E91: ='Raw AERMET Data'!E89 -> 16 | F91: ='Raw AERMET Data'!F89 -> 65.7 | G91: ='Raw AERMET Data'!G89 -> 0.1 | H91: ='Raw AERMET Data'!H89 -> 1.251 | I91: ='Raw AERMET Data'!I89 -> 0.005 | J91: ='Raw AERMET Data'!J89 -> 1046 | K91: ='Raw AERMET Data'!K89 -> 202 | L91: ='Raw AERMET Data'!L89 -> -8.7 | M91: ='Raw AERMET Data'!M89 -> 0.081 | N91: ='Raw AERMET Data'!N89 -> 1.65 | O91: ='Raw AERMET Data'!O89 -> 0.27 | P91: ='Raw AERMET Data'!P89 -> 1.71 | Q91: ='Raw AERMET Data'!Q89 -> 123 | R91: ='Raw AERMET Data'!R89 -> 10 | S91: ='Raw AERMET Data'!S89 -> 288.8 | T91: ='Raw AERMET Data'!T89 -> 2 | U91: ='Raw AERMET Data'!U89 -> 0 | V91: ='Raw AERMET Data'!V89 -> 0 | W91: ='Raw AERMET Data'!W89 -> 20 | X91: ='Raw AERMET Data'!X89 -> 982 | Y91: ='Raw AERMET Data'!Y89 -> 0 | Z91: ='Raw AERMET Data'!Z89 -> ADJ-A1 | AA91: ='Raw AERMET Data'!AA89 -> NoSubs | AB91: ='Raw AERMET Data'!AB89 -> -0.2 | AC91: ='Raw AERMET Data'!AC89 ->  | AD91: ='Raw AERMET Data'!AD89 -> 
